Workbook

Sheet INSTRUCCIONES

Sheet MENÚ DE INICIO
AA3: Año de cálculo | AC3: 2017
AF10: Cliente 1
AF11: Cliente 2
AF12: Cliente 3
AF13: Cliente 4
AF14: Cliente 5
AF15: Cliente 6
AF16: Cliente 7
AF17: Cliente 8
AF18: Cliente 9
AF19: Cliente 10
AF20: Cliente 11
AF21: Cliente 12
AF22: Cliente 13
AF23: Cliente 14
AF24: Cliente 15
AF25: Cliente 16
AF26: Cliente 17
AF27: Cliente 18
AF28: Cliente 19
AF29: Cliente 20
AF30: Cliente 21
AF31: Cliente 22
AF32: Cliente 23
AF33: Cliente 24
AF34: Cliente 25
AF35: Cliente 26
AF36: Cliente 27
AF37: Cliente 28
AF38: Cliente 29
AF39: Cliente 30
AF40: Cliente 31
AF41: Cliente 32
AF42: Cliente 33
AF43: Cliente 34
AF44: Cliente 35
AF45: Cliente 36
AF46: Cliente 37
AF47: Cliente 38
AF48: Cliente 39
AF49: Cliente 40
AF50: Cliente 41
AF51: Cliente 42
AF52: Cliente 43
AF53: Cliente 44
AF54: Cliente 45
AF55: Cliente 46
AF56: Cliente 47
AF57: Cliente 48
AF58: Cliente 49
AF59: Cliente 50

Sheet A1_1
A1: A.1.
B2: PATRÓN A.1. CONSUMOS DE LA FLOTA. RUTA GENÉRICA
B7: Tipo de vehículo
C9: Tipo de vehículo (MMA)
C11: Carga útil del camión | G11: 25 | H11: t
B16: Proporción de viajes en vacío
C17: Si la ruta es abierta, introduzca la siguiente información
C18: Proporción de recorrido adicional en vacío (%) | G18: 0.15
C20: En caso de no conocer la proporción de viajes en vacío, introduzca la siguiente información:
C21: Tipo de transporte
C22: Proporción de recorrido adicional en vacío estimada | G22: =IFERROR(VLOOKUP($E$21,t_porcentaje_vacio,2,0),"") -> 
B27: Consumo y tipo de combustible. Enfoque: valores individuales de medida
C29: Tipo de combustible | E29: Diésel mezcla con biodiésel según R.D. 1085/2015
C31: Introduzca los siguientes datos sobre los repostajes realizados antes, durante y después de la ruta
E32: Km tacógrafo | G32: Litros repostados
D33: Repostaje anterior a la ruta | F33: km
D35: Repostaje en ruta (1) | F35: km | H35: l.
D36: Repostaje en ruta (2) | F36: km | H36: l.
D37: Repostaje en ruta (3) | F37: km | H37: l.
D38: Repostaje en ruta (4) | F38: km | H38: l.
D39: Repostaje en ruta (5) | F39: km | H39: l.
D40: Repostaje en ruta (6) | F40: km | H40: l.
D41: Repostaje en ruta (7) | F41: km | H41: l.
D42: Repostaje en ruta (8) | F42: km | H42: l.
D44: Repostaje posterior a la ruta | F44: km | H44: l.
C46: Introduzca los siguientes datos sobre el inicio y final de la ruta
D47: Inicio de la ruta | F47: km
D48: Final de la ruta | F48: km
C50: Si la ruta es abierta, introduzca la siguiente información
C51: Consumo específico de combustible en vacío | H51: l/100km
C53: Consumo de combustible de la ruta | G53: =IFERROR(($E$35-$E$47)/($E$35-$E$33)*$G$35+SUM($G$36:$G$42)+($E$48-$E$42)/($E$44-$E$42)*$G$44+$G$51/100*($E$48-$E$47)*IF($G$18<>"",$G$18,$G$22),0) -> 0 | H53: l
B57: Consumo y tipo de combustible. Enfoque: valores específicos del operador de transporte
C59: Tipo de combustible | E59: Diésel mezcla con biodiésel según R.D. 1085/2015
C61: Introduzca los siguientes datos sobre el consumo de combustible del tipo de vehículo durante el periodo
C62: Consumo registrado en el periodo considerado | H62: l
C63: Distancia recorrida en el periodo considerado | H63: km
C64: Consumo específico de combustible | G64: =IFERROR(G62/G63,"") ->  | H64: l/100km
C66: Consumo de combustible de la ruta | G66: =IF($G$64<>"",$G$64*($N$120+$N$121),"") ->  | H66: l
B71: Localizaciones y distancias
C73: Denominación y localización de las paradas que componen la ruta
C74: Número de parada | D74: Denominación (importante cumplimentar) | G74: Localización
C75: 1 | D75: Almacén Madrid | G75: Madrid
C76: 2 | D76: Almacén Zaragoza | G76: Zaragoza
C77: 3 | D77: Almacén Barcelona | G77: Barcelona
C78: 4
C79: 5
C80: 6
C81: 7
C82: 8
C83: 9
C84: 10
C85: 11
C86: 12
C87: 13
C88: 14
C89: 15
C90: 16
C91: 17
C92: 18
C93: 19
C94: 20
C95: 21
C98: Longitud y carga y consumo de combustible de cada uno de los tramos que componen la ruta
C99: Número de paradas | E99: Denominación de las paradas | J99: ¿Se conoce la distancia recorrida? | K99: Distancia recorrida (km) | M99: Distancia directa (km) | N99: Distancia de cálculo (km) | P99: Carga transportada (t) | Q99: Tasa de carga del tramo | R99: Consumo específico de combustible del tramo (l/100 km) | S99: Consumo específico de combustible del tramo (l/100 km) de cálculo | T99: Consumo de combustible del tramo (l)
C100: Parada 1 → Parada 2 | E100: =IF(D76<>"",D75&" → "&D76,"") -> Almacén Madrid → Almacén Zaragoza | J100: Sí | K100: 314 | M100: =IF(AND(G75<>"",G76<>""),getGoogleDistance(txtNoAcc(G75),txtNoAcc(G76))*1,"") -> 313.6 | N100: =IF(K100<>0,K100,M100) -> 314 | P100: 16 | Q100: =IFERROR(P100/$G$11,"") -> 0.64 | R100: 27 | S100: =IF(AK236<>0,AK236,IF($G$64<>"",$G$64,IF(R100<>"",R100,""))) -> 27 | T100: =IFERROR(IF(N100<>"",S100*N100/100,""),"") -> 84.78
C101: Parada 2 → Parada 3 | E101: =IF(D77<>"",D76&" → "&D77,"") -> Almacén Zaragoza → Almacén Barcelona | J101: Sí | K101: 312 | M101: =IF(AND(G76<>"",G77<>""),getGoogleDistance(txtNoAcc(G76),txtNoAcc(G77))*1,"") -> 315.6 | N101: 312 | P101: 14 | Q101: =IFERROR(P101/$G$11,"") -> 0.56 | R101: 27 | S101: =IF(AK237<>0,AK237,IF($G$64<>"",$G$64,IF(R101<>"",R101,""))) -> 27 | T101: =IFERROR(IF(N101<>"",S101*N101/100,""),"") -> 84.24
C102: Parada 3 → Parada 4 | M102: =IF(AND(G77<>"",G78<>""),getGoogleDistance(txtNoAcc(G77),txtNoAcc(G78))*1,"") ->  | P102: =IF(N102<>"",SUMIFS($G$132:$G$181,$L$132:$L$181,"<="&C77,$O$132:$O$181,">="&C78),"") ->  | S102: =IF(AK238<>0,AK238,IF($G$64<>"",$G$64,IF(R102<>"",R102,""))) -> 
C103: Parada 4 → Parada 5 | M103: =IF(AND(G78<>"",G79<>""),getGoogleDistance(txtNoAcc(G78),txtNoAcc(G79))*1,"") -> 
C104: Parada 5 → Parada 6 | M104: =IF(AND(G79<>"",G80<>""),getGoogleDistance(txtNoAcc(G79),txtNoAcc(G80))*1,"") -> 
C105: Parada 6 → Parada 7 | M105: =IF(AND(G80<>"",G81<>""),getGoogleDistance(txtNoAcc(G80),txtNoAcc(G81))*1,"") -> 
C106: Parada 7 → Parada 8 | M106: =IF(AND(G81<>"",G82<>""),getGoogleDistance(txtNoAcc(G81),txtNoAcc(G82))*1,"") -> 
C107: Parada 8 → Parada 9 | M107: =IF(AND(G82<>"",G83<>""),getGoogleDistance(txtNoAcc(G82),txtNoAcc(G83))*1,"") -> 
C108: Parada 9 → Parada 10 | M108: =IF(AND(G83<>"",G84<>""),getGoogleDistance(txtNoAcc(G83),txtNoAcc(G84))*1,"") -> 
C109: Parada 10 → Parada 11 | M109: =IF(AND(G84<>"",G85<>""),getGoogleDistance(txtNoAcc(G84),txtNoAcc(G85))*1,"") -> 
C110: Parada 11 → Parada 12 | M110: =IF(AND(G85<>"",G86<>""),getGoogleDistance(txtNoAcc(G85),txtNoAcc(G86))*1,"") -> 
C111: Parada 12 → Parada 13 | M111: =IF(AND(G86<>"",G87<>""),getGoogleDistance(txtNoAcc(G86),txtNoAcc(G87))*1,"") -> 
C112: Parada 13 → Parada 14 | M112: =IF(AND(G87<>"",G88<>""),getGoogleDistance(txtNoAcc(G87),txtNoAcc(G88))*1,"") -> 
C113: Parada 14 → Parada 15 | M113: =IF(AND(G88<>"",G89<>""),getGoogleDistance(txtNoAcc(G88),txtNoAcc(G89))*1,"") -> 
C114: Parada 15 → Parada 16 | M114: =IF(AND(G89<>"",G90<>""),getGoogleDistance(txtNoAcc(G89),txtNoAcc(G90))*1,"") -> 
C115: Parada 16 → Parada 17 | M115: =IF(AND(G90<>"",G91<>""),getGoogleDistance(txtNoAcc(G90),txtNoAcc(G91))*1,"") -> 
C116: Parada 17 → Parada 18 | M116: =IF(AND(G91<>"",G92<>""),getGoogleDistance(txtNoAcc(G91),txtNoAcc(G92))*1,"") -> 
C117: Parada 18 → Parada 19 | M117: =IF(AND(G92<>"",G93<>""),getGoogleDistance(txtNoAcc(G92),txtNoAcc(G93))*1,"") -> 
C118: Parada 19 → Parada 20 | M118: =IF(AND(G93<>"",G94<>""),getGoogleDistance(txtNoAcc(G93),txtNoAcc(G94))*1,"") -> 
C119: Parada 20 → Parada 21 | M119: =IF(AND(G94<>"",G95<>""),getGoogleDistance(txtNoAcc(G94),txtNoAcc(G95))*1,"") -> 
M120: Distancia recorrida en cada uno de los tramos | N120: =SUM(N100:N119) -> 626 | O120: km
M121: Distancia recorrida en vacío atribuible a la ruta | N121: =IFERROR(IF($G$18<>0,$N$120*$G$18,$N$120*$G$22),0) -> 93.9 | O121: km | Q121: Consumo específico en vacío | R121: 22 | S121: =IF(G51<>"",G51,IF(G64<>"",G64,R121)) -> 22 | T121: =IF(N121<>"",S121*N121/100,"") -> 20.658 | U121: l.
M122: Distancia recorrida en la ruta | N122: =N120+N121 -> 719.9 | O122: km | S122: Consumo de combustible de la ruta | T122: =SUM(T100:T119)+T121 -> 189.678 | U122: l.
B129: Características de los envíos
C131: Cliente del envío | D131: Denominación del envío | G131: Carga bruta del envío (t) | H131: Carga refrigerada - no refrigerada | I131: Volumen del envío en almacenamiento (m3) - en caso de que la carga sea almacenada | J131: Días de almacenamiento - en caso de que la carga sea almacenada | L131: Origen del envío | O131: Destino del envío | R131: Distancia directa (km) | S131: Distancia recorrida (km)
C132: Cliente 1 | D132: Envío 1 | G132: 12 | H132: Refrigerada | I132: 24 | J132: 3 | L132: =IFERROR(IF(M132<>0,VLOOKUP(M132,CHOOSE({2,1},$C$75:$C$95,$D$75:$D$95),2,0),""),"") -> 1 | M132: Almacén Madrid | O132: =IFERROR(IF(P132<>0,VLOOKUP(P132,CHOOSE({2,1},$C$75:$C$95,$D$75:$D$95),2,0),""),"") -> 3 | P132: Almacén Barcelona | R132: =IF(AND(M132<>"",P132<>""),getGoogleDistance(txtNoAcc(VLOOKUP(M132,$D$75:$L$95,4,0)),txtNoAcc(VLOOKUP(P132,$D$75:$L$95,4,0))),"") -> 624,6 | S132: =IFERROR(SUM(OFFSET($N$99,$L132,0):OFFSET($N$99,$O132-1,0)),"") -> 626
C133: Cliente 2 | D133: Envío 2 | G133: 4 | H133: Refrigerada | L133: =IFERROR(IF(M133<>0,VLOOKUP(M133,CHOOSE({2,1},$C$75:$C$95,$D$75:$D$95),2,0),""),"") -> 1 | M133: Almacén Madrid | O133: =IFERROR(IF(P133<>0,VLOOKUP(P133,CHOOSE({2,1},$C$75:$C$95,$D$75:$D$95),2,0),""),"") -> 2 | P133: Almacén Zaragoza | R133: =IF(AND(M133<>"",P133<>""),getGoogleDistance(txtNoAcc(VLOOKUP(M133,$D$75:$L$95,4,0)),txtNoAcc(VLOOKUP(P133,$D$75:$L$95,4,0))),"") -> 313,6 | S133: =IFERROR(SUM(OFFSET($N$99,$L133,0):OFFSET($N$99,$O133-1,0)),"") -> 314
C134: Cliente 3 | D134: Envío 3 | G134: 2 | H134: Refrigerada | L134: =IFERROR(IF(M134<>0,VLOOKUP(M134,CHOOSE({2,1},$C$75:$C$95,$D$75:$D$95),2,0),""),"") -> 2 | M134: Almacén Zaragoza | O134: =IFERROR(IF(P134<>0,VLOOKUP(P134,CHOOSE({2,1},$C$75:$C$95,$D$75:$D$95),2,0),""),"") -> 3 | P134: Almacén Barcelona | R134: =IF(AND(M134<>"",P134<>""),getGoogleDistance(txtNoAcc(VLOOKUP(M134,$D$75:$L$95,4,0)),txtNoAcc(VLOOKUP(P134,$D$75:$L$95,4,0))),"") -> 315,6 | S134: =IFERROR(SUM(OFFSET($N$99,$L134,0):OFFSET($N$99,$O134-1,0)),"") -> 312
L135: =IFERROR(IF(M135<>0,VLOOKUP(M135,CHOOSE({2,1},$C$75:$C$95,$D$75:$D$95),2,0),""),"") ->  | O135: =IFERROR(IF(P135<>0,VLOOKUP(P135,CHOOSE({2,1},$C$75:$C$95,$D$75:$D$95),2,0),""),"") ->  | R135: =IF(AND(M135<>"",P135<>""),getGoogleDistance(txtNoAcc(VLOOKUP(M135,$D$75:$L$95,4,0)),txtNoAcc(VLOOKUP(P135,$D$75:$L$95,4,0))),"") ->  | S135: =IFERROR(SUM(OFFSET($N$99,$L135,0):OFFSET($N$99,$O135-1,0)),"") -> 
L136: =IFERROR(IF(M136<>0,VLOOKUP(M136,CHOOSE({2,1},$C$75:$C$95,$D$75:$D$95),2,0),""),"") ->  | O136: =IFERROR(IF(P136<>0,VLOOKUP(P136,CHOOSE({2,1},$C$75:$C$95,$D$75:$D$95),2,0),""),"") ->  | R136: =IF(AND(M136<>"",P136<>""),getGoogleDistance(txtNoAcc(VLOOKUP(M136,$D$75:$L$95,4,0)),txtNoAcc(VLOOKUP(P136,$D$75:$L$95,4,0))),"") ->  | S136: =IFERROR(SUM(OFFSET($N$99,$L136,0):OFFSET($N$99,$O136-1,0)),"") -> 
L137: =IFERROR(IF(M137<>0,VLOOKUP(M137,CHOOSE({2,1},$C$75:$C$95,$D$75:$D$95),2,0),""),"") ->  | O137: =IFERROR(IF(P137<>0,VLOOKUP(P137,CHOOSE({2,1},$C$75:$C$95,$D$75:$D$95),2,0),""),"") ->  | R137: =IF(AND(M137<>"",P137<>""),getGoogleDistance(txtNoAcc(VLOOKUP(M137,$D$75:$L$95,4,0)),txtNoAcc(VLOOKUP(P137,$D$75:$L$95,4,0))),"") ->  | S137: =IFERROR(SUM(OFFSET($N$99,$L137,0):OFFSET($N$99,$O137-1,0)),"") -> 
L138: =IFERROR(IF(M138<>0,VLOOKUP(M138,CHOOSE({2,1},$C$75:$C$95,$D$75:$D$95),2,0),""),"") ->  | O138: =IFERROR(IF(P138<>0,VLOOKUP(P138,CHOOSE({2,1},$C$75:$C$95,$D$75:$D$95),2,0),""),"") ->  | R138: =IF(AND(M138<>"",P138<>""),getGoogleDistance(txtNoAcc(VLOOKUP(M138,$D$75:$L$95,4,0)),txtNoAcc(VLOOKUP(P138,$D$75:$L$95,4,0))),"") ->  | S138: =IFERROR(SUM(OFFSET($N$99,$L138,0):OFFSET($N$99,$O138-1,0)),"") -> 
L139: =IFERROR(IF(M139<>0,VLOOKUP(M139,CHOOSE({2,1},$C$75:$C$95,$D$75:$D$95),2,0),""),"") ->  | O139: =IFERROR(IF(P139<>0,VLOOKUP(P139,CHOOSE({2,1},$C$75:$C$95,$D$75:$D$95),2,0),""),"") ->  | R139: =IF(AND(M139<>"",P139<>""),getGoogleDistance(txtNoAcc(VLOOKUP(M139,$D$75:$L$95,4,0)),txtNoAcc(VLOOKUP(P139,$D$75:$L$95,4,0))),"") ->  | S139: =IFERROR(SUM(OFFSET($N$99,$L139,0):OFFSET($N$99,$O139-1,0)),"") -> 
L140: =IFERROR(IF(M140<>0,VLOOKUP(M140,CHOOSE({2,1},$C$75:$C$95,$D$75:$D$95),2,0),""),"") ->  | O140: =IFERROR(IF(P140<>0,VLOOKUP(P140,CHOOSE({2,1},$C$75:$C$95,$D$75:$D$95),2,0),""),"") ->  | R140: =IF(AND(M140<>"",P140<>""),getGoogleDistance(txtNoAcc(VLOOKUP(M140,$D$75:$L$95,4,0)),txtNoAcc(VLOOKUP(P140,$D$75:$L$95,4,0))),"") ->  | S140: =IFERROR(SUM(OFFSET($N$99,$L140,0):OFFSET($N$99,$O140-1,0)),"") -> 
L141: =IFERROR(IF(M141<>0,VLOOKUP(M141,CHOOSE({2,1},$C$75:$C$95,$D$75:$D$95),2,0),""),"") ->  | O141: =IFERROR(IF(P141<>0,VLOOKUP(P141,CHOOSE({2,1},$C$75:$C$95,$D$75:$D$95),2,0),""),"") ->  | R141: =IF(AND(M141<>"",P141<>""),getGoogleDistance(txtNoAcc(VLOOKUP(M141,$D$75:$L$95,4,0)),txtNoAcc(VLOOKUP(P141,$D$75:$L$95,4,0))),"") ->  | S141: =IFERROR(SUM(OFFSET($N$99,$L141,0):OFFSET($N$99,$O141-1,0)),"") -> 
L142: =IFERROR(IF(M142<>0,VLOOKUP(M142,CHOOSE({2,1},$C$75:$C$95,$D$75:$D$95),2,0),""),"") ->  | O142: =IFERROR(IF(P142<>0,VLOOKUP(P142,CHOOSE({2,1},$C$75:$C$95,$D$75:$D$95),2,0),""),"") ->  | R142: =IF(AND(M142<>"",P142<>""),getGoogleDistance(txtNoAcc(VLOOKUP(M142,$D$75:$L$95,4,0)),txtNoAcc(VLOOKUP(P142,$D$75:$L$95,4,0))),"") ->  | S142: =IFERROR(SUM(OFFSET($N$99,$L142,0):OFFSET($N$99,$O142-1,0)),"") -> 
L143: =IFERROR(IF(M143<>0,VLOOKUP(M143,CHOOSE({2,1},$C$75:$C$95,$D$75:$D$95),2,0),""),"") ->  | O143: =IFERROR(IF(P143<>0,VLOOKUP(P143,CHOOSE({2,1},$C$75:$C$95,$D$75:$D$95),2,0),""),"") ->  | R143: =IF(AND(M143<>"",P143<>""),getGoogleDistance(txtNoAcc(VLOOKUP(M143,$D$75:$L$95,4,0)),txtNoAcc(VLOOKUP(P143,$D$75:$L$95,4,0))),"") ->  | S143: =IFERROR(SUM(OFFSET($N$99,$L143,0):OFFSET($N$99,$O143-1,0)),"") -> 
L144: =IFERROR(IF(M144<>0,VLOOKUP(M144,CHOOSE({2,1},$C$75:$C$95,$D$75:$D$95),2,0),""),"") ->  | O144: =IFERROR(IF(P144<>0,VLOOKUP(P144,CHOOSE({2,1},$C$75:$C$95,$D$75:$D$95),2,0),""),"") ->  | R144: =IF(AND(M144<>"",P144<>""),getGoogleDistance(txtNoAcc(VLOOKUP(M144,$D$75:$L$95,4,0)),txtNoAcc(VLOOKUP(P144,$D$75:$L$95,4,0))),"") ->  | S144: =IFERROR(SUM(OFFSET($N$99,$L144,0):OFFSET($N$99,$O144-1,0)),"") -> 
L145: =IFERROR(IF(M145<>0,VLOOKUP(M145,CHOOSE({2,1},$C$75:$C$95,$D$75:$D$95),2,0),""),"") ->  | O145: =IFERROR(IF(P145<>0,VLOOKUP(P145,CHOOSE({2,1},$C$75:$C$95,$D$75:$D$95),2,0),""),"") ->  | R145: =IF(AND(M145<>"",P145<>""),getGoogleDistance(txtNoAcc(VLOOKUP(M145,$D$75:$L$95,4,0)),txtNoAcc(VLOOKUP(P145,$D$75:$L$95,4,0))),"") ->  | S145: =IFERROR(SUM(OFFSET($N$99,$L145,0):OFFSET($N$99,$O145-1,0)),"") -> 
L146: =IFERROR(IF(M146<>0,VLOOKUP(M146,CHOOSE({2,1},$C$75:$C$95,$D$75:$D$95),2,0),""),"") ->  | O146: =IFERROR(IF(P146<>0,VLOOKUP(P146,CHOOSE({2,1},$C$75:$C$95,$D$75:$D$95),2,0),""),"") ->  | R146: =IF(AND(M146<>"",P146<>""),getGoogleDistance(txtNoAcc(VLOOKUP(M146,$D$75:$L$95,4,0)),txtNoAcc(VLOOKUP(P146,$D$75:$L$95,4,0))),"") ->  | S146: =IFERROR(SUM(OFFSET($N$99,$L146,0):OFFSET($N$99,$O146-1,0)),"") -> 
L147: =IFERROR(IF(M147<>0,VLOOKUP(M147,CHOOSE({2,1},$C$75:$C$95,$D$75:$D$95),2,0),""),"") ->  | O147: =IFERROR(IF(P147<>0,VLOOKUP(P147,CHOOSE({2,1},$C$75:$C$95,$D$75:$D$95),2,0),""),"") ->  | R147: =IF(AND(M147<>"",P147<>""),getGoogleDistance(txtNoAcc(VLOOKUP(M147,$D$75:$L$95,4,0)),txtNoAcc(VLOOKUP(P147,$D$75:$L$95,4,0))),"") ->  | S147: =IFERROR(SUM(OFFSET($N$99,$L147,0):OFFSET($N$99,$O147-1,0)),"") -> 
L148: =IFERROR(IF(M148<>0,VLOOKUP(M148,CHOOSE({2,1},$C$75:$C$95,$D$75:$D$95),2,0),""),"") ->  | O148: =IFERROR(IF(P148<>0,VLOOKUP(P148,CHOOSE({2,1},$C$75:$C$95,$D$75:$D$95),2,0),""),"") ->  | R148: =IF(AND(M148<>"",P148<>""),getGoogleDistance(txtNoAcc(VLOOKUP(M148,$D$75:$L$95,4,0)),txtNoAcc(VLOOKUP(P148,$D$75:$L$95,4,0))),"") ->  | S148: =IFERROR(SUM(OFFSET($N$99,$L148,0):OFFSET($N$99,$O148-1,0)),"") -> 
L149: =IFERROR(IF(M149<>0,VLOOKUP(M149,CHOOSE({2,1},$C$75:$C$95,$D$75:$D$95),2,0),""),"") ->  | O149: =IFERROR(IF(P149<>0,VLOOKUP(P149,CHOOSE({2,1},$C$75:$C$95,$D$75:$D$95),2,0),""),"") ->  | R149: =IF(AND(M149<>"",P149<>""),getGoogleDistance(txtNoAcc(VLOOKUP(M149,$D$75:$L$95,4,0)),txtNoAcc(VLOOKUP(P149,$D$75:$L$95,4,0))),"") ->  | S149: =IFERROR(SUM(OFFSET($N$99,$L149,0):OFFSET($N$99,$O149-1,0)),"") -> 
L150: =IFERROR(IF(M150<>0,VLOOKUP(M150,CHOOSE({2,1},$C$75:$C$95,$D$75:$D$95),2,0),""),"") ->  | O150: =IFERROR(IF(P150<>0,VLOOKUP(P150,CHOOSE({2,1},$C$75:$C$95,$D$75:$D$95),2,0),""),"") ->  | R150: =IF(AND(M150<>"",P150<>""),getGoogleDistance(txtNoAcc(VLOOKUP(M150,$D$75:$L$95,4,0)),txtNoAcc(VLOOKUP(P150,$D$75:$L$95,4,0))),"") ->  | S150: =IFERROR(SUM(OFFSET($N$99,$L150,0):OFFSET($N$99,$O150-1,0)),"") -> 
L151: =IFERROR(IF(M151<>0,VLOOKUP(M151,CHOOSE({2,1},$C$75:$C$95,$D$75:$D$95),2,0),""),"") ->  | O151: =IFERROR(IF(P151<>0,VLOOKUP(P151,CHOOSE({2,1},$C$75:$C$95,$D$75:$D$95),2,0),""),"") ->  | R151: =IF(AND(M151<>"",P151<>""),getGoogleDistance(txtNoAcc(VLOOKUP(M151,$D$75:$L$95,4,0)),txtNoAcc(VLOOKUP(P151,$D$75:$L$95,4,0))),"") ->  | S151: =IFERROR(SUM(OFFSET($N$99,$L151,0):OFFSET($N$99,$O151-1,0)),"") -> 
L152: =IFERROR(IF(M152<>0,VLOOKUP(M152,CHOOSE({2,1},$C$75:$C$95,$D$75:$D$95),2,0),""),"") ->  | O152: =IFERROR(IF(P152<>0,VLOOKUP(P152,CHOOSE({2,1},$C$75:$C$95,$D$75:$D$95),2,0),""),"") ->  | R152: =IF(AND(M152<>"",P152<>""),getGoogleDistance(txtNoAcc(VLOOKUP(M152,$D$75:$L$95,4,0)),txtNoAcc(VLOOKUP(P152,$D$75:$L$95,4,0))),"") ->  | S152: =IFERROR(SUM(OFFSET($N$99,$L152,0):OFFSET($N$99,$O152-1,0)),"") -> 
L153: =IFERROR(IF(M153<>0,VLOOKUP(M153,CHOOSE({2,1},$C$75:$C$95,$D$75:$D$95),2,0),""),"") ->  | O153: =IFERROR(IF(P153<>0,VLOOKUP(P153,CHOOSE({2,1},$C$75:$C$95,$D$75:$D$95),2,0),""),"") ->  | R153: =IF(AND(M153<>"",P153<>""),getGoogleDistance(txtNoAcc(VLOOKUP(M153,$D$75:$L$95,4,0)),txtNoAcc(VLOOKUP(P153,$D$75:$L$95,4,0))),"") ->  | S153: =IFERROR(SUM(OFFSET($N$99,$L153,0):OFFSET($N$99,$O153-1,0)),"") -> 
L154: =IFERROR(IF(M154<>0,VLOOKUP(M154,CHOOSE({2,1},$C$75:$C$95,$D$75:$D$95),2,0),""),"") ->  | O154: =IFERROR(IF(P154<>0,VLOOKUP(P154,CHOOSE({2,1},$C$75:$C$95,$D$75:$D$95),2,0),""),"") ->  | R154: =IF(AND(M154<>"",P154<>""),getGoogleDistance(txtNoAcc(VLOOKUP(M154,$D$75:$L$95,4,0)),txtNoAcc(VLOOKUP(P154,$D$75:$L$95,4,0))),"") ->  | S154: =IFERROR(SUM(OFFSET($N$99,$L154,0):OFFSET($N$99,$O154-1,0)),"") -> 
L155: =IFERROR(IF(M155<>0,VLOOKUP(M155,CHOOSE({2,1},$C$75:$C$95,$D$75:$D$95),2,0),""),"") ->  | O155: =IFERROR(IF(P155<>0,VLOOKUP(P155,CHOOSE({2,1},$C$75:$C$95,$D$75:$D$95),2,0),""),"") ->  | R155: =IF(AND(M155<>"",P155<>""),getGoogleDistance(txtNoAcc(VLOOKUP(M155,$D$75:$L$95,4,0)),txtNoAcc(VLOOKUP(P155,$D$75:$L$95,4,0))),"") ->  | S155: =IFERROR(SUM(OFFSET($N$99,$L155,0):OFFSET($N$99,$O155-1,0)),"") -> 
L156: =IFERROR(IF(M156<>0,VLOOKUP(M156,CHOOSE({2,1},$C$75:$C$95,$D$75:$D$95),2,0),""),"") ->  | O156: =IFERROR(IF(P156<>0,VLOOKUP(P156,CHOOSE({2,1},$C$75:$C$95,$D$75:$D$95),2,0),""),"") ->  | R156: =IF(AND(M156<>"",P156<>""),getGoogleDistance(txtNoAcc(VLOOKUP(M156,$D$75:$L$95,4,0)),txtNoAcc(VLOOKUP(P156,$D$75:$L$95,4,0))),"") ->  | S156: =IFERROR(SUM(OFFSET($N$99,$L156,0):OFFSET($N$99,$O156-1,0)),"") -> 
L157: =IFERROR(IF(M157<>0,VLOOKUP(M157,CHOOSE({2,1},$C$75:$C$95,$D$75:$D$95),2,0),""),"") ->  | O157: =IFERROR(IF(P157<>0,VLOOKUP(P157,CHOOSE({2,1},$C$75:$C$95,$D$75:$D$95),2,0),""),"") ->  | R157: =IF(AND(M157<>"",P157<>""),getGoogleDistance(txtNoAcc(VLOOKUP(M157,$D$75:$L$95,4,0)),txtNoAcc(VLOOKUP(P157,$D$75:$L$95,4,0))),"") ->  | S157: =IFERROR(SUM(OFFSET($N$99,$L157,0):OFFSET($N$99,$O157-1,0)),"") -> 
L158: =IFERROR(IF(M158<>0,VLOOKUP(M158,CHOOSE({2,1},$C$75:$C$95,$D$75:$D$95),2,0),""),"") ->  | O158: =IFERROR(IF(P158<>0,VLOOKUP(P158,CHOOSE({2,1},$C$75:$C$95,$D$75:$D$95),2,0),""),"") ->  | R158: =IF(AND(M158<>"",P158<>""),getGoogleDistance(txtNoAcc(VLOOKUP(M158,$D$75:$L$95,4,0)),txtNoAcc(VLOOKUP(P158,$D$75:$L$95,4,0))),"") ->  | S158: =IFERROR(SUM(OFFSET($N$99,$L158,0):OFFSET($N$99,$O158-1,0)),"") -> 
L159: =IFERROR(IF(M159<>0,VLOOKUP(M159,CHOOSE({2,1},$C$75:$C$95,$D$75:$D$95),2,0),""),"") ->  | O159: =IFERROR(IF(P159<>0,VLOOKUP(P159,CHOOSE({2,1},$C$75:$C$95,$D$75:$D$95),2,0),""),"") ->  | R159: =IF(AND(M159<>"",P159<>""),getGoogleDistance(txtNoAcc(VLOOKUP(M159,$D$75:$L$95,4,0)),txtNoAcc(VLOOKUP(P159,$D$75:$L$95,4,0))),"") ->  | S159: =IFERROR(SUM(OFFSET($N$99,$L159,0):OFFSET($N$99,$O159-1,0)),"") -> 
L160: =IFERROR(IF(M160<>0,VLOOKUP(M160,CHOOSE({2,1},$C$75:$C$95,$D$75:$D$95),2,0),""),"") ->  | O160: =IFERROR(IF(P160<>0,VLOOKUP(P160,CHOOSE({2,1},$C$75:$C$95,$D$75:$D$95),2,0),""),"") ->  | R160: =IF(AND(M160<>"",P160<>""),getGoogleDistance(txtNoAcc(VLOOKUP(M160,$D$75:$L$95,4,0)),txtNoAcc(VLOOKUP(P160,$D$75:$L$95,4,0))),"") ->  | S160: =IFERROR(SUM(OFFSET($N$99,$L160,0):OFFSET($N$99,$O160-1,0)),"") -> 
L161: =IFERROR(IF(M161<>0,VLOOKUP(M161,CHOOSE({2,1},$C$75:$C$95,$D$75:$D$95),2,0),""),"") ->  | O161: =IFERROR(IF(P161<>0,VLOOKUP(P161,CHOOSE({2,1},$C$75:$C$95,$D$75:$D$95),2,0),""),"") ->  | R161: =IF(AND(M161<>"",P161<>""),getGoogleDistance(txtNoAcc(VLOOKUP(M161,$D$75:$L$95,4,0)),txtNoAcc(VLOOKUP(P161,$D$75:$L$95,4,0))),"") ->  | S161: =IFERROR(SUM(OFFSET($N$99,$L161,0):OFFSET($N$99,$O161-1,0)),"") -> 
L162: =IFERROR(IF(M162<>0,VLOOKUP(M162,CHOOSE({2,1},$C$75:$C$95,$D$75:$D$95),2,0),""),"") ->  | O162: =IFERROR(IF(P162<>0,VLOOKUP(P162,CHOOSE({2,1},$C$75:$C$95,$D$75:$D$95),2,0),""),"") ->  | R162: =IF(AND(M162<>"",P162<>""),getGoogleDistance(txtNoAcc(VLOOKUP(M162,$D$75:$L$95,4,0)),txtNoAcc(VLOOKUP(P162,$D$75:$L$95,4,0))),"") ->  | S162: =IFERROR(SUM(OFFSET($N$99,$L162,0):OFFSET($N$99,$O162-1,0)),"") -> 
L163: =IFERROR(IF(M163<>0,VLOOKUP(M163,CHOOSE({2,1},$C$75:$C$95,$D$75:$D$95),2,0),""),"") ->  | O163: =IFERROR(IF(P163<>0,VLOOKUP(P163,CHOOSE({2,1},$C$75:$C$95,$D$75:$D$95),2,0),""),"") ->  | R163: =IF(AND(M163<>"",P163<>""),getGoogleDistance(txtNoAcc(VLOOKUP(M163,$D$75:$L$95,4,0)),txtNoAcc(VLOOKUP(P163,$D$75:$L$95,4,0))),"") ->  | S163: =IFERROR(SUM(OFFSET($N$99,$L163,0):OFFSET($N$99,$O163-1,0)),"") -> 
L164: =IFERROR(IF(M164<>0,VLOOKUP(M164,CHOOSE({2,1},$C$75:$C$95,$D$75:$D$95),2,0),""),"") ->  | O164: =IFERROR(IF(P164<>0,VLOOKUP(P164,CHOOSE({2,1},$C$75:$C$95,$D$75:$D$95),2,0),""),"") ->  | R164: =IF(AND(M164<>"",P164<>""),getGoogleDistance(txtNoAcc(VLOOKUP(M164,$D$75:$L$95,4,0)),txtNoAcc(VLOOKUP(P164,$D$75:$L$95,4,0))),"") ->  | S164: =IFERROR(SUM(OFFSET($N$99,$L164,0):OFFSET($N$99,$O164-1,0)),"") -> 
L165: =IFERROR(IF(M165<>0,VLOOKUP(M165,CHOOSE({2,1},$C$75:$C$95,$D$75:$D$95),2,0),""),"") ->  | O165: =IFERROR(IF(P165<>0,VLOOKUP(P165,CHOOSE({2,1},$C$75:$C$95,$D$75:$D$95),2,0),""),"") ->  | R165: =IF(AND(M165<>"",P165<>""),getGoogleDistance(txtNoAcc(VLOOKUP(M165,$D$75:$L$95,4,0)),txtNoAcc(VLOOKUP(P165,$D$75:$L$95,4,0))),"") ->  | S165: =IFERROR(SUM(OFFSET($N$99,$L165,0):OFFSET($N$99,$O165-1,0)),"") -> 
L166: =IFERROR(IF(M166<>0,VLOOKUP(M166,CHOOSE({2,1},$C$75:$C$95,$D$75:$D$95),2,0),""),"") ->  | O166: =IFERROR(IF(P166<>0,VLOOKUP(P166,CHOOSE({2,1},$C$75:$C$95,$D$75:$D$95),2,0),""),"") ->  | R166: =IF(AND(M166<>"",P166<>""),getGoogleDistance(txtNoAcc(VLOOKUP(M166,$D$75:$L$95,4,0)),txtNoAcc(VLOOKUP(P166,$D$75:$L$95,4,0))),"") ->  | S166: =IFERROR(SUM(OFFSET($N$99,$L166,0):OFFSET($N$99,$O166-1,0)),"") -> 
L167: =IFERROR(IF(M167<>0,VLOOKUP(M167,CHOOSE({2,1},$C$75:$C$95,$D$75:$D$95),2,0),""),"") ->  | O167: =IFERROR(IF(P167<>0,VLOOKUP(P167,CHOOSE({2,1},$C$75:$C$95,$D$75:$D$95),2,0),""),"") ->  | R167: =IF(AND(M167<>"",P167<>""),getGoogleDistance(txtNoAcc(VLOOKUP(M167,$D$75:$L$95,4,0)),txtNoAcc(VLOOKUP(P167,$D$75:$L$95,4,0))),"") ->  | S167: =IFERROR(SUM(OFFSET($N$99,$L167,0):OFFSET($N$99,$O167-1,0)),"") -> 
L168: =IFERROR(IF(M168<>0,VLOOKUP(M168,CHOOSE({2,1},$C$75:$C$95,$D$75:$D$95),2,0),""),"") ->  | O168: =IFERROR(IF(P168<>0,VLOOKUP(P168,CHOOSE({2,1},$C$75:$C$95,$D$75:$D$95),2,0),""),"") ->  | R168: =IF(AND(M168<>"",P168<>""),getGoogleDistance(txtNoAcc(VLOOKUP(M168,$D$75:$L$95,4,0)),txtNoAcc(VLOOKUP(P168,$D$75:$L$95,4,0))),"") ->  | S168: =IFERROR(SUM(OFFSET($N$99,$L168,0):OFFSET($N$99,$O168-1,0)),"") -> 
L169: =IFERROR(IF(M169<>0,VLOOKUP(M169,CHOOSE({2,1},$C$75:$C$95,$D$75:$D$95),2,0),""),"") ->  | O169: =IFERROR(IF(P169<>0,VLOOKUP(P169,CHOOSE({2,1},$C$75:$C$95,$D$75:$D$95),2,0),""),"") ->  | R169: =IF(AND(M169<>"",P169<>""),getGoogleDistance(txtNoAcc(VLOOKUP(M169,$D$75:$L$95,4,0)),txtNoAcc(VLOOKUP(P169,$D$75:$L$95,4,0))),"") ->  | S169: =IFERROR(SUM(OFFSET($N$99,$L169,0):OFFSET($N$99,$O169-1,0)),"") -> 
L170: =IFERROR(IF(M170<>0,VLOOKUP(M170,CHOOSE({2,1},$C$75:$C$95,$D$75:$D$95),2,0),""),"") ->  | O170: =IFERROR(IF(P170<>0,VLOOKUP(P170,CHOOSE({2,1},$C$75:$C$95,$D$75:$D$95),2,0),""),"") ->  | R170: =IF(AND(M170<>"",P170<>""),getGoogleDistance(txtNoAcc(VLOOKUP(M170,$D$75:$L$95,4,0)),txtNoAcc(VLOOKUP(P170,$D$75:$L$95,4,0))),"") ->  | S170: =IFERROR(SUM(OFFSET($N$99,$L170,0):OFFSET($N$99,$O170-1,0)),"") -> 
L171: =IFERROR(IF(M171<>0,VLOOKUP(M171,CHOOSE({2,1},$C$75:$C$95,$D$75:$D$95),2,0),""),"") ->  | O171: =IFERROR(IF(P171<>0,VLOOKUP(P171,CHOOSE({2,1},$C$75:$C$95,$D$75:$D$95),2,0),""),"") ->  | R171: =IF(AND(M171<>"",P171<>""),getGoogleDistance(txtNoAcc(VLOOKUP(M171,$D$75:$L$95,4,0)),txtNoAcc(VLOOKUP(P171,$D$75:$L$95,4,0))),"") ->  | S171: =IFERROR(SUM(OFFSET($N$99,$L171,0):OFFSET($N$99,$O171-1,0)),"") -> 
L172: =IFERROR(IF(M172<>0,VLOOKUP(M172,CHOOSE({2,1},$C$75:$C$95,$D$75:$D$95),2,0),""),"") ->  | O172: =IFERROR(IF(P172<>0,VLOOKUP(P172,CHOOSE({2,1},$C$75:$C$95,$D$75:$D$95),2,0),""),"") ->  | R172: =IF(AND(M172<>"",P172<>""),getGoogleDistance(txtNoAcc(VLOOKUP(M172,$D$75:$L$95,4,0)),txtNoAcc(VLOOKUP(P172,$D$75:$L$95,4,0))),"") ->  | S172: =IFERROR(SUM(OFFSET($N$99,$L172,0):OFFSET($N$99,$O172-1,0)),"") -> 
L173: =IFERROR(IF(M173<>0,VLOOKUP(M173,CHOOSE({2,1},$C$75:$C$95,$D$75:$D$95),2,0),""),"") ->  | O173: =IFERROR(IF(P173<>0,VLOOKUP(P173,CHOOSE({2,1},$C$75:$C$95,$D$75:$D$95),2,0),""),"") ->  | R173: =IF(AND(M173<>"",P173<>""),getGoogleDistance(txtNoAcc(VLOOKUP(M173,$D$75:$L$95,4,0)),txtNoAcc(VLOOKUP(P173,$D$75:$L$95,4,0))),"") ->  | S173: =IFERROR(SUM(OFFSET($N$99,$L173,0):OFFSET($N$99,$O173-1,0)),"") -> 
L174: =IFERROR(IF(M174<>0,VLOOKUP(M174,CHOOSE({2,1},$C$75:$C$95,$D$75:$D$95),2,0),""),"") ->  | O174: =IFERROR(IF(P174<>0,VLOOKUP(P174,CHOOSE({2,1},$C$75:$C$95,$D$75:$D$95),2,0),""),"") ->  | R174: =IF(AND(M174<>"",P174<>""),getGoogleDistance(txtNoAcc(VLOOKUP(M174,$D$75:$L$95,4,0)),txtNoAcc(VLOOKUP(P174,$D$75:$L$95,4,0))),"") ->  | S174: =IFERROR(SUM(OFFSET($N$99,$L174,0):OFFSET($N$99,$O174-1,0)),"") -> 
L175: =IFERROR(IF(M175<>0,VLOOKUP(M175,CHOOSE({2,1},$C$75:$C$95,$D$75:$D$95),2,0),""),"") ->  | O175: =IFERROR(IF(P175<>0,VLOOKUP(P175,CHOOSE({2,1},$C$75:$C$95,$D$75:$D$95),2,0),""),"") ->  | R175: =IF(AND(M175<>"",P175<>""),getGoogleDistance(txtNoAcc(VLOOKUP(M175,$D$75:$L$95,4,0)),txtNoAcc(VLOOKUP(P175,$D$75:$L$95,4,0))),"") ->  | S175: =IFERROR(SUM(OFFSET($N$99,$L175,0):OFFSET($N$99,$O175-1,0)),"") -> 
L176: =IFERROR(IF(M176<>0,VLOOKUP(M176,CHOOSE({2,1},$C$75:$C$95,$D$75:$D$95),2,0),""),"") ->  | O176: =IFERROR(IF(P176<>0,VLOOKUP(P176,CHOOSE({2,1},$C$75:$C$95,$D$75:$D$95),2,0),""),"") ->  | R176: =IF(AND(M176<>"",P176<>""),getGoogleDistance(txtNoAcc(VLOOKUP(M176,$D$75:$L$95,4,0)),txtNoAcc(VLOOKUP(P176,$D$75:$L$95,4,0))),"") ->  | S176: =IFERROR(SUM(OFFSET($N$99,$L176,0):OFFSET($N$99,$O176-1,0)),"") -> 
L177: =IFERROR(IF(M177<>0,VLOOKUP(M177,CHOOSE({2,1},$C$75:$C$95,$D$75:$D$95),2,0),""),"") ->  | O177: =IFERROR(IF(P177<>0,VLOOKUP(P177,CHOOSE({2,1},$C$75:$C$95,$D$75:$D$95),2,0),""),"") ->  | R177: =IF(AND(M177<>"",P177<>""),getGoogleDistance(txtNoAcc(VLOOKUP(M177,$D$75:$L$95,4,0)),txtNoAcc(VLOOKUP(P177,$D$75:$L$95,4,0))),"") ->  | S177: =IFERROR(SUM(OFFSET($N$99,$L177,0):OFFSET($N$99,$O177-1,0)),"") -> 
L178: =IFERROR(IF(M178<>0,VLOOKUP(M178,CHOOSE({2,1},$C$75:$C$95,$D$75:$D$95),2,0),""),"") ->  | O178: =IFERROR(IF(P178<>0,VLOOKUP(P178,CHOOSE({2,1},$C$75:$C$95,$D$75:$D$95),2,0),""),"") ->  | R178: =IF(AND(M178<>"",P178<>""),getGoogleDistance(txtNoAcc(VLOOKUP(M178,$D$75:$L$95,4,0)),txtNoAcc(VLOOKUP(P178,$D$75:$L$95,4,0))),"") ->  | S178: =IFERROR(SUM(OFFSET($N$99,$L178,0):OFFSET($N$99,$O178-1,0)),"") -> 
L179: =IFERROR(IF(M179<>0,VLOOKUP(M179,CHOOSE({2,1},$C$75:$C$95,$D$75:$D$95),2,0),""),"") ->  | O179: =IFERROR(IF(P179<>0,VLOOKUP(P179,CHOOSE({2,1},$C$75:$C$95,$D$75:$D$95),2,0),""),"") ->  | R179: =IF(AND(M179<>"",P179<>""),getGoogleDistance(txtNoAcc(VLOOKUP(M179,$D$75:$L$95,4,0)),txtNoAcc(VLOOKUP(P179,$D$75:$L$95,4,0))),"") ->  | S179: =IFERROR(SUM(OFFSET($N$99,$L179,0):OFFSET($N$99,$O179-1,0)),"") -> 
L180: =IFERROR(IF(M180<>0,VLOOKUP(M180,CHOOSE({2,1},$C$75:$C$95,$D$75:$D$95),2,0),""),"") ->  | O180: =IFERROR(IF(P180<>0,VLOOKUP(P180,CHOOSE({2,1},$C$75:$C$95,$D$75:$D$95),2,0),""),"") ->  | R180: =IF(AND(M180<>"",P180<>""),getGoogleDistance(txtNoAcc(VLOOKUP(M180,$D$75:$L$95,4,0)),txtNoAcc(VLOOKUP(P180,$D$75:$L$95,4,0))),"") ->  | S180: =IFERROR(SUM(OFFSET($N$99,$L180,0):OFFSET($N$99,$O180-1,0)),"") -> 
L181: =IFERROR(IF(M181<>0,VLOOKUP(M181,CHOOSE({2,1},$C$75:$C$95,$D$75:$D$95),2,0),""),"") ->  | O181: =IFERROR(IF(P181<>0,VLOOKUP(P181,CHOOSE({2,1},$C$75:$C$95,$D$75:$D$95),2,0),""),"") ->  | R181: =IF(AND(M181<>"",P181<>""),getGoogleDistance(txtNoAcc(VLOOKUP(M181,$D$75:$L$95,4,0)),txtNoAcc(VLOOKUP(P181,$D$75:$L$95,4,0))),"") ->  | S181: =IFERROR(SUM(OFFSET($N$99,$L181,0):OFFSET($N$99,$O181-1,0)),"") -> 
B186: Consumo energético por la refrigeración de la carga del vehículo
C188: Seleccione si el vehículo dispone de un depósito por separado
C189: Tipo de depósito | G189: Depósito por separado
C191: En caso de que el vehículo cuente con un depósito de combustible separado, introduzca los siguientes datos:
C192: Tipo de combustible | G192: Diésel
C193: Consumo específico de combustible | I193: 4.2 | J193: l/h
C194: Tiempo de refrigeración | I194: 8.36 | J194: h
C196: Si no conoce el consumo específico de combustible por refrigeración, introduzca los siguientes datos:
C197: Tipo de unidad refrigerada y temperatura de refrigeración
C199: Consumo específico de combustible por refrigeración | I199: =IFERROR(IF(I193<>0,I193,VLOOKUP(H197,t_consumo_refrigeracion_v,2,0)),"") -> 4.2 | J199: l/h
C200: Consumo de combustible en la ruta por refrigeración | I200: =IFERROR(I199*I194,"") -> 35.112 | J200: l
B205: Consumo energético por el almacenamiento de la carga
C207: Si conoce el consumo de energía de las instalaciones logísticas, introduzca los siguientes datos
C208: Tipo de fuente de energía - 1 | G208: Electricidad de Red - España (CLECAT)
C209: Consumo anual de la fuente de energía - 1 | I209: 60000 | J209: kWh
C210: Volumen de ocupación medio anual asociado a la fuente de energía - 1 | I210: 800 | J210: m3
C211: Tipo de fuente de energía - 2
C212: Consumo anual de la fuente de energía - 2 | J212: =IFERROR(VLOOKUP(G211,t_factores_a,2,0),"") -> 
C213: Volumen de ocupación medio anual asociado a la fuente de energía - 2 | J213: m3
C214: Tipo de fuente de energía - 3
C215: Consumo anual de la fuente de energía - 3 | J215: l.
C216: Volumen de ocupación medio anual asociado a la fuente de energía - 3 | J216: m3
C218: ="Consumo específico de "&G208&" - almacenamiento" -> Consumo específico de Electricidad de Red - España (CLECAT) - almacenamiento | I218: =IFERROR($I$209/($I$210*365),"") -> 0.2054794521 | J218: =IF($G$208<>"",$J$209&"/m3-día","") -> kWh/m3-día
C219: ="Consumo específico de "&G211&" - almacenamiento" -> Consumo específico de - almacenamiento | I219: =IFERROR($I$212/($I$213*365),"") ->  | J219: =IF(G211<>"",J212&"/m3-día","") -> 
C220: ="Consumo específico de "&G214&" - almacenamiento" -> Consumo específico de - almacenamiento | I220: =IFERROR($I$215/($I$216*365),"") ->  | J220: =IF(G214<>"",J215&"/m3-día","") -> 
C222: Si no conoce el consumo de energía de las instalaciones logísticas, introduzca los siguientes datos
C223: Tipo de refrigeración de la carga
C224: Tipo de electricidad consumida
C226: ="Consumo específico de Electricidad de Red -"&H224&" - almacenamiento" -> Consumo específico de Electricidad de Red - - almacenamiento | I226: =IFERROR(VLOOKUP($H$223,t_consumo_tipocarga_a,5,0),"") ->  | J226: =IF($H$223<>"","kWh/m3-día","") -> 
C227: Consumo específico de Gas natural: potencia calorífica neta - almacenamiento | I227: =IFERROR(VLOOKUP($H$223,t_consumo_tipocarga_a,6,0),"") ->  | J227: =IF($H$223<>"","kWh/m3-día","") -> 
W230: Cálculo de consumo de combustible por tramo | AA230: ini. --> 1 | AB230: 1 --> 2 | AC230: 2 --> 3 | AD230: 3 --> 4 | AE230: 4 --> 5 | AF230: 5 --> 6 | AG230: 6 --> 7 | AH230: 7 --> n | AI230: n --> fin | AK230: litros a los 100 km del tramo
AA231: =G35 -> 0 | AB231: =G36 -> 0 | AC231: =G37 -> 0 | AD231: =G38 -> 0 | AE231: =G39 -> 0 | AF231: =G40 -> 0 | AG231: =G41 -> 0 | AH231: =G42 -> 0 | AI231: =G44 -> 0 | AJ231: (litros)
AA232: =IFERROR(AA231/AA233,0) -> 0 | AB232: =IFERROR(AB231/AB233,0) -> 0 | AC232: =IFERROR(AC231/AC233,0) -> 0 | AD232: 0 | AE232: 0 | AF232: 0 | AG232: 0 | AH232: 0 | AI232: 0 | AJ232: (litros/100 km)
AA233: =IF(E35-E33>0,E35-E33,0) -> 0 | AB233: =IF(E36-E35>0,E36-E35,0) -> 0 | AC233: =IF(E37-E36>0,E37-E36,0) -> 0 | AD233: =IF(E38-E37>0,E38-E37,0) -> 0 | AE233: =IF(E39-E38>0,E39-E38,0) -> 0 | AF233: =IF(E40-E39>0,E40-E39,0) -> 0 | AG233: =IF(E41-E40>0,E41-E40,0) -> 0 | AH233: =IF(E42-E41>0,E42-E41,0) -> 0 | AI233: =E44-MAX(E33:E42) -> 0 | AJ233: (km tramo-repostaje)
AA234: =0-$E$47+$E$33 -> 0 | AB234: =AA235 -> 0 | AC234: =AB235 -> 0 | AD234: 0 | AE234: 0 | AF234: 0 | AG234: 0 | AH234: 0 | AI234: =AH235 -> 0 | AJ234: (km inicial)
AA235: =AA233-$E$47+$E$33 -> 0 | AB235: =AB233+AB234 -> 0 | AC235: =AC233+AC234 -> 0 | AD235: =AD233+AD234 -> 0 | AE235: 0 | AF235: 0 | AG235: 0 | AH235: 0 | AI235: =AI233+AI234 -> 0 | AJ235: (km final)
W236: 1 --> 2 | X236: =N100 -> 314 | Y236: 0 | Z236: =IFERROR(Y236+X236,"---") -> 314 | AA236: =IFERROR(AA$232*IF(OR(AA$234>=$Z236,AA$235<=$Y236),0,IF(AND(AA$234<=$Y236,$Y236<=AA$235,AA$235<=$Z236),AA$235-$Y236,IF(AND($Y236<=AA$234,AA$234<=$Z236,$Z236<=AA$235),$Z236-AA$234,IF(AND($Y236<=AA$234,AA$235<=$Z236),AA$235-AA$234,IF(AND(AA$234<=$Y236,$Z236<=AA$235),$Z236-$Y236))))),0) -> 0 | AB236: =IFERROR(AB$232*IF(OR(AB$234>=$Z236,AB$235<=$Y236),0,IF(AND(AB$234<=$Y236,$Y236<=AB$235,AB$235<=$Z236),AB$235-$Y236,IF(AND($Y236<=AB$234,AB$234<=$Z236,$Z236<=AB$235),$Z236-AB$234,IF(AND($Y236<=AB$234,AB$235<=$Z236),AB$235-AB$234,IF(AND(AB$234<=$Y236,$Z236<=AB$235),$Z236-$Y236))))),0) -> 0 | AC236: 0 | AD236: 0 | AE236: 0 | AF236: 0 | AG236: 0 | AH236: 0 | AI236: 0 | AK236: =IF(X236<>"",SUM(AA236:AI236)/X236*100,"") -> 0
W237: 2 --> 3 | X237: =N101 -> 312 | Y237: =Z236 -> 314 | Z237: =IFERROR(Y237+X237,"---") -> 626 | AA237: =IFERROR(AA$232*IF(OR(AA$234>=$Z237,AA$235<=$Y237),0,IF(AND(AA$234<=$Y237,$Y237<=AA$235,AA$235<=$Z237),AA$235-$Y237,IF(AND($Y237<=AA$234,AA$234<=$Z237,$Z237<=AA$235),$Z237-AA$234,IF(AND($Y237<=AA$234,AA$235<=$Z237),AA$235-AA$234,IF(AND(AA$234<=$Y237,$Z237<=AA$235),$Z237-$Y237))))),0) -> 0 | AB237: 0 | AC237: 0 | AD237: =IFERROR(AD$232*IF(OR(AD$234>=$Z237,AD$235<=$Y237),0,IF(AND(AD$234<=$Y237,$Y237<=AD$235,AD$235<=$Z237),AD$235-$Y237,IF(AND($Y237<=AD$234,AD$234<=$Z237,$Z237<=AD$235),$Z237-AD$234,IF(AND($Y237<=AD$234,AD$235<=$Z237),AD$235-AD$234,IF(AND(AD$234<=$Y237,$Z237<=AD$235),$Z237-$Y237))))),0) -> 0 | AE237: 0 | AF237: 0 | AG237: 0 | AH237: 0 | AI237: 0 | AK237: =IF(X237<>"",SUM(AA237:AI237)/X237*100,"") -> 0
W238: 3 --> 4 | Y238: =Z237 -> 626 | Z238: --- | AA238: =IFERROR(AA$232*IF(OR(AA$234>=$Z238,AA$235<=$Y238),0,IF(AND(AA$234<=$Y238,$Y238<=AA$235,AA$235<=$Z238),AA$235-$Y238,IF(AND($Y238<=AA$234,AA$234<=$Z238,$Z238<=AA$235),$Z238-AA$234,IF(AND($Y238<=AA$234,AA$235<=$Z238),AA$235-AA$234,IF(AND(AA$234<=$Y238,$Z238<=AA$235),$Z238-$Y238))))),0) -> 0 | AB238: 0 | AC238: 0 | AD238: 0 | AE238: 0 | AF238: 0 | AG238: 0 | AH238: 0 | AI238: =IFERROR(AI$232*IF(OR(AI$234>=$Z238,AI$235<=$Y238),0,IF(AND(AI$234<=$Y238,$Y238<=AI$235,AI$235<=$Z238),AI$235-$Y238,IF(AND($Y238<=AI$234,AI$234<=$Z238,$Z238<=AI$235),$Z238-AI$234,IF(AND($Y238<=AI$234,AI$235<=$Z238),AI$235-AI$234,IF(AND(AI$234<=$Y238,$Z238<=AI$235),$Z238-$Y238))))),0) -> 0
W239: 4 --> 5 | Y239: --- | Z239: --- | AA239: 0 | AB239: 0 | AC239: 0 | AD239: 0 | AE239: 0 | AF239: 0 | AG239: 0 | AH239: 0 | AI239: 0
W240: 5 --> 6 | Y240: --- | Z240: --- | AA240: 0 | AB240: 0 | AC240: 0 | AD240: 0 | AE240: 0 | AF240: 0 | AG240: 0 | AH240: 0 | AI240: 0
W241: 6 --> 7 | Y241: --- | Z241: --- | AA241: 0 | AB241: 0 | AC241: 0 | AD241: 0 | AE241: 0 | AF241: 0 | AG241: 0 | AH241: 0 | AI241: 0
W242: 7 --> 8 | Y242: --- | Z242: --- | AA242: 0 | AB242: 0 | AC242: 0 | AD242: 0 | AE242: 0 | AF242: 0 | AG242: 0 | AH242: 0 | AI242: 0
W243: 8 --> 9 | Y243: --- | Z243: --- | AA243: 0 | AB243: 0 | AC243: 0 | AD243: 0 | AE243: 0 | AF243: 0 | AG243: 0 | AH243: 0 | AI243: 0
W244: 9 --> 10 | Y244: --- | Z244: --- | AA244: 0 | AB244: 0 | AC244: 0 | AD244: 0 | AE244: 0 | AF244: 0 | AG244: 0 | AH244: 0 | AI244: 0
W245: 10 --> 11 | Y245: --- | Z245: --- | AA245: 0 | AB245: 0 | AC245: 0 | AD245: 0 | AE245: 0 | AF245: 0 | AG245: 0 | AH245: 0 | AI245: 0
W246: 11 --> 12 | Y246: --- | Z246: --- | AA246: 0 | AB246: 0 | AC246: 0 | AD246: 0 | AE246: 0 | AF246: 0 | AG246: 0 | AH246: 0 | AI246: 0
W247: 12 --> 13 | Y247: --- | Z247: --- | AA247: 0 | AB247: 0 | AC247: 0 | AD247: 0 | AE247: 0 | AF247: 0 | AG247: 0 | AH247: 0 | AI247: 0
W248: 13 --> 14 | Y248: --- | Z248: --- | AA248: 0 | AB248: 0 | AC248: 0 | AD248: 0 | AE248: 0 | AF248: 0 | AG248: 0 | AH248: 0 | AI248: 0
W249: 14 --> 15 | Y249: --- | Z249: --- | AA249: 0 | AB249: 0 | AC249: 0 | AD249: 0 | AE249: 0 | AF249: 0 | AG249: 0 | AH249: 0 | AI249: 0
W250: 15 --> 16 | Y250: --- | Z250: --- | AA250: 0 | AB250: 0 | AC250: 0 | AD250: 0 | AE250: 0 | AF250: 0 | AG250: 0 | AH250: 0 | AI250: 0
W251: 16 --> 17 | Y251: --- | Z251: --- | AA251: 0 | AB251: 0 | AC251: 0 | AD251: 0 | AE251: 0 | AF251: 0 | AG251: 0 | AH251: 0 | AI251: 0
W252: 17 --> 18 | Y252: --- | Z252: --- | AA252: 0 | AB252: 0 | AC252: 0 | AD252: 0 | AE252: 0 | AF252: 0 | AG252: 0 | AH252: 0 | AI252: 0
W253: 18 --> 19 | Y253: --- | Z253: --- | AA253: 0 | AB253: 0 | AC253: 0 | AD253: 0 | AE253: 0 | AF253: 0 | AG253: 0 | AH253: 0 | AI253: 0
W254: 19 --> 20 | Y254: --- | Z254: --- | AA254: =IFERROR(AA$232*IF(OR(AA$234>=$Z254,AA$235<=$Y254),0,IF(AND(AA$234<=$Y254,$Y254<=AA$235,AA$235<=$Z254),AA$235-$Y254,IF(AND($Y254<=AA$234,AA$234<=$Z254,$Z254<=AA$235),$Z254-AA$234,IF(AND($Y254<=AA$234,AA$235<=$Z254),AA$235-AA$234,IF(AND(AA$234<=$Y254,$Z254<=AA$235),$Z254-$Y254))))),0) -> 0 | AB254: 0 | AC254: 0 | AD254: 0 | AE254: 0 | AF254: 0 | AG254: 0 | AH254: 0 | AI254: 0
W255: 20 --> 21 | Y255: --- | Z255: --- | AA255: 0 | AB255: 0 | AC255: 0 | AD255: 0 | AE255: 0 | AF255: 0 | AG255: 0 | AH255: 0 | AI255: 0
X256: km tramo | Y256: km inicial | Z256: km final

Sheet REPORTE
A1: REPORTING CORPORATIVO
A5: RESULTADOS POR TIPO DE ACTIVIDAD - CONSUMO DE COMBUSTIBLE (FACTORES EN 16258 - GUÍA AECOC)
B7: Denominación de la actividad | C7: Tipo de actividad (propia o subcontratada) | D7: Cadena de suministro (Upstream o Downstream) | E7: ACTIVIDADES DE PROPULSIÓN DEL VEHÍCULO | K7: ACTIVIDADES DE REFRIGERACIÓN DE LA CARGA | Q7: ACTIVIDADES DE ALMACENAMIENTO DE LA CARGA | AP7: RESULTADOS TOTALES DE LAS ACTIVIDADES DE TRANSPORTE DE CARGA | AT7: RESULTADOS TOTALES DE LAS ACTIVIDADES DE TRANSPORTE Y ALMACENAMIENTO DE CARGA | AX7: REPORTE GHG PROTOCOL
E8: Tipo de combustible | F8: Consumo de combustible (l) | G8: Consumo energético del tanque a las ruedas | H8: Consumo energético del pozo a las ruedas | I8: Emisiones de GEI del tanque a las ruedas | J8: Emisiones de GEI del pozo a las ruedas | K8: Tipo de combustible | L8: Consumo de combustible (l) | M8: Consumo energético del tanque a las ruedas | N8: Consumo energético del pozo a las ruedas | O8: Emisiones de GEI del tanque a las ruedas | P8: Emisiones de GEI del pozo a las ruedas | Q8: Fuente de energía - 1 | R8: Consumo fuente de energía - 1 | T8: Consumo energético directo - fuente de energía 1 | U8: Consumo energético total - fuente de energía 1 | V8: Emisiones de GEI directas - fuente de energía 1 | W8: Emisiones de GEI totales - fuente de energía 1 | X8: Fuente de energía - 2 | Y8: Consumo fuente de energía - 2 | AA8: Consumo energético directo - fuente de energía 2 | AB8: Consumo energético total - fuente de energía 2 | AC8: Emisiones de GEI directas - fuente de energía 2 | AD8: Emisiones de GEI totales - fuente de energía 2 | AE8: Fuente de energía - 3 | AF8: Consumo fuente de energía - 3 | AH8: Consumo energético directo - fuente de energía 3 | AI8: Consumo energético total - fuente de energía 3 | AJ8: Emisiones de GEI directas - fuente de energía 3 | AK8: Emisiones de GEI totales - fuente de energía 3 | AL8: Consumo energético directo | AM8: Consumo energético total | AN8: Emisiones de GEI directas | AO8: Emisiones de GEI totales | AP8: Consumo energético del tanque a las ruedas | AQ8: Consumo energético del pozo a las ruedas | AR8: Emisiones de GEI del tanque a las ruedas | AS8: Emisiones de GEI del pozo a las ruedas | AT8: Consumo energético del tanque a las ruedas | AU8: Consumo energético del pozo a las ruedas | AV8: Emisiones de GEI del tanque a las ruedas | AW8: Emisiones de GEI del pozo a las ruedas | AX8: Alcance 1 | AY8: Alcance 2 | AZ8: Alcance 3. Categoría 3 | BA8: Alcance 3. Categoría 4 | BB8: Alcance 3. Categoría 9
A9: 1 | G9: =IFERROR($F9*VLOOKUP($E9,t_factores_t,3,0),0) -> 0 | H9: =IFERROR($F9*VLOOKUP($E9,t_factores_t,5,0),0) -> 0 | I9: =IFERROR($F9*VLOOKUP($E9,t_factores_t,7,0),0) -> 0 | J9: =IFERROR($F9*VLOOKUP($E9,t_factores_t,9,0),0) -> 0 | M9: =IFERROR($L9*VLOOKUP($K9,t_factores_t,3,0),0) -> 0 | N9: =IFERROR($L9*VLOOKUP($K9,t_factores_t,5,0),0) -> 0 | O9: =IFERROR($L9*VLOOKUP($K9,t_factores_t,7,0),0) -> 0 | P9: =IFERROR($L9*VLOOKUP($K9,t_factores_t,9,0),0) -> 0 | S9: =IFERROR(VLOOKUP(Q9,t_factores_a,2,0),"") ->  | T9: =IFERROR(VLOOKUP(Q9,t_factores_a,3,0)*R9,0) -> 0 | U9: =IFERROR(VLOOKUP(Q9,t_factores_a,4,0)*R9,0) -> 0 | V9: =IFERROR(VLOOKUP(Q9,t_factores_a,6,0)*R9,0) -> 0 | W9: =IFERROR(VLOOKUP(Q9,t_factores_a,7,0)*R9,0) -> 0 | Z9: =IFERROR(VLOOKUP(X9,t_factores_a,2,0),"") ->  | AA9: =IFERROR(VLOOKUP(X9,t_factores_a,3,0)*Y9,0) -> 0 | AB9: =IFERROR(VLOOKUP(X9,t_factores_a,4,0)*Y9,0) -> 0 | AC9: =IFERROR(VLOOKUP(X9,t_factores_a,6,0)*Y9,0) -> 0 | AD9: =IFERROR(VLOOKUP(X9,t_factores_a,7,0)*Y9,0) -> 0 | AG9: l. | AH9: =IFERROR(VLOOKUP(AE9,t_factores_t,3,0)*AF9,0) -> 0 | AI9: =IFERROR(VLOOKUP(AE9,t_factores_t,5,0)*AF9,0) -> 0 | AJ9: =IFERROR(VLOOKUP(AE9,t_factores_t,7,0)*AF9,0) -> 0 | AK9: =IFERROR(VLOOKUP(AE9,t_factores_t,9,0)*AF9,0) -> 0 | AL9: =T9+AA9+AH9 -> 0 | AM9: =U9+AB9+AI9 -> 0 | AN9: 0 | AO9: 0 | AP9: =IFERROR(G9+M9,"---") -> 0 | AQ9: =IFERROR(H9+N9,"---") -> 0 | AR9: 0 | AS9: 0 | AT9: =IFERROR(AL9+AP9,"---") -> 0 | AU9: =IFERROR(AM9+AQ9,"---") -> 0 | AV9: 0 | AW9: 0 | AX9: =IF(C9="Propia",AV9,0) -> 0 | AY9: 0 | AZ9: =IF(C9="Propia",AW9-AV9,0) -> 0 | BA9: =IF(AND(C9="Subcontratada",D9="Upstream"),AV9,0) -> 0 | BB9: =IF(AND(C9="Subcontratada",D9="Downstream"),AV9,0) -> 0
A10: 2 | G10: 0 | H10: 0 | I10: 0 | J10: 0 | M10: 0 | N10: 0 | O10: 0 | P10: 0 | T10: 0 | U10: 0 | V10: 0 | W10: 0 | AA10: 0 | AB10: 0 | AC10: 0 | AD10: 0 | AG10: l. | AH10: 0 | AI10: 0 | AJ10: 0 | AK10: 0 | AL10: =T10+AA10+AH10 -> 0 | AM10: 0 | AN10: 0 | AO10: 0 | AP10: =IFERROR(G10+M10,"---") -> 0 | AQ10: 0 | AR10: 0 | AS10: 0 | AT10: =IFERROR(AL10+AP10,"---") -> 0 | AU10: 0 | AV10: 0 | AW10: 0 | AX10: 0 | AY10: 0 | AZ10: 0 | BA10: 0 | BB10: 0
A11: 3 | G11: 0 | H11: 0 | I11: 0 | J11: 0 | M11: 0 | N11: 0 | O11: 0 | P11: 0 | T11: 0 | U11: 0 | V11: 0 | W11: 0 | AA11: 0 | AB11: 0 | AC11: 0 | AD11: 0 | AG11: l. | AH11: 0 | AI11: 0 | AJ11: 0 | AK11: 0 | AL11: 0 | AM11: 0 | AN11: 0 | AO11: 0 | AP11: 0 | AQ11: 0 | AR11: 0 | AS11: 0 | AT11: 0 | AU11: 0 | AV11: 0 | AW11: 0 | AX11: 0 | AY11: 0 | AZ11: 0 | BA11: 0 | BB11: 0
A12: 4 | G12: 0 | H12: 0 | I12: 0 | J12: 0 | M12: 0 | N12: 0 | O12: 0 | P12: 0 | T12: 0 | U12: 0 | V12: 0 | W12: 0 | AA12: 0 | AB12: 0 | AC12: 0 | AD12: 0 | AG12: l. | AH12: 0 | AI12: 0 | AJ12: 0 | AK12: 0 | AL12: 0 | AM12: 0 | AN12: 0 | AO12: 0 | AP12: 0 | AQ12: 0 | AR12: 0 | AS12: 0 | AT12: 0 | AU12: 0 | AV12: 0 | AW12: 0 | AX12: 0 | AY12: 0 | AZ12: 0 | BA12: 0 | BB12: 0
A13: 5 | G13: 0 | H13: 0 | I13: 0 | J13: 0 | M13: 0 | N13: 0 | O13: 0 | P13: 0 | T13: 0 | U13: 0 | V13: 0 | W13: 0 | AA13: 0 | AB13: 0 | AC13: 0 | AD13: 0 | AG13: l. | AH13: 0 | AI13: 0 | AJ13: 0 | AK13: 0 | AL13: 0 | AM13: 0 | AN13: 0 | AO13: 0 | AP13: 0 | AQ13: 0 | AR13: 0 | AS13: 0 | AT13: 0 | AU13: 0 | AV13: 0 | AW13: 0 | AX13: 0 | AY13: 0 | AZ13: 0 | BA13: 0 | BB13: 0
A14: 6 | G14: 0 | H14: 0 | I14: 0 | J14: 0 | M14: 0 | N14: 0 | O14: 0 | P14: 0 | T14: 0 | U14: 0 | V14: 0 | W14: 0 | AA14: 0 | AB14: 0 | AC14: 0 | AD14: 0 | AG14: l. | AH14: 0 | AI14: 0 | AJ14: 0 | AK14: 0 | AL14: 0 | AM14: 0 | AN14: 0 | AO14: 0 | AP14: 0 | AQ14: 0 | AR14: 0 | AS14: 0 | AT14: 0 | AU14: 0 | AV14: 0 | AW14: 0 | AX14: 0 | AY14: 0 | AZ14: 0 | BA14: 0 | BB14: 0
A15: 7 | G15: 0 | H15: 0 | I15: 0 | J15: 0 | M15: 0 | N15: 0 | O15: 0 | P15: 0 | T15: 0 | U15: 0 | V15: 0 | W15: 0 | AA15: 0 | AB15: 0 | AC15: 0 | AD15: 0 | AG15: l. | AH15: 0 | AI15: 0 | AJ15: 0 | AK15: 0 | AL15: 0 | AM15: 0 | AN15: 0 | AO15: 0 | AP15: 0 | AQ15: 0 | AR15: 0 | AS15: 0 | AT15: 0 | AU15: 0 | AV15: 0 | AW15: 0 | AX15: 0 | AY15: 0 | AZ15: 0 | BA15: 0 | BB15: 0
A16: 8 | G16: 0 | H16: 0 | I16: 0 | J16: 0 | M16: 0 | N16: 0 | O16: 0 | P16: 0 | T16: 0 | U16: 0 | V16: 0 | W16: 0 | AA16: 0 | AB16: 0 | AC16: 0 | AD16: 0 | AG16: l. | AH16: 0 | AI16: 0 | AJ16: 0 | AK16: 0 | AL16: 0 | AM16: 0 | AN16: 0 | AO16: 0 | AP16: 0 | AQ16: 0 | AR16: 0 | AS16: 0 | AT16: 0 | AU16: 0 | AV16: 0 | AW16: 0 | AX16: 0 | AY16: 0 | AZ16: 0 | BA16: 0 | BB16: 0
A17: 9 | G17: 0 | H17: 0 | I17: 0 | J17: 0 | M17: 0 | N17: 0 | O17: 0 | P17: 0 | T17: 0 | U17: 0 | V17: 0 | W17: 0 | AA17: 0 | AB17: 0 | AC17: 0 | AD17: 0 | AG17: l. | AH17: 0 | AI17: 0 | AJ17: 0 | AK17: 0 | AL17: 0 | AM17: 0 | AN17: 0 | AO17: 0 | AP17: 0 | AQ17: 0 | AR17: 0 | AS17: 0 | AT17: 0 | AU17: 0 | AV17: 0 | AW17: 0 | AX17: 0 | AY17: 0 | AZ17: 0 | BA17: 0 | BB17: 0
A18: 10 | G18: 0 | H18: 0 | I18: 0 | J18: 0 | M18: 0 | N18: 0 | O18: 0 | P18: 0 | T18: 0 | U18: 0 | V18: 0 | W18: 0 | AA18: 0 | AB18: 0 | AC18: 0 | AD18: 0 | AG18: l. | AH18: 0 | AI18: 0 | AJ18: 0 | AK18: 0 | AL18: 0 | AM18: 0 | AN18: 0 | AO18: 0 | AP18: 0 | AQ18: 0 | AR18: 0 | AS18: 0 | AT18: 0 | AU18: 0 | AV18: 0 | AW18: 0 | AX18: 0 | AY18: 0 | AZ18: 0 | BA18: 0 | BB18: 0
A19: 11 | G19: 0 | H19: 0 | I19: 0 | J19: 0 | M19: 0 | N19: 0 | O19: 0 | P19: 0 | T19: 0 | U19: 0 | V19: 0 | W19: 0 | AA19: 0 | AB19: 0 | AC19: 0 | AD19: 0 | AG19: l. | AH19: 0 | AI19: 0 | AJ19: 0 | AK19: 0 | AL19: 0 | AM19: 0 | AN19: 0 | AO19: 0 | AP19: 0 | AQ19: 0 | AR19: 0 | AS19: 0 | AT19: 0 | AU19: 0 | AV19: 0 | AW19: 0 | AX19: 0 | AY19: 0 | AZ19: 0 | BA19: 0 | BB19: 0
A20: 12 | G20: 0 | H20: 0 | I20: 0 | J20: 0 | M20: 0 | N20: 0 | O20: 0 | P20: 0 | T20: 0 | U20: 0 | V20: 0 | W20: 0 | AA20: 0 | AB20: 0 | AC20: 0 | AD20: 0 | AG20: l. | AH20: 0 | AI20: 0 | AJ20: 0 | AK20: 0 | AL20: 0 | AM20: 0 | AN20: 0 | AO20: 0 | AP20: 0 | AQ20: 0 | AR20: 0 | AS20: 0 | AT20: 0 | AU20: 0 | AV20: 0 | AW20: 0 | AX20: 0 | AY20: 0 | AZ20: 0 | BA20: 0 | BB20: 0
A21: 13 | G21: 0 | H21: 0 | I21: 0 | J21: 0 | M21: 0 | N21: 0 | O21: 0 | P21: 0 | T21: 0 | U21: 0 | V21: 0 | W21: 0 | AA21: 0 | AB21: 0 | AC21: 0 | AD21: 0 | AG21: l. | AH21: 0 | AI21: 0 | AJ21: 0 | AK21: 0 | AL21: 0 | AM21: 0 | AN21: 0 | AO21: 0 | AP21: 0 | AQ21: 0 | AR21: 0 | AS21: 0 | AT21: 0 | AU21: 0 | AV21: 0 | AW21: 0 | AX21: 0 | AY21: 0 | AZ21: 0 | BA21: 0 | BB21: 0
A22: 14 | G22: 0 | H22: 0 | I22: 0 | J22: 0 | M22: 0 | N22: 0 | O22: 0 | P22: 0 | T22: 0 | U22: 0 | V22: 0 | W22: 0 | AA22: 0 | AB22: 0 | AC22: 0 | AD22: 0 | AG22: l. | AH22: 0 | AI22: 0 | AJ22: 0 | AK22: 0 | AL22: 0 | AM22: 0 | AN22: 0 | AO22: 0 | AP22: 0 | AQ22: 0 | AR22: 0 | AS22: 0 | AT22: 0 | AU22: 0 | AV22: 0 | AW22: 0 | AX22: 0 | AY22: 0 | AZ22: 0 | BA22: 0 | BB22: 0
A23: 15 | G23: 0 | H23: 0 | I23: 0 | J23: 0 | M23: 0 | N23: 0 | O23: 0 | P23: 0 | T23: 0 | U23: 0 | V23: 0 | W23: 0 | AA23: 0 | AB23: 0 | AC23: 0 | AD23: 0 | AG23: l. | AH23: 0 | AI23: 0 | AJ23: 0 | AK23: 0 | AL23: 0 | AM23: 0 | AN23: 0 | AO23: 0 | AP23: 0 | AQ23: 0 | AR23: 0 | AS23: 0 | AT23: 0 | AU23: 0 | AV23: 0 | AW23: 0 | AX23: 0 | AY23: 0 | AZ23: 0 | BA23: 0 | BB23: 0
A24: 16 | G24: 0 | H24: 0 | I24: 0 | J24: 0 | M24: 0 | N24: 0 | O24: 0 | P24: 0 | T24: 0 | U24: 0 | V24: 0 | W24: 0 | AA24: 0 | AB24: 0 | AC24: 0 | AD24: 0 | AG24: l. | AH24: 0 | AI24: 0 | AJ24: 0 | AK24: 0 | AL24: 0 | AM24: 0 | AN24: 0 | AO24: 0 | AP24: 0 | AQ24: 0 | AR24: 0 | AS24: 0 | AT24: 0 | AU24: 0 | AV24: 0 | AW24: 0 | AX24: 0 | AY24: 0 | AZ24: 0 | BA24: 0 | BB24: 0
A25: 17 | G25: 0 | H25: 0 | I25: 0 | J25: 0 | M25: 0 | N25: 0 | O25: 0 | P25: 0 | T25: 0 | U25: 0 | V25: 0 | W25: 0 | AA25: 0 | AB25: 0 | AC25: 0 | AD25: 0 | AG25: l. | AH25: 0 | AI25: 0 | AJ25: 0 | AK25: 0 | AL25: 0 | AM25: 0 | AN25: 0 | AO25: 0 | AP25: 0 | AQ25: 0 | AR25: 0 | AS25: 0 | AT25: 0 | AU25: 0 | AV25: 0 | AW25: 0 | AX25: 0 | AY25: 0 | AZ25: 0 | BA25: 0 | BB25: 0
A26: 18 | G26: 0 | H26: 0 | I26: 0 | J26: 0 | M26: 0 | N26: 0 | O26: 0 | P26: 0 | T26: 0 | U26: 0 | V26: 0 | W26: 0 | AA26: 0 | AB26: 0 | AC26: 0 | AD26: 0 | AG26: l. | AH26: 0 | AI26: 0 | AJ26: 0 | AK26: 0 | AL26: 0 | AM26: 0 | AN26: 0 | AO26: 0 | AP26: 0 | AQ26: 0 | AR26: 0 | AS26: 0 | AT26: 0 | AU26: 0 | AV26: 0 | AW26: 0 | AX26: 0 | AY26: 0 | AZ26: 0 | BA26: 0 | BB26: 0
A27: 19 | G27: 0 | H27: 0 | I27: 0 | J27: 0 | M27: 0 | N27: 0 | O27: 0 | P27: 0 | T27: 0 | U27: 0 | V27: 0 | W27: 0 | AA27: 0 | AB27: 0 | AC27: 0 | AD27: 0 | AG27: l. | AH27: 0 | AI27: 0 | AJ27: 0 | AK27: 0 | AL27: 0 | AM27: 0 | AN27: 0 | AO27: 0 | AP27: 0 | AQ27: 0 | AR27: 0 | AS27: 0 | AT27: 0 | AU27: 0 | AV27: 0 | AW27: 0 | AX27: 0 | AY27: 0 | AZ27: 0 | BA27: 0 | BB27: 0
A28: 20 | G28: 0 | H28: 0 | I28: 0 | J28: 0 | M28: 0 | N28: 0 | O28: 0 | P28: 0 | T28: 0 | U28: 0 | V28: 0 | W28: 0 | AA28: 0 | AB28: 0 | AC28: 0 | AD28: 0 | AG28: l. | AH28: 0 | AI28: 0 | AJ28: 0 | AK28: 0 | AL28: 0 | AM28: 0 | AN28: 0 | AO28: 0 | AP28: 0 | AQ28: 0 | AR28: 0 | AS28: 0 | AT28: 0 | AU28: 0 | AV28: 0 | AW28: 0 | AX28: 0 | AY28: 0 | AZ28: 0 | BA28: 0 | BB28: 0
A29: 21 | G29: 0 | H29: 0 | I29: 0 | J29: 0 | M29: 0 | N29: 0 | O29: 0 | P29: 0 | T29: 0 | U29: 0 | V29: 0 | W29: 0 | AA29: 0 | AB29: 0 | AC29: 0 | AD29: 0 | AG29: l. | AH29: 0 | AI29: 0 | AJ29: 0 | AK29: 0 | AL29: 0 | AM29: 0 | AN29: 0 | AO29: 0 | AP29: 0 | AQ29: 0 | AR29: 0 | AS29: 0 | AT29: 0 | AU29: 0 | AV29: 0 | AW29: 0 | AX29: 0 | AY29: 0 | AZ29: 0 | BA29: 0 | BB29: 0
A30: 22 | G30: 0 | H30: 0 | I30: 0 | J30: 0 | M30: 0 | N30: 0 | O30: 0 | P30: 0 | T30: 0 | U30: 0 | V30: 0 | W30: 0 | AA30: 0 | AB30: 0 | AC30: 0 | AD30: 0 | AG30: l. | AH30: 0 | AI30: 0 | AJ30: 0 | AK30: 0 | AL30: 0 | AM30: 0 | AN30: 0 | AO30: 0 | AP30: 0 | AQ30: 0 | AR30: 0 | AS30: 0 | AT30: 0 | AU30: 0 | AV30: 0 | AW30: 0 | AX30: 0 | AY30: 0 | AZ30: 0 | BA30: 0 | BB30: 0
A31: 23 | G31: 0 | H31: 0 | I31: 0 | J31: 0 | M31: 0 | N31: 0 | O31: 0 | P31: 0 | T31: 0 | U31: 0 | V31: 0 | W31: 0 | AA31: 0 | AB31: 0 | AC31: 0 | AD31: 0 | AG31: l. | AH31: 0 | AI31: 0 | AJ31: 0 | AK31: 0 | AL31: 0 | AM31: 0 | AN31: 0 | AO31: 0 | AP31: 0 | AQ31: 0 | AR31: 0 | AS31: 0 | AT31: 0 | AU31: 0 | AV31: 0 | AW31: 0 | AX31: 0 | AY31: 0 | AZ31: 0 | BA31: 0 | BB31: 0
A32: 24 | G32: 0 | H32: 0 | I32: 0 | J32: 0 | M32: 0 | N32: 0 | O32: 0 | P32: 0 | T32: 0 | U32: 0 | V32: 0 | W32: 0 | AA32: 0 | AB32: 0 | AC32: 0 | AD32: 0 | AG32: l. | AH32: 0 | AI32: 0 | AJ32: 0 | AK32: 0 | AL32: 0 | AM32: 0 | AN32: 0 | AO32: 0 | AP32: 0 | AQ32: 0 | AR32: 0 | AS32: 0 | AT32: 0 | AU32: 0 | AV32: 0 | AW32: 0 | AX32: 0 | AY32: 0 | AZ32: 0 | BA32: 0 | BB32: 0
A33: 25 | G33: 0 | H33: 0 | I33: 0 | J33: 0 | M33: 0 | N33: 0 | O33: 0 | P33: 0 | T33: 0 | U33: 0 | V33: 0 | W33: 0 | AA33: 0 | AB33: 0 | AC33: 0 | AD33: 0 | AG33: l. | AH33: 0 | AI33: 0 | AJ33: 0 | AK33: 0 | AL33: 0 | AM33: 0 | AN33: 0 | AO33: 0 | AP33: 0 | AQ33: 0 | AR33: 0 | AS33: 0 | AT33: 0 | AU33: 0 | AV33: 0 | AW33: 0 | AX33: 0 | AY33: 0 | AZ33: 0 | BA33: 0 | BB33: 0
A34: 26 | G34: 0 | H34: 0 | I34: 0 | J34: 0 | M34: 0 | N34: 0 | O34: 0 | P34: 0 | T34: 0 | U34: 0 | V34: 0 | W34: 0 | AA34: 0 | AB34: 0 | AC34: 0 | AD34: 0 | AG34: l. | AH34: 0 | AI34: 0 | AJ34: 0 | AK34: 0 | AL34: 0 | AM34: 0 | AN34: 0 | AO34: 0 | AP34: 0 | AQ34: 0 | AR34: 0 | AS34: 0 | AT34: 0 | AU34: 0 | AV34: 0 | AW34: 0 | AX34: 0 | AY34: 0 | AZ34: 0 | BA34: 0 | BB34: 0
A35: 27 | G35: 0 | H35: 0 | I35: 0 | J35: 0 | M35: 0 | N35: 0 | O35: 0 | P35: 0 | T35: 0 | U35: 0 | V35: 0 | W35: 0 | AA35: 0 | AB35: 0 | AC35: 0 | AD35: 0 | AG35: l. | AH35: 0 | AI35: 0 | AJ35: 0 | AK35: 0 | AL35: 0 | AM35: 0 | AN35: 0 | AO35: 0 | AP35: 0 | AQ35: 0 | AR35: 0 | AS35: 0 | AT35: 0 | AU35: 0 | AV35: 0 | AW35: 0 | AX35: 0 | AY35: 0 | AZ35: 0 | BA35: 0 | BB35: 0
A36: 28 | G36: 0 | H36: 0 | I36: 0 | J36: 0 | M36: 0 | N36: 0 | O36: 0 | P36: 0 | T36: 0 | U36: 0 | V36: 0 | W36: 0 | AA36: 0 | AB36: 0 | AC36: 0 | AD36: 0 | AG36: l. | AH36: 0 | AI36: 0 | AJ36: 0 | AK36: 0 | AL36: 0 | AM36: 0 | AN36: 0 | AO36: 0 | AP36: 0 | AQ36: 0 | AR36: 0 | AS36: 0 | AT36: 0 | AU36: 0 | AV36: 0 | AW36: 0 | AX36: 0 | AY36: 0 | AZ36: 0 | BA36: 0 | BB36: 0
A37: 29 | G37: 0 | H37: 0 | I37: 0 | J37: 0 | M37: 0 | N37: 0 | O37: 0 | P37: 0 | T37: 0 | U37: 0 | V37: 0 | W37: 0 | AA37: 0 | AB37: 0 | AC37: 0 | AD37: 0 | AG37: l. | AH37: 0 | AI37: 0 | AJ37: 0 | AK37: 0 | AL37: 0 | AM37: 0 | AN37: 0 | AO37: 0 | AP37: 0 | AQ37: 0 | AR37: 0 | AS37: 0 | AT37: 0 | AU37: 0 | AV37: 0 | AW37: 0 | AX37: 0 | AY37: 0 | AZ37: 0 | BA37: 0 | BB37: 0
A38: 30 | G38: 0 | H38: 0 | I38: 0 | J38: 0 | M38: 0 | N38: 0 | O38: 0 | P38: 0 | T38: 0 | U38: 0 | V38: 0 | W38: 0 | AA38: 0 | AB38: 0 | AC38: 0 | AD38: 0 | AG38: l. | AH38: 0 | AI38: 0 | AJ38: 0 | AK38: 0 | AL38: 0 | AM38: 0 | AN38: 0 | AO38: 0 | AP38: 0 | AQ38: 0 | AR38: 0 | AS38: 0 | AT38: 0 | AU38: 0 | AV38: 0 | AW38: 0 | AX38: 0 | AY38: 0 | AZ38: 0 | BA38: 0 | BB38: 0
A39: 31 | G39: 0 | H39: 0 | I39: 0 | J39: 0 | M39: 0 | N39: 0 | O39: 0 | P39: 0 | T39: 0 | U39: 0 | V39: 0 | W39: 0 | AA39: 0 | AB39: 0 | AC39: 0 | AD39: 0 | AG39: l. | AH39: 0 | AI39: 0 | AJ39: 0 | AK39: 0 | AL39: 0 | AM39: 0 | AN39: 0 | AO39: 0 | AP39: 0 | AQ39: 0 | AR39: 0 | AS39: 0 | AT39: 0 | AU39: 0 | AV39: 0 | AW39: 0 | AX39: 0 | AY39: 0 | AZ39: 0 | BA39: 0 | BB39: 0
A40: 32 | G40: 0 | H40: 0 | I40: 0 | J40: 0 | M40: 0 | N40: 0 | O40: 0 | P40: 0 | T40: 0 | U40: 0 | V40: 0 | W40: 0 | AA40: 0 | AB40: 0 | AC40: 0 | AD40: 0 | AG40: l. | AH40: 0 | AI40: 0 | AJ40: 0 | AK40: 0 | AL40: 0 | AM40: 0 | AN40: 0 | AO40: 0 | AP40: 0 | AQ40: 0 | AR40: 0 | AS40: 0 | AT40: 0 | AU40: 0 | AV40: 0 | AW40: 0 | AX40: 0 | AY40: 0 | AZ40: 0 | BA40: 0 | BB40: 0
A41: 33 | G41: 0 | H41: 0 | I41: 0 | J41: 0 | M41: 0 | N41: 0 | O41: 0 | P41: 0 | T41: 0 | U41: 0 | V41: 0 | W41: 0 | AA41: 0 | AB41: 0 | AC41: 0 | AD41: 0 | AG41: l. | AH41: 0 | AI41: 0 | AJ41: 0 | AK41: 0 | AL41: 0 | AM41: 0 | AN41: 0 | AO41: 0 | AP41: 0 | AQ41: 0 | AR41: 0 | AS41: 0 | AT41: 0 | AU41: 0 | AV41: 0 | AW41: 0 | AX41: 0 | AY41: 0 | AZ41: 0 | BA41: 0 | BB41: 0
A42: 34 | G42: 0 | H42: 0 | I42: 0 | J42: 0 | M42: 0 | N42: 0 | O42: 0 | P42: 0 | T42: 0 | U42: 0 | V42: 0 | W42: 0 | AA42: 0 | AB42: 0 | AC42: 0 | AD42: 0 | AG42: l. | AH42: 0 | AI42: 0 | AJ42: 0 | AK42: 0 | AL42: 0 | AM42: 0 | AN42: 0 | AO42: 0 | AP42: 0 | AQ42: 0 | AR42: 0 | AS42: 0 | AT42: 0 | AU42: 0 | AV42: 0 | AW42: 0 | AX42: 0 | AY42: 0 | AZ42: 0 | BA42: 0 | BB42: 0
A43: 35 | G43: 0 | H43: 0 | I43: 0 | J43: 0 | M43: 0 | N43: 0 | O43: 0 | P43: 0 | T43: 0 | U43: 0 | V43: 0 | W43: 0 | AA43: 0 | AB43: 0 | AC43: 0 | AD43: 0 | AG43: l. | AH43: 0 | AI43: 0 | AJ43: 0 | AK43: 0 | AL43: 0 | AM43: 0 | AN43: 0 | AO43: 0 | AP43: 0 | AQ43: 0 | AR43: 0 | AS43: 0 | AT43: 0 | AU43: 0 | AV43: 0 | AW43: 0 | AX43: 0 | AY43: 0 | AZ43: 0 | BA43: 0 | BB43: 0
A44: 36 | G44: 0 | H44: 0 | I44: 0 | J44: 0 | M44: 0 | N44: 0 | O44: 0 | P44: 0 | T44: 0 | U44: 0 | V44: 0 | W44: 0 | AA44: 0 | AB44: 0 | AC44: 0 | AD44: 0 | AG44: l. | AH44: 0 | AI44: 0 | AJ44: 0 | AK44: 0 | AL44: 0 | AM44: 0 | AN44: 0 | AO44: 0 | AP44: 0 | AQ44: 0 | AR44: 0 | AS44: 0 | AT44: 0 | AU44: 0 | AV44: 0 | AW44: 0 | AX44: 0 | AY44: 0 | AZ44: 0 | BA44: 0 | BB44: 0
A45: 37 | G45: 0 | H45: 0 | I45: 0 | J45: 0 | M45: 0 | N45: 0 | O45: 0 | P45: 0 | T45: 0 | U45: 0 | V45: 0 | W45: 0 | AA45: 0 | AB45: 0 | AC45: 0 | AD45: 0 | AG45: l. | AH45: 0 | AI45: 0 | AJ45: 0 | AK45: 0 | AL45: 0 | AM45: 0 | AN45: 0 | AO45: 0 | AP45: 0 | AQ45: 0 | AR45: 0 | AS45: 0 | AT45: 0 | AU45: 0 | AV45: 0 | AW45: 0 | AX45: 0 | AY45: 0 | AZ45: 0 | BA45: 0 | BB45: 0
A46: 38 | G46: 0 | H46: 0 | I46: 0 | J46: 0 | M46: 0 | N46: 0 | O46: 0 | P46: 0 | T46: 0 | U46: 0 | V46: 0 | W46: 0 | AA46: 0 | AB46: 0 | AC46: 0 | AD46: 0 | AG46: l. | AH46: 0 | AI46: 0 | AJ46: 0 | AK46: 0 | AL46: 0 | AM46: 0 | AN46: 0 | AO46: 0 | AP46: 0 | AQ46: 0 | AR46: 0 | AS46: 0 | AT46: 0 | AU46: 0 | AV46: 0 | AW46: 0 | AX46: 0 | AY46: 0 | AZ46: 0 | BA46: 0 | BB46: 0
A47: 39 | G47: 0 | H47: 0 | I47: 0 | J47: 0 | M47: 0 | N47: 0 | O47: 0 | P47: 0 | T47: 0 | U47: 0 | V47: 0 | W47: 0 | AA47: 0 | AB47: 0 | AC47: 0 | AD47: 0 | AG47: l. | AH47: 0 | AI47: 0 | AJ47: 0 | AK47: 0 | AL47: 0 | AM47: 0 | AN47: 0 | AO47: 0 | AP47: 0 | AQ47: 0 | AR47: 0 | AS47: 0 | AT47: 0 | AU47: 0 | AV47: 0 | AW47: 0 | AX47: 0 | AY47: 0 | AZ47: 0 | BA47: 0 | BB47: 0
A48: 40 | G48: 0 | H48: 0 | I48: 0 | J48: 0 | M48: 0 | N48: 0 | O48: 0 | P48: 0 | T48: 0 | U48: 0 | V48: 0 | W48: 0 | AA48: 0 | AB48: 0 | AC48: 0 | AD48: 0 | AG48: l. | AH48: 0 | AI48: 0 | AJ48: 0 | AK48: 0 | AL48: 0 | AM48: 0 | AN48: 0 | AO48: 0 | AP48: 0 | AQ48: 0 | AR48: 0 | AS48: 0 | AT48: 0 | AU48: 0 | AV48: 0 | AW48: 0 | AX48: 0 | AY48: 0 | AZ48: 0 | BA48: 0 | BB48: 0
A49: 41 | G49: 0 | H49: 0 | I49: 0 | J49: 0 | M49: 0 | N49: 0 | O49: 0 | P49: 0 | T49: 0 | U49: 0 | V49: 0 | W49: 0 | AA49: 0 | AB49: 0 | AC49: 0 | AD49: 0 | AG49: l. | AH49: 0 | AI49: 0 | AJ49: 0 | AK49: 0 | AL49: 0 | AM49: 0 | AN49: 0 | AO49: 0 | AP49: 0 | AQ49: 0 | AR49: 0 | AS49: 0 | AT49: 0 | AU49: 0 | AV49: 0 | AW49: 0 | AX49: 0 | AY49: 0 | AZ49: 0 | BA49: 0 | BB49: 0
A50: 42 | G50: 0 | H50: 0 | I50: 0 | J50: 0 | M50: 0 | N50: 0 | O50: 0 | P50: 0 | T50: 0 | U50: 0 | V50: 0 | W50: 0 | AA50: 0 | AB50: 0 | AC50: 0 | AD50: 0 | AG50: l. | AH50: 0 | AI50: 0 | AJ50: 0 | AK50: 0 | AL50: 0 | AM50: 0 | AN50: 0 | AO50: 0 | AP50: 0 | AQ50: 0 | AR50: 0 | AS50: 0 | AT50: 0 | AU50: 0 | AV50: 0 | AW50: 0 | AX50: 0 | AY50: 0 | AZ50: 0 | BA50: 0 | BB50: 0
A51: 43 | G51: 0 | H51: 0 | I51: 0 | J51: 0 | M51: 0 | N51: 0 | O51: 0 | P51: 0 | T51: 0 | U51: 0 | V51: 0 | W51: 0 | AA51: 0 | AB51: 0 | AC51: 0 | AD51: 0 | AG51: l. | AH51: 0 | AI51: 0 | AJ51: 0 | AK51: 0 | AL51: 0 | AM51: 0 | AN51: 0 | AO51: 0 | AP51: 0 | AQ51: 0 | AR51: 0 | AS51: 0 | AT51: 0 | AU51: 0 | AV51: 0 | AW51: 0 | AX51: 0 | AY51: 0 | AZ51: 0 | BA51: 0 | BB51: 0
A52: 44 | G52: 0 | H52: 0 | I52: 0 | J52: 0 | M52: 0 | N52: 0 | O52: 0 | P52: 0 | T52: 0 | U52: 0 | V52: 0 | W52: 0 | AA52: 0 | AB52: 0 | AC52: 0 | AD52: 0 | AG52: l. | AH52: 0 | AI52: 0 | AJ52: 0 | AK52: 0 | AL52: 0 | AM52: 0 | AN52: 0 | AO52: 0 | AP52: 0 | AQ52: 0 | AR52: 0 | AS52: 0 | AT52: 0 | AU52: 0 | AV52: 0 | AW52: 0 | AX52: 0 | AY52: 0 | AZ52: 0 | BA52: 0 | BB52: 0
A53: 45 | G53: 0 | H53: 0 | I53: 0 | J53: 0 | M53: 0 | N53: 0 | O53: 0 | P53: 0 | T53: 0 | U53: 0 | V53: 0 | W53: 0 | AA53: 0 | AB53: 0 | AC53: 0 | AD53: 0 | AG53: l. | AH53: 0 | AI53: 0 | AJ53: 0 | AK53: 0 | AL53: 0 | AM53: 0 | AN53: 0 | AO53: 0 | AP53: 0 | AQ53: 0 | AR53: 0 | AS53: 0 | AT53: 0 | AU53: 0 | AV53: 0 | AW53: 0 | AX53: 0 | AY53: 0 | AZ53: 0 | BA53: 0 | BB53: 0
A54: 46 | G54: 0 | H54: 0 | I54: 0 | J54: 0 | M54: 0 | N54: 0 | O54: 0 | P54: 0 | T54: 0 | U54: 0 | V54: 0 | W54: 0 | AA54: 0 | AB54: 0 | AC54: 0 | AD54: 0 | AG54: l. | AH54: 0 | AI54: 0 | AJ54: 0 | AK54: 0 | AL54: 0 | AM54: 0 | AN54: 0 | AO54: 0 | AP54: 0 | AQ54: 0 | AR54: 0 | AS54: 0 | AT54: 0 | AU54: 0 | AV54: 0 | AW54: 0 | AX54: 0 | AY54: 0 | AZ54: 0 | BA54: 0 | BB54: 0
A55: 47 | G55: 0 | H55: 0 | I55: 0 | J55: 0 | M55: 0 | N55: 0 | O55: 0 | P55: 0 | T55: 0 | U55: 0 | V55: 0 | W55: 0 | AA55: 0 | AB55: 0 | AC55: 0 | AD55: 0 | AG55: l. | AH55: 0 | AI55: 0 | AJ55: 0 | AK55: 0 | AL55: 0 | AM55: 0 | AN55: 0 | AO55: 0 | AP55: 0 | AQ55: 0 | AR55: 0 | AS55: 0 | AT55: 0 | AU55: 0 | AV55: 0 | AW55: 0 | AX55: 0 | AY55: 0 | AZ55: 0 | BA55: 0 | BB55: 0
A56: 48 | G56: 0 | H56: 0 | I56: 0 | J56: 0 | M56: 0 | N56: 0 | O56: 0 | P56: 0 | T56: 0 | U56: 0 | V56: 0 | W56: 0 | AA56: 0 | AB56: 0 | AC56: 0 | AD56: 0 | AG56: l. | AH56: 0 | AI56: 0 | AJ56: 0 | AK56: 0 | AL56: 0 | AM56: 0 | AN56: 0 | AO56: 0 | AP56: 0 | AQ56: 0 | AR56: 0 | AS56: 0 | AT56: 0 | AU56: 0 | AV56: 0 | AW56: 0 | AX56: 0 | AY56: 0 | AZ56: 0 | BA56: 0 | BB56: 0
A57: 49 | G57: 0 | H57: 0 | I57: 0 | J57: 0 | M57: 0 | N57: 0 | O57: 0 | P57: 0 | T57: 0 | U57: 0 | V57: 0 | W57: 0 | AA57: 0 | AB57: 0 | AC57: 0 | AD57: 0 | AG57: l. | AH57: 0 | AI57: 0 | AJ57: 0 | AK57: 0 | AL57: 0 | AM57: 0 | AN57: 0 | AO57: 0 | AP57: 0 | AQ57: 0 | AR57: 0 | AS57: 0 | AT57: 0 | AU57: 0 | AV57: 0 | AW57: 0 | AX57: 0 | AY57: 0 | AZ57: 0 | BA57: 0 | BB57: 0
A58: 50 | G58: 0 | H58: 0 | I58: 0 | J58: 0 | M58: 0 | N58: 0 | O58: 0 | P58: 0 | T58: 0 | U58: 0 | V58: 0 | W58: 0 | AA58: 0 | AB58: 0 | AC58: 0 | AD58: 0 | AG58: l. | AH58: 0 | AI58: 0 | AJ58: 0 | AK58: 0 | AL58: 0 | AM58: 0 | AN58: 0 | AO58: 0 | AP58: 0 | AQ58: 0 | AR58: 0 | AS58: 0 | AT58: 0 | AU58: 0 | AV58: 0 | AW58: 0 | AX58: 0 | AY58: 0 | AZ58: 0 | BA58: 0 | BB58: 0
F59: TOTAL | G59: =SUM(G9:G58) -> 0 | H59: =SUM(H9:H58) -> 0 | I59: 0 | J59: 0 | L59: TOTAL | M59: 0 | N59: 0 | O59: 0 | P59: 0 | AK59: TOTAL | AL59: 0 | AM59: 0 | AN59: 0 | AO59: 0 | AP59: 0 | AQ59: 0 | AR59: 0 | AS59: 0 | AT59: 0 | AU59: =SUM(AU9:AU58) -> 0 | AV59: 0 | AW59: 0 | AX59: 0 | AY59: 0 | AZ59: =SUM(AZ9:AZ58) -> 0 | BA59: =SUM(BA9:BA58) -> 0 | BB59: =SUM(BB9:BB58) -> 0
A63: RESULTADOS POR TIPO DE ACTIVIDAD - CONSUMO DE COMBUSTIBLE (FACTORES DEFRA)
B65: Denominación de la actividad | C65: Tipo de actividad (propia o subcontratada) | D65: Cadena de suministro (Upstream o Downstream) | E65: ACTIVIDADES DE PROPULSIÓN DEL VEHÍCULO | K65: ACTIVIDADES DE REFRIGERACIÓN DE LA CARGA | Q65: ACTIVIDADES DE ALMACENAMIENTO DE LA CARGA | AP65: RESULTADOS TOTALES DE LAS ACTIVIDADES DE TRANSPORTE DE CARGA | AT65: RESULTADOS TOTALES DE LAS ACTIVIDADES DE TRANSPORTE Y ALMACENAMIENTO DE CARGA | AX65: REPORTE GHG PROTOCOL
E66: Tipo de combustible | F66: Consumo de combustible (l) | G66: Consumo energético del tanque a las ruedas | H66: Consumo energético del pozo a las ruedas | I66: Emisiones de GEI del tanque a las ruedas | J66: Emisiones de GEI del pozo a las ruedas | K66: Tipo de combustible | L66: Consumo de combustible (l) | M66: Consumo energético del tanque a las ruedas | N66: Consumo energético del pozo a las ruedas | O66: Emisiones de GEI del tanque a las ruedas | P66: Emisiones de GEI del pozo a las ruedas | Q66: Fuente de energía - 1 | R66: Consumo fuente de energía - 1 | T66: Consumo energético directo - fuente de energía 1 | U66: Consumo energético total - fuente de energía 1 | V66: Emisiones de GEI directas - fuente de energía 1 | W66: Emisiones de GEI totales - fuente de energía 1 | X66: Fuente de energía - 2 | Y66: Consumo fuente de energía - 2 | AA66: Consumo energético directo - fuente de energía 2 | AB66: Consumo energético total - fuente de energía 2 | AC66: Emisiones de GEI directas - fuente de energía 2 | AD66: Emisiones de GEI totales - fuente de energía 2 | AE66: Fuente de energía - 3 | AF66: Consumo fuente de energía - 3 | AH66: Consumo energético directo - fuente de energía 3 | AI66: Consumo energético total - fuente de energía 3 | AJ66: Emisiones de GEI directas - fuente de energía 3 | AK66: Emisiones de GEI totales - fuente de energía 3 | AL66: Consumo energético directo | AM66: Consumo energético total | AN66: Emisiones de GEI directas | AO66: Emisiones de GEI totales | AP66: Consumo energético del tanque a las ruedas | AQ66: Consumo energético del pozo a las ruedas | AR66: Emisiones de GEI del tanque a las ruedas | AS66: Emisiones de GEI del pozo a las ruedas | AT66: Consumo energético del tanque a las ruedas | AU66: Consumo energético del pozo a las ruedas | AV66: Emisiones de GEI del tanque a las ruedas | AW66: Emisiones de GEI del pozo a las ruedas | AX66: Alcance 1 | AY66: Alcance 2 | AZ66: Alcance 3. Categoría 3 | BA66: Alcance 3. Categoría 4 | BB66: Alcance 3. Categoría 9
A67: 1 | G67: --- | H67: --- | I67: =IFERROR(F67*VLOOKUP(E67,t_DEFRA,3,0),0) -> 0 | J67: =I67+IFERROR(F67*VLOOKUP(E67,t_DEFRA,5,0),0) -> 0 | M67: --- | N67: --- | O67: =IFERROR(L67*VLOOKUP(K67,t_DEFRA,3,0),0) -> 0 | P67: =O67+IFERROR(L67*VLOOKUP(K67,t_DEFRA,5,0),0) -> 0 | S67: l. | T67: --- | U67: --- | V67: =IFERROR(R67*VLOOKUP(Q67,t_DEFRA,3,0),0) -> 0 | W67: 0 | Z67: l. | AA67: --- | AB67: --- | AC67: =IFERROR(Y67*VLOOKUP(X67,t_DEFRA,3,0),0) -> 0 | AD67: 0 | AG67: l. | AH67: --- | AI67: --- | AJ67: =IFERROR(AF67*VLOOKUP(AE67,t_DEFRA,3,0),0) -> 0 | AK67: 0 | AL67: --- | AM67: --- | AN67: =V67+AC67+AJ67 -> 0 | AO67: =W67+AD67+AK67 -> 0 | AP67: =IFERROR(G67+M67,"---") -> --- | AQ67: =IFERROR(H67+N67,"---") -> --- | AR67: 0 | AS67: 0 | AT67: =IFERROR(AL67+AP67,"---") -> --- | AU67: =IFERROR(AM67+AQ67,"---") -> --- | AV67: 0 | AW67: 0 | AX67: =IF(C67="Propia",AV67,0) -> 0 | AY67: 0 | AZ67: =IF(C67="Propia",AW67-AV67,0) -> 0 | BA67: =IF(AND(C67="Subcontratada",D67="Upstream"),AV67,0) -> 0 | BB67: =IF(AND(C67="Subcontratada",D67="Downstream"),AV67,0) -> 0
A68: 2 | G68: --- | H68: --- | I68: 0 | J68: 0 | M68: --- | N68: --- | O68: 0 | P68: 0 | S68: l. | T68: --- | U68: --- | V68: 0 | W68: 0 | Z68: l. | AA68: --- | AB68: --- | AC68: 0 | AD68: 0 | AG68: l. | AH68: --- | AI68: --- | AJ68: 0 | AK68: 0 | AL68: --- | AM68: --- | AN68: =V68+AC68+AJ68 -> 0 | AO68: 0 | AP68: =IFERROR(G68+M68,"---") -> --- | AQ68: --- | AR68: 0 | AS68: 0 | AT68: =IFERROR(AL68+AP68,"---") -> --- | AU68: --- | AV68: 0 | AW68: 0 | AX68: 0 | AY68: 0 | AZ68: 0 | BA68: 0 | BB68: 0
A69: 3 | G69: --- | H69: --- | I69: 0 | J69: 0 | M69: --- | N69: --- | O69: 0 | P69: 0 | S69: l. | T69: --- | U69: --- | V69: 0 | W69: 0 | Z69: l. | AA69: --- | AB69: --- | AC69: 0 | AD69: 0 | AG69: l. | AH69: --- | AI69: --- | AJ69: 0 | AK69: 0 | AL69: --- | AM69: --- | AN69: 0 | AO69: 0 | AP69: --- | AQ69: --- | AR69: 0 | AS69: 0 | AT69: --- | AU69: --- | AV69: 0 | AW69: 0 | AX69: 0 | AY69: 0 | AZ69: 0 | BA69: 0 | BB69: 0
A70: 4 | G70: --- | H70: --- | I70: 0 | J70: 0 | M70: --- | N70: --- | O70: 0 | P70: 0 | S70: l. | T70: --- | U70: --- | V70: 0 | W70: 0 | Z70: l. | AA70: --- | AB70: --- | AC70: 0 | AD70: 0 | AG70: l. | AH70: --- | AI70: --- | AJ70: 0 | AK70: 0 | AL70: --- | AM70: --- | AN70: 0 | AO70: 0 | AP70: --- | AQ70: --- | AR70: 0 | AS70: 0 | AT70: --- | AU70: --- | AV70: 0 | AW70: 0 | AX70: 0 | AY70: 0 | AZ70: 0 | BA70: 0 | BB70: 0
A71: 5 | G71: --- | H71: --- | I71: 0 | J71: 0 | M71: --- | N71: --- | O71: 0 | P71: 0 | S71: l. | T71: --- | U71: --- | V71: 0 | W71: 0 | Z71: l. | AA71: --- | AB71: --- | AC71: 0 | AD71: 0 | AG71: l. | AH71: --- | AI71: --- | AJ71: 0 | AK71: 0 | AL71: --- | AM71: --- | AN71: 0 | AO71: 0 | AP71: --- | AQ71: --- | AR71: 0 | AS71: 0 | AT71: --- | AU71: --- | AV71: 0 | AW71: 0 | AX71: 0 | AY71: 0 | AZ71: 0 | BA71: 0 | BB71: 0
A72: 6 | G72: --- | H72: --- | I72: 0 | J72: 0 | M72: --- | N72: --- | O72: 0 | P72: 0 | S72: l. | T72: --- | U72: --- | V72: 0 | W72: 0 | Z72: l. | AA72: --- | AB72: --- | AC72: 0 | AD72: 0 | AG72: l. | AH72: --- | AI72: --- | AJ72: 0 | AK72: 0 | AL72: --- | AM72: --- | AN72: 0 | AO72: 0 | AP72: --- | AQ72: --- | AR72: 0 | AS72: 0 | AT72: --- | AU72: --- | AV72: 0 | AW72: 0 | AX72: 0 | AY72: 0 | AZ72: 0 | BA72: 0 | BB72: 0
A73: 7 | G73: --- | H73: --- | I73: 0 | J73: 0 | M73: --- | N73: --- | O73: 0 | P73: 0 | S73: l. | T73: --- | U73: --- | V73: 0 | W73: 0 | Z73: l. | AA73: --- | AB73: --- | AC73: 0 | AD73: 0 | AG73: l. | AH73: --- | AI73: --- | AJ73: 0 | AK73: 0 | AL73: --- | AM73: --- | AN73: 0 | AO73: 0 | AP73: --- | AQ73: --- | AR73: 0 | AS73: 0 | AT73: --- | AU73: --- | AV73: 0 | AW73: 0 | AX73: 0 | AY73: 0 | AZ73: 0 | BA73: 0 | BB73: 0
A74: 8 | G74: --- | H74: --- | I74: 0 | J74: 0 | M74: --- | N74: --- | O74: 0 | P74: 0 | S74: l. | T74: --- | U74: --- | V74: 0 | W74: 0 | Z74: l. | AA74: --- | AB74: --- | AC74: 0 | AD74: 0 | AG74: l. | AH74: --- | AI74: --- | AJ74: 0 | AK74: 0 | AL74: --- | AM74: --- | AN74: 0 | AO74: 0 | AP74: --- | AQ74: --- | AR74: 0 | AS74: 0 | AT74: --- | AU74: --- | AV74: 0 | AW74: 0 | AX74: 0 | AY74: 0 | AZ74: 0 | BA74: 0 | BB74: 0
A75: 9 | G75: --- | H75: --- | I75: 0 | J75: 0 | M75: --- | N75: --- | O75: 0 | P75: 0 | S75: l. | T75: --- | U75: --- | V75: 0 | W75: 0 | Z75: l. | AA75: --- | AB75: --- | AC75: 0 | AD75: 0 | AG75: l. | AH75: --- | AI75: --- | AJ75: 0 | AK75: 0 | AL75: --- | AM75: --- | AN75: 0 | AO75: 0 | AP75: --- | AQ75: --- | AR75: 0 | AS75: 0 | AT75: --- | AU75: --- | AV75: 0 | AW75: 0 | AX75: 0 | AY75: 0 | AZ75: 0 | BA75: 0 | BB75: 0
A76: 10 | G76: --- | H76: --- | I76: 0 | J76: 0 | M76: --- | N76: --- | O76: 0 | P76: 0 | S76: l. | T76: --- | U76: --- | V76: 0 | W76: 0 | Z76: l. | AA76: --- | AB76: --- | AC76: 0 | AD76: 0 | AG76: l. | AH76: --- | AI76: --- | AJ76: 0 | AK76: 0 | AL76: --- | AM76: --- | AN76: 0 | AO76: 0 | AP76: --- | AQ76: --- | AR76: 0 | AS76: 0 | AT76: --- | AU76: --- | AV76: 0 | AW76: 0 | AX76: 0 | AY76: 0 | AZ76: 0 | BA76: 0 | BB76: 0
A77: 11 | G77: --- | H77: --- | I77: 0 | J77: 0 | M77: --- | N77: --- | O77: 0 | P77: 0 | S77: l. | T77: --- | U77: --- | V77: 0 | W77: 0 | Z77: l. | AA77: --- | AB77: --- | AC77: 0 | AD77: 0 | AG77: l. | AH77: --- | AI77: --- | AJ77: 0 | AK77: 0 | AL77: --- | AM77: --- | AN77: 0 | AO77: 0 | AP77: --- | AQ77: --- | AR77: 0 | AS77: 0 | AT77: --- | AU77: --- | AV77: 0 | AW77: 0 | AX77: 0 | AY77: 0 | AZ77: 0 | BA77: 0 | BB77: 0
A78: 12 | G78: --- | H78: --- | I78: 0 | J78: 0 | M78: --- | N78: --- | O78: 0 | P78: 0 | S78: l. | T78: --- | U78: --- | V78: 0 | W78: 0 | Z78: l. | AA78: --- | AB78: --- | AC78: 0 | AD78: 0 | AG78: l. | AH78: --- | AI78: --- | AJ78: 0 | AK78: 0 | AL78: --- | AM78: --- | AN78: 0 | AO78: 0 | AP78: --- | AQ78: --- | AR78: 0 | AS78: 0 | AT78: --- | AU78: --- | AV78: 0 | AW78: 0 | AX78: 0 | AY78: 0 | AZ78: 0 | BA78: 0 | BB78: 0
A79: 13 | G79: --- | H79: --- | I79: 0 | J79: 0 | M79: --- | N79: --- | O79: 0 | P79: 0 | S79: l. | T79: --- | U79: --- | V79: 0 | W79: 0 | Z79: l. | AA79: --- | AB79: --- | AC79: 0 | AD79: 0 | AG79: l. | AH79: --- | AI79: --- | AJ79: 0 | AK79: 0 | AL79: --- | AM79: --- | AN79: 0 | AO79: 0 | AP79: --- | AQ79: --- | AR79: 0 | AS79: 0 | AT79: --- | AU79: --- | AV79: 0 | AW79: 0 | AX79: 0 | AY79: 0 | AZ79: 0 | BA79: 0 | BB79: 0
A80: 14 | G80: --- | H80: --- | I80: 0 | J80: 0 | M80: --- | N80: --- | O80: 0 | P80: 0 | S80: l. | T80: --- | U80: --- | V80: 0 | W80: 0 | Z80: l. | AA80: --- | AB80: --- | AC80: 0 | AD80: 0 | AG80: l. | AH80: --- | AI80: --- | AJ80: 0 | AK80: 0 | AL80: --- | AM80: --- | AN80: 0 | AO80: 0 | AP80: --- | AQ80: --- | AR80: 0 | AS80: 0 | AT80: --- | AU80: --- | AV80: 0 | AW80: 0 | AX80: 0 | AY80: 0 | AZ80: 0 | BA80: 0 | BB80: 0
A81: 15 | G81: --- | H81: --- | I81: 0 | J81: 0 | M81: --- | N81: --- | O81: 0 | P81: 0 | S81: l. | T81: --- | U81: --- | V81: 0 | W81: 0 | Z81: l. | AA81: --- | AB81: --- | AC81: 0 | AD81: 0 | AG81: l. | AH81: --- | AI81: --- | AJ81: 0 | AK81: 0 | AL81: --- | AM81: --- | AN81: 0 | AO81: 0 | AP81: --- | AQ81: --- | AR81: 0 | AS81: 0 | AT81: --- | AU81: --- | AV81: 0 | AW81: 0 | AX81: 0 | AY81: 0 | AZ81: 0 | BA81: 0 | BB81: 0
A82: 16 | G82: --- | H82: --- | I82: 0 | J82: 0 | M82: --- | N82: --- | O82: 0 | P82: 0 | S82: l. | T82: --- | U82: --- | V82: 0 | W82: 0 | Z82: l. | AA82: --- | AB82: --- | AC82: 0 | AD82: 0 | AG82: l. | AH82: --- | AI82: --- | AJ82: 0 | AK82: 0 | AL82: --- | AM82: --- | AN82: 0 | AO82: 0 | AP82: --- | AQ82: --- | AR82: 0 | AS82: 0 | AT82: --- | AU82: --- | AV82: 0 | AW82: 0 | AX82: 0 | AY82: 0 | AZ82: 0 | BA82: 0 | BB82: 0
A83: 17 | G83: --- | H83: --- | I83: 0 | J83: 0 | M83: --- | N83: --- | O83: 0 | P83: 0 | S83: l. | T83: --- | U83: --- | V83: 0 | W83: 0 | Z83: l. | AA83: --- | AB83: --- | AC83: 0 | AD83: 0 | AG83: l. | AH83: --- | AI83: --- | AJ83: 0 | AK83: 0 | AL83: --- | AM83: --- | AN83: 0 | AO83: 0 | AP83: --- | AQ83: --- | AR83: 0 | AS83: 0 | AT83: --- | AU83: --- | AV83: 0 | AW83: 0 | AX83: 0 | AY83: 0 | AZ83: 0 | BA83: 0 | BB83: 0
A84: 18 | G84: --- | H84: --- | I84: 0 | J84: 0 | M84: --- | N84: --- | O84: 0 | P84: 0 | S84: l. | T84: --- | U84: --- | V84: 0 | W84: 0 | Z84: l. | AA84: --- | AB84: --- | AC84: 0 | AD84: 0 | AG84: l. | AH84: --- | AI84: --- | AJ84: 0 | AK84: 0 | AL84: --- | AM84: --- | AN84: 0 | AO84: 0 | AP84: --- | AQ84: --- | AR84: 0 | AS84: 0 | AT84: --- | AU84: --- | AV84: 0 | AW84: 0 | AX84: 0 | AY84: 0 | AZ84: 0 | BA84: 0 | BB84: 0
A85: 19 | G85: --- | H85: --- | I85: 0 | J85: 0 | M85: --- | N85: --- | O85: 0 | P85: 0 | S85: l. | T85: --- | U85: --- | V85: 0 | W85: 0 | Z85: l. | AA85: --- | AB85: --- | AC85: 0 | AD85: 0 | AG85: l. | AH85: --- | AI85: --- | AJ85: 0 | AK85: 0 | AL85: --- | AM85: --- | AN85: 0 | AO85: 0 | AP85: --- | AQ85: --- | AR85: 0 | AS85: 0 | AT85: --- | AU85: --- | AV85: 0 | AW85: 0 | AX85: 0 | AY85: 0 | AZ85: 0 | BA85: 0 | BB85: 0
A86: 20 | G86: --- | H86: --- | I86: 0 | J86: 0 | M86: --- | N86: --- | O86: 0 | P86: 0 | S86: l. | T86: --- | U86: --- | V86: 0 | W86: 0 | Z86: l. | AA86: --- | AB86: --- | AC86: 0 | AD86: 0 | AG86: l. | AH86: --- | AI86: --- | AJ86: 0 | AK86: 0 | AL86: --- | AM86: --- | AN86: 0 | AO86: 0 | AP86: --- | AQ86: --- | AR86: 0 | AS86: 0 | AT86: --- | AU86: --- | AV86: 0 | AW86: 0 | AX86: 0 | AY86: 0 | AZ86: 0 | BA86: 0 | BB86: 0
A87: 21 | G87: --- | H87: --- | I87: 0 | J87: 0 | M87: --- | N87: --- | O87: 0 | P87: 0 | S87: l. | T87: --- | U87: --- | V87: 0 | W87: 0 | Z87: l. | AA87: --- | AB87: --- | AC87: 0 | AD87: 0 | AG87: l. | AH87: --- | AI87: --- | AJ87: 0 | AK87: 0 | AL87: --- | AM87: --- | AN87: 0 | AO87: 0 | AP87: --- | AQ87: --- | AR87: 0 | AS87: 0 | AT87: --- | AU87: --- | AV87: 0 | AW87: 0 | AX87: 0 | AY87: 0 | AZ87: 0 | BA87: 0 | BB87: 0
A88: 22 | G88: --- | H88: --- | I88: 0 | J88: 0 | M88: --- | N88: --- | O88: 0 | P88: 0 | S88: l. | T88: --- | U88: --- | V88: 0 | W88: 0 | Z88: l. | AA88: --- | AB88: --- | AC88: 0 | AD88: 0 | AG88: l. | AH88: --- | AI88: --- | AJ88: 0 | AK88: 0 | AL88: --- | AM88: --- | AN88: 0 | AO88: 0 | AP88: --- | AQ88: --- | AR88: 0 | AS88: 0 | AT88: --- | AU88: --- | AV88: 0 | AW88: 0 | AX88: 0 | AY88: 0 | AZ88: 0 | BA88: 0 | BB88: 0
A89: 23 | G89: --- | H89: --- | I89: 0 | J89: 0 | M89: --- | N89: --- | O89: 0 | P89: 0 | S89: l. | T89: --- | U89: --- | V89: 0 | W89: 0 | Z89: l. | AA89: --- | AB89: --- | AC89: 0 | AD89: 0 | AG89: l. | AH89: --- | AI89: --- | AJ89: 0 | AK89: 0 | AL89: --- | AM89: --- | AN89: 0 | AO89: 0 | AP89: --- | AQ89: --- | AR89: 0 | AS89: 0 | AT89: --- | AU89: --- | AV89: 0 | AW89: 0 | AX89: 0 | AY89: 0 | AZ89: 0 | BA89: 0 | BB89: 0
A90: 24 | G90: --- | H90: --- | I90: 0 | J90: 0 | M90: --- | N90: --- | O90: 0 | P90: 0 | S90: l. | T90: --- | U90: --- | V90: 0 | W90: 0 | Z90: l. | AA90: --- | AB90: --- | AC90: 0 | AD90: 0 | AG90: l. | AH90: --- | AI90: --- | AJ90: 0 | AK90: 0 | AL90: --- | AM90: --- | AN90: 0 | AO90: 0 | AP90: --- | AQ90: --- | AR90: 0 | AS90: 0 | AT90: --- | AU90: --- | AV90: 0 | AW90: 0 | AX90: 0 | AY90: 0 | AZ90: 0 | BA90: 0 | BB90: 0
A91: 25 | G91: --- | H91: --- | I91: 0 | J91: 0 | M91: --- | N91: --- | O91: 0 | P91: 0 | S91: l. | T91: --- | U91: --- | V91: 0 | W91: 0 | Z91: l. | AA91: --- | AB91: --- | AC91: 0 | AD91: 0 | AG91: l. | AH91: --- | AI91: --- | AJ91: 0 | AK91: 0 | AL91: --- | AM91: --- | AN91: 0 | AO91: 0 | AP91: --- | AQ91: --- | AR91: 0 | AS91: 0 | AT91: --- | AU91: --- | AV91: 0 | AW91: 0 | AX91: 0 | AY91: 0 | AZ91: 0 | BA91: 0 | BB91: 0
A92: 26 | G92: --- | H92: --- | I92: 0 | J92: 0 | M92: --- | N92: --- | O92: 0 | P92: 0 | S92: l. | T92: --- | U92: --- | V92: 0 | W92: 0 | Z92: l. | AA92: --- | AB92: --- | AC92: 0 | AD92: 0 | AG92: l. | AH92: --- | AI92: --- | AJ92: 0 | AK92: 0 | AL92: --- | AM92: --- | AN92: 0 | AO92: 0 | AP92: --- | AQ92: --- | AR92: 0 | AS92: 0 | AT92: --- | AU92: --- | AV92: 0 | AW92: 0 | AX92: 0 | AY92: 0 | AZ92: 0 | BA92: 0 | BB92: 0
A93: 27 | G93: --- | H93: --- | I93: 0 | J93: 0 | M93: --- | N93: --- | O93: 0 | P93: 0 | S93: l. | T93: --- | U93: --- | V93: 0 | W93: 0 | Z93: l. | AA93: --- | AB93: --- | AC93: 0 | AD93: 0 | AG93: l. | AH93: --- | AI93: --- | AJ93: 0 | AK93: 0 | AL93: --- | AM93: --- | AN93: 0 | AO93: 0 | AP93: --- | AQ93: --- | AR93: 0 | AS93: 0 | AT93: --- | AU93: --- | AV93: 0 | AW93: 0 | AX93: 0 | AY93: 0 | AZ93: 0 | BA93: 0 | BB93: 0
A94: 28 | G94: --- | H94: --- | I94: 0 | J94: 0 | M94: --- | N94: --- | O94: 0 | P94: 0 | S94: l. | T94: --- | U94: --- | V94: 0 | W94: 0 | Z94: l. | AA94: --- | AB94: --- | AC94: 0 | AD94: 0 | AG94: l. | AH94: --- | AI94: --- | AJ94: 0 | AK94: 0 | AL94: --- | AM94: --- | AN94: 0 | AO94: 0 | AP94: --- | AQ94: --- | AR94: 0 | AS94: 0 | AT94: --- | AU94: --- | AV94: 0 | AW94: 0 | AX94: 0 | AY94: 0 | AZ94: 0 | BA94: 0 | BB94: 0
A95: 29 | G95: --- | H95: --- | I95: 0 | J95: 0 | M95: --- | N95: --- | O95: 0 | P95: 0 | S95: l. | T95: --- | U95: --- | V95: 0 | W95: 0 | Z95: l. | AA95: --- | AB95: --- | AC95: 0 | AD95: 0 | AG95: l. | AH95: --- | AI95: --- | AJ95: 0 | AK95: 0 | AL95: --- | AM95: --- | AN95: 0 | AO95: 0 | AP95: --- | AQ95: --- | AR95: 0 | AS95: 0 | AT95: --- | AU95: --- | AV95: 0 | AW95: 0 | AX95: 0 | AY95: 0 | AZ95: 0 | BA95: 0 | BB95: 0
A96: 30 | G96: --- | H96: --- | I96: 0 | J96: 0 | M96: --- | N96: --- | O96: 0 | P96: 0 | S96: l. | T96: --- | U96: --- | V96: 0 | W96: 0 | Z96: l. | AA96: --- | AB96: --- | AC96: 0 | AD96: 0 | AG96: l. | AH96: --- | AI96: --- | AJ96: 0 | AK96: 0 | AL96: --- | AM96: --- | AN96: 0 | AO96: 0 | AP96: --- | AQ96: --- | AR96: 0 | AS96: 0 | AT96: --- | AU96: --- | AV96: 0 | AW96: 0 | AX96: 0 | AY96: 0 | AZ96: 0 | BA96: 0 | BB96: 0
A97: 31 | G97: --- | H97: --- | I97: 0 | J97: 0 | M97: --- | N97: --- | O97: 0 | P97: 0 | S97: l. | T97: --- | U97: --- | V97: 0 | W97: 0 | Z97: l. | AA97: --- | AB97: --- | AC97: 0 | AD97: 0 | AG97: l. | AH97: --- | AI97: --- | AJ97: 0 | AK97: 0 | AL97: --- | AM97: --- | AN97: 0 | AO97: 0 | AP97: --- | AQ97: --- | AR97: 0 | AS97: 0 | AT97: --- | AU97: --- | AV97: 0 | AW97: 0 | AX97: 0 | AY97: 0 | AZ97: 0 | BA97: 0 | BB97: 0
A98: 32 | G98: --- | H98: --- | I98: 0 | J98: 0 | M98: --- | N98: --- | O98: 0 | P98: 0 | S98: l. | T98: --- | U98: --- | V98: 0 | W98: 0 | Z98: l. | AA98: --- | AB98: --- | AC98: 0 | AD98: 0 | AG98: l. | AH98: --- | AI98: --- | AJ98: 0 | AK98: 0 | AL98: --- | AM98: --- | AN98: 0 | AO98: 0 | AP98: --- | AQ98: --- | AR98: 0 | AS98: 0 | AT98: --- | AU98: --- | AV98: 0 | AW98: 0 | AX98: 0 | AY98: 0 | AZ98: 0 | BA98: 0 | BB98: 0
A99: 33 | G99: --- | H99: --- | I99: 0 | J99: 0 | M99: --- | N99: --- | O99: 0 | P99: 0 | S99: l. | T99: --- | U99: --- | V99: =IFERROR(R99*VLOOKUP(Q99,t_DEFRA,3,0),0) -> 0 | W99: 0 | Z99: l. | AA99: --- | AB99: --- | AC99: =IFERROR(Y99*VLOOKUP(X99,t_DEFRA,3,0),0) -> 0 | AD99: 0 | AG99: l. | AH99: --- | AI99: --- | AJ99: =IFERROR(AF99*VLOOKUP(AE99,t_DEFRA,3,0),0) -> 0 | AK99: 0 | AL99: --- | AM99: --- | AN99: 0 | AO99: 0 | AP99: --- | AQ99: --- | AR99: 0 | AS99: 0 | AT99: --- | AU99: --- | AV99: 0 | AW99: 0 | AX99: 0 | AY99: 0 | AZ99: 0 | BA99: 0 | BB99: 0
A100: 34 | G100: --- | H100: --- | I100: 0 | J100: 0 | M100: --- | N100: --- | O100: 0 | P100: 0 | S100: l. | T100: --- | U100: --- | V100: 0 | W100: 0 | Z100: l. | AA100: --- | AB100: --- | AC100: 0 | AD100: 0 | AG100: l. | AH100: --- | AI100: --- | AJ100: 0 | AK100: 0 | AL100: --- | AM100: --- | AN100: 0 | AO100: 0 | AP100: --- | AQ100: --- | AR100: 0 | AS100: 0 | AT100: --- | AU100: --- | AV100: 0 | AW100: 0 | AX100: 0 | AY100: 0 | AZ100: 0 | BA100: 0 | BB100: 0
A101: 35 | G101: --- | H101: --- | I101: 0 | J101: 0 | M101: --- | N101: --- | O101: 0 | P101: 0 | S101: l. | T101: --- | U101: --- | V101: 0 | W101: 0 | Z101: l. | AA101: --- | AB101: --- | AC101: 0 | AD101: 0 | AG101: l. | AH101: --- | AI101: --- | AJ101: 0 | AK101: 0 | AL101: --- | AM101: --- | AN101: 0 | AO101: 0 | AP101: --- | AQ101: --- | AR101: 0 | AS101: 0 | AT101: --- | AU101: --- | AV101: 0 | AW101: 0 | AX101: 0 | AY101: 0 | AZ101: 0 | BA101: 0 | BB101: 0
A102: 36 | G102: --- | H102: --- | I102: 0 | J102: 0 | M102: --- | N102: --- | O102: 0 | P102: 0 | S102: l. | T102: --- | U102: --- | V102: 0 | W102: 0 | Z102: l. | AA102: --- | AB102: --- | AC102: 0 | AD102: 0 | AG102: l. | AH102: --- | AI102: --- | AJ102: 0 | AK102: 0 | AL102: --- | AM102: --- | AN102: 0 | AO102: 0 | AP102: --- | AQ102: --- | AR102: 0 | AS102: 0 | AT102: --- | AU102: --- | AV102: 0 | AW102: 0 | AX102: 0 | AY102: 0 | AZ102: 0 | BA102: 0 | BB102: 0
A103: 37 | G103: --- | H103: --- | I103: 0 | J103: 0 | M103: --- | N103: --- | O103: 0 | P103: 0 | S103: l. | T103: --- | U103: --- | V103: 0 | W103: 0 | Z103: l. | AA103: --- | AB103: --- | AC103: 0 | AD103: 0 | AG103: l. | AH103: --- | AI103: --- | AJ103: 0 | AK103: 0 | AL103: --- | AM103: --- | AN103: 0 | AO103: 0 | AP103: --- | AQ103: --- | AR103: 0 | AS103: 0 | AT103: --- | AU103: --- | AV103: 0 | AW103: 0 | AX103: 0 | AY103: 0 | AZ103: 0 | BA103: 0 | BB103: 0
A104: 38 | G104: --- | H104: --- | I104: 0 | J104: 0 | M104: --- | N104: --- | O104: 0 | P104: 0 | S104: l. | T104: --- | U104: --- | V104: 0 | W104: 0 | Z104: l. | AA104: --- | AB104: --- | AC104: 0 | AD104: 0 | AG104: l. | AH104: --- | AI104: --- | AJ104: 0 | AK104: 0 | AL104: --- | AM104: --- | AN104: 0 | AO104: 0 | AP104: --- | AQ104: --- | AR104: 0 | AS104: 0 | AT104: --- | AU104: --- | AV104: 0 | AW104: 0 | AX104: 0 | AY104: 0 | AZ104: 0 | BA104: 0 | BB104: 0
A105: 39 | G105: --- | H105: --- | I105: 0 | J105: 0 | M105: --- | N105: --- | O105: 0 | P105: 0 | S105: l. | T105: --- | U105: --- | V105: 0 | W105: 0 | Z105: l. | AA105: --- | AB105: --- | AC105: 0 | AD105: 0 | AG105: l. | AH105: --- | AI105: --- | AJ105: 0 | AK105: 0 | AL105: --- | AM105: --- | AN105: 0 | AO105: 0 | AP105: --- | AQ105: --- | AR105: 0 | AS105: 0 | AT105: --- | AU105: --- | AV105: 0 | AW105: 0 | AX105: 0 | AY105: 0 | AZ105: 0 | BA105: 0 | BB105: 0
A106: 40 | G106: --- | H106: --- | I106: 0 | J106: 0 | M106: --- | N106: --- | O106: 0 | P106: 0 | S106: l. | T106: --- | U106: --- | V106: 0 | W106: 0 | Z106: l. | AA106: --- | AB106: --- | AC106: 0 | AD106: 0 | AG106: l. | AH106: --- | AI106: --- | AJ106: 0 | AK106: 0 | AL106: --- | AM106: --- | AN106: 0 | AO106: 0 | AP106: --- | AQ106: --- | AR106: 0 | AS106: 0 | AT106: --- | AU106: --- | AV106: 0 | AW106: 0 | AX106: 0 | AY106: 0 | AZ106: 0 | BA106: 0 | BB106: 0
A107: 41 | G107: --- | H107: --- | I107: 0 | J107: 0 | M107: --- | N107: --- | O107: 0 | P107: 0 | S107: l. | T107: --- | U107: --- | V107: 0 | W107: 0 | Z107: l. | AA107: --- | AB107: --- | AC107: 0 | AD107: 0 | AG107: l. | AH107: --- | AI107: --- | AJ107: 0 | AK107: 0 | AL107: --- | AM107: --- | AN107: 0 | AO107: 0 | AP107: --- | AQ107: --- | AR107: 0 | AS107: 0 | AT107: --- | AU107: --- | AV107: 0 | AW107: 0 | AX107: 0 | AY107: 0 | AZ107: 0 | BA107: 0 | BB107: 0
A108: 42 | G108: --- | H108: --- | I108: 0 | J108: 0 | M108: --- | N108: --- | O108: 0 | P108: 0 | S108: l. | T108: --- | U108: --- | V108: 0 | W108: 0 | Z108: l. | AA108: --- | AB108: --- | AC108: 0 | AD108: 0 | AG108: l. | AH108: --- | AI108: --- | AJ108: 0 | AK108: 0 | AL108: --- | AM108: --- | AN108: 0 | AO108: 0 | AP108: --- | AQ108: --- | AR108: 0 | AS108: 0 | AT108: --- | AU108: --- | AV108: 0 | AW108: 0 | AX108: 0 | AY108: 0 | AZ108: 0 | BA108: 0 | BB108: 0
A109: 43 | G109: --- | H109: --- | I109: 0 | J109: 0 | M109: --- | N109: --- | O109: 0 | P109: 0 | S109: l. | T109: --- | U109: --- | V109: 0 | W109: 0 | Z109: l. | AA109: --- | AB109: --- | AC109: 0 | AD109: 0 | AG109: l. | AH109: --- | AI109: --- | AJ109: 0 | AK109: 0 | AL109: --- | AM109: --- | AN109: 0 | AO109: 0 | AP109: --- | AQ109: --- | AR109: 0 | AS109: 0 | AT109: --- | AU109: --- | AV109: 0 | AW109: 0 | AX109: 0 | AY109: 0 | AZ109: 0 | BA109: 0 | BB109: 0
A110: 44 | G110: --- | H110: --- | I110: 0 | J110: 0 | M110: --- | N110: --- | O110: 0 | P110: 0 | S110: l. | T110: --- | U110: --- | V110: 0 | W110: 0 | Z110: l. | AA110: --- | AB110: --- | AC110: 0 | AD110: 0 | AG110: l. | AH110: --- | AI110: --- | AJ110: 0 | AK110: 0 | AL110: --- | AM110: --- | AN110: 0 | AO110: 0 | AP110: --- | AQ110: --- | AR110: 0 | AS110: 0 | AT110: --- | AU110: --- | AV110: 0 | AW110: 0 | AX110: 0 | AY110: 0 | AZ110: 0 | BA110: 0 | BB110: 0
A111: 45 | G111: --- | H111: --- | I111: 0 | J111: 0 | M111: --- | N111: --- | O111: 0 | P111: 0 | S111: l. | T111: --- | U111: --- | V111: 0 | W111: 0 | Z111: l. | AA111: --- | AB111: --- | AC111: 0 | AD111: 0 | AG111: l. | AH111: --- | AI111: --- | AJ111: 0 | AK111: 0 | AL111: --- | AM111: --- | AN111: 0 | AO111: 0 | AP111: --- | AQ111: --- | AR111: 0 | AS111: 0 | AT111: --- | AU111: --- | AV111: 0 | AW111: 0 | AX111: 0 | AY111: 0 | AZ111: 0 | BA111: 0 | BB111: 0
A112: 46 | G112: --- | H112: --- | I112: 0 | J112: 0 | M112: --- | N112: --- | O112: 0 | P112: 0 | S112: l. | T112: --- | U112: --- | V112: 0 | W112: 0 | Z112: l. | AA112: --- | AB112: --- | AC112: 0 | AD112: 0 | AG112: l. | AH112: --- | AI112: --- | AJ112: 0 | AK112: 0 | AL112: --- | AM112: --- | AN112: 0 | AO112: 0 | AP112: --- | AQ112: --- | AR112: 0 | AS112: 0 | AT112: --- | AU112: --- | AV112: 0 | AW112: 0 | AX112: 0 | AY112: 0 | AZ112: 0 | BA112: 0 | BB112: 0
A113: 47 | G113: --- | H113: --- | I113: 0 | J113: 0 | M113: --- | N113: --- | O113: 0 | P113: 0 | S113: l. | T113: --- | U113: --- | V113: 0 | W113: 0 | Z113: l. | AA113: --- | AB113: --- | AC113: 0 | AD113: 0 | AG113: l. | AH113: --- | AI113: --- | AJ113: 0 | AK113: 0 | AL113: --- | AM113: --- | AN113: 0 | AO113: 0 | AP113: --- | AQ113: --- | AR113: 0 | AS113: 0 | AT113: --- | AU113: --- | AV113: 0 | AW113: 0 | AX113: 0 | AY113: 0 | AZ113: 0 | BA113: 0 | BB113: 0
A114: 48 | G114: --- | H114: --- | I114: 0 | J114: 0 | M114: --- | N114: --- | O114: 0 | P114: 0 | S114: l. | T114: --- | U114: --- | V114: 0 | W114: 0 | Z114: l. | AA114: --- | AB114: --- | AC114: 0 | AD114: 0 | AG114: l. | AH114: --- | AI114: --- | AJ114: 0 | AK114: 0 | AL114: --- | AM114: --- | AN114: 0 | AO114: 0 | AP114: --- | AQ114: --- | AR114: 0 | AS114: 0 | AT114: --- | AU114: --- | AV114: 0 | AW114: 0 | AX114: 0 | AY114: 0 | AZ114: 0 | BA114: 0 | BB114: 0
A115: 49 | G115: --- | H115: --- | I115: 0 | J115: 0 | M115: --- | N115: --- | O115: 0 | P115: 0 | S115: l. | T115: --- | U115: --- | V115: 0 | W115: 0 | Z115: l. | AA115: --- | AB115: --- | AC115: 0 | AD115: 0 | AG115: l. | AH115: --- | AI115: --- | AJ115: 0 | AK115: 0 | AL115: --- | AM115: --- | AN115: 0 | AO115: 0 | AP115: --- | AQ115: --- | AR115: 0 | AS115: 0 | AT115: --- | AU115: --- | AV115: 0 | AW115: 0 | AX115: 0 | AY115: 0 | AZ115: 0 | BA115: 0 | BB115: 0
A116: 50 | G116: --- | H116: --- | I116: 0 | J116: 0 | M116: --- | N116: --- | O116: 0 | P116: 0 | S116: l. | T116: --- | U116: --- | V116: 0 | W116: 0 | Z116: l. | AA116: --- | AB116: --- | AC116: 0 | AD116: 0 | AG116: l. | AH116: --- | AI116: --- | AJ116: 0 | AK116: 0 | AL116: --- | AM116: --- | AN116: 0 | AO116: 0 | AP116: --- | AQ116: --- | AR116: 0 | AS116: 0 | AT116: --- | AU116: --- | AV116: 0 | AW116: 0 | AX116: 0 | AY116: 0 | AZ116: 0 | BA116: 0 | BB116: 0
F117: TOTAL | G117: =SUM(G67:G116) -> 0 | H117: =SUM(H67:H116) -> 0 | I117: 0 | J117: 0 | L117: TOTAL | M117: 0 | N117: 0 | O117: 0 | P117: 0 | AK117: TOTAL | AL117: 0 | AM117: 0 | AN117: 0 | AO117: 0 | AP117: 0 | AQ117: 0 | AR117: 0 | AS117: 0 | AT117: 0 | AU117: =SUM(AU67:AU116) -> 0 | AV117: 0 | AW117: 0 | AX117: 0 | AY117: 0 | AZ117: =SUM(AZ67:AZ116) -> 0 | BA117: =SUM(BA67:BA116) -> 0 | BB117: =SUM(BB67:BB116) -> 0
A121: RESULTADOS POR TIPO DE ACTIVIDAD - CONSUMO DE COMBUSTIBLE (FACTORES GHG - SÓLO EMISIONES DIRECTAS DEL SERVICIO DE TRANSPORTE)
B123: Denominación de la actividad | C123: Tipo de actividad (propia o subcontratada) | D123: Cadena de suministro (Upstream o Downstream) | E123: ACTIVIDADES DE PROPULSIÓN DEL VEHÍCULO | K123: ACTIVIDADES DE REFRIGERACIÓN DE LA CARGA | Q123: ACTIVIDADES DE ALMACENAMIENTO DE LA CARGA | AP123: RESULTADOS TOTALES DE LAS ACTIVIDADES DE TRANSPORTE DE CARGA | AT123: RESULTADOS TOTALES DE LAS ACTIVIDADES DE TRANSPORTE Y ALMACENAMIENTO DE CARGA | AX123: REPORTE GHG PROTOCOL
E124: Tipo de combustible | F124: Consumo de combustible (l) | G124: Consumo energético del tanque a las ruedas | H124: Consumo energético del pozo a las ruedas | I124: Emisiones de GEI del tanque a las ruedas | J124: Emisiones de GEI del pozo a las ruedas | K124: Tipo de combustible | L124: Consumo de combustible (l) | M124: Consumo energético del tanque a las ruedas | N124: Consumo energético del pozo a las ruedas | O124: Emisiones de GEI del tanque a las ruedas | P124: Emisiones de GEI del pozo a las ruedas | Q124: Fuente de energía - 1 | R124: Consumo fuente de energía - 1 | T124: Consumo energético directo - fuente de energía 1 | U124: Consumo energético total - fuente de energía 1 | V124: Emisiones de GEI directas - fuente de energía 1 | W124: Emisiones de GEI totales - fuente de energía 1 | X124: Fuente de energía - 2 | Y124: Consumo fuente de energía - 2 | AA124: Consumo energético directo - fuente de energía 2 | AB124: Consumo energético total - fuente de energía 2 | AC124: Emisiones de GEI directas - fuente de energía 2 | AD124: Emisiones de GEI totales - fuente de energía 2 | AE124: Fuente de energía - 3 | AF124: Consumo fuente de energía - 3 | AH124: Consumo energético directo - fuente de energía 3 | AI124: Consumo energético total - fuente de energía 3 | AJ124: Emisiones de GEI directas - fuente de energía 3 | AK124: Emisiones de GEI totales - fuente de energía 3 | AL124: Consumo energético directo | AM124: Consumo energético total | AN124: Emisiones de GEI directas | AO124: Emisiones de GEI totales | AP124: Consumo energético del tanque a las ruedas | AQ124: Consumo energético del pozo a las ruedas | AR124: Emisiones de GEI del tanque a las ruedas | AS124: Emisiones de GEI del pozo a las ruedas | AT124: Consumo energético del tanque a las ruedas | AU124: Consumo energético del pozo a las ruedas | AV124: Emisiones de GEI del tanque a las ruedas | AW124: Emisiones de GEI del pozo a las ruedas | AX124: Alcance 1 | AY124: Alcance 2 | AZ124: Alcance 3. Categoría 3 | BA124: Alcance 3. Categoría 4 | BB124: Alcance 3. Categoría 9
A125: 1 | G125: --- | H125: --- | I125: =IFERROR(F125*VLOOKUP(E125,t_GHG,2,0),0) -> 0 | J125: --- | M125: --- | N125: --- | O125: =IFERROR(L125*VLOOKUP(K125,t_GHG,2,0),0) -> 0 | P125: --- | S125: l. | T125: --- | U125: --- | V125: =IFERROR(R125*VLOOKUP(Q125,t_GHG,2,0),0) -> 0 | W125: --- | Z125: l. | AA125: --- | AB125: --- | AC125: =IFERROR(Y125*VLOOKUP(X125,t_GHG,2,0),0) -> 0 | AD125: --- | AG125: l. | AH125: --- | AI125: --- | AJ125: =IFERROR(AF125*VLOOKUP(AE125,t_GHG,2,0),0) -> 0 | AK125: --- | AL125: --- | AM125: --- | AN125: =V125+AC125+AJ125 -> 0 | AO125: --- | AP125: =IFERROR(G125+M125,"---") -> --- | AQ125: =IFERROR(H125+N125,"---") -> --- | AR125: 0 | AS125: --- | AT125: =IFERROR(AL125+AP125,"---") -> --- | AU125: =IFERROR(AM125+AQ125,"---") -> --- | AV125: 0 | AW125: --- | AX125: =IF(C125="Propia",AV125,0) -> 0 | AY125: 0 | AZ125: N/D | BA125: =IF(AND(C125="Subcontratada",D125="Upstream"),AV125,0) -> 0 | BB125: =IF(AND(C125="Subcontratada",D125="Downstream"),AV125,0) -> 0
A126: 2 | G126: --- | H126: --- | I126: 0 | J126: --- | M126: --- | N126: --- | O126: 0 | P126: --- | S126: l. | T126: --- | U126: --- | V126: 0 | W126: --- | Z126: l. | AA126: --- | AB126: --- | AC126: 0 | AD126: --- | AG126: l. | AH126: --- | AI126: --- | AJ126: 0 | AK126: --- | AL126: --- | AM126: --- | AN126: =V126+AC126+AJ126 -> 0 | AO126: --- | AP126: =IFERROR(G126+M126,"---") -> --- | AQ126: --- | AR126: 0 | AS126: --- | AT126: =IFERROR(AL126+AP126,"---") -> --- | AU126: --- | AV126: 0 | AW126: --- | AX126: 0 | AY126: 0 | AZ126: N/D | BA126: 0 | BB126: 0
A127: 3 | G127: --- | H127: --- | I127: 0 | J127: --- | M127: --- | N127: --- | O127: 0 | P127: --- | S127: l. | T127: --- | U127: --- | V127: 0 | W127: --- | Z127: l. | AA127: --- | AB127: --- | AC127: 0 | AD127: --- | AG127: l. | AH127: --- | AI127: --- | AJ127: 0 | AK127: --- | AL127: --- | AM127: --- | AN127: 0 | AO127: --- | AP127: --- | AQ127: --- | AR127: 0 | AS127: --- | AT127: --- | AU127: --- | AV127: 0 | AW127: --- | AX127: 0 | AY127: 0 | AZ127: N/D | BA127: =IF(AND(C127="Subcontratada",D127="Upstream"),AV127,0) -> 0 | BB127: 0
A128: 4 | G128: --- | H128: --- | I128: 0 | J128: --- | M128: --- | N128: --- | O128: 0 | P128: --- | S128: l. | T128: --- | U128: --- | V128: 0 | W128: --- | Z128: l. | AA128: --- | AB128: --- | AC128: 0 | AD128: --- | AG128: l. | AH128: --- | AI128: --- | AJ128: 0 | AK128: --- | AL128: --- | AM128: --- | AN128: 0 | AO128: --- | AP128: --- | AQ128: --- | AR128: 0 | AS128: --- | AT128: --- | AU128: --- | AV128: 0 | AW128: --- | AX128: 0 | AY128: 0 | AZ128: N/D | BA128: 0 | BB128: 0
A129: 5 | G129: --- | H129: --- | I129: 0 | J129: --- | M129: --- | N129: --- | O129: 0 | P129: --- | S129: l. | T129: --- | U129: --- | V129: 0 | W129: --- | Z129: l. | AA129: --- | AB129: --- | AC129: 0 | AD129: --- | AG129: l. | AH129: --- | AI129: --- | AJ129: 0 | AK129: --- | AL129: --- | AM129: --- | AN129: 0 | AO129: --- | AP129: --- | AQ129: --- | AR129: 0 | AS129: --- | AT129: --- | AU129: --- | AV129: 0 | AW129: --- | AX129: 0 | AY129: 0 | AZ129: N/D | BA129: 0 | BB129: 0
A130: 6 | G130: --- | H130: --- | I130: 0 | J130: --- | M130: --- | N130: --- | O130: 0 | P130: --- | S130: l. | T130: --- | U130: --- | V130: 0 | W130: --- | Z130: l. | AA130: --- | AB130: --- | AC130: 0 | AD130: --- | AG130: l. | AH130: --- | AI130: --- | AJ130: 0 | AK130: --- | AL130: --- | AM130: --- | AN130: 0 | AO130: --- | AP130: --- | AQ130: --- | AR130: 0 | AS130: --- | AT130: --- | AU130: --- | AV130: 0 | AW130: --- | AX130: 0 | AY130: 0 | AZ130: N/D | BA130: 0 | BB130: 0
A131: 7 | G131: --- | H131: --- | I131: 0 | J131: --- | M131: --- | N131: --- | O131: 0 | P131: --- | S131: l. | T131: --- | U131: --- | V131: 0 | W131: --- | Z131: l. | AA131: --- | AB131: --- | AC131: 0 | AD131: --- | AG131: l. | AH131: --- | AI131: --- | AJ131: 0 | AK131: --- | AL131: --- | AM131: --- | AN131: 0 | AO131: --- | AP131: --- | AQ131: --- | AR131: 0 | AS131: --- | AT131: --- | AU131: --- | AV131: 0 | AW131: --- | AX131: 0 | AY131: 0 | AZ131: N/D | BA131: 0 | BB131: 0
A132: 8 | G132: --- | H132: --- | I132: 0 | J132: --- | M132: --- | N132: --- | O132: 0 | P132: --- | S132: l. | T132: --- | U132: --- | V132: 0 | W132: --- | Z132: l. | AA132: --- | AB132: --- | AC132: 0 | AD132: --- | AG132: l. | AH132: --- | AI132: --- | AJ132: 0 | AK132: --- | AL132: --- | AM132: --- | AN132: 0 | AO132: --- | AP132: --- | AQ132: --- | AR132: 0 | AS132: --- | AT132: --- | AU132: --- | AV132: 0 | AW132: --- | AX132: 0 | AY132: 0 | AZ132: N/D | BA132: 0 | BB132: =IF(AND(C132="Subcontratada",D132="Downstream"),AV132,0) -> 0
A133: 9 | G133: --- | H133: --- | I133: 0 | J133: --- | M133: --- | N133: --- | O133: 0 | P133: --- | S133: l. | T133: --- | U133: --- | V133: 0 | W133: --- | Z133: l. | AA133: --- | AB133: --- | AC133: 0 | AD133: --- | AG133: l. | AH133: --- | AI133: --- | AJ133: 0 | AK133: --- | AL133: --- | AM133: --- | AN133: 0 | AO133: --- | AP133: --- | AQ133: --- | AR133: 0 | AS133: --- | AT133: --- | AU133: --- | AV133: 0 | AW133: --- | AX133: 0 | AY133: 0 | AZ133: N/D | BA133: 0 | BB133: 0
A134: 10 | G134: --- | H134: --- | I134: 0 | J134: --- | M134: --- | N134: --- | O134: 0 | P134: --- | S134: l. | T134: --- | U134: --- | V134: 0 | W134: --- | Z134: l. | AA134: --- | AB134: --- | AC134: 0 | AD134: --- | AG134: l. | AH134: --- | AI134: --- | AJ134: 0 | AK134: --- | AL134: --- | AM134: --- | AN134: 0 | AO134: --- | AP134: --- | AQ134: --- | AR134: 0 | AS134: --- | AT134: --- | AU134: --- | AV134: 0 | AW134: --- | AX134: 0 | AY134: 0 | AZ134: N/D | BA134: 0 | BB134: 0
A135: 11 | G135: --- | H135: --- | I135: 0 | J135: --- | M135: --- | N135: --- | O135: 0 | P135: --- | S135: l. | T135: --- | U135: --- | V135: 0 | W135: --- | Z135: l. | AA135: --- | AB135: --- | AC135: 0 | AD135: --- | AG135: l. | AH135: --- | AI135: --- | AJ135: 0 | AK135: --- | AL135: --- | AM135: --- | AN135: 0 | AO135: --- | AP135: --- | AQ135: --- | AR135: 0 | AS135: --- | AT135: --- | AU135: --- | AV135: 0 | AW135: --- | AX135: 0 | AY135: 0 | AZ135: N/D | BA135: 0 | BB135: 0
A136: 12 | G136: --- | H136: --- | I136: 0 | J136: --- | M136: --- | N136: --- | O136: 0 | P136: --- | S136: l. | T136: --- | U136: --- | V136: 0 | W136: --- | Z136: l. | AA136: --- | AB136: --- | AC136: 0 | AD136: --- | AG136: l. | AH136: --- | AI136: --- | AJ136: 0 | AK136: --- | AL136: --- | AM136: --- | AN136: 0 | AO136: --- | AP136: --- | AQ136: --- | AR136: 0 | AS136: --- | AT136: --- | AU136: --- | AV136: 0 | AW136: --- | AX136: 0 | AY136: 0 | AZ136: N/D | BA136: 0 | BB136: 0
A137: 13 | G137: --- | H137: --- | I137: 0 | J137: --- | M137: --- | N137: --- | O137: 0 | P137: --- | S137: l. | T137: --- | U137: --- | V137: 0 | W137: --- | Z137: l. | AA137: --- | AB137: --- | AC137: 0 | AD137: --- | AG137: l. | AH137: --- | AI137: --- | AJ137: 0 | AK137: --- | AL137: --- | AM137: --- | AN137: 0 | AO137: --- | AP137: --- | AQ137: --- | AR137: 0 | AS137: --- | AT137: --- | AU137: --- | AV137: 0 | AW137: --- | AX137: 0 | AY137: 0 | AZ137: N/D | BA137: 0 | BB137: 0
A138: 14 | G138: --- | H138: --- | I138: 0 | J138: --- | M138: --- | N138: --- | O138: 0 | P138: --- | S138: l. | T138: --- | U138: --- | V138: 0 | W138: --- | Z138: l. | AA138: --- | AB138: --- | AC138: 0 | AD138: --- | AG138: l. | AH138: --- | AI138: --- | AJ138: 0 | AK138: --- | AL138: --- | AM138: --- | AN138: 0 | AO138: --- | AP138: --- | AQ138: --- | AR138: 0 | AS138: --- | AT138: --- | AU138: --- | AV138: 0 | AW138: --- | AX138: 0 | AY138: 0 | AZ138: N/D | BA138: 0 | BB138: 0
A139: 15 | G139: --- | H139: --- | I139: 0 | J139: --- | M139: --- | N139: --- | O139: 0 | P139: --- | S139: l. | T139: --- | U139: --- | V139: 0 | W139: --- | Z139: l. | AA139: --- | AB139: --- | AC139: 0 | AD139: --- | AG139: l. | AH139: --- | AI139: --- | AJ139: 0 | AK139: --- | AL139: --- | AM139: --- | AN139: 0 | AO139: --- | AP139: --- | AQ139: --- | AR139: 0 | AS139: --- | AT139: --- | AU139: --- | AV139: 0 | AW139: --- | AX139: 0 | AY139: 0 | AZ139: N/D | BA139: 0 | BB139: 0
A140: 16 | G140: --- | H140: --- | I140: 0 | J140: --- | M140: --- | N140: --- | O140: 0 | P140: --- | S140: l. | T140: --- | U140: --- | V140: 0 | W140: --- | Z140: l. | AA140: --- | AB140: --- | AC140: 0 | AD140: --- | AG140: l. | AH140: --- | AI140: --- | AJ140: 0 | AK140: --- | AL140: --- | AM140: --- | AN140: 0 | AO140: --- | AP140: --- | AQ140: --- | AR140: 0 | AS140: --- | AT140: --- | AU140: --- | AV140: 0 | AW140: --- | AX140: 0 | AY140: 0 | AZ140: N/D | BA140: 0 | BB140: 0
A141: 17 | G141: --- | H141: --- | I141: 0 | J141: --- | M141: --- | N141: --- | O141: 0 | P141: --- | S141: l. | T141: --- | U141: --- | V141: 0 | W141: --- | Z141: l. | AA141: --- | AB141: --- | AC141: 0 | AD141: --- | AG141: l. | AH141: --- | AI141: --- | AJ141: 0 | AK141: --- | AL141: --- | AM141: --- | AN141: 0 | AO141: --- | AP141: --- | AQ141: --- | AR141: 0 | AS141: --- | AT141: --- | AU141: --- | AV141: 0 | AW141: --- | AX141: 0 | AY141: 0 | AZ141: N/D | BA141: 0 | BB141: 0
A142: 18 | G142: --- | H142: --- | I142: 0 | J142: --- | M142: --- | N142: --- | O142: 0 | P142: --- | S142: l. | T142: --- | U142: --- | V142: 0 | W142: --- | Z142: l. | AA142: --- | AB142: --- | AC142: 0 | AD142: --- | AG142: l. | AH142: --- | AI142: --- | AJ142: 0 | AK142: --- | AL142: --- | AM142: --- | AN142: 0 | AO142: --- | AP142: --- | AQ142: --- | AR142: 0 | AS142: --- | AT142: --- | AU142: --- | AV142: 0 | AW142: --- | AX142: 0 | AY142: 0 | AZ142: N/D | BA142: 0 | BB142: 0
A143: 19 | G143: --- | H143: --- | I143: 0 | J143: --- | M143: --- | N143: --- | O143: 0 | P143: --- | S143: l. | T143: --- | U143: --- | V143: 0 | W143: --- | Z143: l. | AA143: --- | AB143: --- | AC143: 0 | AD143: --- | AG143: l. | AH143: --- | AI143: --- | AJ143: 0 | AK143: --- | AL143: --- | AM143: --- | AN143: 0 | AO143: --- | AP143: --- | AQ143: --- | AR143: 0 | AS143: --- | AT143: --- | AU143: --- | AV143: 0 | AW143: --- | AX143: 0 | AY143: 0 | AZ143: N/D | BA143: 0 | BB143: 0
A144: 20 | G144: --- | H144: --- | I144: 0 | J144: --- | M144: --- | N144: --- | O144: 0 | P144: --- | S144: l. | T144: --- | U144: --- | V144: 0 | W144: --- | Z144: l. | AA144: --- | AB144: --- | AC144: 0 | AD144: --- | AG144: l. | AH144: --- | AI144: --- | AJ144: 0 | AK144: --- | AL144: --- | AM144: --- | AN144: 0 | AO144: --- | AP144: --- | AQ144: --- | AR144: 0 | AS144: --- | AT144: --- | AU144: --- | AV144: 0 | AW144: --- | AX144: 0 | AY144: 0 | AZ144: N/D | BA144: 0 | BB144: 0
A145: 21 | G145: --- | H145: --- | I145: 0 | J145: --- | M145: --- | N145: --- | O145: 0 | P145: --- | S145: l. | T145: --- | U145: --- | V145: 0 | W145: --- | Z145: l. | AA145: --- | AB145: --- | AC145: 0 | AD145: --- | AG145: l. | AH145: --- | AI145: --- | AJ145: 0 | AK145: --- | AL145: --- | AM145: --- | AN145: 0 | AO145: --- | AP145: --- | AQ145: --- | AR145: 0 | AS145: --- | AT145: --- | AU145: --- | AV145: 0 | AW145: --- | AX145: 0 | AY145: 0 | AZ145: N/D | BA145: 0 | BB145: 0
A146: 22 | G146: --- | H146: --- | I146: 0 | J146: --- | M146: --- | N146: --- | O146: 0 | P146: --- | S146: l. | T146: --- | U146: --- | V146: 0 | W146: --- | Z146: l. | AA146: --- | AB146: --- | AC146: 0 | AD146: --- | AG146: l. | AH146: --- | AI146: --- | AJ146: 0 | AK146: --- | AL146: --- | AM146: --- | AN146: 0 | AO146: --- | AP146: --- | AQ146: --- | AR146: 0 | AS146: --- | AT146: --- | AU146: --- | AV146: 0 | AW146: --- | AX146: 0 | AY146: 0 | AZ146: N/D | BA146: 0 | BB146: 0
A147: 23 | G147: --- | H147: --- | I147: 0 | J147: --- | M147: --- | N147: --- | O147: 0 | P147: --- | S147: l. | T147: --- | U147: --- | V147: 0 | W147: --- | Z147: l. | AA147: --- | AB147: --- | AC147: 0 | AD147: --- | AG147: l. | AH147: --- | AI147: --- | AJ147: 0 | AK147: --- | AL147: --- | AM147: --- | AN147: 0 | AO147: --- | AP147: --- | AQ147: --- | AR147: 0 | AS147: --- | AT147: --- | AU147: --- | AV147: 0 | AW147: --- | AX147: 0 | AY147: 0 | AZ147: N/D | BA147: 0 | BB147: 0
A148: 24 | G148: --- | H148: --- | I148: 0 | J148: --- | M148: --- | N148: --- | O148: 0 | P148: --- | S148: l. | T148: --- | U148: --- | V148: 0 | W148: --- | Z148: l. | AA148: --- | AB148: --- | AC148: 0 | AD148: --- | AG148: l. | AH148: --- | AI148: --- | AJ148: 0 | AK148: --- | AL148: --- | AM148: --- | AN148: 0 | AO148: --- | AP148: --- | AQ148: --- | AR148: 0 | AS148: --- | AT148: --- | AU148: --- | AV148: 0 | AW148: --- | AX148: 0 | AY148: 0 | AZ148: N/D | BA148: 0 | BB148: 0
A149: 25 | G149: --- | H149: --- | I149: 0 | J149: --- | M149: --- | N149: --- | O149: 0 | P149: --- | S149: l. | T149: --- | U149: --- | V149: 0 | W149: --- | Z149: l. | AA149: --- | AB149: --- | AC149: 0 | AD149: --- | AG149: l. | AH149: --- | AI149: --- | AJ149: 0 | AK149: --- | AL149: --- | AM149: --- | AN149: 0 | AO149: --- | AP149: --- | AQ149: --- | AR149: 0 | AS149: --- | AT149: --- | AU149: --- | AV149: 0 | AW149: --- | AX149: 0 | AY149: 0 | AZ149: N/D | BA149: 0 | BB149: 0
A150: 26 | G150: --- | H150: --- | I150: 0 | J150: --- | M150: --- | N150: --- | O150: 0 | P150: --- | S150: l. | T150: --- | U150: --- | V150: 0 | W150: --- | Z150: l. | AA150: --- | AB150: --- | AC150: 0 | AD150: --- | AG150: l. | AH150: --- | AI150: --- | AJ150: 0 | AK150: --- | AL150: --- | AM150: --- | AN150: 0 | AO150: --- | AP150: --- | AQ150: --- | AR150: 0 | AS150: --- | AT150: --- | AU150: --- | AV150: 0 | AW150: --- | AX150: 0 | AY150: 0 | AZ150: N/D | BA150: 0 | BB150: 0
A151: 27 | G151: --- | H151: --- | I151: 0 | J151: --- | M151: --- | N151: --- | O151: 0 | P151: --- | S151: l. | T151: --- | U151: --- | V151: 0 | W151: --- | Z151: l. | AA151: --- | AB151: --- | AC151: 0 | AD151: --- | AG151: l. | AH151: --- | AI151: --- | AJ151: 0 | AK151: --- | AL151: --- | AM151: --- | AN151: 0 | AO151: --- | AP151: --- | AQ151: --- | AR151: 0 | AS151: --- | AT151: --- | AU151: --- | AV151: 0 | AW151: --- | AX151: 0 | AY151: 0 | AZ151: N/D | BA151: 0 | BB151: 0
A152: 28 | G152: --- | H152: --- | I152: 0 | J152: --- | M152: --- | N152: --- | O152: 0 | P152: --- | S152: l. | T152: --- | U152: --- | V152: 0 | W152: --- | Z152: l. | AA152: --- | AB152: --- | AC152: 0 | AD152: --- | AG152: l. | AH152: --- | AI152: --- | AJ152: 0 | AK152: --- | AL152: --- | AM152: --- | AN152: 0 | AO152: --- | AP152: --- | AQ152: --- | AR152: 0 | AS152: --- | AT152: --- | AU152: --- | AV152: 0 | AW152: --- | AX152: 0 | AY152: 0 | AZ152: N/D | BA152: 0 | BB152: 0
A153: 29 | G153: --- | H153: --- | I153: 0 | J153: --- | M153: --- | N153: --- | O153: 0 | P153: --- | S153: l. | T153: --- | U153: --- | V153: 0 | W153: --- | Z153: l. | AA153: --- | AB153: --- | AC153: 0 | AD153: --- | AG153: l. | AH153: --- | AI153: --- | AJ153: 0 | AK153: --- | AL153: --- | AM153: --- | AN153: 0 | AO153: --- | AP153: --- | AQ153: --- | AR153: 0 | AS153: --- | AT153: --- | AU153: --- | AV153: 0 | AW153: --- | AX153: 0 | AY153: 0 | AZ153: N/D | BA153: 0 | BB153: 0
A154: 30 | G154: --- | H154: --- | I154: 0 | J154: --- | M154: --- | N154: --- | O154: 0 | P154: --- | S154: l. | T154: --- | U154: --- | V154: 0 | W154: --- | Z154: l. | AA154: --- | AB154: --- | AC154: 0 | AD154: --- | AG154: l. | AH154: --- | AI154: --- | AJ154: 0 | AK154: --- | AL154: --- | AM154: --- | AN154: 0 | AO154: --- | AP154: --- | AQ154: --- | AR154: 0 | AS154: --- | AT154: --- | AU154: --- | AV154: 0 | AW154: --- | AX154: 0 | AY154: 0 | AZ154: N/D | BA154: 0 | BB154: 0
A155: 31 | G155: --- | H155: --- | I155: 0 | J155: --- | M155: --- | N155: --- | O155: 0 | P155: --- | S155: l. | T155: --- | U155: --- | V155: 0 | W155: --- | Z155: l. | AA155: --- | AB155: --- | AC155: 0 | AD155: --- | AG155: l. | AH155: --- | AI155: --- | AJ155: 0 | AK155: --- | AL155: --- | AM155: --- | AN155: 0 | AO155: --- | AP155: --- | AQ155: --- | AR155: 0 | AS155: --- | AT155: --- | AU155: --- | AV155: 0 | AW155: --- | AX155: 0 | AY155: 0 | AZ155: N/D | BA155: 0 | BB155: 0
A156: 32 | G156: --- | H156: --- | I156: 0 | J156: --- | M156: --- | N156: --- | O156: 0 | P156: --- | S156: l. | T156: --- | U156: --- | V156: 0 | W156: --- | Z156: l. | AA156: --- | AB156: --- | AC156: 0 | AD156: --- | AG156: l. | AH156: --- | AI156: --- | AJ156: 0 | AK156: --- | AL156: --- | AM156: --- | AN156: 0 | AO156: --- | AP156: --- | AQ156: --- | AR156: 0 | AS156: --- | AT156: --- | AU156: --- | AV156: 0 | AW156: --- | AX156: 0 | AY156: 0 | AZ156: N/D | BA156: 0 | BB156: 0
A157: 33 | G157: --- | H157: --- | I157: 0 | J157: --- | M157: --- | N157: --- | O157: 0 | P157: --- | S157: l. | T157: --- | U157: --- | V157: 0 | W157: --- | Z157: l. | AA157: --- | AB157: --- | AC157: 0 | AD157: --- | AG157: l. | AH157: --- | AI157: --- | AJ157: 0 | AK157: --- | AL157: --- | AM157: --- | AN157: 0 | AO157: --- | AP157: --- | AQ157: --- | AR157: 0 | AS157: --- | AT157: --- | AU157: --- | AV157: 0 | AW157: --- | AX157: 0 | AY157: 0 | AZ157: N/D | BA157: 0 | BB157: 0
A158: 34 | G158: --- | H158: --- | I158: 0 | J158: --- | M158: --- | N158: --- | O158: 0 | P158: --- | S158: l. | T158: --- | U158: --- | V158: 0 | W158: --- | Z158: l. | AA158: --- | AB158: --- | AC158: 0 | AD158: --- | AG158: l. | AH158: --- | AI158: --- | AJ158: 0 | AK158: --- | AL158: --- | AM158: --- | AN158: 0 | AO158: --- | AP158: --- | AQ158: --- | AR158: 0 | AS158: --- | AT158: --- | AU158: --- | AV158: 0 | AW158: --- | AX158: 0 | AY158: 0 | AZ158: N/D | BA158: 0 | BB158: 0
A159: 35 | G159: --- | H159: --- | I159: 0 | J159: --- | M159: --- | N159: --- | O159: 0 | P159: --- | S159: l. | T159: --- | U159: --- | V159: 0 | W159: --- | Z159: l. | AA159: --- | AB159: --- | AC159: 0 | AD159: --- | AG159: l. | AH159: --- | AI159: --- | AJ159: 0 | AK159: --- | AL159: --- | AM159: --- | AN159: 0 | AO159: --- | AP159: --- | AQ159: --- | AR159: 0 | AS159: --- | AT159: --- | AU159: --- | AV159: 0 | AW159: --- | AX159: 0 | AY159: 0 | AZ159: N/D | BA159: 0 | BB159: 0
A160: 36 | G160: --- | H160: --- | I160: 0 | J160: --- | M160: --- | N160: --- | O160: 0 | P160: --- | S160: l. | T160: --- | U160: --- | V160: 0 | W160: --- | Z160: l. | AA160: --- | AB160: --- | AC160: 0 | AD160: --- | AG160: l. | AH160: --- | AI160: --- | AJ160: 0 | AK160: --- | AL160: --- | AM160: --- | AN160: 0 | AO160: --- | AP160: --- | AQ160: --- | AR160: 0 | AS160: --- | AT160: --- | AU160: --- | AV160: 0 | AW160: --- | AX160: 0 | AY160: 0 | AZ160: N/D | BA160: 0 | BB160: 0
A161: 37 | G161: --- | H161: --- | I161: 0 | J161: --- | M161: --- | N161: --- | O161: 0 | P161: --- | S161: l. | T161: --- | U161: --- | V161: 0 | W161: --- | Z161: l. | AA161: --- | AB161: --- | AC161: 0 | AD161: --- | AG161: l. | AH161: --- | AI161: --- | AJ161: 0 | AK161: --- | AL161: --- | AM161: --- | AN161: 0 | AO161: --- | AP161: --- | AQ161: --- | AR161: 0 | AS161: --- | AT161: --- | AU161: --- | AV161: 0 | AW161: --- | AX161: 0 | AY161: 0 | AZ161: N/D | BA161: 0 | BB161: 0
A162: 38 | G162: --- | H162: --- | I162: 0 | J162: --- | M162: --- | N162: --- | O162: 0 | P162: --- | S162: l. | T162: --- | U162: --- | V162: 0 | W162: --- | Z162: l. | AA162: --- | AB162: --- | AC162: 0 | AD162: --- | AG162: l. | AH162: --- | AI162: --- | AJ162: 0 | AK162: --- | AL162: --- | AM162: --- | AN162: 0 | AO162: --- | AP162: --- | AQ162: --- | AR162: 0 | AS162: --- | AT162: --- | AU162: --- | AV162: 0 | AW162: --- | AX162: 0 | AY162: 0 | AZ162: N/D | BA162: 0 | BB162: 0
A163: 39 | G163: --- | H163: --- | I163: 0 | J163: --- | M163: --- | N163: --- | O163: 0 | P163: --- | S163: l. | T163: --- | U163: --- | V163: 0 | W163: --- | Z163: l. | AA163: --- | AB163: --- | AC163: 0 | AD163: --- | AG163: l. | AH163: --- | AI163: --- | AJ163: 0 | AK163: --- | AL163: --- | AM163: --- | AN163: 0 | AO163: --- | AP163: --- | AQ163: --- | AR163: 0 | AS163: --- | AT163: --- | AU163: --- | AV163: 0 | AW163: --- | AX163: 0 | AY163: 0 | AZ163: N/D | BA163: 0 | BB163: 0
A164: 40 | G164: --- | H164: --- | I164: 0 | J164: --- | M164: --- | N164: --- | O164: 0 | P164: --- | S164: l. | T164: --- | U164: --- | V164: 0 | W164: --- | Z164: l. | AA164: --- | AB164: --- | AC164: 0 | AD164: --- | AG164: l. | AH164: --- | AI164: --- | AJ164: 0 | AK164: --- | AL164: --- | AM164: --- | AN164: 0 | AO164: --- | AP164: --- | AQ164: --- | AR164: 0 | AS164: --- | AT164: --- | AU164: --- | AV164: 0 | AW164: --- | AX164: 0 | AY164: 0 | AZ164: N/D | BA164: 0 | BB164: 0
A165: 41 | G165: --- | H165: --- | I165: 0 | J165: --- | M165: --- | N165: --- | O165: 0 | P165: --- | S165: l. | T165: --- | U165: --- | V165: 0 | W165: --- | Z165: l. | AA165: --- | AB165: --- | AC165: 0 | AD165: --- | AG165: l. | AH165: --- | AI165: --- | AJ165: 0 | AK165: --- | AL165: --- | AM165: --- | AN165: 0 | AO165: --- | AP165: --- | AQ165: --- | AR165: 0 | AS165: --- | AT165: --- | AU165: --- | AV165: 0 | AW165: --- | AX165: 0 | AY165: 0 | AZ165: N/D | BA165: 0 | BB165: 0
A166: 42 | G166: --- | H166: --- | I166: 0 | J166: --- | M166: --- | N166: --- | O166: 0 | P166: --- | S166: l. | T166: --- | U166: --- | V166: 0 | W166: --- | Z166: l. | AA166: --- | AB166: --- | AC166: 0 | AD166: --- | AG166: l. | AH166: --- | AI166: --- | AJ166: 0 | AK166: --- | AL166: --- | AM166: --- | AN166: 0 | AO166: --- | AP166: --- | AQ166: --- | AR166: 0 | AS166: --- | AT166: --- | AU166: --- | AV166: 0 | AW166: --- | AX166: 0 | AY166: 0 | AZ166: N/D | BA166: 0 | BB166: 0
A167: 43 | G167: --- | H167: --- | I167: 0 | J167: --- | M167: --- | N167: --- | O167: 0 | P167: --- | S167: l. | T167: --- | U167: --- | V167: 0 | W167: --- | Z167: l. | AA167: --- | AB167: --- | AC167: 0 | AD167: --- | AG167: l. | AH167: --- | AI167: --- | AJ167: 0 | AK167: --- | AL167: --- | AM167: --- | AN167: 0 | AO167: --- | AP167: --- | AQ167: --- | AR167: 0 | AS167: --- | AT167: --- | AU167: --- | AV167: 0 | AW167: --- | AX167: 0 | AY167: 0 | AZ167: N/D | BA167: 0 | BB167: 0
A168: 44 | G168: --- | H168: --- | I168: 0 | J168: --- | M168: --- | N168: --- | O168: 0 | P168: --- | S168: l. | T168: --- | U168: --- | V168: 0 | W168: --- | Z168: l. | AA168: --- | AB168: --- | AC168: 0 | AD168: --- | AG168: l. | AH168: --- | AI168: --- | AJ168: 0 | AK168: --- | AL168: --- | AM168: --- | AN168: 0 | AO168: --- | AP168: --- | AQ168: --- | AR168: 0 | AS168: --- | AT168: --- | AU168: --- | AV168: 0 | AW168: --- | AX168: 0 | AY168: 0 | AZ168: N/D | BA168: 0 | BB168: 0
A169: 45 | G169: --- | H169: --- | I169: 0 | J169: --- | M169: --- | N169: --- | O169: 0 | P169: --- | S169: l. | T169: --- | U169: --- | V169: 0 | W169: --- | Z169: l. | AA169: --- | AB169: --- | AC169: 0 | AD169: --- | AG169: l. | AH169: --- | AI169: --- | AJ169: 0 | AK169: --- | AL169: --- | AM169: --- | AN169: 0 | AO169: --- | AP169: --- | AQ169: --- | AR169: 0 | AS169: --- | AT169: --- | AU169: --- | AV169: 0 | AW169: --- | AX169: 0 | AY169: 0 | AZ169: N/D | BA169: 0 | BB169: 0
A170: 46 | G170: --- | H170: --- | I170: 0 | J170: --- | M170: --- | N170: --- | O170: 0 | P170: --- | S170: l. | T170: --- | U170: --- | V170: 0 | W170: --- | Z170: l. | AA170: --- | AB170: --- | AC170: 0 | AD170: --- | AG170: l. | AH170: --- | AI170: --- | AJ170: 0 | AK170: --- | AL170: --- | AM170: --- | AN170: 0 | AO170: --- | AP170: --- | AQ170: --- | AR170: 0 | AS170: --- | AT170: --- | AU170: --- | AV170: 0 | AW170: --- | AX170: 0 | AY170: 0 | AZ170: N/D | BA170: 0 | BB170: 0
A171: 47 | G171: --- | H171: --- | I171: 0 | J171: --- | M171: --- | N171: --- | O171: 0 | P171: --- | S171: l. | T171: --- | U171: --- | V171: 0 | W171: --- | Z171: l. | AA171: --- | AB171: --- | AC171: 0 | AD171: --- | AG171: l. | AH171: --- | AI171: --- | AJ171: 0 | AK171: --- | AL171: --- | AM171: --- | AN171: 0 | AO171: --- | AP171: --- | AQ171: --- | AR171: 0 | AS171: --- | AT171: --- | AU171: --- | AV171: 0 | AW171: --- | AX171: 0 | AY171: 0 | AZ171: N/D | BA171: 0 | BB171: 0
A172: 48 | G172: --- | H172: --- | I172: 0 | J172: --- | M172: --- | N172: --- | O172: 0 | P172: --- | S172: l. | T172: --- | U172: --- | V172: 0 | W172: --- | Z172: l. | AA172: --- | AB172: --- | AC172: 0 | AD172: --- | AG172: l. | AH172: --- | AI172: --- | AJ172: 0 | AK172: --- | AL172: --- | AM172: --- | AN172: 0 | AO172: --- | AP172: --- | AQ172: --- | AR172: 0 | AS172: --- | AT172: --- | AU172: --- | AV172: 0 | AW172: --- | AX172: 0 | AY172: 0 | AZ172: N/D | BA172: 0 | BB172: 0
A173: 49 | G173: --- | H173: --- | I173: 0 | J173: --- | M173: --- | N173: --- | O173: 0 | P173: --- | S173: l. | T173: --- | U173: --- | V173: 0 | W173: --- | Z173: l. | AA173: --- | AB173: --- | AC173: 0 | AD173: --- | AG173: l. | AH173: --- | AI173: --- | AJ173: 0 | AK173: --- | AL173: --- | AM173: --- | AN173: 0 | AO173: --- | AP173: --- | AQ173: --- | AR173: 0 | AS173: --- | AT173: --- | AU173: --- | AV173: 0 | AW173: --- | AX173: 0 | AY173: 0 | AZ173: N/D | BA173: 0 | BB173: 0
A174: 50 | G174: --- | H174: --- | I174: 0 | J174: --- | M174: --- | N174: --- | O174: 0 | P174: --- | S174: l. | T174: --- | U174: --- | V174: 0 | W174: --- | Z174: l. | AA174: --- | AB174: --- | AC174: 0 | AD174: --- | AG174: l. | AH174: --- | AI174: --- | AJ174: 0 | AK174: --- | AL174: --- | AM174: --- | AN174: 0 | AO174: --- | AP174: --- | AQ174: --- | AR174: 0 | AS174: --- | AT174: --- | AU174: --- | AV174: 0 | AW174: --- | AX174: 0 | AY174: 0 | AZ174: N/D | BA174: 0 | BB174: 0
F175: TOTAL | G175: =SUM(G125:G174) -> 0 | H175: =SUM(H125:H174) -> 0 | I175: 0 | J175: 0 | L175: TOTAL | M175: 0 | N175: 0 | O175: 0 | P175: 0 | AK175: TOTAL | AL175: 0 | AM175: 0 | AN175: 0 | AO175: 0 | AP175: 0 | AQ175: 0 | AR175: 0 | AS175: 0 | AT175: 0 | AU175: =SUM(AU125:AU174) -> 0 | AV175: 0 | AW175: 0 | AX175: 0 | AY175: 0 | AZ175: N/D | BA175: =SUM(BA125:BA174) -> 0 | BB175: =SUM(BB125:BB174) -> 0
A179: RESULTADOS POR TIPO DE ACTIVIDAD - CONSUMO DE COMBUSTIBLE (FACTORES MAGRAMA - SÓLO EMISIONES DIRECTAS DEL SERVICIO DE TRANSPORTE)
B181: Denominación de la actividad | C181: Tipo de actividad (propia o subcontratada) | D181: Cadena de suministro (Upstream o Downstream) | E181: ACTIVIDADES DE PROPULSIÓN DEL VEHÍCULO | K181: ACTIVIDADES DE REFRIGERACIÓN DE LA CARGA | Q181: ACTIVIDADES DE ALMACENAMIENTO DE LA CARGA | AP181: RESULTADOS TOTALES DE LAS ACTIVIDADES DE TRANSPORTE DE CARGA | AT181: RESULTADOS TOTALES DE LAS ACTIVIDADES DE TRANSPORTE Y ALMACENAMIENTO DE CARGA | AX181: REPORTE GHG PROTOCOL
E182: Tipo de combustible | F182: Consumo de combustible (l) | G182: Consumo energético del tanque a las ruedas | H182: Consumo energético del pozo a las ruedas | I182: Emisiones de GEI del tanque a las ruedas | J182: Emisiones de GEI del pozo a las ruedas | K182: Tipo de combustible | L182: Consumo de combustible (l) | M182: Consumo energético del tanque a las ruedas | N182: Consumo energético del pozo a las ruedas | O182: Emisiones de GEI del tanque a las ruedas | P182: Emisiones de GEI del pozo a las ruedas | Q182: Fuente de energía - 1 | R182: Consumo fuente de energía - 1 | T182: Consumo energético directo - fuente de energía 1 | U182: Consumo energético total - fuente de energía 1 | V182: Emisiones de GEI directas - fuente de energía 1 | W182: Emisiones de GEI totales - fuente de energía 1 | X182: Fuente de energía - 2 | Y182: Consumo fuente de energía - 2 | AA182: Consumo energético directo - fuente de energía 2 | AB182: Consumo energético total - fuente de energía 2 | AC182: Emisiones de GEI directas - fuente de energía 2 | AD182: Emisiones de GEI totales - fuente de energía 2 | AE182: Fuente de energía - 3 | AF182: Consumo fuente de energía - 3 | AH182: Consumo energético directo - fuente de energía 3 | AI182: Consumo energético total - fuente de energía 3 | AJ182: Emisiones de GEI directas - fuente de energía 3 | AK182: Emisiones de GEI totales - fuente de energía 3 | AL182: Consumo energético directo | AM182: Consumo energético total | AN182: Emisiones de GEI directas | AO182: Emisiones de GEI totales | AP182: Consumo energético del tanque a las ruedas | AQ182: Consumo energético del pozo a las ruedas | AR182: Emisiones de GEI del tanque a las ruedas | AS182: Emisiones de GEI del pozo a las ruedas | AT182: Consumo energético del tanque a las ruedas | AU182: Consumo energético del pozo a las ruedas | AV182: Emisiones de GEI del tanque a las ruedas | AW182: Emisiones de GEI del pozo a las ruedas | AX182: Alcance 1 | AY182: Alcance 2 | AZ182: Alcance 3. Categoría 3 | BA182: Alcance 3. Categoría 4 | BB182: Alcance 3. Categoría 9
A183: 1 | G183: --- | H183: --- | I183: =IFERROR(F183*VLOOKUP(E183,t_MAGRAMA,2,0),0) -> 0 | J183: --- | M183: --- | N183: --- | O183: =IFERROR(L183*VLOOKUP(K183,t_MAGRAMA,2,0),0) -> 0 | P183: --- | S183: l. | T183: --- | U183: --- | V183: =IFERROR(R183*VLOOKUP(Q183,t_MAGRAMA,2,0),0) -> 0 | W183: --- | Z183: l. | AA183: --- | AB183: --- | AC183: =IFERROR(Y183*VLOOKUP(X183,t_MAGRAMA,2,0),0) -> 0 | AD183: --- | AG183: l. | AH183: --- | AI183: --- | AJ183: =IFERROR(AF183*VLOOKUP(AE183,t_MAGRAMA,2,0),0) -> 0 | AK183: --- | AL183: --- | AM183: --- | AN183: =V183+AC183+AJ183 -> 0 | AO183: --- | AP183: =IFERROR(G183+M183,"---") -> --- | AQ183: =IFERROR(H183+N183,"---") -> --- | AR183: 0 | AS183: --- | AT183: =IFERROR(AL183+AP183,"---") -> --- | AU183: =IFERROR(AM183+AQ183,"---") -> --- | AV183: 0 | AW183: --- | AX183: =IF(C183="Propia",AV183,0) -> 0 | AY183: 0 | AZ183: N/D | BA183: =IF(AND(C183="Subcontratada",D183="Upstream"),AV183,0) -> 0 | BB183: =IF(AND(C183="Subcontratada",D183="Downstream"),AV183,0) -> 0
A184: 2 | G184: --- | H184: --- | I184: 0 | J184: --- | M184: --- | N184: --- | O184: 0 | P184: --- | S184: l. | T184: --- | U184: --- | V184: 0 | W184: --- | Z184: l. | AA184: --- | AB184: --- | AC184: 0 | AD184: --- | AG184: l. | AH184: --- | AI184: --- | AJ184: 0 | AK184: --- | AL184: --- | AM184: --- | AN184: =V184+AC184+AJ184 -> 0 | AO184: --- | AP184: =IFERROR(G184+M184,"---") -> --- | AQ184: --- | AR184: 0 | AS184: --- | AT184: =IFERROR(AL184+AP184,"---") -> --- | AU184: --- | AV184: 0 | AW184: --- | AX184: 0 | AY184: 0 | AZ184: N/D | BA184: 0 | BB184: 0
A185: 3 | G185: --- | H185: --- | I185: 0 | J185: --- | M185: --- | N185: --- | O185: 0 | P185: --- | S185: l. | T185: --- | U185: --- | V185: 0 | W185: --- | Z185: l. | AA185: --- | AB185: --- | AC185: 0 | AD185: --- | AG185: l. | AH185: --- | AI185: --- | AJ185: 0 | AK185: --- | AL185: --- | AM185: --- | AN185: 0 | AO185: --- | AP185: --- | AQ185: --- | AR185: 0 | AS185: --- | AT185: --- | AU185: --- | AV185: 0 | AW185: --- | AX185: 0 | AY185: 0 | AZ185: N/D | BA185: 0 | BB185: 0
A186: 4 | G186: --- | H186: --- | I186: 0 | J186: --- | M186: --- | N186: --- | O186: 0 | P186: --- | S186: l. | T186: --- | U186: --- | V186: 0 | W186: --- | Z186: l. | AA186: --- | AB186: --- | AC186: 0 | AD186: --- | AG186: l. | AH186: --- | AI186: --- | AJ186: 0 | AK186: --- | AL186: --- | AM186: --- | AN186: 0 | AO186: --- | AP186: --- | AQ186: --- | AR186: 0 | AS186: --- | AT186: --- | AU186: --- | AV186: 0 | AW186: --- | AX186: 0 | AY186: 0 | AZ186: N/D | BA186: 0 | BB186: 0
A187: 5 | G187: --- | H187: --- | I187: 0 | J187: --- | M187: --- | N187: --- | O187: 0 | P187: --- | S187: l. | T187: --- | U187: --- | V187: 0 | W187: --- | Z187: l. | AA187: --- | AB187: --- | AC187: 0 | AD187: --- | AG187: l. | AH187: --- | AI187: --- | AJ187: 0 | AK187: --- | AL187: --- | AM187: --- | AN187: 0 | AO187: --- | AP187: --- | AQ187: --- | AR187: 0 | AS187: --- | AT187: --- | AU187: --- | AV187: 0 | AW187: --- | AX187: 0 | AY187: 0 | AZ187: N/D | BA187: 0 | BB187: 0
A188: 6 | G188: --- | H188: --- | I188: 0 | J188: --- | M188: --- | N188: --- | O188: 0 | P188: --- | S188: l. | T188: --- | U188: --- | V188: 0 | W188: --- | Z188: l. | AA188: --- | AB188: --- | AC188: 0 | AD188: --- | AG188: l. | AH188: --- | AI188: --- | AJ188: 0 | AK188: --- | AL188: --- | AM188: --- | AN188: 0 | AO188: --- | AP188: --- | AQ188: --- | AR188: 0 | AS188: --- | AT188: --- | AU188: --- | AV188: 0 | AW188: --- | AX188: 0 | AY188: 0 | AZ188: N/D | BA188: 0 | BB188: 0
A189: 7 | G189: --- | H189: --- | I189: 0 | J189: --- | M189: --- | N189: --- | O189: 0 | P189: --- | S189: l. | T189: --- | U189: --- | V189: 0 | W189: --- | Z189: l. | AA189: --- | AB189: --- | AC189: 0 | AD189: --- | AG189: l. | AH189: --- | AI189: --- | AJ189: 0 | AK189: --- | AL189: --- | AM189: --- | AN189: 0 | AO189: --- | AP189: --- | AQ189: --- | AR189: 0 | AS189: --- | AT189: --- | AU189: --- | AV189: 0 | AW189: --- | AX189: 0 | AY189: 0 | AZ189: N/D | BA189: 0 | BB189: 0
A190: 8 | G190: --- | H190: --- | I190: 0 | J190: --- | M190: --- | N190: --- | O190: 0 | P190: --- | S190: l. | T190: --- | U190: --- | V190: 0 | W190: --- | Z190: l. | AA190: --- | AB190: --- | AC190: 0 | AD190: --- | AG190: l. | AH190: --- | AI190: --- | AJ190: 0 | AK190: --- | AL190: --- | AM190: --- | AN190: 0 | AO190: --- | AP190: --- | AQ190: --- | AR190: 0 | AS190: --- | AT190: --- | AU190: --- | AV190: 0 | AW190: --- | AX190: 0 | AY190: 0 | AZ190: N/D | BA190: 0 | BB190: 0
A191: 9 | G191: --- | H191: --- | I191: 0 | J191: --- | M191: --- | N191: --- | O191: 0 | P191: --- | S191: l. | T191: --- | U191: --- | V191: 0 | W191: --- | Z191: l. | AA191: --- | AB191: --- | AC191: 0 | AD191: --- | AG191: l. | AH191: --- | AI191: --- | AJ191: 0 | AK191: --- | AL191: --- | AM191: --- | AN191: 0 | AO191: --- | AP191: --- | AQ191: --- | AR191: 0 | AS191: --- | AT191: --- | AU191: --- | AV191: 0 | AW191: --- | AX191: 0 | AY191: 0 | AZ191: N/D | BA191: 0 | BB191: 0
A192: 10 | G192: --- | H192: --- | I192: 0 | J192: --- | M192: --- | N192: --- | O192: 0 | P192: --- | S192: l. | T192: --- | U192: --- | V192: 0 | W192: --- | Z192: l. | AA192: --- | AB192: --- | AC192: 0 | AD192: --- | AG192: l. | AH192: --- | AI192: --- | AJ192: 0 | AK192: --- | AL192: --- | AM192: --- | AN192: 0 | AO192: --- | AP192: --- | AQ192: --- | AR192: 0 | AS192: --- | AT192: --- | AU192: --- | AV192: 0 | AW192: --- | AX192: 0 | AY192: 0 | AZ192: N/D | BA192: 0 | BB192: 0
A193: 11 | G193: --- | H193: --- | I193: 0 | J193: --- | M193: --- | N193: --- | O193: 0 | P193: --- | S193: l. | T193: --- | U193: --- | V193: 0 | W193: --- | Z193: l. | AA193: --- | AB193: --- | AC193: 0 | AD193: --- | AG193: l. | AH193: --- | AI193: --- | AJ193: 0 | AK193: --- | AL193: --- | AM193: --- | AN193: 0 | AO193: --- | AP193: --- | AQ193: --- | AR193: 0 | AS193: --- | AT193: --- | AU193: --- | AV193: 0 | AW193: --- | AX193: 0 | AY193: 0 | AZ193: N/D | BA193: 0 | BB193: 0
A194: 12 | G194: --- | H194: --- | I194: 0 | J194: --- | M194: --- | N194: --- | O194: 0 | P194: --- | S194: l. | T194: --- | U194: --- | V194: 0 | W194: --- | Z194: l. | AA194: --- | AB194: --- | AC194: 0 | AD194: --- | AG194: l. | AH194: --- | AI194: --- | AJ194: 0 | AK194: --- | AL194: --- | AM194: --- | AN194: 0 | AO194: --- | AP194: --- | AQ194: --- | AR194: 0 | AS194: --- | AT194: --- | AU194: --- | AV194: 0 | AW194: --- | AX194: 0 | AY194: 0 | AZ194: N/D | BA194: 0 | BB194: 0
A195: 13 | G195: --- | H195: --- | I195: 0 | J195: --- | M195: --- | N195: --- | O195: 0 | P195: --- | S195: l. | T195: --- | U195: --- | V195: 0 | W195: --- | Z195: l. | AA195: --- | AB195: --- | AC195: 0 | AD195: --- | AG195: l. | AH195: --- | AI195: --- | AJ195: 0 | AK195: --- | AL195: --- | AM195: --- | AN195: 0 | AO195: --- | AP195: --- | AQ195: --- | AR195: 0 | AS195: --- | AT195: --- | AU195: --- | AV195: 0 | AW195: --- | AX195: 0 | AY195: 0 | AZ195: N/D | BA195: 0 | BB195: 0
A196: 14 | G196: --- | H196: --- | I196: 0 | J196: --- | M196: --- | N196: --- | O196: 0 | P196: --- | S196: l. | T196: --- | U196: --- | V196: 0 | W196: --- | Z196: l. | AA196: --- | AB196: --- | AC196: 0 | AD196: --- | AG196: l. | AH196: --- | AI196: --- | AJ196: 0 | AK196: --- | AL196: --- | AM196: --- | AN196: 0 | AO196: --- | AP196: --- | AQ196: --- | AR196: 0 | AS196: --- | AT196: --- | AU196: --- | AV196: 0 | AW196: --- | AX196: 0 | AY196: 0 | AZ196: N/D | BA196: 0 | BB196: 0
A197: 15 | G197: --- | H197: --- | I197: 0 | J197: --- | M197: --- | N197: --- | O197: 0 | P197: --- | S197: l. | T197: --- | U197: --- | V197: 0 | W197: --- | Z197: l. | AA197: --- | AB197: --- | AC197: 0 | AD197: --- | AG197: l. | AH197: --- | AI197: --- | AJ197: 0 | AK197: --- | AL197: --- | AM197: --- | AN197: 0 | AO197: --- | AP197: --- | AQ197: --- | AR197: 0 | AS197: --- | AT197: --- | AU197: --- | AV197: 0 | AW197: --- | AX197: 0 | AY197: 0 | AZ197: N/D | BA197: 0 | BB197: 0
A198: 16 | G198: --- | H198: --- | I198: 0 | J198: --- | M198: --- | N198: --- | O198: 0 | P198: --- | S198: l. | T198: --- | U198: --- | V198: 0 | W198: --- | Z198: l. | AA198: --- | AB198: --- | AC198: 0 | AD198: --- | AG198: l. | AH198: --- | AI198: --- | AJ198: 0 | AK198: --- | AL198: --- | AM198: --- | AN198: 0 | AO198: --- | AP198: --- | AQ198: --- | AR198: 0 | AS198: --- | AT198: --- | AU198: --- | AV198: 0 | AW198: --- | AX198: 0 | AY198: 0 | AZ198: N/D | BA198: 0 | BB198: 0
A199: 17 | G199: --- | H199: --- | I199: 0 | J199: --- | M199: --- | N199: --- | O199: 0 | P199: --- | S199: l. | T199: --- | U199: --- | V199: 0 | W199: --- | Z199: l. | AA199: --- | AB199: --- | AC199: 0 | AD199: --- | AG199: l. | AH199: --- | AI199: --- | AJ199: 0 | AK199: --- | AL199: --- | AM199: --- | AN199: 0 | AO199: --- | AP199: --- | AQ199: --- | AR199: 0 | AS199: --- | AT199: --- | AU199: --- | AV199: 0 | AW199: --- | AX199: 0 | AY199: 0 | AZ199: N/D | BA199: 0 | BB199: 0
A200: 18 | G200: --- | H200: --- | I200: 0 | J200: --- | M200: --- | N200: --- | O200: 0 | P200: --- | S200: l. | T200: --- | U200: --- | V200: 0 | W200: --- | Z200: l. | AA200: --- | AB200: --- | AC200: 0 | AD200: --- | AG200: l. | AH200: --- | AI200: --- | AJ200: 0 | AK200: --- | AL200: --- | AM200: --- | AN200: 0 | AO200: --- | AP200: --- | AQ200: --- | AR200: 0 | AS200: --- | AT200: --- | AU200: --- | AV200: 0 | AW200: --- | AX200: 0 | AY200: 0 | AZ200: N/D | BA200: 0 | BB200: 0
A201: 19 | G201: --- | H201: --- | I201: 0 | J201: --- | M201: --- | N201: --- | O201: 0 | P201: --- | S201: l. | T201: --- | U201: --- | V201: 0 | W201: --- | Z201: l. | AA201: --- | AB201: --- | AC201: 0 | AD201: --- | AG201: l. | AH201: --- | AI201: --- | AJ201: 0 | AK201: --- | AL201: --- | AM201: --- | AN201: 0 | AO201: --- | AP201: --- | AQ201: --- | AR201: 0 | AS201: --- | AT201: --- | AU201: --- | AV201: 0 | AW201: --- | AX201: 0 | AY201: 0 | AZ201: N/D | BA201: 0 | BB201: 0
A202: 20 | G202: --- | H202: --- | I202: 0 | J202: --- | M202: --- | N202: --- | O202: 0 | P202: --- | S202: l. | T202: --- | U202: --- | V202: 0 | W202: --- | Z202: l. | AA202: --- | AB202: --- | AC202: 0 | AD202: --- | AG202: l. | AH202: --- | AI202: --- | AJ202: 0 | AK202: --- | AL202: --- | AM202: --- | AN202: 0 | AO202: --- | AP202: --- | AQ202: --- | AR202: 0 | AS202: --- | AT202: --- | AU202: --- | AV202: 0 | AW202: --- | AX202: 0 | AY202: 0 | AZ202: N/D | BA202: 0 | BB202: 0
A203: 21 | G203: --- | H203: --- | I203: 0 | J203: --- | M203: --- | N203: --- | O203: 0 | P203: --- | S203: l. | T203: --- | U203: --- | V203: 0 | W203: --- | Z203: l. | AA203: --- | AB203: --- | AC203: 0 | AD203: --- | AG203: l. | AH203: --- | AI203: --- | AJ203: 0 | AK203: --- | AL203: --- | AM203: --- | AN203: 0 | AO203: --- | AP203: --- | AQ203: --- | AR203: 0 | AS203: --- | AT203: --- | AU203: --- | AV203: 0 | AW203: --- | AX203: 0 | AY203: 0 | AZ203: N/D | BA203: 0 | BB203: 0
A204: 22 | G204: --- | H204: --- | I204: 0 | J204: --- | M204: --- | N204: --- | O204: 0 | P204: --- | S204: l. | T204: --- | U204: --- | V204: 0 | W204: --- | Z204: l. | AA204: --- | AB204: --- | AC204: 0 | AD204: --- | AG204: l. | AH204: --- | AI204: --- | AJ204: 0 | AK204: --- | AL204: --- | AM204: --- | AN204: 0 | AO204: --- | AP204: --- | AQ204: --- | AR204: 0 | AS204: --- | AT204: --- | AU204: --- | AV204: 0 | AW204: --- | AX204: 0 | AY204: 0 | AZ204: N/D | BA204: 0 | BB204: 0
A205: 23 | G205: --- | H205: --- | I205: 0 | J205: --- | M205: --- | N205: --- | O205: 0 | P205: --- | S205: l. | T205: --- | U205: --- | V205: 0 | W205: --- | Z205: l. | AA205: --- | AB205: --- | AC205: 0 | AD205: --- | AG205: l. | AH205: --- | AI205: --- | AJ205: 0 | AK205: --- | AL205: --- | AM205: --- | AN205: 0 | AO205: --- | AP205: --- | AQ205: --- | AR205: 0 | AS205: --- | AT205: --- | AU205: --- | AV205: 0 | AW205: --- | AX205: 0 | AY205: 0 | AZ205: N/D | BA205: 0 | BB205: 0
A206: 24 | G206: --- | H206: --- | I206: 0 | J206: --- | M206: --- | N206: --- | O206: 0 | P206: --- | S206: l. | T206: --- | U206: --- | V206: 0 | W206: --- | Z206: l. | AA206: --- | AB206: --- | AC206: 0 | AD206: --- | AG206: l. | AH206: --- | AI206: --- | AJ206: 0 | AK206: --- | AL206: --- | AM206: --- | AN206: 0 | AO206: --- | AP206: --- | AQ206: --- | AR206: 0 | AS206: --- | AT206: --- | AU206: --- | AV206: 0 | AW206: --- | AX206: 0 | AY206: 0 | AZ206: N/D | BA206: 0 | BB206: 0
A207: 25 | G207: --- | H207: --- | I207: 0 | J207: --- | M207: --- | N207: --- | O207: 0 | P207: --- | S207: l. | T207: --- | U207: --- | V207: 0 | W207: --- | Z207: l. | AA207: --- | AB207: --- | AC207: 0 | AD207: --- | AG207: l. | AH207: --- | AI207: --- | AJ207: 0 | AK207: --- | AL207: --- | AM207: --- | AN207: 0 | AO207: --- | AP207: --- | AQ207: --- | AR207: 0 | AS207: --- | AT207: --- | AU207: --- | AV207: 0 | AW207: --- | AX207: 0 | AY207: 0 | AZ207: N/D | BA207: 0 | BB207: 0
A208: 26 | G208: --- | H208: --- | I208: 0 | J208: --- | M208: --- | N208: --- | O208: 0 | P208: --- | S208: l. | T208: --- | U208: --- | V208: 0 | W208: --- | Z208: l. | AA208: --- | AB208: --- | AC208: 0 | AD208: --- | AG208: l. | AH208: --- | AI208: --- | AJ208: 0 | AK208: --- | AL208: --- | AM208: --- | AN208: 0 | AO208: --- | AP208: --- | AQ208: --- | AR208: 0 | AS208: --- | AT208: --- | AU208: --- | AV208: 0 | AW208: --- | AX208: 0 | AY208: 0 | AZ208: N/D | BA208: 0 | BB208: 0
A209: 27 | G209: --- | H209: --- | I209: 0 | J209: --- | M209: --- | N209: --- | O209: 0 | P209: --- | S209: l. | T209: --- | U209: --- | V209: 0 | W209: --- | Z209: l. | AA209: --- | AB209: --- | AC209: 0 | AD209: --- | AG209: l. | AH209: --- | AI209: --- | AJ209: 0 | AK209: --- | AL209: --- | AM209: --- | AN209: 0 | AO209: --- | AP209: --- | AQ209: --- | AR209: 0 | AS209: --- | AT209: --- | AU209: --- | AV209: 0 | AW209: --- | AX209: 0 | AY209: 0 | AZ209: N/D | BA209: 0 | BB209: 0
A210: 28 | G210: --- | H210: --- | I210: 0 | J210: --- | M210: --- | N210: --- | O210: 0 | P210: --- | S210: l. | T210: --- | U210: --- | V210: 0 | W210: --- | Z210: l. | AA210: --- | AB210: --- | AC210: 0 | AD210: --- | AG210: l. | AH210: --- | AI210: --- | AJ210: 0 | AK210: --- | AL210: --- | AM210: --- | AN210: 0 | AO210: --- | AP210: --- | AQ210: --- | AR210: 0 | AS210: --- | AT210: --- | AU210: --- | AV210: 0 | AW210: --- | AX210: 0 | AY210: 0 | AZ210: N/D | BA210: 0 | BB210: 0
A211: 29 | G211: --- | H211: --- | I211: 0 | J211: --- | M211: --- | N211: --- | O211: 0 | P211: --- | S211: l. | T211: --- | U211: --- | V211: 0 | W211: --- | Z211: l. | AA211: --- | AB211: --- | AC211: 0 | AD211: --- | AG211: l. | AH211: --- | AI211: --- | AJ211: 0 | AK211: --- | AL211: --- | AM211: --- | AN211: 0 | AO211: --- | AP211: --- | AQ211: --- | AR211: 0 | AS211: --- | AT211: --- | AU211: --- | AV211: 0 | AW211: --- | AX211: 0 | AY211: 0 | AZ211: N/D | BA211: 0 | BB211: 0
A212: 30 | G212: --- | H212: --- | I212: 0 | J212: --- | M212: --- | N212: --- | O212: 0 | P212: --- | S212: l. | T212: --- | U212: --- | V212: 0 | W212: --- | Z212: l. | AA212: --- | AB212: --- | AC212: 0 | AD212: --- | AG212: l. | AH212: --- | AI212: --- | AJ212: 0 | AK212: --- | AL212: --- | AM212: --- | AN212: 0 | AO212: --- | AP212: --- | AQ212: --- | AR212: 0 | AS212: --- | AT212: --- | AU212: --- | AV212: 0 | AW212: --- | AX212: 0 | AY212: 0 | AZ212: N/D | BA212: 0 | BB212: 0
A213: 31 | G213: --- | H213: --- | I213: 0 | J213: --- | M213: --- | N213: --- | O213: 0 | P213: --- | S213: l. | T213: --- | U213: --- | V213: 0 | W213: --- | Z213: l. | AA213: --- | AB213: --- | AC213: 0 | AD213: --- | AG213: l. | AH213: --- | AI213: --- | AJ213: 0 | AK213: --- | AL213: --- | AM213: --- | AN213: 0 | AO213: --- | AP213: --- | AQ213: --- | AR213: 0 | AS213: --- | AT213: --- | AU213: --- | AV213: 0 | AW213: --- | AX213: 0 | AY213: 0 | AZ213: N/D | BA213: 0 | BB213: 0
A214: 32 | G214: --- | H214: --- | I214: 0 | J214: --- | M214: --- | N214: --- | O214: 0 | P214: --- | S214: l. | T214: --- | U214: --- | V214: 0 | W214: --- | Z214: l. | AA214: --- | AB214: --- | AC214: 0 | AD214: --- | AG214: l. | AH214: --- | AI214: --- | AJ214: 0 | AK214: --- | AL214: --- | AM214: --- | AN214: 0 | AO214: --- | AP214: --- | AQ214: --- | AR214: 0 | AS214: --- | AT214: --- | AU214: --- | AV214: 0 | AW214: --- | AX214: 0 | AY214: 0 | AZ214: N/D | BA214: 0 | BB214: 0
A215: 33 | G215: --- | H215: --- | I215: 0 | J215: --- | M215: --- | N215: --- | O215: 0 | P215: --- | S215: l. | T215: --- | U215: --- | V215: 0 | W215: --- | Z215: l. | AA215: --- | AB215: --- | AC215: 0 | AD215: --- | AG215: l. | AH215: --- | AI215: --- | AJ215: 0 | AK215: --- | AL215: --- | AM215: --- | AN215: 0 | AO215: --- | AP215: --- | AQ215: --- | AR215: 0 | AS215: --- | AT215: --- | AU215: --- | AV215: 0 | AW215: --- | AX215: 0 | AY215: 0 | AZ215: N/D | BA215: 0 | BB215: 0
A216: 34 | G216: --- | H216: --- | I216: 0 | J216: --- | M216: --- | N216: --- | O216: 0 | P216: --- | S216: l. | T216: --- | U216: --- | V216: 0 | W216: --- | Z216: l. | AA216: --- | AB216: --- | AC216: 0 | AD216: --- | AG216: l. | AH216: --- | AI216: --- | AJ216: 0 | AK216: --- | AL216: --- | AM216: --- | AN216: 0 | AO216: --- | AP216: --- | AQ216: --- | AR216: 0 | AS216: --- | AT216: --- | AU216: --- | AV216: 0 | AW216: --- | AX216: 0 | AY216: 0 | AZ216: N/D | BA216: 0 | BB216: 0
... 71 more rows

Sheet RESULTADOS_A1_1
A1: RESULTADOS OBTENIDOS
A3: INFORMACIÓN GENERAL
B5: Tipo de patrón | D5: =SHEETOFFSET(-1,B2) -> 0
B6: Código de patrón | D6: =SHEETOFFSET(-1,A1) -> REPORTING CORPORATIVO
B7: Tipo de vehículo | D7: =SHEETOFFSET(-1,$E$9) -> 0
A13: RESULTADOS POR ENVÍO
B15: Cliente del envío | C15: Denominación del envío | D15: Origen del envío | E15: Destino del envío | F15: Carga refrigerada / no refrigerada | G15: Distancia directa del envío (km) | H15: Distancia recorrida por el envío (km) | I15: Peso bruto del envío (t) | J15: Volumen del envío en almacenamiento (m3) - en caso de que la carga sea almacenada | K15: Días de almacenamiento - en caso de que la carga sea almacenada | L15: =IF(SELECCIONPATRON(SHEETOFFSET(-1,G189),SHEETOFFSET(-1,G150),SHEETOFFSET(-1,G151),SHEETOFFSET(-1,G114),SHEETOFFSET(-1,G121),SHEETOFFSET(-1,G123),SHEETOFFSET(-1,G108))="Depósito conjunto","RESULTADOS: PROPULSIÓN Y REFRIGERACIÓN DE LA CARGA","RESULTADOS: PROPULSIÓN DE LA CARGA") -> RESULTADOS: PROPULSIÓN DE LA CARGA | R15: =IF(OR(SELECCIONPATRON(SHEETOFFSET(-1,G189),SHEETOFFSET(-1,G150),SHEETOFFSET(-1,G151),SHEETOFFSET(-1,G114),SHEETOFFSET(-1,G121),SHEETOFFSET(-1,G123),SHEETOFFSET(-1,G108))="Depósito conjunto",SELECCIONPATRON(SHEETOFFSET(-1,G189),SHEETOFFSET(-1,G150),SHEETOFFSET(-1,G151),SHEETOFFSET(-1,G114),SHEETOFFSET(-1,G121),SHEETOFFSET(-1,G123),SHEETOFFSET(-1,G108))=0),"---","RESULTADOS: REFRIGERACIÓN DE LA CARGA") -> --- | X15: RESULTADOS: ALMACENAMIENTO DE LA CARGA | AE15: RESULTADOS TOTALES DEL SERVICIO DE TRANSPORTE DE LA CARGA (ALCANCE NORMA CEN-EN 16258) | AI15: RESULTADOS TOTALES DEL SERVICIO DE TRANSPORTE Y ALMACENAMIENTO DE LA CARGA | AN15: INTENSIDAD DE EMISIONES DEL SERVICIO DE TRANSPORTE
L16: Proporción de cupo para cada envío (%) | M16: ="Consumo de combustible: "&P69 -> Consumo de combustible: 0 | N16: Consumo energético del tanque a las ruedas | O16: Consumo energético del pozo a las ruedas | P16: Emisiones de GEI del tanque a las ruedas | Q16: Emisiones de GEI del pozo a las ruedas | R16: Proporción de cupo para cada envío (%) | S16: ="Consumo de combustible: "&V69 -> Consumo de combustible: 0 | T16: Consumo energético del tanque a las ruedas | U16: Consumo energético del pozo a las ruedas | V16: Emisiones de GEI del tanque a las ruedas | W16: Emisiones de GEI del pozo a las ruedas | X16: ="Consumo por fuente de energía: "&IF(AC69<>0,AC69&" (kWh)","") -> Consumo por fuente de energía: --- (kWh) | Y16: ="Consumo por fuente de energía: "&IF(AC70<>0,AC70&" "&SHEETOFFSET(-1,J212),"") -> Consumo por fuente de energía: --- --- | Z16: ="Consumo por fuente de energía: "&IF(AC71<>0,AC71&" (l.)","") -> Consumo por fuente de energía: --- (l.) | AA16: Consumo energético directo | AB16: Consumo energético directo e indirecto | AC16: Emisiones de GEI directas | AD16: Emisiones de GEI directas e indirectas | AE16: Consumo energético del tanque a las ruedas | AF16: Consumo energético del pozo a las ruedas | AG16: Emisiones de GEI del tanque a las ruedas | AH16: Emisiones de GEI del pozo a las ruedas | AI16: Consumo energético directo | AJ16: Consumo energético total | AK16: Emisiones de GEI directas | AL16: Emisiones de GEI totales | AN16: Emisiones específicas de GEI (del tanque a las ruedas) - propulsión de la carga | AO16: Emisiones específicas de GEI (del pozo a las ruedas) - propulsión de la carga | AP16: Emisiones específicas de GEI (del tanque a las ruedas) - transporte de la carga | AQ16: Emisiones específicas de GEI (del pozo a las ruedas) - transporte de la carga | AS16: Propulsión | AT16: Refrigeración
A17: 1 | B17: =SELECCIONPATRON(SHEETOFFSET(-1,C132),SHEETOFFSET(-1,C93),SHEETOFFSET(-1,C94),SHEETOFFSET(-1,C57),SHEETOFFSET(-1,C64),SHEETOFFSET(-1,C66),SHEETOFFSET(-1,C51)) -> 0 | C17: =SELECCIONPATRON(SHEETOFFSET(-1,D132),SHEETOFFSET(-1,D93),SHEETOFFSET(-1,D94),SHEETOFFSET(-1,D57),SHEETOFFSET(-1,D64),SHEETOFFSET(-1,D66),SHEETOFFSET(-1,D51)) -> 0 | D17: =SELECCIONPATRON(SHEETOFFSET(-1,M132),SHEETOFFSET(-1,M93),SHEETOFFSET(-1,M94),SHEETOFFSET(-1,M57),SHEETOFFSET(-1,$E$51),SHEETOFFSET(-1,$E$52),SHEETOFFSET(-1,$E$38)) -> 0 | E17: =SELECCIONPATRON(SHEETOFFSET(-1,P132),SHEETOFFSET(-1,P93),SHEETOFFSET(-1,P94),SHEETOFFSET(-1,P57),SHEETOFFSET(-1,$E$52),SHEETOFFSET(-1,$E$53),SHEETOFFSET(-1,$E$39)) -> 0 | F17: =SELECCIONPATRON(SHEETOFFSET(-1,H132),SHEETOFFSET(-1,H93),SHEETOFFSET(-1,H94),SHEETOFFSET(-1,H57),SHEETOFFSET(-1,H64),SHEETOFFSET(-1,H66),SHEETOFFSET(-1,H51)) -> 0 | G17: =SELECCIONPATRON(SHEETOFFSET(-1,R132),SHEETOFFSET(-1,R93),SHEETOFFSET(-1,S94),SHEETOFFSET(-1,S57),SHEETOFFSET(-1,$G$55),SHEETOFFSET(-1,$G$56),SHEETOFFSET(-1,$G$42)) -> 0 | H17: =SELECCIONPATRON(SHEETOFFSET(-1,S132),SHEETOFFSET(-1,S93),SHEETOFFSET(-1,T94),SHEETOFFSET(-1,T57),SHEETOFFSET(-1,$G$56),SHEETOFFSET(-1,$G$57),SHEETOFFSET(-1,$G$43)) -> 0 | I17: =SELECCIONPATRON(SHEETOFFSET(-1,G132),SHEETOFFSET(-1,G93),SHEETOFFSET(-1,G94),SHEETOFFSET(-1,G57),SHEETOFFSET(-1,G64),SHEETOFFSET(-1,G66),SHEETOFFSET(-1,G51)) -> 0 | J17: =SELECCIONPATRON(SHEETOFFSET(-1,I132),SHEETOFFSET(-1,I93),SHEETOFFSET(-1,I94),SHEETOFFSET(-1,I57),SHEETOFFSET(-1,I64),SHEETOFFSET(-1,I66),SHEETOFFSET(-1,I51)) -> 0 | K17: =SELECCIONPATRON(SHEETOFFSET(-1,J132),SHEETOFFSET(-1,J93),SHEETOFFSET(-1,J94),SHEETOFFSET(-1,J57),SHEETOFFSET(-1,J64),SHEETOFFSET(-1,J66),SHEETOFFSET(-1,J51)) -> 0 | L17: =IFERROR(IF(OR($D$6="A.1.",$D$6="A.2.",$D$6="B.1.",$D$6="B.2."),AS17/SUM($AS$17:$AS$66),"---"),"---") -> --- | M17: =IFERROR(SELECCIONPATRON(L17,L17,L17,L17,H17*I17,H17*I17,H17*I17)*SELECCIONPATRON(SHEETOFFSET(-1,$T$122),SHEETOFFSET(-1,$T$85),SHEETOFFSET(-1,$V$86),SHEETOFFSET(-1,$V$49),SHEETOFFSET(-1,$G$29),SHEETOFFSET(-1,$G$44),SHEETOFFSET(-1,$G$30)),0) -> 0 | N17: =IFERROR($M17*VLOOKUP($P$69,t_factores_t,3,0),0) -> 0 | O17: =IFERROR($M17*VLOOKUP($P$69,t_factores_t,5,0),0) -> 0 | P17: =IFERROR($M17*VLOOKUP($P$69,t_factores_t,7,0),0) -> 0 | Q17: =IFERROR($M17*VLOOKUP($P$69,t_factores_t,9,0),0) -> 0 | R17: =IFERROR(IF(OR($D$6="A.1.",$D$6="A.2.",$D$6="B.1.",$D$6="B.2."),AT17/SUM($AT$17:$AT$66),"---"),"---") -> --- | S17: =IFERROR(IF(F17="Refrigerada",SELECCIONPATRON(R17,R17,R17,R17,I17,I17,I17)*SELECCIONPATRON(SHEETOFFSET(-1,$I$200),SHEETOFFSET(-1,$I$161),SHEETOFFSET(-1,$I$162),SHEETOFFSET(-1,$I$125),SHEETOFFSET(-1,$I$132)/(SHEETOFFSET(-1,$G$11)*IF(SHEETOFFSET(-1,$G$37)<>"",SHEETOFFSET(-1,$G$37),SHEETOFFSET(-1,$G$42))),SHEETOFFSET(-1,$I$134)/(SHEETOFFSET(-1,$G$11)*IF(SHEETOFFSET(-1,$G$26)<>"",SHEETOFFSET(-1,$G$26),SHEETOFFSET(-1,$G$31))),SHEETOFFSET(-1,$I$119)/(SHEETOFFSET(-1,$G$11)*IF(SHEETOFFSET(-1,$G$25)="Mercancías a granel",1,0.45))),0),0) -> 0 | T17: =IFERROR($S17*VLOOKUP($V$69,t_factores_t,3,0),0) -> 0 | U17: =IFERROR($S17*VLOOKUP($V$69,t_factores_t,5,0),0) -> 0 | V17: =IFERROR($S17*VLOOKUP($V$69,t_factores_t,7,0),0) -> 0 | W17: =IFERROR($S17*VLOOKUP($V$69,t_factores_t,9,0),0) -> 0 | X17: =IFERROR(IF(SHEETOFFSET(-1,$I$218)<>"",SHEETOFFSET(-1,$I$218),SHEETOFFSET(-1,$I$226))*$J17*$K17,0) -> 0 | Y17: =IFERROR(IF(SHEETOFFSET(-1,$I$219)<>"",SHEETOFFSET(-1,$I$219),SHEETOFFSET(-1,$I$227))*$J17*$K17,0) -> 0 | Z17: =IFERROR(SHEETOFFSET(-1,$I$220)*$J17*$K17,0) -> 0 | AA17: =IFERROR(VLOOKUP($AC$69,t_factores_e,3,0)*$X17,0)+IFERROR(VLOOKUP($AC$70,t_factores_a,3,0)*$Y17,0)+IFERROR(VLOOKUP($AC$71,t_factores_t,3,0)*$Z17,0) -> 0 | AB17: =IFERROR(VLOOKUP($AC$69,t_factores_e,4,0)*$X17,0)+IFERROR(VLOOKUP($AC$70,t_factores_a,4,0)*$Y17,0)+IFERROR(VLOOKUP($AC$71,t_factores_t,5,0)*$Z17,0) -> 0 | AC17: =IFERROR(VLOOKUP($AC$69,t_factores_e,6,0)*$X17,0)+IFERROR(VLOOKUP($AC$70,t_factores_a,6,0)*$Y17,0)+IFERROR(VLOOKUP($AC$71,t_factores_t,7,0)*$Z17,0) -> 0 | AD17: =IFERROR(VLOOKUP($AC$69,t_factores_e,7,0)*$X17,0)+IFERROR(VLOOKUP($AC$70,t_factores_a,7,0)*$Y17,0)+IFERROR(VLOOKUP($AC$71,t_factores_t,9,0)*$Z17,0) -> 0 | AE17: =N17+T17 -> 0 | AF17: 0 | AG17: 0 | AH17: 0 | AI17: =IFERROR(AA17+AE17,"---") -> 0 | AJ17: =IFERROR(AB17+AF17,"---") -> 0 | AK17: =IFERROR(AC17+AG17,"---") -> 0 | AL17: 0 | AN17: =IFERROR(P17/($I17*$G17),"") ->  | AO17: =IFERROR(Q17/($I17*$G17),"") ->  | AP17: =IFERROR(AG17/($I17*$G17),"") ->  | AQ17: =IFERROR(AH17/($I17*$G17),"") ->  | AS17: =IFERROR(G17*I17,0) -> 0 | AT17: =IF(F17="Refrigerada",AS17,0) -> 0
A18: 2 | B18: =SELECCIONPATRON(SHEETOFFSET(-1,C133),SHEETOFFSET(-1,C94),SHEETOFFSET(-1,C95),SHEETOFFSET(-1,C58),SHEETOFFSET(-1,C65),SHEETOFFSET(-1,C67),SHEETOFFSET(-1,C52)) -> 0 | C18: =SELECCIONPATRON(SHEETOFFSET(-1,D133),SHEETOFFSET(-1,D94),SHEETOFFSET(-1,D95),SHEETOFFSET(-1,D58),SHEETOFFSET(-1,D65),SHEETOFFSET(-1,D67),SHEETOFFSET(-1,D52)) -> 0 | D18: =SELECCIONPATRON(SHEETOFFSET(-1,M133),SHEETOFFSET(-1,M94),SHEETOFFSET(-1,M95),SHEETOFFSET(-1,M58),SHEETOFFSET(-1,$E$51),SHEETOFFSET(-1,$E$52),SHEETOFFSET(-1,$E$38)) -> 0 | E18: =SELECCIONPATRON(SHEETOFFSET(-1,P133),SHEETOFFSET(-1,P94),SHEETOFFSET(-1,P95),SHEETOFFSET(-1,P58),SHEETOFFSET(-1,$E$52),SHEETOFFSET(-1,$E$53),SHEETOFFSET(-1,$E$39)) -> 0 | F18: =SELECCIONPATRON(SHEETOFFSET(-1,H133),SHEETOFFSET(-1,H94),SHEETOFFSET(-1,H95),SHEETOFFSET(-1,H58),SHEETOFFSET(-1,H65),SHEETOFFSET(-1,H67),SHEETOFFSET(-1,H52)) -> 0 | G18: =SELECCIONPATRON(SHEETOFFSET(-1,R133),SHEETOFFSET(-1,R94),SHEETOFFSET(-1,S95),SHEETOFFSET(-1,S58),SHEETOFFSET(-1,$G$55),SHEETOFFSET(-1,$G$56),SHEETOFFSET(-1,$G$42)) -> 0 | H18: =SELECCIONPATRON(SHEETOFFSET(-1,S133),SHEETOFFSET(-1,S94),SHEETOFFSET(-1,T95),SHEETOFFSET(-1,T58),SHEETOFFSET(-1,$G$56),SHEETOFFSET(-1,$G$57),SHEETOFFSET(-1,$G$43)) -> 0 | I18: =SELECCIONPATRON(SHEETOFFSET(-1,G133),SHEETOFFSET(-1,G94),SHEETOFFSET(-1,G95),SHEETOFFSET(-1,G58),SHEETOFFSET(-1,G65),SHEETOFFSET(-1,G67),SHEETOFFSET(-1,G52)) -> 0 | J18: =SELECCIONPATRON(SHEETOFFSET(-1,I133),SHEETOFFSET(-1,I94),SHEETOFFSET(-1,I95),SHEETOFFSET(-1,I58),SHEETOFFSET(-1,I65),SHEETOFFSET(-1,I67),SHEETOFFSET(-1,I52)) -> 0 | K18: =SELECCIONPATRON(SHEETOFFSET(-1,J133),SHEETOFFSET(-1,J94),SHEETOFFSET(-1,J95),SHEETOFFSET(-1,J58),SHEETOFFSET(-1,J65),SHEETOFFSET(-1,J67),SHEETOFFSET(-1,J52)) -> 0 | L18: --- | M18: =IFERROR(SELECCIONPATRON(L18,L18,L18,L18,H18*I18,H18*I18,H18*I18)*SELECCIONPATRON(SHEETOFFSET(-1,$T$122),SHEETOFFSET(-1,$T$85),SHEETOFFSET(-1,$V$86),SHEETOFFSET(-1,$V$49),SHEETOFFSET(-1,$G$29),SHEETOFFSET(-1,$G$44),SHEETOFFSET(-1,$G$30)),0) -> 0 | N18: 0 | O18: 0 | P18: 0 | Q18: 0 | R18: --- | S18: =IFERROR(IF(F18="Refrigerada",SELECCIONPATRON(R18,R18,R18,R18,I18,I18,I18)*SELECCIONPATRON(SHEETOFFSET(-1,$I$200),SHEETOFFSET(-1,$I$161),SHEETOFFSET(-1,$I$162),SHEETOFFSET(-1,$I$125),SHEETOFFSET(-1,$I$132)/(SHEETOFFSET(-1,$G$11)*IF(SHEETOFFSET(-1,$G$37)<>"",SHEETOFFSET(-1,$G$37),SHEETOFFSET(-1,$G$42))),SHEETOFFSET(-1,$I$134)/(SHEETOFFSET(-1,$G$11)*IF(SHEETOFFSET(-1,$G$26)<>"",SHEETOFFSET(-1,$G$26),SHEETOFFSET(-1,$G$31))),SHEETOFFSET(-1,$I$119)/(SHEETOFFSET(-1,$G$11)*IF(SHEETOFFSET(-1,$G$25)="Mercancías a granel",1,0.45))),0),0) -> 0 | T18: 0 | U18: 0 | V18: 0 | W18: 0 | X18: 0 | Y18: 0 | Z18: =IFERROR(SHEETOFFSET(-1,$I$220)*$J18*$K18,0) -> 0 | AA18: 0 | AB18: 0 | AC18: 0 | AD18: 0 | AE18: 0 | AF18: 0 | AG18: 0 | AH18: 0 | AI18: =IFERROR(AA18+AE18,"---") -> 0 | AJ18: 0 | AK18: 0 | AL18: 0 | AN18: =IFERROR(P18/($I18*$G18),"") ->  | AP18: =IFERROR(AG18/($I18*$G18),"") ->  | AS18: 0 | AT18: =IF(F18="Refrigerada",AS18,0) -> 0
A19: 3 | B19: =SELECCIONPATRON(SHEETOFFSET(-1,C134),SHEETOFFSET(-1,C95),SHEETOFFSET(-1,C96),SHEETOFFSET(-1,C59),SHEETOFFSET(-1,C66),SHEETOFFSET(-1,C68),SHEETOFFSET(-1,C53)) -> 0 | C19: =SELECCIONPATRON(SHEETOFFSET(-1,D134),SHEETOFFSET(-1,D95),SHEETOFFSET(-1,D96),SHEETOFFSET(-1,D59),SHEETOFFSET(-1,D66),SHEETOFFSET(-1,D68),SHEETOFFSET(-1,D53)) -> 0 | D19: =SELECCIONPATRON(SHEETOFFSET(-1,M134),SHEETOFFSET(-1,M95),SHEETOFFSET(-1,M96),SHEETOFFSET(-1,M59),SHEETOFFSET(-1,$E$51),SHEETOFFSET(-1,$E$52),SHEETOFFSET(-1,$E$38)) -> 0 | E19: =SELECCIONPATRON(SHEETOFFSET(-1,P134),SHEETOFFSET(-1,P95),SHEETOFFSET(-1,P96),SHEETOFFSET(-1,P59),SHEETOFFSET(-1,$E$52),SHEETOFFSET(-1,$E$53),SHEETOFFSET(-1,$E$39)) -> 0 | F19: =SELECCIONPATRON(SHEETOFFSET(-1,H134),SHEETOFFSET(-1,H95),SHEETOFFSET(-1,H96),SHEETOFFSET(-1,H59),SHEETOFFSET(-1,H66),SHEETOFFSET(-1,H68),SHEETOFFSET(-1,H53)) -> 0 | G19: =SELECCIONPATRON(SHEETOFFSET(-1,R134),SHEETOFFSET(-1,R95),SHEETOFFSET(-1,S96),SHEETOFFSET(-1,S59),SHEETOFFSET(-1,$G$55),SHEETOFFSET(-1,$G$56),SHEETOFFSET(-1,$G$42)) -> 0 | H19: =SELECCIONPATRON(SHEETOFFSET(-1,S134),SHEETOFFSET(-1,S95),SHEETOFFSET(-1,T96),SHEETOFFSET(-1,T59),SHEETOFFSET(-1,$G$56),SHEETOFFSET(-1,$G$57),SHEETOFFSET(-1,$G$43)) -> 0 | I19: =SELECCIONPATRON(SHEETOFFSET(-1,G134),SHEETOFFSET(-1,G95),SHEETOFFSET(-1,G96),SHEETOFFSET(-1,G59),SHEETOFFSET(-1,G66),SHEETOFFSET(-1,G68),SHEETOFFSET(-1,G53)) -> 0 | J19: =SELECCIONPATRON(SHEETOFFSET(-1,I134),SHEETOFFSET(-1,I95),SHEETOFFSET(-1,I96),SHEETOFFSET(-1,I59),SHEETOFFSET(-1,I66),SHEETOFFSET(-1,I68),SHEETOFFSET(-1,I53)) -> 0 | K19: =SELECCIONPATRON(SHEETOFFSET(-1,J134),SHEETOFFSET(-1,J95),SHEETOFFSET(-1,J96),SHEETOFFSET(-1,J59),SHEETOFFSET(-1,J66),SHEETOFFSET(-1,J68),SHEETOFFSET(-1,J53)) -> 0 | L19: --- | M19: =IFERROR(SELECCIONPATRON(L19,L19,L19,L19,H19*I19,H19*I19,H19*I19)*SELECCIONPATRON(SHEETOFFSET(-1,$T$122),SHEETOFFSET(-1,$T$85),SHEETOFFSET(-1,$V$86),SHEETOFFSET(-1,$V$49),SHEETOFFSET(-1,$G$29),SHEETOFFSET(-1,$G$44),SHEETOFFSET(-1,$G$30)),0) -> 0 | N19: 0 | O19: 0 | P19: 0 | Q19: 0 | R19: --- | S19: =IFERROR(IF(F19="Refrigerada",SELECCIONPATRON(R19,R19,R19,R19,I19,I19,I19)*SELECCIONPATRON(SHEETOFFSET(-1,$I$200),SHEETOFFSET(-1,$I$161),SHEETOFFSET(-1,$I$162),SHEETOFFSET(-1,$I$125),SHEETOFFSET(-1,$I$132)/(SHEETOFFSET(-1,$G$11)*IF(SHEETOFFSET(-1,$G$37)<>"",SHEETOFFSET(-1,$G$37),SHEETOFFSET(-1,$G$42))),SHEETOFFSET(-1,$I$134)/(SHEETOFFSET(-1,$G$11)*IF(SHEETOFFSET(-1,$G$26)<>"",SHEETOFFSET(-1,$G$26),SHEETOFFSET(-1,$G$31))),SHEETOFFSET(-1,$I$119)/(SHEETOFFSET(-1,$G$11)*IF(SHEETOFFSET(-1,$G$25)="Mercancías a granel",1,0.45))),0),0) -> 0 | T19: 0 | U19: 0 | V19: 0 | W19: 0 | X19: 0 | Y19: 0 | Z19: 0 | AA19: 0 | AB19: 0 | AC19: 0 | AD19: 0 | AE19: 0 | AF19: 0 | AG19: 0 | AH19: 0 | AI19: 0 | AJ19: 0 | AK19: 0 | AL19: 0 | AS19: 0 | AT19: 0
A20: 4 | B20: =SELECCIONPATRON(SHEETOFFSET(-1,C135),SHEETOFFSET(-1,C96),SHEETOFFSET(-1,C97),SHEETOFFSET(-1,C60),SHEETOFFSET(-1,C67),SHEETOFFSET(-1,C69),SHEETOFFSET(-1,C54)) -> 0 | C20: =SELECCIONPATRON(SHEETOFFSET(-1,D135),SHEETOFFSET(-1,D96),SHEETOFFSET(-1,D97),SHEETOFFSET(-1,D60),SHEETOFFSET(-1,D67),SHEETOFFSET(-1,D69),SHEETOFFSET(-1,D54)) -> 0 | D20: =SELECCIONPATRON(SHEETOFFSET(-1,M135),SHEETOFFSET(-1,M96),SHEETOFFSET(-1,M97),SHEETOFFSET(-1,M60),SHEETOFFSET(-1,$E$51),SHEETOFFSET(-1,$E$52),SHEETOFFSET(-1,$E$38)) -> 0 | E20: =SELECCIONPATRON(SHEETOFFSET(-1,P135),SHEETOFFSET(-1,P96),SHEETOFFSET(-1,P97),SHEETOFFSET(-1,P60),SHEETOFFSET(-1,$E$52),SHEETOFFSET(-1,$E$53),SHEETOFFSET(-1,$E$39)) -> 0 | F20: =SELECCIONPATRON(SHEETOFFSET(-1,H135),SHEETOFFSET(-1,H96),SHEETOFFSET(-1,H97),SHEETOFFSET(-1,H60),SHEETOFFSET(-1,H67),SHEETOFFSET(-1,H69),SHEETOFFSET(-1,H54)) -> 0 | G20: =SELECCIONPATRON(SHEETOFFSET(-1,R135),SHEETOFFSET(-1,R96),SHEETOFFSET(-1,S97),SHEETOFFSET(-1,S60),SHEETOFFSET(-1,$G$55),SHEETOFFSET(-1,$G$56),SHEETOFFSET(-1,$G$42)) -> 0 | H20: =SELECCIONPATRON(SHEETOFFSET(-1,S135),SHEETOFFSET(-1,S96),SHEETOFFSET(-1,T97),SHEETOFFSET(-1,T60),SHEETOFFSET(-1,$G$56),SHEETOFFSET(-1,$G$57),SHEETOFFSET(-1,$G$43)) -> 0 | I20: =SELECCIONPATRON(SHEETOFFSET(-1,G135),SHEETOFFSET(-1,G96),SHEETOFFSET(-1,G97),SHEETOFFSET(-1,G60),SHEETOFFSET(-1,G67),SHEETOFFSET(-1,G69),SHEETOFFSET(-1,G54)) -> 0 | J20: =SELECCIONPATRON(SHEETOFFSET(-1,I135),SHEETOFFSET(-1,I96),SHEETOFFSET(-1,I97),SHEETOFFSET(-1,I60),SHEETOFFSET(-1,I67),SHEETOFFSET(-1,I69),SHEETOFFSET(-1,I54)) -> 0 | K20: =SELECCIONPATRON(SHEETOFFSET(-1,J135),SHEETOFFSET(-1,J96),SHEETOFFSET(-1,J97),SHEETOFFSET(-1,J60),SHEETOFFSET(-1,J67),SHEETOFFSET(-1,J69),SHEETOFFSET(-1,J54)) -> 0 | L20: --- | M20: =IFERROR(SELECCIONPATRON(L20,L20,L20,L20,H20*I20,H20*I20,H20*I20)*SELECCIONPATRON(SHEETOFFSET(-1,$T$122),SHEETOFFSET(-1,$T$85),SHEETOFFSET(-1,$V$86),SHEETOFFSET(-1,$V$49),SHEETOFFSET(-1,$G$29),SHEETOFFSET(-1,$G$44),SHEETOFFSET(-1,$G$30)),0) -> 0 | N20: 0 | O20: 0 | P20: 0 | Q20: 0 | R20: --- | S20: =IFERROR(IF(F20="Refrigerada",SELECCIONPATRON(R20,R20,R20,R20,I20,I20,I20)*SELECCIONPATRON(SHEETOFFSET(-1,$I$200),SHEETOFFSET(-1,$I$161),SHEETOFFSET(-1,$I$162),SHEETOFFSET(-1,$I$125),SHEETOFFSET(-1,$I$132)/(SHEETOFFSET(-1,$G$11)*IF(SHEETOFFSET(-1,$G$37)<>"",SHEETOFFSET(-1,$G$37),SHEETOFFSET(-1,$G$42))),SHEETOFFSET(-1,$I$134)/(SHEETOFFSET(-1,$G$11)*IF(SHEETOFFSET(-1,$G$26)<>"",SHEETOFFSET(-1,$G$26),SHEETOFFSET(-1,$G$31))),SHEETOFFSET(-1,$I$119)/(SHEETOFFSET(-1,$G$11)*IF(SHEETOFFSET(-1,$G$25)="Mercancías a granel",1,0.45))),0),0) -> 0 | T20: 0 | U20: 0 | V20: 0 | W20: 0 | X20: 0 | Y20: 0 | Z20: 0 | AA20: 0 | AB20: 0 | AC20: 0 | AD20: 0 | AE20: 0 | AF20: 0 | AG20: 0 | AH20: 0 | AI20: 0 | AJ20: 0 | AK20: 0 | AL20: 0 | AS20: 0 | AT20: 0
A21: 5 | B21: =SELECCIONPATRON(SHEETOFFSET(-1,C136),SHEETOFFSET(-1,C97),SHEETOFFSET(-1,C98),SHEETOFFSET(-1,C61),SHEETOFFSET(-1,C68),SHEETOFFSET(-1,C70),SHEETOFFSET(-1,C55)) -> 0 | C21: =SELECCIONPATRON(SHEETOFFSET(-1,D136),SHEETOFFSET(-1,D97),SHEETOFFSET(-1,D98),SHEETOFFSET(-1,D61),SHEETOFFSET(-1,D68),SHEETOFFSET(-1,D70),SHEETOFFSET(-1,D55)) -> 0 | D21: =SELECCIONPATRON(SHEETOFFSET(-1,M136),SHEETOFFSET(-1,M97),SHEETOFFSET(-1,M98),SHEETOFFSET(-1,M61),SHEETOFFSET(-1,$E$51),SHEETOFFSET(-1,$E$52),SHEETOFFSET(-1,$E$38)) -> 0 | E21: =SELECCIONPATRON(SHEETOFFSET(-1,P136),SHEETOFFSET(-1,P97),SHEETOFFSET(-1,P98),SHEETOFFSET(-1,P61),SHEETOFFSET(-1,$E$52),SHEETOFFSET(-1,$E$53),SHEETOFFSET(-1,$E$39)) -> 0 | F21: =SELECCIONPATRON(SHEETOFFSET(-1,H136),SHEETOFFSET(-1,H97),SHEETOFFSET(-1,H98),SHEETOFFSET(-1,H61),SHEETOFFSET(-1,H68),SHEETOFFSET(-1,H70),SHEETOFFSET(-1,H55)) -> 0 | G21: =SELECCIONPATRON(SHEETOFFSET(-1,R136),SHEETOFFSET(-1,R97),SHEETOFFSET(-1,S98),SHEETOFFSET(-1,S61),SHEETOFFSET(-1,$G$55),SHEETOFFSET(-1,$G$56),SHEETOFFSET(-1,$G$42)) -> 0 | H21: =SELECCIONPATRON(SHEETOFFSET(-1,S136),SHEETOFFSET(-1,S97),SHEETOFFSET(-1,T98),SHEETOFFSET(-1,T61),SHEETOFFSET(-1,$G$56),SHEETOFFSET(-1,$G$57),SHEETOFFSET(-1,$G$43)) -> 0 | I21: =SELECCIONPATRON(SHEETOFFSET(-1,G136),SHEETOFFSET(-1,G97),SHEETOFFSET(-1,G98),SHEETOFFSET(-1,G61),SHEETOFFSET(-1,G68),SHEETOFFSET(-1,G70),SHEETOFFSET(-1,G55)) -> 0 | J21: =SELECCIONPATRON(SHEETOFFSET(-1,I136),SHEETOFFSET(-1,I97),SHEETOFFSET(-1,I98),SHEETOFFSET(-1,I61),SHEETOFFSET(-1,I68),SHEETOFFSET(-1,I70),SHEETOFFSET(-1,I55)) -> 0 | K21: =SELECCIONPATRON(SHEETOFFSET(-1,J136),SHEETOFFSET(-1,J97),SHEETOFFSET(-1,J98),SHEETOFFSET(-1,J61),SHEETOFFSET(-1,J68),SHEETOFFSET(-1,J70),SHEETOFFSET(-1,J55)) -> 0 | L21: --- | M21: =IFERROR(SELECCIONPATRON(L21,L21,L21,L21,H21*I21,H21*I21,H21*I21)*SELECCIONPATRON(SHEETOFFSET(-1,$T$122),SHEETOFFSET(-1,$T$85),SHEETOFFSET(-1,$V$86),SHEETOFFSET(-1,$V$49),SHEETOFFSET(-1,$G$29),SHEETOFFSET(-1,$G$44),SHEETOFFSET(-1,$G$30)),0) -> 0 | N21: 0 | O21: 0 | P21: 0 | Q21: 0 | R21: --- | S21: =IFERROR(IF(F21="Refrigerada",SELECCIONPATRON(R21,R21,R21,R21,I21,I21,I21)*SELECCIONPATRON(SHEETOFFSET(-1,$I$200),SHEETOFFSET(-1,$I$161),SHEETOFFSET(-1,$I$162),SHEETOFFSET(-1,$I$125),SHEETOFFSET(-1,$I$132)/(SHEETOFFSET(-1,$G$11)*IF(SHEETOFFSET(-1,$G$37)<>"",SHEETOFFSET(-1,$G$37),SHEETOFFSET(-1,$G$42))),SHEETOFFSET(-1,$I$134)/(SHEETOFFSET(-1,$G$11)*IF(SHEETOFFSET(-1,$G$26)<>"",SHEETOFFSET(-1,$G$26),SHEETOFFSET(-1,$G$31))),SHEETOFFSET(-1,$I$119)/(SHEETOFFSET(-1,$G$11)*IF(SHEETOFFSET(-1,$G$25)="Mercancías a granel",1,0.45))),0),0) -> 0 | T21: 0 | U21: 0 | V21: 0 | W21: 0 | X21: 0 | Y21: 0 | Z21: 0 | AA21: 0 | AB21: 0 | AC21: 0 | AD21: 0 | AE21: 0 | AF21: 0 | AG21: 0 | AH21: 0 | AI21: 0 | AJ21: 0 | AK21: 0 | AL21: 0 | AS21: 0 | AT21: 0
A22: 6 | B22: =SELECCIONPATRON(SHEETOFFSET(-1,C137),SHEETOFFSET(-1,C98),SHEETOFFSET(-1,C99),SHEETOFFSET(-1,C62),SHEETOFFSET(-1,C69),SHEETOFFSET(-1,C71),SHEETOFFSET(-1,C56)) -> 0 | C22: =SELECCIONPATRON(SHEETOFFSET(-1,D137),SHEETOFFSET(-1,D98),SHEETOFFSET(-1,D99),SHEETOFFSET(-1,D62),SHEETOFFSET(-1,D69),SHEETOFFSET(-1,D71),SHEETOFFSET(-1,D56)) -> 0 | D22: =SELECCIONPATRON(SHEETOFFSET(-1,M137),SHEETOFFSET(-1,M98),SHEETOFFSET(-1,M99),SHEETOFFSET(-1,M62),SHEETOFFSET(-1,$E$51),SHEETOFFSET(-1,$E$52),SHEETOFFSET(-1,$E$38)) -> 0 | E22: =SELECCIONPATRON(SHEETOFFSET(-1,P137),SHEETOFFSET(-1,P98),SHEETOFFSET(-1,P99),SHEETOFFSET(-1,P62),SHEETOFFSET(-1,$E$52),SHEETOFFSET(-1,$E$53),SHEETOFFSET(-1,$E$39)) -> 0 | F22: =SELECCIONPATRON(SHEETOFFSET(-1,H137),SHEETOFFSET(-1,H98),SHEETOFFSET(-1,H99),SHEETOFFSET(-1,H62),SHEETOFFSET(-1,H69),SHEETOFFSET(-1,H71),SHEETOFFSET(-1,H56)) -> 0 | G22: =SELECCIONPATRON(SHEETOFFSET(-1,R137),SHEETOFFSET(-1,R98),SHEETOFFSET(-1,S99),SHEETOFFSET(-1,S62),SHEETOFFSET(-1,$G$55),SHEETOFFSET(-1,$G$56),SHEETOFFSET(-1,$G$42)) -> 0 | H22: =SELECCIONPATRON(SHEETOFFSET(-1,S137),SHEETOFFSET(-1,S98),SHEETOFFSET(-1,T99),SHEETOFFSET(-1,T62),SHEETOFFSET(-1,$G$56),SHEETOFFSET(-1,$G$57),SHEETOFFSET(-1,$G$43)) -> 0 | I22: =SELECCIONPATRON(SHEETOFFSET(-1,G137),SHEETOFFSET(-1,G98),SHEETOFFSET(-1,G99),SHEETOFFSET(-1,G62),SHEETOFFSET(-1,G69),SHEETOFFSET(-1,G71),SHEETOFFSET(-1,G56)) -> 0 | J22: =SELECCIONPATRON(SHEETOFFSET(-1,I137),SHEETOFFSET(-1,I98),SHEETOFFSET(-1,I99),SHEETOFFSET(-1,I62),SHEETOFFSET(-1,I69),SHEETOFFSET(-1,I71),SHEETOFFSET(-1,I56)) -> 0 | K22: =SELECCIONPATRON(SHEETOFFSET(-1,J137),SHEETOFFSET(-1,J98),SHEETOFFSET(-1,J99),SHEETOFFSET(-1,J62),SHEETOFFSET(-1,J69),SHEETOFFSET(-1,J71),SHEETOFFSET(-1,J56)) -> 0 | L22: --- | M22: =IFERROR(SELECCIONPATRON(L22,L22,L22,L22,H22*I22,H22*I22,H22*I22)*SELECCIONPATRON(SHEETOFFSET(-1,$T$122),SHEETOFFSET(-1,$T$85),SHEETOFFSET(-1,$V$86),SHEETOFFSET(-1,$V$49),SHEETOFFSET(-1,$G$29),SHEETOFFSET(-1,$G$44),SHEETOFFSET(-1,$G$30)),0) -> 0 | N22: 0 | O22: 0 | P22: 0 | Q22: 0 | R22: --- | S22: =IFERROR(IF(F22="Refrigerada",SELECCIONPATRON(R22,R22,R22,R22,I22,I22,I22)*SELECCIONPATRON(SHEETOFFSET(-1,$I$200),SHEETOFFSET(-1,$I$161),SHEETOFFSET(-1,$I$162),SHEETOFFSET(-1,$I$125),SHEETOFFSET(-1,$I$132)/(SHEETOFFSET(-1,$G$11)*IF(SHEETOFFSET(-1,$G$37)<>"",SHEETOFFSET(-1,$G$37),SHEETOFFSET(-1,$G$42))),SHEETOFFSET(-1,$I$134)/(SHEETOFFSET(-1,$G$11)*IF(SHEETOFFSET(-1,$G$26)<>"",SHEETOFFSET(-1,$G$26),SHEETOFFSET(-1,$G$31))),SHEETOFFSET(-1,$I$119)/(SHEETOFFSET(-1,$G$11)*IF(SHEETOFFSET(-1,$G$25)="Mercancías a granel",1,0.45))),0),0) -> 0 | T22: 0 | U22: 0 | V22: 0 | W22: 0 | X22: 0 | Y22: 0 | Z22: 0 | AA22: 0 | AB22: 0 | AC22: 0 | AD22: 0 | AE22: 0 | AF22: 0 | AG22: 0 | AH22: 0 | AI22: 0 | AJ22: 0 | AK22: 0 | AL22: 0 | AS22: 0 | AT22: 0
A23: 7 | B23: =SELECCIONPATRON(SHEETOFFSET(-1,C138),SHEETOFFSET(-1,C99),SHEETOFFSET(-1,C100),SHEETOFFSET(-1,C63),SHEETOFFSET(-1,C70),SHEETOFFSET(-1,C72),SHEETOFFSET(-1,C57)) -> 0 | C23: =SELECCIONPATRON(SHEETOFFSET(-1,D138),SHEETOFFSET(-1,D99),SHEETOFFSET(-1,D100),SHEETOFFSET(-1,D63),SHEETOFFSET(-1,D70),SHEETOFFSET(-1,D72),SHEETOFFSET(-1,D57)) -> 0 | D23: =SELECCIONPATRON(SHEETOFFSET(-1,M138),SHEETOFFSET(-1,M99),SHEETOFFSET(-1,M100),SHEETOFFSET(-1,M63),SHEETOFFSET(-1,$E$51),SHEETOFFSET(-1,$E$52),SHEETOFFSET(-1,$E$38)) -> 0 | E23: =SELECCIONPATRON(SHEETOFFSET(-1,P138),SHEETOFFSET(-1,P99),SHEETOFFSET(-1,P100),SHEETOFFSET(-1,P63),SHEETOFFSET(-1,$E$52),SHEETOFFSET(-1,$E$53),SHEETOFFSET(-1,$E$39)) -> 0 | F23: =SELECCIONPATRON(SHEETOFFSET(-1,H138),SHEETOFFSET(-1,H99),SHEETOFFSET(-1,H100),SHEETOFFSET(-1,H63),SHEETOFFSET(-1,H70),SHEETOFFSET(-1,H72),SHEETOFFSET(-1,H57)) -> 0 | G23: =SELECCIONPATRON(SHEETOFFSET(-1,R138),SHEETOFFSET(-1,R99),SHEETOFFSET(-1,S100),SHEETOFFSET(-1,S63),SHEETOFFSET(-1,$G$55),SHEETOFFSET(-1,$G$56),SHEETOFFSET(-1,$G$42)) -> 0 | H23: =SELECCIONPATRON(SHEETOFFSET(-1,S138),SHEETOFFSET(-1,S99),SHEETOFFSET(-1,T100),SHEETOFFSET(-1,T63),SHEETOFFSET(-1,$G$56),SHEETOFFSET(-1,$G$57),SHEETOFFSET(-1,$G$43)) -> 0 | I23: =SELECCIONPATRON(SHEETOFFSET(-1,G138),SHEETOFFSET(-1,G99),SHEETOFFSET(-1,G100),SHEETOFFSET(-1,G63),SHEETOFFSET(-1,G70),SHEETOFFSET(-1,G72),SHEETOFFSET(-1,G57)) -> 0 | J23: =SELECCIONPATRON(SHEETOFFSET(-1,I138),SHEETOFFSET(-1,I99),SHEETOFFSET(-1,I100),SHEETOFFSET(-1,I63),SHEETOFFSET(-1,I70),SHEETOFFSET(-1,I72),SHEETOFFSET(-1,I57)) -> 0 | K23: =SELECCIONPATRON(SHEETOFFSET(-1,J138),SHEETOFFSET(-1,J99),SHEETOFFSET(-1,J100),SHEETOFFSET(-1,J63),SHEETOFFSET(-1,J70),SHEETOFFSET(-1,J72),SHEETOFFSET(-1,J57)) -> 0 | L23: --- | M23: =IFERROR(SELECCIONPATRON(L23,L23,L23,L23,H23*I23,H23*I23,H23*I23)*SELECCIONPATRON(SHEETOFFSET(-1,$T$122),SHEETOFFSET(-1,$T$85),SHEETOFFSET(-1,$V$86),SHEETOFFSET(-1,$V$49),SHEETOFFSET(-1,$G$29),SHEETOFFSET(-1,$G$44),SHEETOFFSET(-1,$G$30)),0) -> 0 | N23: 0 | O23: 0 | P23: 0 | Q23: 0 | R23: --- | S23: =IFERROR(IF(F23="Refrigerada",SELECCIONPATRON(R23,R23,R23,R23,I23,I23,I23)*SELECCIONPATRON(SHEETOFFSET(-1,$I$200),SHEETOFFSET(-1,$I$161),SHEETOFFSET(-1,$I$162),SHEETOFFSET(-1,$I$125),SHEETOFFSET(-1,$I$132)/(SHEETOFFSET(-1,$G$11)*IF(SHEETOFFSET(-1,$G$37)<>"",SHEETOFFSET(-1,$G$37),SHEETOFFSET(-1,$G$42))),SHEETOFFSET(-1,$I$134)/(SHEETOFFSET(-1,$G$11)*IF(SHEETOFFSET(-1,$G$26)<>"",SHEETOFFSET(-1,$G$26),SHEETOFFSET(-1,$G$31))),SHEETOFFSET(-1,$I$119)/(SHEETOFFSET(-1,$G$11)*IF(SHEETOFFSET(-1,$G$25)="Mercancías a granel",1,0.45))),0),0) -> 0 | T23: 0 | U23: 0 | V23: 0 | W23: 0 | X23: 0 | Y23: 0 | Z23: 0 | AA23: 0 | AB23: 0 | AC23: 0 | AD23: 0 | AE23: 0 | AF23: 0 | AG23: 0 | AH23: 0 | AI23: 0 | AJ23: 0 | AK23: 0 | AL23: 0 | AS23: 0 | AT23: 0
A24: 8 | B24: =SELECCIONPATRON(SHEETOFFSET(-1,C139),SHEETOFFSET(-1,C100),SHEETOFFSET(-1,C101),SHEETOFFSET(-1,C64),SHEETOFFSET(-1,C71),SHEETOFFSET(-1,C73),SHEETOFFSET(-1,C58)) -> 0 | C24: =SELECCIONPATRON(SHEETOFFSET(-1,D139),SHEETOFFSET(-1,D100),SHEETOFFSET(-1,D101),SHEETOFFSET(-1,D64),SHEETOFFSET(-1,D71),SHEETOFFSET(-1,D73),SHEETOFFSET(-1,D58)) -> 0 | D24: =SELECCIONPATRON(SHEETOFFSET(-1,M139),SHEETOFFSET(-1,M100),SHEETOFFSET(-1,M101),SHEETOFFSET(-1,M64),SHEETOFFSET(-1,$E$51),SHEETOFFSET(-1,$E$52),SHEETOFFSET(-1,$E$38)) -> 0 | E24: =SELECCIONPATRON(SHEETOFFSET(-1,P139),SHEETOFFSET(-1,P100),SHEETOFFSET(-1,P101),SHEETOFFSET(-1,P64),SHEETOFFSET(-1,$E$52),SHEETOFFSET(-1,$E$53),SHEETOFFSET(-1,$E$39)) -> 0 | F24: =SELECCIONPATRON(SHEETOFFSET(-1,H139),SHEETOFFSET(-1,H100),SHEETOFFSET(-1,H101),SHEETOFFSET(-1,H64),SHEETOFFSET(-1,H71),SHEETOFFSET(-1,H73),SHEETOFFSET(-1,H58)) -> 0 | G24: =SELECCIONPATRON(SHEETOFFSET(-1,R139),SHEETOFFSET(-1,R100),SHEETOFFSET(-1,S101),SHEETOFFSET(-1,S64),SHEETOFFSET(-1,$G$55),SHEETOFFSET(-1,$G$56),SHEETOFFSET(-1,$G$42)) -> 0 | H24: =SELECCIONPATRON(SHEETOFFSET(-1,S139),SHEETOFFSET(-1,S100),SHEETOFFSET(-1,T101),SHEETOFFSET(-1,T64),SHEETOFFSET(-1,$G$56),SHEETOFFSET(-1,$G$57),SHEETOFFSET(-1,$G$43)) -> 0 | I24: =SELECCIONPATRON(SHEETOFFSET(-1,G139),SHEETOFFSET(-1,G100),SHEETOFFSET(-1,G101),SHEETOFFSET(-1,G64),SHEETOFFSET(-1,G71),SHEETOFFSET(-1,G73),SHEETOFFSET(-1,G58)) -> 0 | J24: =SELECCIONPATRON(SHEETOFFSET(-1,I139),SHEETOFFSET(-1,I100),SHEETOFFSET(-1,I101),SHEETOFFSET(-1,I64),SHEETOFFSET(-1,I71),SHEETOFFSET(-1,I73),SHEETOFFSET(-1,I58)) -> 0 | K24: =SELECCIONPATRON(SHEETOFFSET(-1,J139),SHEETOFFSET(-1,J100),SHEETOFFSET(-1,J101),SHEETOFFSET(-1,J64),SHEETOFFSET(-1,J71),SHEETOFFSET(-1,J73),SHEETOFFSET(-1,J58)) -> 0 | L24: --- | M24: =IFERROR(SELECCIONPATRON(L24,L24,L24,L24,H24*I24,H24*I24,H24*I24)*SELECCIONPATRON(SHEETOFFSET(-1,$T$122),SHEETOFFSET(-1,$T$85),SHEETOFFSET(-1,$V$86),SHEETOFFSET(-1,$V$49),SHEETOFFSET(-1,$G$29),SHEETOFFSET(-1,$G$44),SHEETOFFSET(-1,$G$30)),0) -> 0 | N24: 0 | O24: 0 | P24: 0 | Q24: 0 | R24: --- | S24: =IFERROR(IF(F24="Refrigerada",SELECCIONPATRON(R24,R24,R24,R24,I24,I24,I24)*SELECCIONPATRON(SHEETOFFSET(-1,$I$200),SHEETOFFSET(-1,$I$161),SHEETOFFSET(-1,$I$162),SHEETOFFSET(-1,$I$125),SHEETOFFSET(-1,$I$132)/(SHEETOFFSET(-1,$G$11)*IF(SHEETOFFSET(-1,$G$37)<>"",SHEETOFFSET(-1,$G$37),SHEETOFFSET(-1,$G$42))),SHEETOFFSET(-1,$I$134)/(SHEETOFFSET(-1,$G$11)*IF(SHEETOFFSET(-1,$G$26)<>"",SHEETOFFSET(-1,$G$26),SHEETOFFSET(-1,$G$31))),SHEETOFFSET(-1,$I$119)/(SHEETOFFSET(-1,$G$11)*IF(SHEETOFFSET(-1,$G$25)="Mercancías a granel",1,0.45))),0),0) -> 0 | T24: 0 | U24: 0 | V24: 0 | W24: 0 | X24: 0 | Y24: 0 | Z24: 0 | AA24: 0 | AB24: 0 | AC24: 0 | AD24: 0 | AE24: 0 | AF24: 0 | AG24: 0 | AH24: 0 | AI24: 0 | AJ24: 0 | AK24: 0 | AL24: 0 | AS24: 0 | AT24: 0
A25: 9 | B25: =SELECCIONPATRON(SHEETOFFSET(-1,C140),SHEETOFFSET(-1,C101),SHEETOFFSET(-1,C102),SHEETOFFSET(-1,C65),SHEETOFFSET(-1,C72),SHEETOFFSET(-1,C74),SHEETOFFSET(-1,C59)) -> 0 | C25: =SELECCIONPATRON(SHEETOFFSET(-1,D140),SHEETOFFSET(-1,D101),SHEETOFFSET(-1,D102),SHEETOFFSET(-1,D65),SHEETOFFSET(-1,D72),SHEETOFFSET(-1,D74),SHEETOFFSET(-1,D59)) -> 0 | D25: =SELECCIONPATRON(SHEETOFFSET(-1,M140),SHEETOFFSET(-1,M101),SHEETOFFSET(-1,M102),SHEETOFFSET(-1,M65),SHEETOFFSET(-1,$E$51),SHEETOFFSET(-1,$E$52),SHEETOFFSET(-1,$E$38)) -> 0 | E25: =SELECCIONPATRON(SHEETOFFSET(-1,P140),SHEETOFFSET(-1,P101),SHEETOFFSET(-1,P102),SHEETOFFSET(-1,P65),SHEETOFFSET(-1,$E$52),SHEETOFFSET(-1,$E$53),SHEETOFFSET(-1,$E$39)) -> 0 | F25: =SELECCIONPATRON(SHEETOFFSET(-1,H140),SHEETOFFSET(-1,H101),SHEETOFFSET(-1,H102),SHEETOFFSET(-1,H65),SHEETOFFSET(-1,H72),SHEETOFFSET(-1,H74),SHEETOFFSET(-1,H59)) -> 0 | G25: =SELECCIONPATRON(SHEETOFFSET(-1,R140),SHEETOFFSET(-1,R101),SHEETOFFSET(-1,S102),SHEETOFFSET(-1,S65),SHEETOFFSET(-1,$G$55),SHEETOFFSET(-1,$G$56),SHEETOFFSET(-1,$G$42)) -> 0 | H25: =SELECCIONPATRON(SHEETOFFSET(-1,S140),SHEETOFFSET(-1,S101),SHEETOFFSET(-1,T102),SHEETOFFSET(-1,T65),SHEETOFFSET(-1,$G$56),SHEETOFFSET(-1,$G$57),SHEETOFFSET(-1,$G$43)) -> 0 | I25: =SELECCIONPATRON(SHEETOFFSET(-1,G140),SHEETOFFSET(-1,G101),SHEETOFFSET(-1,G102),SHEETOFFSET(-1,G65),SHEETOFFSET(-1,G72),SHEETOFFSET(-1,G74),SHEETOFFSET(-1,G59)) -> 0 | J25: =SELECCIONPATRON(SHEETOFFSET(-1,I140),SHEETOFFSET(-1,I101),SHEETOFFSET(-1,I102),SHEETOFFSET(-1,I65),SHEETOFFSET(-1,I72),SHEETOFFSET(-1,I74),SHEETOFFSET(-1,I59)) -> 0 | K25: =SELECCIONPATRON(SHEETOFFSET(-1,J140),SHEETOFFSET(-1,J101),SHEETOFFSET(-1,J102),SHEETOFFSET(-1,J65),SHEETOFFSET(-1,J72),SHEETOFFSET(-1,J74),SHEETOFFSET(-1,J59)) -> 0 | L25: --- | M25: =IFERROR(SELECCIONPATRON(L25,L25,L25,L25,H25*I25,H25*I25,H25*I25)*SELECCIONPATRON(SHEETOFFSET(-1,$T$122),SHEETOFFSET(-1,$T$85),SHEETOFFSET(-1,$V$86),SHEETOFFSET(-1,$V$49),SHEETOFFSET(-1,$G$29),SHEETOFFSET(-1,$G$44),SHEETOFFSET(-1,$G$30)),0) -> 0 | N25: 0 | O25: 0 | P25: 0 | Q25: 0 | R25: --- | S25: =IFERROR(IF(F25="Refrigerada",SELECCIONPATRON(R25,R25,R25,R25,I25,I25,I25)*SELECCIONPATRON(SHEETOFFSET(-1,$I$200),SHEETOFFSET(-1,$I$161),SHEETOFFSET(-1,$I$162),SHEETOFFSET(-1,$I$125),SHEETOFFSET(-1,$I$132)/(SHEETOFFSET(-1,$G$11)*IF(SHEETOFFSET(-1,$G$37)<>"",SHEETOFFSET(-1,$G$37),SHEETOFFSET(-1,$G$42))),SHEETOFFSET(-1,$I$134)/(SHEETOFFSET(-1,$G$11)*IF(SHEETOFFSET(-1,$G$26)<>"",SHEETOFFSET(-1,$G$26),SHEETOFFSET(-1,$G$31))),SHEETOFFSET(-1,$I$119)/(SHEETOFFSET(-1,$G$11)*IF(SHEETOFFSET(-1,$G$25)="Mercancías a granel",1,0.45))),0),0) -> 0 | T25: 0 | U25: 0 | V25: 0 | W25: 0 | X25: 0 | Y25: 0 | Z25: 0 | AA25: 0 | AB25: 0 | AC25: 0 | AD25: 0 | AE25: 0 | AF25: 0 | AG25: 0 | AH25: 0 | AI25: 0 | AJ25: 0 | AK25: 0 | AL25: 0 | AS25: 0 | AT25: 0
A26: 10 | B26: =SELECCIONPATRON(SHEETOFFSET(-1,C141),SHEETOFFSET(-1,C102),SHEETOFFSET(-1,C103),SHEETOFFSET(-1,C66),SHEETOFFSET(-1,C73),SHEETOFFSET(-1,C75),SHEETOFFSET(-1,C60)) -> 0 | C26: =SELECCIONPATRON(SHEETOFFSET(-1,D141),SHEETOFFSET(-1,D102),SHEETOFFSET(-1,D103),SHEETOFFSET(-1,D66),SHEETOFFSET(-1,D73),SHEETOFFSET(-1,D75),SHEETOFFSET(-1,D60)) -> 0 | D26: =SELECCIONPATRON(SHEETOFFSET(-1,M141),SHEETOFFSET(-1,M102),SHEETOFFSET(-1,M103),SHEETOFFSET(-1,M66),SHEETOFFSET(-1,$E$51),SHEETOFFSET(-1,$E$52),SHEETOFFSET(-1,$E$38)) -> 0 | E26: =SELECCIONPATRON(SHEETOFFSET(-1,P141),SHEETOFFSET(-1,P102),SHEETOFFSET(-1,P103),SHEETOFFSET(-1,P66),SHEETOFFSET(-1,$E$52),SHEETOFFSET(-1,$E$53),SHEETOFFSET(-1,$E$39)) -> 0 | F26: =SELECCIONPATRON(SHEETOFFSET(-1,H141),SHEETOFFSET(-1,H102),SHEETOFFSET(-1,H103),SHEETOFFSET(-1,H66),SHEETOFFSET(-1,H73),SHEETOFFSET(-1,H75),SHEETOFFSET(-1,H60)) -> 0 | G26: =SELECCIONPATRON(SHEETOFFSET(-1,R141),SHEETOFFSET(-1,R102),SHEETOFFSET(-1,S103),SHEETOFFSET(-1,S66),SHEETOFFSET(-1,$G$55),SHEETOFFSET(-1,$G$56),SHEETOFFSET(-1,$G$42)) -> 0 | H26: =SELECCIONPATRON(SHEETOFFSET(-1,S141),SHEETOFFSET(-1,S102),SHEETOFFSET(-1,T103),SHEETOFFSET(-1,T66),SHEETOFFSET(-1,$G$56),SHEETOFFSET(-1,$G$57),SHEETOFFSET(-1,$G$43)) -> 0 | I26: =SELECCIONPATRON(SHEETOFFSET(-1,G141),SHEETOFFSET(-1,G102),SHEETOFFSET(-1,G103),SHEETOFFSET(-1,G66),SHEETOFFSET(-1,G73),SHEETOFFSET(-1,G75),SHEETOFFSET(-1,G60)) -> 0 | J26: =SELECCIONPATRON(SHEETOFFSET(-1,I141),SHEETOFFSET(-1,I102),SHEETOFFSET(-1,I103),SHEETOFFSET(-1,I66),SHEETOFFSET(-1,I73),SHEETOFFSET(-1,I75),SHEETOFFSET(-1,I60)) -> 0 | K26: =SELECCIONPATRON(SHEETOFFSET(-1,J141),SHEETOFFSET(-1,J102),SHEETOFFSET(-1,J103),SHEETOFFSET(-1,J66),SHEETOFFSET(-1,J73),SHEETOFFSET(-1,J75),SHEETOFFSET(-1,J60)) -> 0 | L26: --- | M26: =IFERROR(SELECCIONPATRON(L26,L26,L26,L26,H26*I26,H26*I26,H26*I26)*SELECCIONPATRON(SHEETOFFSET(-1,$T$122),SHEETOFFSET(-1,$T$85),SHEETOFFSET(-1,$V$86),SHEETOFFSET(-1,$V$49),SHEETOFFSET(-1,$G$29),SHEETOFFSET(-1,$G$44),SHEETOFFSET(-1,$G$30)),0) -> 0 | N26: 0 | O26: 0 | P26: 0 | Q26: 0 | R26: --- | S26: =IFERROR(IF(F26="Refrigerada",SELECCIONPATRON(R26,R26,R26,R26,I26,I26,I26)*SELECCIONPATRON(SHEETOFFSET(-1,$I$200),SHEETOFFSET(-1,$I$161),SHEETOFFSET(-1,$I$162),SHEETOFFSET(-1,$I$125),SHEETOFFSET(-1,$I$132)/(SHEETOFFSET(-1,$G$11)*IF(SHEETOFFSET(-1,$G$37)<>"",SHEETOFFSET(-1,$G$37),SHEETOFFSET(-1,$G$42))),SHEETOFFSET(-1,$I$134)/(SHEETOFFSET(-1,$G$11)*IF(SHEETOFFSET(-1,$G$26)<>"",SHEETOFFSET(-1,$G$26),SHEETOFFSET(-1,$G$31))),SHEETOFFSET(-1,$I$119)/(SHEETOFFSET(-1,$G$11)*IF(SHEETOFFSET(-1,$G$25)="Mercancías a granel",1,0.45))),0),0) -> 0 | T26: 0 | U26: 0 | V26: 0 | W26: 0 | X26: 0 | Y26: 0 | Z26: 0 | AA26: 0 | AB26: 0 | AC26: 0 | AD26: 0 | AE26: 0 | AF26: 0 | AG26: 0 | AH26: 0 | AI26: 0 | AJ26: 0 | AK26: 0 | AL26: 0 | AS26: 0 | AT26: 0
A27: 11 | B27: =SELECCIONPATRON(SHEETOFFSET(-1,C142),SHEETOFFSET(-1,C103),SHEETOFFSET(-1,C104),SHEETOFFSET(-1,C67),SHEETOFFSET(-1,C74),SHEETOFFSET(-1,C76),SHEETOFFSET(-1,C61)) -> 0 | C27: =SELECCIONPATRON(SHEETOFFSET(-1,D142),SHEETOFFSET(-1,D103),SHEETOFFSET(-1,D104),SHEETOFFSET(-1,D67),SHEETOFFSET(-1,D74),SHEETOFFSET(-1,D76),SHEETOFFSET(-1,D61)) -> 0 | D27: =SELECCIONPATRON(SHEETOFFSET(-1,M142),SHEETOFFSET(-1,M103),SHEETOFFSET(-1,M104),SHEETOFFSET(-1,M67),SHEETOFFSET(-1,$E$51),SHEETOFFSET(-1,$E$52),SHEETOFFSET(-1,$E$38)) -> 0 | E27: =SELECCIONPATRON(SHEETOFFSET(-1,P142),SHEETOFFSET(-1,P103),SHEETOFFSET(-1,P104),SHEETOFFSET(-1,P67),SHEETOFFSET(-1,$E$52),SHEETOFFSET(-1,$E$53),SHEETOFFSET(-1,$E$39)) -> 0 | F27: =SELECCIONPATRON(SHEETOFFSET(-1,H142),SHEETOFFSET(-1,H103),SHEETOFFSET(-1,H104),SHEETOFFSET(-1,H67),SHEETOFFSET(-1,H74),SHEETOFFSET(-1,H76),SHEETOFFSET(-1,H61)) -> 0 | G27: =SELECCIONPATRON(SHEETOFFSET(-1,R142),SHEETOFFSET(-1,R103),SHEETOFFSET(-1,S104),SHEETOFFSET(-1,S67),SHEETOFFSET(-1,$G$55),SHEETOFFSET(-1,$G$56),SHEETOFFSET(-1,$G$42)) -> 0 | H27: =SELECCIONPATRON(SHEETOFFSET(-1,S142),SHEETOFFSET(-1,S103),SHEETOFFSET(-1,T104),SHEETOFFSET(-1,T67),SHEETOFFSET(-1,$G$56),SHEETOFFSET(-1,$G$57),SHEETOFFSET(-1,$G$43)) -> 0 | I27: =SELECCIONPATRON(SHEETOFFSET(-1,G142),SHEETOFFSET(-1,G103),SHEETOFFSET(-1,G104),SHEETOFFSET(-1,G67),SHEETOFFSET(-1,G74),SHEETOFFSET(-1,G76),SHEETOFFSET(-1,G61)) -> 0 | J27: =SELECCIONPATRON(SHEETOFFSET(-1,I142),SHEETOFFSET(-1,I103),SHEETOFFSET(-1,I104),SHEETOFFSET(-1,I67),SHEETOFFSET(-1,I74),SHEETOFFSET(-1,I76),SHEETOFFSET(-1,I61)) -> 0 | K27: =SELECCIONPATRON(SHEETOFFSET(-1,J142),SHEETOFFSET(-1,J103),SHEETOFFSET(-1,J104),SHEETOFFSET(-1,J67),SHEETOFFSET(-1,J74),SHEETOFFSET(-1,J76),SHEETOFFSET(-1,J61)) -> 0 | L27: --- | M27: =IFERROR(SELECCIONPATRON(L27,L27,L27,L27,H27*I27,H27*I27,H27*I27)*SELECCIONPATRON(SHEETOFFSET(-1,$T$122),SHEETOFFSET(-1,$T$85),SHEETOFFSET(-1,$V$86),SHEETOFFSET(-1,$V$49),SHEETOFFSET(-1,$G$29),SHEETOFFSET(-1,$G$44),SHEETOFFSET(-1,$G$30)),0) -> 0 | N27: 0 | O27: 0 | P27: 0 | Q27: 0 | R27: --- | S27: =IFERROR(IF(F27="Refrigerada",SELECCIONPATRON(R27,R27,R27,R27,I27,I27,I27)*SELECCIONPATRON(SHEETOFFSET(-1,$I$200),SHEETOFFSET(-1,$I$161),SHEETOFFSET(-1,$I$162),SHEETOFFSET(-1,$I$125),SHEETOFFSET(-1,$I$132)/(SHEETOFFSET(-1,$G$11)*IF(SHEETOFFSET(-1,$G$37)<>"",SHEETOFFSET(-1,$G$37),SHEETOFFSET(-1,$G$42))),SHEETOFFSET(-1,$I$134)/(SHEETOFFSET(-1,$G$11)*IF(SHEETOFFSET(-1,$G$26)<>"",SHEETOFFSET(-1,$G$26),SHEETOFFSET(-1,$G$31))),SHEETOFFSET(-1,$I$119)/(SHEETOFFSET(-1,$G$11)*IF(SHEETOFFSET(-1,$G$25)="Mercancías a granel",1,0.45))),0),0) -> 0 | T27: 0 | U27: 0 | V27: 0 | W27: 0 | X27: 0 | Y27: 0 | Z27: 0 | AA27: 0 | AB27: 0 | AC27: 0 | AD27: 0 | AE27: 0 | AF27: 0 | AG27: 0 | AH27: 0 | AI27: 0 | AJ27: 0 | AK27: 0 | AL27: 0 | AS27: 0 | AT27: 0
A28: 12 | B28: =SELECCIONPATRON(SHEETOFFSET(-1,C143),SHEETOFFSET(-1,C104),SHEETOFFSET(-1,C105),SHEETOFFSET(-1,C68),SHEETOFFSET(-1,C75),SHEETOFFSET(-1,C77),SHEETOFFSET(-1,C62)) -> 0 | C28: =SELECCIONPATRON(SHEETOFFSET(-1,D143),SHEETOFFSET(-1,D104),SHEETOFFSET(-1,D105),SHEETOFFSET(-1,D68),SHEETOFFSET(-1,D75),SHEETOFFSET(-1,D77),SHEETOFFSET(-1,D62)) -> 0 | D28: =SELECCIONPATRON(SHEETOFFSET(-1,M143),SHEETOFFSET(-1,M104),SHEETOFFSET(-1,M105),SHEETOFFSET(-1,M68),SHEETOFFSET(-1,$E$51),SHEETOFFSET(-1,$E$52),SHEETOFFSET(-1,$E$38)) -> 0 | E28: =SELECCIONPATRON(SHEETOFFSET(-1,P143),SHEETOFFSET(-1,P104),SHEETOFFSET(-1,P105),SHEETOFFSET(-1,P68),SHEETOFFSET(-1,$E$52),SHEETOFFSET(-1,$E$53),SHEETOFFSET(-1,$E$39)) -> 0 | F28: =SELECCIONPATRON(SHEETOFFSET(-1,H143),SHEETOFFSET(-1,H104),SHEETOFFSET(-1,H105),SHEETOFFSET(-1,H68),SHEETOFFSET(-1,H75),SHEETOFFSET(-1,H77),SHEETOFFSET(-1,H62)) -> 0 | G28: =SELECCIONPATRON(SHEETOFFSET(-1,R143),SHEETOFFSET(-1,R104),SHEETOFFSET(-1,S105),SHEETOFFSET(-1,S68),SHEETOFFSET(-1,$G$55),SHEETOFFSET(-1,$G$56),SHEETOFFSET(-1,$G$42)) -> 0 | H28: =SELECCIONPATRON(SHEETOFFSET(-1,S143),SHEETOFFSET(-1,S104),SHEETOFFSET(-1,T105),SHEETOFFSET(-1,T68),SHEETOFFSET(-1,$G$56),SHEETOFFSET(-1,$G$57),SHEETOFFSET(-1,$G$43)) -> 0 | I28: =SELECCIONPATRON(SHEETOFFSET(-1,G143),SHEETOFFSET(-1,G104),SHEETOFFSET(-1,G105),SHEETOFFSET(-1,G68),SHEETOFFSET(-1,G75),SHEETOFFSET(-1,G77),SHEETOFFSET(-1,G62)) -> 0 | J28: =SELECCIONPATRON(SHEETOFFSET(-1,I143),SHEETOFFSET(-1,I104),SHEETOFFSET(-1,I105),SHEETOFFSET(-1,I68),SHEETOFFSET(-1,I75),SHEETOFFSET(-1,I77),SHEETOFFSET(-1,I62)) -> 0 | K28: =SELECCIONPATRON(SHEETOFFSET(-1,J143),SHEETOFFSET(-1,J104),SHEETOFFSET(-1,J105),SHEETOFFSET(-1,J68),SHEETOFFSET(-1,J75),SHEETOFFSET(-1,J77),SHEETOFFSET(-1,J62)) -> 0 | L28: --- | M28: =IFERROR(SELECCIONPATRON(L28,L28,L28,L28,H28*I28,H28*I28,H28*I28)*SELECCIONPATRON(SHEETOFFSET(-1,$T$122),SHEETOFFSET(-1,$T$85),SHEETOFFSET(-1,$V$86),SHEETOFFSET(-1,$V$49),SHEETOFFSET(-1,$G$29),SHEETOFFSET(-1,$G$44),SHEETOFFSET(-1,$G$30)),0) -> 0 | N28: 0 | O28: 0 | P28: 0 | Q28: 0 | R28: --- | S28: =IFERROR(IF(F28="Refrigerada",SELECCIONPATRON(R28,R28,R28,R28,I28,I28,I28)*SELECCIONPATRON(SHEETOFFSET(-1,$I$200),SHEETOFFSET(-1,$I$161),SHEETOFFSET(-1,$I$162),SHEETOFFSET(-1,$I$125),SHEETOFFSET(-1,$I$132)/(SHEETOFFSET(-1,$G$11)*IF(SHEETOFFSET(-1,$G$37)<>"",SHEETOFFSET(-1,$G$37),SHEETOFFSET(-1,$G$42))),SHEETOFFSET(-1,$I$134)/(SHEETOFFSET(-1,$G$11)*IF(SHEETOFFSET(-1,$G$26)<>"",SHEETOFFSET(-1,$G$26),SHEETOFFSET(-1,$G$31))),SHEETOFFSET(-1,$I$119)/(SHEETOFFSET(-1,$G$11)*IF(SHEETOFFSET(-1,$G$25)="Mercancías a granel",1,0.45))),0),0) -> 0 | T28: 0 | U28: 0 | V28: 0 | W28: 0 | X28: 0 | Y28: 0 | Z28: 0 | AA28: 0 | AB28: 0 | AC28: 0 | AD28: 0 | AE28: 0 | AF28: 0 | AG28: 0 | AH28: 0 | AI28: 0 | AJ28: 0 | AK28: 0 | AL28: 0 | AS28: 0 | AT28: 0
A29: 13 | B29: =SELECCIONPATRON(SHEETOFFSET(-1,C144),SHEETOFFSET(-1,C105),SHEETOFFSET(-1,C106),SHEETOFFSET(-1,C69),SHEETOFFSET(-1,C76),SHEETOFFSET(-1,C78),SHEETOFFSET(-1,C63)) -> 0 | C29: =SELECCIONPATRON(SHEETOFFSET(-1,D144),SHEETOFFSET(-1,D105),SHEETOFFSET(-1,D106),SHEETOFFSET(-1,D69),SHEETOFFSET(-1,D76),SHEETOFFSET(-1,D78),SHEETOFFSET(-1,D63)) -> 0 | D29: =SELECCIONPATRON(SHEETOFFSET(-1,M144),SHEETOFFSET(-1,M105),SHEETOFFSET(-1,M106),SHEETOFFSET(-1,M69),SHEETOFFSET(-1,$E$51),SHEETOFFSET(-1,$E$52),SHEETOFFSET(-1,$E$38)) -> 0 | E29: =SELECCIONPATRON(SHEETOFFSET(-1,P144),SHEETOFFSET(-1,P105),SHEETOFFSET(-1,P106),SHEETOFFSET(-1,P69),SHEETOFFSET(-1,$E$52),SHEETOFFSET(-1,$E$53),SHEETOFFSET(-1,$E$39)) -> 0 | F29: =SELECCIONPATRON(SHEETOFFSET(-1,H144),SHEETOFFSET(-1,H105),SHEETOFFSET(-1,H106),SHEETOFFSET(-1,H69),SHEETOFFSET(-1,H76),SHEETOFFSET(-1,H78),SHEETOFFSET(-1,H63)) -> 0 | G29: =SELECCIONPATRON(SHEETOFFSET(-1,R144),SHEETOFFSET(-1,R105),SHEETOFFSET(-1,S106),SHEETOFFSET(-1,S69),SHEETOFFSET(-1,$G$55),SHEETOFFSET(-1,$G$56),SHEETOFFSET(-1,$G$42)) -> 0 | H29: =SELECCIONPATRON(SHEETOFFSET(-1,S144),SHEETOFFSET(-1,S105),SHEETOFFSET(-1,T106),SHEETOFFSET(-1,T69),SHEETOFFSET(-1,$G$56),SHEETOFFSET(-1,$G$57),SHEETOFFSET(-1,$G$43)) -> 0 | I29: =SELECCIONPATRON(SHEETOFFSET(-1,G144),SHEETOFFSET(-1,G105),SHEETOFFSET(-1,G106),SHEETOFFSET(-1,G69),SHEETOFFSET(-1,G76),SHEETOFFSET(-1,G78),SHEETOFFSET(-1,G63)) -> 0 | J29: =SELECCIONPATRON(SHEETOFFSET(-1,I144),SHEETOFFSET(-1,I105),SHEETOFFSET(-1,I106),SHEETOFFSET(-1,I69),SHEETOFFSET(-1,I76),SHEETOFFSET(-1,I78),SHEETOFFSET(-1,I63)) -> 0 | K29: =SELECCIONPATRON(SHEETOFFSET(-1,J144),SHEETOFFSET(-1,J105),SHEETOFFSET(-1,J106),SHEETOFFSET(-1,J69),SHEETOFFSET(-1,J76),SHEETOFFSET(-1,J78),SHEETOFFSET(-1,J63)) -> 0 | L29: --- | M29: =IFERROR(SELECCIONPATRON(L29,L29,L29,L29,H29*I29,H29*I29,H29*I29)*SELECCIONPATRON(SHEETOFFSET(-1,$T$122),SHEETOFFSET(-1,$T$85),SHEETOFFSET(-1,$V$86),SHEETOFFSET(-1,$V$49),SHEETOFFSET(-1,$G$29),SHEETOFFSET(-1,$G$44),SHEETOFFSET(-1,$G$30)),0) -> 0 | N29: 0 | O29: 0 | P29: 0 | Q29: 0 | R29: --- | S29: =IFERROR(IF(F29="Refrigerada",SELECCIONPATRON(R29,R29,R29,R29,I29,I29,I29)*SELECCIONPATRON(SHEETOFFSET(-1,$I$200),SHEETOFFSET(-1,$I$161),SHEETOFFSET(-1,$I$162),SHEETOFFSET(-1,$I$125),SHEETOFFSET(-1,$I$132)/(SHEETOFFSET(-1,$G$11)*IF(SHEETOFFSET(-1,$G$37)<>"",SHEETOFFSET(-1,$G$37),SHEETOFFSET(-1,$G$42))),SHEETOFFSET(-1,$I$134)/(SHEETOFFSET(-1,$G$11)*IF(SHEETOFFSET(-1,$G$26)<>"",SHEETOFFSET(-1,$G$26),SHEETOFFSET(-1,$G$31))),SHEETOFFSET(-1,$I$119)/(SHEETOFFSET(-1,$G$11)*IF(SHEETOFFSET(-1,$G$25)="Mercancías a granel",1,0.45))),0),0) -> 0 | T29: 0 | U29: 0 | V29: 0 | W29: 0 | X29: 0 | Y29: 0 | Z29: 0 | AA29: 0 | AB29: 0 | AC29: 0 | AD29: 0 | AE29: 0 | AF29: 0 | AG29: 0 | AH29: 0 | AI29: 0 | AJ29: 0 | AK29: 0 | AL29: 0 | AS29: 0 | AT29: 0
A30: 14 | B30: =SELECCIONPATRON(SHEETOFFSET(-1,C145),SHEETOFFSET(-1,C106),SHEETOFFSET(-1,C107),SHEETOFFSET(-1,C70),SHEETOFFSET(-1,C77),SHEETOFFSET(-1,C79),SHEETOFFSET(-1,C64)) -> 0 | C30: =SELECCIONPATRON(SHEETOFFSET(-1,D145),SHEETOFFSET(-1,D106),SHEETOFFSET(-1,D107),SHEETOFFSET(-1,D70),SHEETOFFSET(-1,D77),SHEETOFFSET(-1,D79),SHEETOFFSET(-1,D64)) -> 0 | D30: =SELECCIONPATRON(SHEETOFFSET(-1,M145),SHEETOFFSET(-1,M106),SHEETOFFSET(-1,M107),SHEETOFFSET(-1,M70),SHEETOFFSET(-1,$E$51),SHEETOFFSET(-1,$E$52),SHEETOFFSET(-1,$E$38)) -> 0 | E30: =SELECCIONPATRON(SHEETOFFSET(-1,P145),SHEETOFFSET(-1,P106),SHEETOFFSET(-1,P107),SHEETOFFSET(-1,P70),SHEETOFFSET(-1,$E$52),SHEETOFFSET(-1,$E$53),SHEETOFFSET(-1,$E$39)) -> 0 | F30: =SELECCIONPATRON(SHEETOFFSET(-1,H145),SHEETOFFSET(-1,H106),SHEETOFFSET(-1,H107),SHEETOFFSET(-1,H70),SHEETOFFSET(-1,H77),SHEETOFFSET(-1,H79),SHEETOFFSET(-1,H64)) -> 0 | G30: =SELECCIONPATRON(SHEETOFFSET(-1,R145),SHEETOFFSET(-1,R106),SHEETOFFSET(-1,S107),SHEETOFFSET(-1,S70),SHEETOFFSET(-1,$G$55),SHEETOFFSET(-1,$G$56),SHEETOFFSET(-1,$G$42)) -> 0 | H30: =SELECCIONPATRON(SHEETOFFSET(-1,S145),SHEETOFFSET(-1,S106),SHEETOFFSET(-1,T107),SHEETOFFSET(-1,T70),SHEETOFFSET(-1,$G$56),SHEETOFFSET(-1,$G$57),SHEETOFFSET(-1,$G$43)) -> 0 | I30: =SELECCIONPATRON(SHEETOFFSET(-1,G145),SHEETOFFSET(-1,G106),SHEETOFFSET(-1,G107),SHEETOFFSET(-1,G70),SHEETOFFSET(-1,G77),SHEETOFFSET(-1,G79),SHEETOFFSET(-1,G64)) -> 0 | J30: =SELECCIONPATRON(SHEETOFFSET(-1,I145),SHEETOFFSET(-1,I106),SHEETOFFSET(-1,I107),SHEETOFFSET(-1,I70),SHEETOFFSET(-1,I77),SHEETOFFSET(-1,I79),SHEETOFFSET(-1,I64)) -> 0 | K30: =SELECCIONPATRON(SHEETOFFSET(-1,J145),SHEETOFFSET(-1,J106),SHEETOFFSET(-1,J107),SHEETOFFSET(-1,J70),SHEETOFFSET(-1,J77),SHEETOFFSET(-1,J79),SHEETOFFSET(-1,J64)) -> 0 | L30: --- | M30: =IFERROR(SELECCIONPATRON(L30,L30,L30,L30,H30*I30,H30*I30,H30*I30)*SELECCIONPATRON(SHEETOFFSET(-1,$T$122),SHEETOFFSET(-1,$T$85),SHEETOFFSET(-1,$V$86),SHEETOFFSET(-1,$V$49),SHEETOFFSET(-1,$G$29),SHEETOFFSET(-1,$G$44),SHEETOFFSET(-1,$G$30)),0) -> 0 | N30: 0 | O30: 0 | P30: 0 | Q30: 0 | R30: --- | S30: =IFERROR(IF(F30="Refrigerada",SELECCIONPATRON(R30,R30,R30,R30,I30,I30,I30)*SELECCIONPATRON(SHEETOFFSET(-1,$I$200),SHEETOFFSET(-1,$I$161),SHEETOFFSET(-1,$I$162),SHEETOFFSET(-1,$I$125),SHEETOFFSET(-1,$I$132)/(SHEETOFFSET(-1,$G$11)*IF(SHEETOFFSET(-1,$G$37)<>"",SHEETOFFSET(-1,$G$37),SHEETOFFSET(-1,$G$42))),SHEETOFFSET(-1,$I$134)/(SHEETOFFSET(-1,$G$11)*IF(SHEETOFFSET(-1,$G$26)<>"",SHEETOFFSET(-1,$G$26),SHEETOFFSET(-1,$G$31))),SHEETOFFSET(-1,$I$119)/(SHEETOFFSET(-1,$G$11)*IF(SHEETOFFSET(-1,$G$25)="Mercancías a granel",1,0.45))),0),0) -> 0 | T30: 0 | U30: 0 | V30: 0 | W30: 0 | X30: 0 | Y30: 0 | Z30: 0 | AA30: 0 | AB30: 0 | AC30: 0 | AD30: 0 | AE30: 0 | AF30: 0 | AG30: 0 | AH30: 0 | AI30: 0 | AJ30: 0 | AK30: 0 | AL30: 0 | AS30: 0 | AT30: 0
A31: 15 | B31: =SELECCIONPATRON(SHEETOFFSET(-1,C146),SHEETOFFSET(-1,C107),SHEETOFFSET(-1,C108),SHEETOFFSET(-1,C71),SHEETOFFSET(-1,C78),SHEETOFFSET(-1,C80),SHEETOFFSET(-1,C65)) -> 0 | C31: =SELECCIONPATRON(SHEETOFFSET(-1,D146),SHEETOFFSET(-1,D107),SHEETOFFSET(-1,D108),SHEETOFFSET(-1,D71),SHEETOFFSET(-1,D78),SHEETOFFSET(-1,D80),SHEETOFFSET(-1,D65)) -> 0 | D31: =SELECCIONPATRON(SHEETOFFSET(-1,M146),SHEETOFFSET(-1,M107),SHEETOFFSET(-1,M108),SHEETOFFSET(-1,M71),SHEETOFFSET(-1,$E$51),SHEETOFFSET(-1,$E$52),SHEETOFFSET(-1,$E$38)) -> 0 | E31: =SELECCIONPATRON(SHEETOFFSET(-1,P146),SHEETOFFSET(-1,P107),SHEETOFFSET(-1,P108),SHEETOFFSET(-1,P71),SHEETOFFSET(-1,$E$52),SHEETOFFSET(-1,$E$53),SHEETOFFSET(-1,$E$39)) -> 0 | F31: =SELECCIONPATRON(SHEETOFFSET(-1,H146),SHEETOFFSET(-1,H107),SHEETOFFSET(-1,H108),SHEETOFFSET(-1,H71),SHEETOFFSET(-1,H78),SHEETOFFSET(-1,H80),SHEETOFFSET(-1,H65)) -> 0 | G31: =SELECCIONPATRON(SHEETOFFSET(-1,R146),SHEETOFFSET(-1,R107),SHEETOFFSET(-1,S108),SHEETOFFSET(-1,S71),SHEETOFFSET(-1,$G$55),SHEETOFFSET(-1,$G$56),SHEETOFFSET(-1,$G$42)) -> 0 | H31: =SELECCIONPATRON(SHEETOFFSET(-1,S146),SHEETOFFSET(-1,S107),SHEETOFFSET(-1,T108),SHEETOFFSET(-1,T71),SHEETOFFSET(-1,$G$56),SHEETOFFSET(-1,$G$57),SHEETOFFSET(-1,$G$43)) -> 0 | I31: =SELECCIONPATRON(SHEETOFFSET(-1,G146),SHEETOFFSET(-1,G107),SHEETOFFSET(-1,G108),SHEETOFFSET(-1,G71),SHEETOFFSET(-1,G78),SHEETOFFSET(-1,G80),SHEETOFFSET(-1,G65)) -> 0 | J31: =SELECCIONPATRON(SHEETOFFSET(-1,I146),SHEETOFFSET(-1,I107),SHEETOFFSET(-1,I108),SHEETOFFSET(-1,I71),SHEETOFFSET(-1,I78),SHEETOFFSET(-1,I80),SHEETOFFSET(-1,I65)) -> 0 | K31: =SELECCIONPATRON(SHEETOFFSET(-1,J146),SHEETOFFSET(-1,J107),SHEETOFFSET(-1,J108),SHEETOFFSET(-1,J71),SHEETOFFSET(-1,J78),SHEETOFFSET(-1,J80),SHEETOFFSET(-1,J65)) -> 0 | L31: --- | M31: =IFERROR(SELECCIONPATRON(L31,L31,L31,L31,H31*I31,H31*I31,H31*I31)*SELECCIONPATRON(SHEETOFFSET(-1,$T$122),SHEETOFFSET(-1,$T$85),SHEETOFFSET(-1,$V$86),SHEETOFFSET(-1,$V$49),SHEETOFFSET(-1,$G$29),SHEETOFFSET(-1,$G$44),SHEETOFFSET(-1,$G$30)),0) -> 0 | N31: 0 | O31: 0 | P31: 0 | Q31: 0 | R31: --- | S31: =IFERROR(IF(F31="Refrigerada",SELECCIONPATRON(R31,R31,R31,R31,I31,I31,I31)*SELECCIONPATRON(SHEETOFFSET(-1,$I$200),SHEETOFFSET(-1,$I$161),SHEETOFFSET(-1,$I$162),SHEETOFFSET(-1,$I$125),SHEETOFFSET(-1,$I$132)/(SHEETOFFSET(-1,$G$11)*IF(SHEETOFFSET(-1,$G$37)<>"",SHEETOFFSET(-1,$G$37),SHEETOFFSET(-1,$G$42))),SHEETOFFSET(-1,$I$134)/(SHEETOFFSET(-1,$G$11)*IF(SHEETOFFSET(-1,$G$26)<>"",SHEETOFFSET(-1,$G$26),SHEETOFFSET(-1,$G$31))),SHEETOFFSET(-1,$I$119)/(SHEETOFFSET(-1,$G$11)*IF(SHEETOFFSET(-1,$G$25)="Mercancías a granel",1,0.45))),0),0) -> 0 | T31: 0 | U31: 0 | V31: 0 | W31: 0 | X31: 0 | Y31: 0 | Z31: 0 | AA31: 0 | AB31: 0 | AC31: 0 | AD31: 0 | AE31: 0 | AF31: 0 | AG31: 0 | AH31: 0 | AI31: 0 | AJ31: 0 | AK31: 0 | AL31: 0 | AS31: 0 | AT31: 0
A32: 16 | B32: =SELECCIONPATRON(SHEETOFFSET(-1,C147),SHEETOFFSET(-1,C108),SHEETOFFSET(-1,C109),SHEETOFFSET(-1,C72),SHEETOFFSET(-1,C79),SHEETOFFSET(-1,C81),SHEETOFFSET(-1,C66)) -> 0 | C32: =SELECCIONPATRON(SHEETOFFSET(-1,D147),SHEETOFFSET(-1,D108),SHEETOFFSET(-1,D109),SHEETOFFSET(-1,D72),SHEETOFFSET(-1,D79),SHEETOFFSET(-1,D81),SHEETOFFSET(-1,D66)) -> 0 | D32: =SELECCIONPATRON(SHEETOFFSET(-1,M147),SHEETOFFSET(-1,M108),SHEETOFFSET(-1,M109),SHEETOFFSET(-1,M72),SHEETOFFSET(-1,$E$51),SHEETOFFSET(-1,$E$52),SHEETOFFSET(-1,$E$38)) -> 0 | E32: =SELECCIONPATRON(SHEETOFFSET(-1,P147),SHEETOFFSET(-1,P108),SHEETOFFSET(-1,P109),SHEETOFFSET(-1,P72),SHEETOFFSET(-1,$E$52),SHEETOFFSET(-1,$E$53),SHEETOFFSET(-1,$E$39)) -> 0 | F32: =SELECCIONPATRON(SHEETOFFSET(-1,H147),SHEETOFFSET(-1,H108),SHEETOFFSET(-1,H109),SHEETOFFSET(-1,H72),SHEETOFFSET(-1,H79),SHEETOFFSET(-1,H81),SHEETOFFSET(-1,H66)) -> 0 | G32: =SELECCIONPATRON(SHEETOFFSET(-1,R147),SHEETOFFSET(-1,R108),SHEETOFFSET(-1,S109),SHEETOFFSET(-1,S72),SHEETOFFSET(-1,$G$55),SHEETOFFSET(-1,$G$56),SHEETOFFSET(-1,$G$42)) -> 0 | H32: =SELECCIONPATRON(SHEETOFFSET(-1,S147),SHEETOFFSET(-1,S108),SHEETOFFSET(-1,T109),SHEETOFFSET(-1,T72),SHEETOFFSET(-1,$G$56),SHEETOFFSET(-1,$G$57),SHEETOFFSET(-1,$G$43)) -> 0 | I32: =SELECCIONPATRON(SHEETOFFSET(-1,G147),SHEETOFFSET(-1,G108),SHEETOFFSET(-1,G109),SHEETOFFSET(-1,G72),SHEETOFFSET(-1,G79),SHEETOFFSET(-1,G81),SHEETOFFSET(-1,G66)) -> 0 | J32: =SELECCIONPATRON(SHEETOFFSET(-1,I147),SHEETOFFSET(-1,I108),SHEETOFFSET(-1,I109),SHEETOFFSET(-1,I72),SHEETOFFSET(-1,I79),SHEETOFFSET(-1,I81),SHEETOFFSET(-1,I66)) -> 0 | K32: =SELECCIONPATRON(SHEETOFFSET(-1,J147),SHEETOFFSET(-1,J108),SHEETOFFSET(-1,J109),SHEETOFFSET(-1,J72),SHEETOFFSET(-1,J79),SHEETOFFSET(-1,J81),SHEETOFFSET(-1,J66)) -> 0 | L32: --- | M32: =IFERROR(SELECCIONPATRON(L32,L32,L32,L32,H32*I32,H32*I32,H32*I32)*SELECCIONPATRON(SHEETOFFSET(-1,$T$122),SHEETOFFSET(-1,$T$85),SHEETOFFSET(-1,$V$86),SHEETOFFSET(-1,$V$49),SHEETOFFSET(-1,$G$29),SHEETOFFSET(-1,$G$44),SHEETOFFSET(-1,$G$30)),0) -> 0 | N32: 0 | O32: 0 | P32: 0 | Q32: 0 | R32: --- | S32: =IFERROR(IF(F32="Refrigerada",SELECCIONPATRON(R32,R32,R32,R32,I32,I32,I32)*SELECCIONPATRON(SHEETOFFSET(-1,$I$200),SHEETOFFSET(-1,$I$161),SHEETOFFSET(-1,$I$162),SHEETOFFSET(-1,$I$125),SHEETOFFSET(-1,$I$132)/(SHEETOFFSET(-1,$G$11)*IF(SHEETOFFSET(-1,$G$37)<>"",SHEETOFFSET(-1,$G$37),SHEETOFFSET(-1,$G$42))),SHEETOFFSET(-1,$I$134)/(SHEETOFFSET(-1,$G$11)*IF(SHEETOFFSET(-1,$G$26)<>"",SHEETOFFSET(-1,$G$26),SHEETOFFSET(-1,$G$31))),SHEETOFFSET(-1,$I$119)/(SHEETOFFSET(-1,$G$11)*IF(SHEETOFFSET(-1,$G$25)="Mercancías a granel",1,0.45))),0),0) -> 0 | T32: 0 | U32: 0 | V32: 0 | W32: 0 | X32: 0 | Y32: 0 | Z32: 0 | AA32: 0 | AB32: 0 | AC32: 0 | AD32: 0 | AE32: 0 | AF32: 0 | AG32: 0 | AH32: 0 | AI32: 0 | AJ32: 0 | AK32: 0 | AL32: 0 | AS32: 0 | AT32: 0
A33: 17 | B33: =SELECCIONPATRON(SHEETOFFSET(-1,C148),SHEETOFFSET(-1,C109),SHEETOFFSET(-1,C110),SHEETOFFSET(-1,C73),SHEETOFFSET(-1,C80),SHEETOFFSET(-1,C82),SHEETOFFSET(-1,C67)) -> 0 | C33: =SELECCIONPATRON(SHEETOFFSET(-1,D148),SHEETOFFSET(-1,D109),SHEETOFFSET(-1,D110),SHEETOFFSET(-1,D73),SHEETOFFSET(-1,D80),SHEETOFFSET(-1,D82),SHEETOFFSET(-1,D67)) -> 0 | D33: =SELECCIONPATRON(SHEETOFFSET(-1,M148),SHEETOFFSET(-1,M109),SHEETOFFSET(-1,M110),SHEETOFFSET(-1,M73),SHEETOFFSET(-1,$E$51),SHEETOFFSET(-1,$E$52),SHEETOFFSET(-1,$E$38)) -> 0 | E33: =SELECCIONPATRON(SHEETOFFSET(-1,P148),SHEETOFFSET(-1,P109),SHEETOFFSET(-1,P110),SHEETOFFSET(-1,P73),SHEETOFFSET(-1,$E$52),SHEETOFFSET(-1,$E$53),SHEETOFFSET(-1,$E$39)) -> 0 | F33: =SELECCIONPATRON(SHEETOFFSET(-1,H148),SHEETOFFSET(-1,H109),SHEETOFFSET(-1,H110),SHEETOFFSET(-1,H73),SHEETOFFSET(-1,H80),SHEETOFFSET(-1,H82),SHEETOFFSET(-1,H67)) -> 0 | G33: =SELECCIONPATRON(SHEETOFFSET(-1,R148),SHEETOFFSET(-1,R109),SHEETOFFSET(-1,S110),SHEETOFFSET(-1,S73),SHEETOFFSET(-1,$G$55),SHEETOFFSET(-1,$G$56),SHEETOFFSET(-1,$G$42)) -> 0 | H33: =SELECCIONPATRON(SHEETOFFSET(-1,S148),SHEETOFFSET(-1,S109),SHEETOFFSET(-1,T110),SHEETOFFSET(-1,T73),SHEETOFFSET(-1,$G$56),SHEETOFFSET(-1,$G$57),SHEETOFFSET(-1,$G$43)) -> 0 | I33: =SELECCIONPATRON(SHEETOFFSET(-1,G148),SHEETOFFSET(-1,G109),SHEETOFFSET(-1,G110),SHEETOFFSET(-1,G73),SHEETOFFSET(-1,G80),SHEETOFFSET(-1,G82),SHEETOFFSET(-1,G67)) -> 0 | J33: =SELECCIONPATRON(SHEETOFFSET(-1,I148),SHEETOFFSET(-1,I109),SHEETOFFSET(-1,I110),SHEETOFFSET(-1,I73),SHEETOFFSET(-1,I80),SHEETOFFSET(-1,I82),SHEETOFFSET(-1,I67)) -> 0 | K33: =SELECCIONPATRON(SHEETOFFSET(-1,J148),SHEETOFFSET(-1,J109),SHEETOFFSET(-1,J110),SHEETOFFSET(-1,J73),SHEETOFFSET(-1,J80),SHEETOFFSET(-1,J82),SHEETOFFSET(-1,J67)) -> 0 | L33: --- | M33: =IFERROR(SELECCIONPATRON(L33,L33,L33,L33,H33*I33,H33*I33,H33*I33)*SELECCIONPATRON(SHEETOFFSET(-1,$T$122),SHEETOFFSET(-1,$T$85),SHEETOFFSET(-1,$V$86),SHEETOFFSET(-1,$V$49),SHEETOFFSET(-1,$G$29),SHEETOFFSET(-1,$G$44),SHEETOFFSET(-1,$G$30)),0) -> 0 | N33: 0 | O33: 0 | P33: 0 | Q33: 0 | R33: --- | S33: =IFERROR(IF(F33="Refrigerada",SELECCIONPATRON(R33,R33,R33,R33,I33,I33,I33)*SELECCIONPATRON(SHEETOFFSET(-1,$I$200),SHEETOFFSET(-1,$I$161),SHEETOFFSET(-1,$I$162),SHEETOFFSET(-1,$I$125),SHEETOFFSET(-1,$I$132)/(SHEETOFFSET(-1,$G$11)*IF(SHEETOFFSET(-1,$G$37)<>"",SHEETOFFSET(-1,$G$37),SHEETOFFSET(-1,$G$42))),SHEETOFFSET(-1,$I$134)/(SHEETOFFSET(-1,$G$11)*IF(SHEETOFFSET(-1,$G$26)<>"",SHEETOFFSET(-1,$G$26),SHEETOFFSET(-1,$G$31))),SHEETOFFSET(-1,$I$119)/(SHEETOFFSET(-1,$G$11)*IF(SHEETOFFSET(-1,$G$25)="Mercancías a granel",1,0.45))),0),0) -> 0 | T33: 0 | U33: 0 | V33: 0 | W33: 0 | X33: 0 | Y33: 0 | Z33: 0 | AA33: 0 | AB33: 0 | AC33: 0 | AD33: 0 | AE33: =N33+T33 -> 0 | AF33: 0 | AG33: 0 | AH33: 0 | AI33: 0 | AJ33: 0 | AK33: 0 | AL33: 0 | AS33: 0 | AT33: 0
A34: 18 | B34: =SELECCIONPATRON(SHEETOFFSET(-1,C149),SHEETOFFSET(-1,C110),SHEETOFFSET(-1,C111),SHEETOFFSET(-1,C74),SHEETOFFSET(-1,C81),SHEETOFFSET(-1,C83),SHEETOFFSET(-1,C68)) -> 0 | C34: =SELECCIONPATRON(SHEETOFFSET(-1,D149),SHEETOFFSET(-1,D110),SHEETOFFSET(-1,D111),SHEETOFFSET(-1,D74),SHEETOFFSET(-1,D81),SHEETOFFSET(-1,D83),SHEETOFFSET(-1,D68)) -> 0 | D34: =SELECCIONPATRON(SHEETOFFSET(-1,M149),SHEETOFFSET(-1,M110),SHEETOFFSET(-1,M111),SHEETOFFSET(-1,M74),SHEETOFFSET(-1,$E$51),SHEETOFFSET(-1,$E$52),SHEETOFFSET(-1,$E$38)) -> 0 | E34: =SELECCIONPATRON(SHEETOFFSET(-1,P149),SHEETOFFSET(-1,P110),SHEETOFFSET(-1,P111),SHEETOFFSET(-1,P74),SHEETOFFSET(-1,$E$52),SHEETOFFSET(-1,$E$53),SHEETOFFSET(-1,$E$39)) -> 0 | F34: =SELECCIONPATRON(SHEETOFFSET(-1,H149),SHEETOFFSET(-1,H110),SHEETOFFSET(-1,H111),SHEETOFFSET(-1,H74),SHEETOFFSET(-1,H81),SHEETOFFSET(-1,H83),SHEETOFFSET(-1,H68)) -> 0 | G34: =SELECCIONPATRON(SHEETOFFSET(-1,R149),SHEETOFFSET(-1,R110),SHEETOFFSET(-1,S111),SHEETOFFSET(-1,S74),SHEETOFFSET(-1,$G$55),SHEETOFFSET(-1,$G$56),SHEETOFFSET(-1,$G$42)) -> 0 | H34: =SELECCIONPATRON(SHEETOFFSET(-1,S149),SHEETOFFSET(-1,S110),SHEETOFFSET(-1,T111),SHEETOFFSET(-1,T74),SHEETOFFSET(-1,$G$56),SHEETOFFSET(-1,$G$57),SHEETOFFSET(-1,$G$43)) -> 0 | I34: =SELECCIONPATRON(SHEETOFFSET(-1,G149),SHEETOFFSET(-1,G110),SHEETOFFSET(-1,G111),SHEETOFFSET(-1,G74),SHEETOFFSET(-1,G81),SHEETOFFSET(-1,G83),SHEETOFFSET(-1,G68)) -> 0 | J34: =SELECCIONPATRON(SHEETOFFSET(-1,I149),SHEETOFFSET(-1,I110),SHEETOFFSET(-1,I111),SHEETOFFSET(-1,I74),SHEETOFFSET(-1,I81),SHEETOFFSET(-1,I83),SHEETOFFSET(-1,I68)) -> 0 | K34: =SELECCIONPATRON(SHEETOFFSET(-1,J149),SHEETOFFSET(-1,J110),SHEETOFFSET(-1,J111),SHEETOFFSET(-1,J74),SHEETOFFSET(-1,J81),SHEETOFFSET(-1,J83),SHEETOFFSET(-1,J68)) -> 0 | L34: --- | M34: =IFERROR(SELECCIONPATRON(L34,L34,L34,L34,H34*I34,H34*I34,H34*I34)*SELECCIONPATRON(SHEETOFFSET(-1,$T$122),SHEETOFFSET(-1,$T$85),SHEETOFFSET(-1,$V$86),SHEETOFFSET(-1,$V$49),SHEETOFFSET(-1,$G$29),SHEETOFFSET(-1,$G$44),SHEETOFFSET(-1,$G$30)),0) -> 0 | N34: 0 | O34: 0 | P34: 0 | Q34: 0 | R34: --- | S34: =IFERROR(IF(F34="Refrigerada",SELECCIONPATRON(R34,R34,R34,R34,I34,I34,I34)*SELECCIONPATRON(SHEETOFFSET(-1,$I$200),SHEETOFFSET(-1,$I$161),SHEETOFFSET(-1,$I$162),SHEETOFFSET(-1,$I$125),SHEETOFFSET(-1,$I$132)/(SHEETOFFSET(-1,$G$11)*IF(SHEETOFFSET(-1,$G$37)<>"",SHEETOFFSET(-1,$G$37),SHEETOFFSET(-1,$G$42))),SHEETOFFSET(-1,$I$134)/(SHEETOFFSET(-1,$G$11)*IF(SHEETOFFSET(-1,$G$26)<>"",SHEETOFFSET(-1,$G$26),SHEETOFFSET(-1,$G$31))),SHEETOFFSET(-1,$I$119)/(SHEETOFFSET(-1,$G$11)*IF(SHEETOFFSET(-1,$G$25)="Mercancías a granel",1,0.45))),0),0) -> 0 | T34: 0 | U34: 0 | V34: 0 | W34: 0 | X34: 0 | Y34: 0 | Z34: 0 | AA34: 0 | AB34: 0 | AC34: 0 | AD34: 0 | AE34: 0 | AF34: 0 | AG34: 0 | AH34: 0 | AI34: 0 | AJ34: 0 | AK34: 0 | AL34: 0 | AS34: 0 | AT34: 0
A35: 19 | B35: =SELECCIONPATRON(SHEETOFFSET(-1,C150),SHEETOFFSET(-1,C111),SHEETOFFSET(-1,C112),SHEETOFFSET(-1,C75),SHEETOFFSET(-1,C82),SHEETOFFSET(-1,C84),SHEETOFFSET(-1,C69)) -> 0 | C35: =SELECCIONPATRON(SHEETOFFSET(-1,D150),SHEETOFFSET(-1,D111),SHEETOFFSET(-1,D112),SHEETOFFSET(-1,D75),SHEETOFFSET(-1,D82),SHEETOFFSET(-1,D84),SHEETOFFSET(-1,D69)) -> 0 | D35: =SELECCIONPATRON(SHEETOFFSET(-1,M150),SHEETOFFSET(-1,M111),SHEETOFFSET(-1,M112),SHEETOFFSET(-1,M75),SHEETOFFSET(-1,$E$51),SHEETOFFSET(-1,$E$52),SHEETOFFSET(-1,$E$38)) -> 0 | E35: =SELECCIONPATRON(SHEETOFFSET(-1,P150),SHEETOFFSET(-1,P111),SHEETOFFSET(-1,P112),SHEETOFFSET(-1,P75),SHEETOFFSET(-1,$E$52),SHEETOFFSET(-1,$E$53),SHEETOFFSET(-1,$E$39)) -> 0 | F35: =SELECCIONPATRON(SHEETOFFSET(-1,H150),SHEETOFFSET(-1,H111),SHEETOFFSET(-1,H112),SHEETOFFSET(-1,H75),SHEETOFFSET(-1,H82),SHEETOFFSET(-1,H84),SHEETOFFSET(-1,H69)) -> 0 | G35: =SELECCIONPATRON(SHEETOFFSET(-1,R150),SHEETOFFSET(-1,R111),SHEETOFFSET(-1,S112),SHEETOFFSET(-1,S75),SHEETOFFSET(-1,$G$55),SHEETOFFSET(-1,$G$56),SHEETOFFSET(-1,$G$42)) -> 0 | H35: =SELECCIONPATRON(SHEETOFFSET(-1,S150),SHEETOFFSET(-1,S111),SHEETOFFSET(-1,T112),SHEETOFFSET(-1,T75),SHEETOFFSET(-1,$G$56),SHEETOFFSET(-1,$G$57),SHEETOFFSET(-1,$G$43)) -> 0 | I35: =SELECCIONPATRON(SHEETOFFSET(-1,G150),SHEETOFFSET(-1,G111),SHEETOFFSET(-1,G112),SHEETOFFSET(-1,G75),SHEETOFFSET(-1,G82),SHEETOFFSET(-1,G84),SHEETOFFSET(-1,G69)) -> 0 | J35: =SELECCIONPATRON(SHEETOFFSET(-1,I150),SHEETOFFSET(-1,I111),SHEETOFFSET(-1,I112),SHEETOFFSET(-1,I75),SHEETOFFSET(-1,I82),SHEETOFFSET(-1,I84),SHEETOFFSET(-1,I69)) -> 0 | K35: =SELECCIONPATRON(SHEETOFFSET(-1,J150),SHEETOFFSET(-1,J111),SHEETOFFSET(-1,J112),SHEETOFFSET(-1,J75),SHEETOFFSET(-1,J82),SHEETOFFSET(-1,J84),SHEETOFFSET(-1,J69)) -> 0 | L35: --- | M35: =IFERROR(SELECCIONPATRON(L35,L35,L35,L35,H35*I35,H35*I35,H35*I35)*SELECCIONPATRON(SHEETOFFSET(-1,$T$122),SHEETOFFSET(-1,$T$85),SHEETOFFSET(-1,$V$86),SHEETOFFSET(-1,$V$49),SHEETOFFSET(-1,$G$29),SHEETOFFSET(-1,$G$44),SHEETOFFSET(-1,$G$30)),0) -> 0 | N35: 0 | O35: 0 | P35: 0 | Q35: 0 | R35: --- | S35: =IFERROR(IF(F35="Refrigerada",SELECCIONPATRON(R35,R35,R35,R35,I35,I35,I35)*SELECCIONPATRON(SHEETOFFSET(-1,$I$200),SHEETOFFSET(-1,$I$161),SHEETOFFSET(-1,$I$162),SHEETOFFSET(-1,$I$125),SHEETOFFSET(-1,$I$132)/(SHEETOFFSET(-1,$G$11)*IF(SHEETOFFSET(-1,$G$37)<>"",SHEETOFFSET(-1,$G$37),SHEETOFFSET(-1,$G$42))),SHEETOFFSET(-1,$I$134)/(SHEETOFFSET(-1,$G$11)*IF(SHEETOFFSET(-1,$G$26)<>"",SHEETOFFSET(-1,$G$26),SHEETOFFSET(-1,$G$31))),SHEETOFFSET(-1,$I$119)/(SHEETOFFSET(-1,$G$11)*IF(SHEETOFFSET(-1,$G$25)="Mercancías a granel",1,0.45))),0),0) -> 0 | T35: 0 | U35: 0 | V35: 0 | W35: 0 | X35: 0 | Y35: 0 | Z35: 0 | AA35: 0 | AB35: 0 | AC35: 0 | AD35: 0 | AE35: 0 | AF35: 0 | AG35: 0 | AH35: 0 | AI35: 0 | AJ35: 0 | AK35: 0 | AL35: 0 | AS35: 0 | AT35: 0
A36: 20 | B36: =SELECCIONPATRON(SHEETOFFSET(-1,C151),SHEETOFFSET(-1,C112),SHEETOFFSET(-1,C113),SHEETOFFSET(-1,C76),SHEETOFFSET(-1,C83),SHEETOFFSET(-1,C85),SHEETOFFSET(-1,C70)) -> 0 | C36: =SELECCIONPATRON(SHEETOFFSET(-1,D151),SHEETOFFSET(-1,D112),SHEETOFFSET(-1,D113),SHEETOFFSET(-1,D76),SHEETOFFSET(-1,D83),SHEETOFFSET(-1,D85),SHEETOFFSET(-1,D70)) -> 0 | D36: =SELECCIONPATRON(SHEETOFFSET(-1,M151),SHEETOFFSET(-1,M112),SHEETOFFSET(-1,M113),SHEETOFFSET(-1,M76),SHEETOFFSET(-1,$E$51),SHEETOFFSET(-1,$E$52),SHEETOFFSET(-1,$E$38)) -> 0 | E36: =SELECCIONPATRON(SHEETOFFSET(-1,P151),SHEETOFFSET(-1,P112),SHEETOFFSET(-1,P113),SHEETOFFSET(-1,P76),SHEETOFFSET(-1,$E$52),SHEETOFFSET(-1,$E$53),SHEETOFFSET(-1,$E$39)) -> 0 | F36: =SELECCIONPATRON(SHEETOFFSET(-1,H151),SHEETOFFSET(-1,H112),SHEETOFFSET(-1,H113),SHEETOFFSET(-1,H76),SHEETOFFSET(-1,H83),SHEETOFFSET(-1,H85),SHEETOFFSET(-1,H70)) -> 0 | G36: =SELECCIONPATRON(SHEETOFFSET(-1,R151),SHEETOFFSET(-1,R112),SHEETOFFSET(-1,S113),SHEETOFFSET(-1,S76),SHEETOFFSET(-1,$G$55),SHEETOFFSET(-1,$G$56),SHEETOFFSET(-1,$G$42)) -> 0 | H36: =SELECCIONPATRON(SHEETOFFSET(-1,S151),SHEETOFFSET(-1,S112),SHEETOFFSET(-1,T113),SHEETOFFSET(-1,T76),SHEETOFFSET(-1,$G$56),SHEETOFFSET(-1,$G$57),SHEETOFFSET(-1,$G$43)) -> 0 | I36: =SELECCIONPATRON(SHEETOFFSET(-1,G151),SHEETOFFSET(-1,G112),SHEETOFFSET(-1,G113),SHEETOFFSET(-1,G76),SHEETOFFSET(-1,G83),SHEETOFFSET(-1,G85),SHEETOFFSET(-1,G70)) -> 0 | J36: =SELECCIONPATRON(SHEETOFFSET(-1,I151),SHEETOFFSET(-1,I112),SHEETOFFSET(-1,I113),SHEETOFFSET(-1,I76),SHEETOFFSET(-1,I83),SHEETOFFSET(-1,I85),SHEETOFFSET(-1,I70)) -> 0 | K36: =SELECCIONPATRON(SHEETOFFSET(-1,J151),SHEETOFFSET(-1,J112),SHEETOFFSET(-1,J113),SHEETOFFSET(-1,J76),SHEETOFFSET(-1,J83),SHEETOFFSET(-1,J85),SHEETOFFSET(-1,J70)) -> 0 | L36: --- | M36: =IFERROR(SELECCIONPATRON(L36,L36,L36,L36,H36*I36,H36*I36,H36*I36)*SELECCIONPATRON(SHEETOFFSET(-1,$T$122),SHEETOFFSET(-1,$T$85),SHEETOFFSET(-1,$V$86),SHEETOFFSET(-1,$V$49),SHEETOFFSET(-1,$G$29),SHEETOFFSET(-1,$G$44),SHEETOFFSET(-1,$G$30)),0) -> 0 | N36: 0 | O36: 0 | P36: 0 | Q36: 0 | R36: --- | S36: =IFERROR(IF(F36="Refrigerada",SELECCIONPATRON(R36,R36,R36,R36,I36,I36,I36)*SELECCIONPATRON(SHEETOFFSET(-1,$I$200),SHEETOFFSET(-1,$I$161),SHEETOFFSET(-1,$I$162),SHEETOFFSET(-1,$I$125),SHEETOFFSET(-1,$I$132)/(SHEETOFFSET(-1,$G$11)*IF(SHEETOFFSET(-1,$G$37)<>"",SHEETOFFSET(-1,$G$37),SHEETOFFSET(-1,$G$42))),SHEETOFFSET(-1,$I$134)/(SHEETOFFSET(-1,$G$11)*IF(SHEETOFFSET(-1,$G$26)<>"",SHEETOFFSET(-1,$G$26),SHEETOFFSET(-1,$G$31))),SHEETOFFSET(-1,$I$119)/(SHEETOFFSET(-1,$G$11)*IF(SHEETOFFSET(-1,$G$25)="Mercancías a granel",1,0.45))),0),0) -> 0 | T36: 0 | U36: 0 | V36: 0 | W36: 0 | X36: 0 | Y36: 0 | Z36: 0 | AA36: 0 | AB36: 0 | AC36: 0 | AD36: 0 | AE36: 0 | AF36: 0 | AG36: 0 | AH36: 0 | AI36: 0 | AJ36: 0 | AK36: 0 | AL36: 0 | AS36: 0 | AT36: 0
A37: 21 | B37: =SELECCIONPATRON(SHEETOFFSET(-1,C152),SHEETOFFSET(-1,C113),SHEETOFFSET(-1,C114),SHEETOFFSET(-1,C77),SHEETOFFSET(-1,C84),SHEETOFFSET(-1,C86),SHEETOFFSET(-1,C71)) -> 0 | C37: =SELECCIONPATRON(SHEETOFFSET(-1,D152),SHEETOFFSET(-1,D113),SHEETOFFSET(-1,D114),SHEETOFFSET(-1,D77),SHEETOFFSET(-1,D84),SHEETOFFSET(-1,D86),SHEETOFFSET(-1,D71)) -> 0 | D37: =SELECCIONPATRON(SHEETOFFSET(-1,M152),SHEETOFFSET(-1,M113),SHEETOFFSET(-1,M114),SHEETOFFSET(-1,M77),SHEETOFFSET(-1,$E$51),SHEETOFFSET(-1,$E$52),SHEETOFFSET(-1,$E$38)) -> 0 | E37: =SELECCIONPATRON(SHEETOFFSET(-1,P152),SHEETOFFSET(-1,P113),SHEETOFFSET(-1,P114),SHEETOFFSET(-1,P77),SHEETOFFSET(-1,$E$52),SHEETOFFSET(-1,$E$53),SHEETOFFSET(-1,$E$39)) -> 0 | F37: =SELECCIONPATRON(SHEETOFFSET(-1,H152),SHEETOFFSET(-1,H113),SHEETOFFSET(-1,H114),SHEETOFFSET(-1,H77),SHEETOFFSET(-1,H84),SHEETOFFSET(-1,H86),SHEETOFFSET(-1,H71)) -> 0 | G37: =SELECCIONPATRON(SHEETOFFSET(-1,R152),SHEETOFFSET(-1,R113),SHEETOFFSET(-1,S114),SHEETOFFSET(-1,S77),SHEETOFFSET(-1,$G$55),SHEETOFFSET(-1,$G$56),SHEETOFFSET(-1,$G$42)) -> 0 | H37: =SELECCIONPATRON(SHEETOFFSET(-1,S152),SHEETOFFSET(-1,S113),SHEETOFFSET(-1,T114),SHEETOFFSET(-1,T77),SHEETOFFSET(-1,$G$56),SHEETOFFSET(-1,$G$57),SHEETOFFSET(-1,$G$43)) -> 0 | I37: =SELECCIONPATRON(SHEETOFFSET(-1,G152),SHEETOFFSET(-1,G113),SHEETOFFSET(-1,G114),SHEETOFFSET(-1,G77),SHEETOFFSET(-1,G84),SHEETOFFSET(-1,G86),SHEETOFFSET(-1,G71)) -> 0 | J37: =SELECCIONPATRON(SHEETOFFSET(-1,I152),SHEETOFFSET(-1,I113),SHEETOFFSET(-1,I114),SHEETOFFSET(-1,I77),SHEETOFFSET(-1,I84),SHEETOFFSET(-1,I86),SHEETOFFSET(-1,I71)) -> 0 | K37: =SELECCIONPATRON(SHEETOFFSET(-1,J152),SHEETOFFSET(-1,J113),SHEETOFFSET(-1,J114),SHEETOFFSET(-1,J77),SHEETOFFSET(-1,J84),SHEETOFFSET(-1,J86),SHEETOFFSET(-1,J71)) -> 0 | L37: --- | M37: =IFERROR(SELECCIONPATRON(L37,L37,L37,L37,H37*I37,H37*I37,H37*I37)*SELECCIONPATRON(SHEETOFFSET(-1,$T$122),SHEETOFFSET(-1,$T$85),SHEETOFFSET(-1,$V$86),SHEETOFFSET(-1,$V$49),SHEETOFFSET(-1,$G$29),SHEETOFFSET(-1,$G$44),SHEETOFFSET(-1,$G$30)),0) -> 0 | N37: 0 | O37: 0 | P37: 0 | Q37: 0 | R37: --- | S37: =IFERROR(IF(F37="Refrigerada",SELECCIONPATRON(R37,R37,R37,R37,I37,I37,I37)*SELECCIONPATRON(SHEETOFFSET(-1,$I$200),SHEETOFFSET(-1,$I$161),SHEETOFFSET(-1,$I$162),SHEETOFFSET(-1,$I$125),SHEETOFFSET(-1,$I$132)/(SHEETOFFSET(-1,$G$11)*IF(SHEETOFFSET(-1,$G$37)<>"",SHEETOFFSET(-1,$G$37),SHEETOFFSET(-1,$G$42))),SHEETOFFSET(-1,$I$134)/(SHEETOFFSET(-1,$G$11)*IF(SHEETOFFSET(-1,$G$26)<>"",SHEETOFFSET(-1,$G$26),SHEETOFFSET(-1,$G$31))),SHEETOFFSET(-1,$I$119)/(SHEETOFFSET(-1,$G$11)*IF(SHEETOFFSET(-1,$G$25)="Mercancías a granel",1,0.45))),0),0) -> 0 | T37: 0 | U37: 0 | V37: 0 | W37: 0 | X37: 0 | Y37: 0 | Z37: 0 | AA37: 0 | AB37: 0 | AC37: 0 | AD37: 0 | AE37: 0 | AF37: 0 | AG37: 0 | AH37: 0 | AI37: 0 | AJ37: 0 | AK37: 0 | AL37: 0 | AS37: 0 | AT37: 0
A38: 22 | B38: =SELECCIONPATRON(SHEETOFFSET(-1,C153),SHEETOFFSET(-1,C114),SHEETOFFSET(-1,C115),SHEETOFFSET(-1,C78),SHEETOFFSET(-1,C85),SHEETOFFSET(-1,C87),SHEETOFFSET(-1,C72)) -> 0 | C38: =SELECCIONPATRON(SHEETOFFSET(-1,D153),SHEETOFFSET(-1,D114),SHEETOFFSET(-1,D115),SHEETOFFSET(-1,D78),SHEETOFFSET(-1,D85),SHEETOFFSET(-1,D87),SHEETOFFSET(-1,D72)) -> 0 | D38: =SELECCIONPATRON(SHEETOFFSET(-1,M153),SHEETOFFSET(-1,M114),SHEETOFFSET(-1,M115),SHEETOFFSET(-1,M78),SHEETOFFSET(-1,$E$51),SHEETOFFSET(-1,$E$52),SHEETOFFSET(-1,$E$38)) -> 0 | E38: =SELECCIONPATRON(SHEETOFFSET(-1,P153),SHEETOFFSET(-1,P114),SHEETOFFSET(-1,P115),SHEETOFFSET(-1,P78),SHEETOFFSET(-1,$E$52),SHEETOFFSET(-1,$E$53),SHEETOFFSET(-1,$E$39)) -> 0 | F38: =SELECCIONPATRON(SHEETOFFSET(-1,H153),SHEETOFFSET(-1,H114),SHEETOFFSET(-1,H115),SHEETOFFSET(-1,H78),SHEETOFFSET(-1,H85),SHEETOFFSET(-1,H87),SHEETOFFSET(-1,H72)) -> 0 | G38: =SELECCIONPATRON(SHEETOFFSET(-1,R153),SHEETOFFSET(-1,R114),SHEETOFFSET(-1,S115),SHEETOFFSET(-1,S78),SHEETOFFSET(-1,$G$55),SHEETOFFSET(-1,$G$56),SHEETOFFSET(-1,$G$42)) -> 0 | H38: =SELECCIONPATRON(SHEETOFFSET(-1,S153),SHEETOFFSET(-1,S114),SHEETOFFSET(-1,T115),SHEETOFFSET(-1,T78),SHEETOFFSET(-1,$G$56),SHEETOFFSET(-1,$G$57),SHEETOFFSET(-1,$G$43)) -> 0 | I38: =SELECCIONPATRON(SHEETOFFSET(-1,G153),SHEETOFFSET(-1,G114),SHEETOFFSET(-1,G115),SHEETOFFSET(-1,G78),SHEETOFFSET(-1,G85),SHEETOFFSET(-1,G87),SHEETOFFSET(-1,G72)) -> 0 | J38: =SELECCIONPATRON(SHEETOFFSET(-1,I153),SHEETOFFSET(-1,I114),SHEETOFFSET(-1,I115),SHEETOFFSET(-1,I78),SHEETOFFSET(-1,I85),SHEETOFFSET(-1,I87),SHEETOFFSET(-1,I72)) -> 0 | K38: =SELECCIONPATRON(SHEETOFFSET(-1,J153),SHEETOFFSET(-1,J114),SHEETOFFSET(-1,J115),SHEETOFFSET(-1,J78),SHEETOFFSET(-1,J85),SHEETOFFSET(-1,J87),SHEETOFFSET(-1,J72)) -> 0 | L38: --- | M38: =IFERROR(SELECCIONPATRON(L38,L38,L38,L38,H38*I38,H38*I38,H38*I38)*SELECCIONPATRON(SHEETOFFSET(-1,$T$122),SHEETOFFSET(-1,$T$85),SHEETOFFSET(-1,$V$86),SHEETOFFSET(-1,$V$49),SHEETOFFSET(-1,$G$29),SHEETOFFSET(-1,$G$44),SHEETOFFSET(-1,$G$30)),0) -> 0 | N38: 0 | O38: 0 | P38: 0 | Q38: 0 | R38: --- | S38: =IFERROR(IF(F38="Refrigerada",SELECCIONPATRON(R38,R38,R38,R38,I38,I38,I38)*SELECCIONPATRON(SHEETOFFSET(-1,$I$200),SHEETOFFSET(-1,$I$161),SHEETOFFSET(-1,$I$162),SHEETOFFSET(-1,$I$125),SHEETOFFSET(-1,$I$132)/(SHEETOFFSET(-1,$G$11)*IF(SHEETOFFSET(-1,$G$37)<>"",SHEETOFFSET(-1,$G$37),SHEETOFFSET(-1,$G$42))),SHEETOFFSET(-1,$I$134)/(SHEETOFFSET(-1,$G$11)*IF(SHEETOFFSET(-1,$G$26)<>"",SHEETOFFSET(-1,$G$26),SHEETOFFSET(-1,$G$31))),SHEETOFFSET(-1,$I$119)/(SHEETOFFSET(-1,$G$11)*IF(SHEETOFFSET(-1,$G$25)="Mercancías a granel",1,0.45))),0),0) -> 0 | T38: 0 | U38: 0 | V38: 0 | W38: 0 | X38: 0 | Y38: 0 | Z38: 0 | AA38: 0 | AB38: 0 | AC38: 0 | AD38: 0 | AE38: 0 | AF38: 0 | AG38: 0 | AH38: 0 | AI38: 0 | AJ38: 0 | AK38: 0 | AL38: 0 | AS38: 0 | AT38: 0
A39: 23 | B39: =SELECCIONPATRON(SHEETOFFSET(-1,C154),SHEETOFFSET(-1,C115),SHEETOFFSET(-1,C116),SHEETOFFSET(-1,C79),SHEETOFFSET(-1,C86),SHEETOFFSET(-1,C88),SHEETOFFSET(-1,C73)) -> 0 | C39: =SELECCIONPATRON(SHEETOFFSET(-1,D154),SHEETOFFSET(-1,D115),SHEETOFFSET(-1,D116),SHEETOFFSET(-1,D79),SHEETOFFSET(-1,D86),SHEETOFFSET(-1,D88),SHEETOFFSET(-1,D73)) -> 0 | D39: =SELECCIONPATRON(SHEETOFFSET(-1,M154),SHEETOFFSET(-1,M115),SHEETOFFSET(-1,M116),SHEETOFFSET(-1,M79),SHEETOFFSET(-1,$E$51),SHEETOFFSET(-1,$E$52),SHEETOFFSET(-1,$E$38)) -> 0 | E39: =SELECCIONPATRON(SHEETOFFSET(-1,P154),SHEETOFFSET(-1,P115),SHEETOFFSET(-1,P116),SHEETOFFSET(-1,P79),SHEETOFFSET(-1,$E$52),SHEETOFFSET(-1,$E$53),SHEETOFFSET(-1,$E$39)) -> 0 | F39: =SELECCIONPATRON(SHEETOFFSET(-1,H154),SHEETOFFSET(-1,H115),SHEETOFFSET(-1,H116),SHEETOFFSET(-1,H79),SHEETOFFSET(-1,H86),SHEETOFFSET(-1,H88),SHEETOFFSET(-1,H73)) -> 0 | G39: =SELECCIONPATRON(SHEETOFFSET(-1,R154),SHEETOFFSET(-1,R115),SHEETOFFSET(-1,S116),SHEETOFFSET(-1,S79),SHEETOFFSET(-1,$G$55),SHEETOFFSET(-1,$G$56),SHEETOFFSET(-1,$G$42)) -> 0 | H39: =SELECCIONPATRON(SHEETOFFSET(-1,S154),SHEETOFFSET(-1,S115),SHEETOFFSET(-1,T116),SHEETOFFSET(-1,T79),SHEETOFFSET(-1,$G$56),SHEETOFFSET(-1,$G$57),SHEETOFFSET(-1,$G$43)) -> 0 | I39: =SELECCIONPATRON(SHEETOFFSET(-1,G154),SHEETOFFSET(-1,G115),SHEETOFFSET(-1,G116),SHEETOFFSET(-1,G79),SHEETOFFSET(-1,G86),SHEETOFFSET(-1,G88),SHEETOFFSET(-1,G73)) -> 0 | J39: =SELECCIONPATRON(SHEETOFFSET(-1,I154),SHEETOFFSET(-1,I115),SHEETOFFSET(-1,I116),SHEETOFFSET(-1,I79),SHEETOFFSET(-1,I86),SHEETOFFSET(-1,I88),SHEETOFFSET(-1,I73)) -> 0 | K39: =SELECCIONPATRON(SHEETOFFSET(-1,J154),SHEETOFFSET(-1,J115),SHEETOFFSET(-1,J116),SHEETOFFSET(-1,J79),SHEETOFFSET(-1,J86),SHEETOFFSET(-1,J88),SHEETOFFSET(-1,J73)) -> 0 | L39: --- | M39: =IFERROR(SELECCIONPATRON(L39,L39,L39,L39,H39*I39,H39*I39,H39*I39)*SELECCIONPATRON(SHEETOFFSET(-1,$T$122),SHEETOFFSET(-1,$T$85),SHEETOFFSET(-1,$V$86),SHEETOFFSET(-1,$V$49),SHEETOFFSET(-1,$G$29),SHEETOFFSET(-1,$G$44),SHEETOFFSET(-1,$G$30)),0) -> 0 | N39: 0 | O39: 0 | P39: 0 | Q39: 0 | R39: --- | S39: =IFERROR(IF(F39="Refrigerada",SELECCIONPATRON(R39,R39,R39,R39,I39,I39,I39)*SELECCIONPATRON(SHEETOFFSET(-1,$I$200),SHEETOFFSET(-1,$I$161),SHEETOFFSET(-1,$I$162),SHEETOFFSET(-1,$I$125),SHEETOFFSET(-1,$I$132)/(SHEETOFFSET(-1,$G$11)*IF(SHEETOFFSET(-1,$G$37)<>"",SHEETOFFSET(-1,$G$37),SHEETOFFSET(-1,$G$42))),SHEETOFFSET(-1,$I$134)/(SHEETOFFSET(-1,$G$11)*IF(SHEETOFFSET(-1,$G$26)<>"",SHEETOFFSET(-1,$G$26),SHEETOFFSET(-1,$G$31))),SHEETOFFSET(-1,$I$119)/(SHEETOFFSET(-1,$G$11)*IF(SHEETOFFSET(-1,$G$25)="Mercancías a granel",1,0.45))),0),0) -> 0 | T39: 0 | U39: 0 | V39: 0 | W39: 0 | X39: 0 | Y39: 0 | Z39: 0 | AA39: 0 | AB39: 0 | AC39: 0 | AD39: 0 | AE39: 0 | AF39: 0 | AG39: 0 | AH39: 0 | AI39: 0 | AJ39: 0 | AK39: 0 | AL39: 0 | AS39: 0 | AT39: 0
A40: 24 | B40: =SELECCIONPATRON(SHEETOFFSET(-1,C155),SHEETOFFSET(-1,C116),SHEETOFFSET(-1,C117),SHEETOFFSET(-1,C80),SHEETOFFSET(-1,C87),SHEETOFFSET(-1,C89),SHEETOFFSET(-1,C74)) -> 0 | C40: =SELECCIONPATRON(SHEETOFFSET(-1,D155),SHEETOFFSET(-1,D116),SHEETOFFSET(-1,D117),SHEETOFFSET(-1,D80),SHEETOFFSET(-1,D87),SHEETOFFSET(-1,D89),SHEETOFFSET(-1,D74)) -> 0 | D40: =SELECCIONPATRON(SHEETOFFSET(-1,M155),SHEETOFFSET(-1,M116),SHEETOFFSET(-1,M117),SHEETOFFSET(-1,M80),SHEETOFFSET(-1,$E$51),SHEETOFFSET(-1,$E$52),SHEETOFFSET(-1,$E$38)) -> 0 | E40: =SELECCIONPATRON(SHEETOFFSET(-1,P155),SHEETOFFSET(-1,P116),SHEETOFFSET(-1,P117),SHEETOFFSET(-1,P80),SHEETOFFSET(-1,$E$52),SHEETOFFSET(-1,$E$53),SHEETOFFSET(-1,$E$39)) -> 0 | F40: =SELECCIONPATRON(SHEETOFFSET(-1,H155),SHEETOFFSET(-1,H116),SHEETOFFSET(-1,H117),SHEETOFFSET(-1,H80),SHEETOFFSET(-1,H87),SHEETOFFSET(-1,H89),SHEETOFFSET(-1,H74)) -> 0 | G40: =SELECCIONPATRON(SHEETOFFSET(-1,R155),SHEETOFFSET(-1,R116),SHEETOFFSET(-1,S117),SHEETOFFSET(-1,S80),SHEETOFFSET(-1,$G$55),SHEETOFFSET(-1,$G$56),SHEETOFFSET(-1,$G$42)) -> 0 | H40: =SELECCIONPATRON(SHEETOFFSET(-1,S155),SHEETOFFSET(-1,S116),SHEETOFFSET(-1,T117),SHEETOFFSET(-1,T80),SHEETOFFSET(-1,$G$56),SHEETOFFSET(-1,$G$57),SHEETOFFSET(-1,$G$43)) -> 0 | I40: =SELECCIONPATRON(SHEETOFFSET(-1,G155),SHEETOFFSET(-1,G116),SHEETOFFSET(-1,G117),SHEETOFFSET(-1,G80),SHEETOFFSET(-1,G87),SHEETOFFSET(-1,G89),SHEETOFFSET(-1,G74)) -> 0 | J40: =SELECCIONPATRON(SHEETOFFSET(-1,I155),SHEETOFFSET(-1,I116),SHEETOFFSET(-1,I117),SHEETOFFSET(-1,I80),SHEETOFFSET(-1,I87),SHEETOFFSET(-1,I89),SHEETOFFSET(-1,I74)) -> 0 | K40: =SELECCIONPATRON(SHEETOFFSET(-1,J155),SHEETOFFSET(-1,J116),SHEETOFFSET(-1,J117),SHEETOFFSET(-1,J80),SHEETOFFSET(-1,J87),SHEETOFFSET(-1,J89),SHEETOFFSET(-1,J74)) -> 0 | L40: --- | M40: =IFERROR(SELECCIONPATRON(L40,L40,L40,L40,H40*I40,H40*I40,H40*I40)*SELECCIONPATRON(SHEETOFFSET(-1,$T$122),SHEETOFFSET(-1,$T$85),SHEETOFFSET(-1,$V$86),SHEETOFFSET(-1,$V$49),SHEETOFFSET(-1,$G$29),SHEETOFFSET(-1,$G$44),SHEETOFFSET(-1,$G$30)),0) -> 0 | N40: 0 | O40: 0 | P40: 0 | Q40: 0 | R40: --- | S40: =IFERROR(IF(F40="Refrigerada",SELECCIONPATRON(R40,R40,R40,R40,I40,I40,I40)*SELECCIONPATRON(SHEETOFFSET(-1,$I$200),SHEETOFFSET(-1,$I$161),SHEETOFFSET(-1,$I$162),SHEETOFFSET(-1,$I$125),SHEETOFFSET(-1,$I$132)/(SHEETOFFSET(-1,$G$11)*IF(SHEETOFFSET(-1,$G$37)<>"",SHEETOFFSET(-1,$G$37),SHEETOFFSET(-1,$G$42))),SHEETOFFSET(-1,$I$134)/(SHEETOFFSET(-1,$G$11)*IF(SHEETOFFSET(-1,$G$26)<>"",SHEETOFFSET(-1,$G$26),SHEETOFFSET(-1,$G$31))),SHEETOFFSET(-1,$I$119)/(SHEETOFFSET(-1,$G$11)*IF(SHEETOFFSET(-1,$G$25)="Mercancías a granel",1,0.45))),0),0) -> 0 | T40: 0 | U40: 0 | V40: 0 | W40: 0 | X40: 0 | Y40: 0 | Z40: 0 | AA40: 0 | AB40: 0 | AC40: 0 | AD40: 0 | AE40: 0 | AF40: 0 | AG40: 0 | AH40: 0 | AI40: 0 | AJ40: 0 | AK40: 0 | AL40: 0 | AS40: 0 | AT40: 0
A41: 25 | B41: =SELECCIONPATRON(SHEETOFFSET(-1,C156),SHEETOFFSET(-1,C117),SHEETOFFSET(-1,C118),SHEETOFFSET(-1,C81),SHEETOFFSET(-1,C88),SHEETOFFSET(-1,C90),SHEETOFFSET(-1,C75)) -> 0 | C41: =SELECCIONPATRON(SHEETOFFSET(-1,D156),SHEETOFFSET(-1,D117),SHEETOFFSET(-1,D118),SHEETOFFSET(-1,D81),SHEETOFFSET(-1,D88),SHEETOFFSET(-1,D90),SHEETOFFSET(-1,D75)) -> 0 | D41: =SELECCIONPATRON(SHEETOFFSET(-1,M156),SHEETOFFSET(-1,M117),SHEETOFFSET(-1,M118),SHEETOFFSET(-1,M81),SHEETOFFSET(-1,$E$51),SHEETOFFSET(-1,$E$52),SHEETOFFSET(-1,$E$38)) -> 0 | E41: =SELECCIONPATRON(SHEETOFFSET(-1,P156),SHEETOFFSET(-1,P117),SHEETOFFSET(-1,P118),SHEETOFFSET(-1,P81),SHEETOFFSET(-1,$E$52),SHEETOFFSET(-1,$E$53),SHEETOFFSET(-1,$E$39)) -> 0 | F41: =SELECCIONPATRON(SHEETOFFSET(-1,H156),SHEETOFFSET(-1,H117),SHEETOFFSET(-1,H118),SHEETOFFSET(-1,H81),SHEETOFFSET(-1,H88),SHEETOFFSET(-1,H90),SHEETOFFSET(-1,H75)) -> 0 | G41: =SELECCIONPATRON(SHEETOFFSET(-1,R156),SHEETOFFSET(-1,R117),SHEETOFFSET(-1,S118),SHEETOFFSET(-1,S81),SHEETOFFSET(-1,$G$55),SHEETOFFSET(-1,$G$56),SHEETOFFSET(-1,$G$42)) -> 0 | H41: =SELECCIONPATRON(SHEETOFFSET(-1,S156),SHEETOFFSET(-1,S117),SHEETOFFSET(-1,T118),SHEETOFFSET(-1,T81),SHEETOFFSET(-1,$G$56),SHEETOFFSET(-1,$G$57),SHEETOFFSET(-1,$G$43)) -> 0 | I41: =SELECCIONPATRON(SHEETOFFSET(-1,G156),SHEETOFFSET(-1,G117),SHEETOFFSET(-1,G118),SHEETOFFSET(-1,G81),SHEETOFFSET(-1,G88),SHEETOFFSET(-1,G90),SHEETOFFSET(-1,G75)) -> 0 | J41: =SELECCIONPATRON(SHEETOFFSET(-1,I156),SHEETOFFSET(-1,I117),SHEETOFFSET(-1,I118),SHEETOFFSET(-1,I81),SHEETOFFSET(-1,I88),SHEETOFFSET(-1,I90),SHEETOFFSET(-1,I75)) -> 0 | K41: =SELECCIONPATRON(SHEETOFFSET(-1,J156),SHEETOFFSET(-1,J117),SHEETOFFSET(-1,J118),SHEETOFFSET(-1,J81),SHEETOFFSET(-1,J88),SHEETOFFSET(-1,J90),SHEETOFFSET(-1,J75)) -> 0 | L41: --- | M41: =IFERROR(SELECCIONPATRON(L41,L41,L41,L41,H41*I41,H41*I41,H41*I41)*SELECCIONPATRON(SHEETOFFSET(-1,$T$122),SHEETOFFSET(-1,$T$85),SHEETOFFSET(-1,$V$86),SHEETOFFSET(-1,$V$49),SHEETOFFSET(-1,$G$29),SHEETOFFSET(-1,$G$44),SHEETOFFSET(-1,$G$30)),0) -> 0 | N41: 0 | O41: 0 | P41: 0 | Q41: 0 | R41: --- | S41: =IFERROR(IF(F41="Refrigerada",SELECCIONPATRON(R41,R41,R41,R41,I41,I41,I41)*SELECCIONPATRON(SHEETOFFSET(-1,$I$200),SHEETOFFSET(-1,$I$161),SHEETOFFSET(-1,$I$162),SHEETOFFSET(-1,$I$125),SHEETOFFSET(-1,$I$132)/(SHEETOFFSET(-1,$G$11)*IF(SHEETOFFSET(-1,$G$37)<>"",SHEETOFFSET(-1,$G$37),SHEETOFFSET(-1,$G$42))),SHEETOFFSET(-1,$I$134)/(SHEETOFFSET(-1,$G$11)*IF(SHEETOFFSET(-1,$G$26)<>"",SHEETOFFSET(-1,$G$26),SHEETOFFSET(-1,$G$31))),SHEETOFFSET(-1,$I$119)/(SHEETOFFSET(-1,$G$11)*IF(SHEETOFFSET(-1,$G$25)="Mercancías a granel",1,0.45))),0),0) -> 0 | T41: 0 | U41: 0 | V41: 0 | W41: 0 | X41: 0 | Y41: 0 | Z41: 0 | AA41: 0 | AB41: 0 | AC41: 0 | AD41: 0 | AE41: 0 | AF41: 0 | AG41: 0 | AH41: 0 | AI41: 0 | AJ41: 0 | AK41: 0 | AL41: 0 | AS41: 0 | AT41: 0
A42: 26 | B42: =SELECCIONPATRON(SHEETOFFSET(-1,C157),SHEETOFFSET(-1,C118),SHEETOFFSET(-1,C119),SHEETOFFSET(-1,C82),SHEETOFFSET(-1,C89),SHEETOFFSET(-1,C91),SHEETOFFSET(-1,C76)) -> 0 | C42: =SELECCIONPATRON(SHEETOFFSET(-1,D157),SHEETOFFSET(-1,D118),SHEETOFFSET(-1,D119),SHEETOFFSET(-1,D82),SHEETOFFSET(-1,D89),SHEETOFFSET(-1,D91),SHEETOFFSET(-1,D76)) -> 0 | D42: =SELECCIONPATRON(SHEETOFFSET(-1,M157),SHEETOFFSET(-1,M118),SHEETOFFSET(-1,M119),SHEETOFFSET(-1,M82),SHEETOFFSET(-1,$E$51),SHEETOFFSET(-1,$E$52),SHEETOFFSET(-1,$E$38)) -> 0 | E42: =SELECCIONPATRON(SHEETOFFSET(-1,P157),SHEETOFFSET(-1,P118),SHEETOFFSET(-1,P119),SHEETOFFSET(-1,P82),SHEETOFFSET(-1,$E$52),SHEETOFFSET(-1,$E$53),SHEETOFFSET(-1,$E$39)) -> 0 | F42: =SELECCIONPATRON(SHEETOFFSET(-1,H157),SHEETOFFSET(-1,H118),SHEETOFFSET(-1,H119),SHEETOFFSET(-1,H82),SHEETOFFSET(-1,H89),SHEETOFFSET(-1,H91),SHEETOFFSET(-1,H76)) -> 0 | G42: =SELECCIONPATRON(SHEETOFFSET(-1,R157),SHEETOFFSET(-1,R118),SHEETOFFSET(-1,S119),SHEETOFFSET(-1,S82),SHEETOFFSET(-1,$G$55),SHEETOFFSET(-1,$G$56),SHEETOFFSET(-1,$G$42)) -> 0 | H42: =SELECCIONPATRON(SHEETOFFSET(-1,S157),SHEETOFFSET(-1,S118),SHEETOFFSET(-1,T119),SHEETOFFSET(-1,T82),SHEETOFFSET(-1,$G$56),SHEETOFFSET(-1,$G$57),SHEETOFFSET(-1,$G$43)) -> 0 | I42: =SELECCIONPATRON(SHEETOFFSET(-1,G157),SHEETOFFSET(-1,G118),SHEETOFFSET(-1,G119),SHEETOFFSET(-1,G82),SHEETOFFSET(-1,G89),SHEETOFFSET(-1,G91),SHEETOFFSET(-1,G76)) -> 0 | J42: =SELECCIONPATRON(SHEETOFFSET(-1,I157),SHEETOFFSET(-1,I118),SHEETOFFSET(-1,I119),SHEETOFFSET(-1,I82),SHEETOFFSET(-1,I89),SHEETOFFSET(-1,I91),SHEETOFFSET(-1,I76)) -> 0 | K42: =SELECCIONPATRON(SHEETOFFSET(-1,J157),SHEETOFFSET(-1,J118),SHEETOFFSET(-1,J119),SHEETOFFSET(-1,J82),SHEETOFFSET(-1,J89),SHEETOFFSET(-1,J91),SHEETOFFSET(-1,J76)) -> 0 | L42: --- | M42: =IFERROR(SELECCIONPATRON(L42,L42,L42,L42,H42*I42,H42*I42,H42*I42)*SELECCIONPATRON(SHEETOFFSET(-1,$T$122),SHEETOFFSET(-1,$T$85),SHEETOFFSET(-1,$V$86),SHEETOFFSET(-1,$V$49),SHEETOFFSET(-1,$G$29),SHEETOFFSET(-1,$G$44),SHEETOFFSET(-1,$G$30)),0) -> 0 | N42: 0 | O42: 0 | P42: 0 | Q42: 0 | R42: --- | S42: =IFERROR(IF(F42="Refrigerada",SELECCIONPATRON(R42,R42,R42,R42,I42,I42,I42)*SELECCIONPATRON(SHEETOFFSET(-1,$I$200),SHEETOFFSET(-1,$I$161),SHEETOFFSET(-1,$I$162),SHEETOFFSET(-1,$I$125),SHEETOFFSET(-1,$I$132)/(SHEETOFFSET(-1,$G$11)*IF(SHEETOFFSET(-1,$G$37)<>"",SHEETOFFSET(-1,$G$37),SHEETOFFSET(-1,$G$42))),SHEETOFFSET(-1,$I$134)/(SHEETOFFSET(-1,$G$11)*IF(SHEETOFFSET(-1,$G$26)<>"",SHEETOFFSET(-1,$G$26),SHEETOFFSET(-1,$G$31))),SHEETOFFSET(-1,$I$119)/(SHEETOFFSET(-1,$G$11)*IF(SHEETOFFSET(-1,$G$25)="Mercancías a granel",1,0.45))),0),0) -> 0 | T42: 0 | U42: 0 | V42: 0 | W42: 0 | X42: 0 | Y42: 0 | Z42: 0 | AA42: 0 | AB42: 0 | AC42: 0 | AD42: 0 | AE42: 0 | AF42: 0 | AG42: 0 | AH42: 0 | AI42: 0 | AJ42: 0 | AK42: 0 | AL42: 0 | AS42: 0 | AT42: 0
A43: 27 | B43: =SELECCIONPATRON(SHEETOFFSET(-1,C158),SHEETOFFSET(-1,C119),SHEETOFFSET(-1,C120),SHEETOFFSET(-1,C83),SHEETOFFSET(-1,C90),SHEETOFFSET(-1,C92),SHEETOFFSET(-1,C77)) -> 0 | C43: =SELECCIONPATRON(SHEETOFFSET(-1,D158),SHEETOFFSET(-1,D119),SHEETOFFSET(-1,D120),SHEETOFFSET(-1,D83),SHEETOFFSET(-1,D90),SHEETOFFSET(-1,D92),SHEETOFFSET(-1,D77)) -> 0 | D43: =SELECCIONPATRON(SHEETOFFSET(-1,M158),SHEETOFFSET(-1,M119),SHEETOFFSET(-1,M120),SHEETOFFSET(-1,M83),SHEETOFFSET(-1,$E$51),SHEETOFFSET(-1,$E$52),SHEETOFFSET(-1,$E$38)) -> 0 | E43: =SELECCIONPATRON(SHEETOFFSET(-1,P158),SHEETOFFSET(-1,P119),SHEETOFFSET(-1,P120),SHEETOFFSET(-1,P83),SHEETOFFSET(-1,$E$52),SHEETOFFSET(-1,$E$53),SHEETOFFSET(-1,$E$39)) -> 0 | F43: =SELECCIONPATRON(SHEETOFFSET(-1,H158),SHEETOFFSET(-1,H119),SHEETOFFSET(-1,H120),SHEETOFFSET(-1,H83),SHEETOFFSET(-1,H90),SHEETOFFSET(-1,H92),SHEETOFFSET(-1,H77)) -> 0 | G43: =SELECCIONPATRON(SHEETOFFSET(-1,R158),SHEETOFFSET(-1,R119),SHEETOFFSET(-1,S120),SHEETOFFSET(-1,S83),SHEETOFFSET(-1,$G$55),SHEETOFFSET(-1,$G$56),SHEETOFFSET(-1,$G$42)) -> 0 | H43: =SELECCIONPATRON(SHEETOFFSET(-1,S158),SHEETOFFSET(-1,S119),SHEETOFFSET(-1,T120),SHEETOFFSET(-1,T83),SHEETOFFSET(-1,$G$56),SHEETOFFSET(-1,$G$57),SHEETOFFSET(-1,$G$43)) -> 0 | I43: =SELECCIONPATRON(SHEETOFFSET(-1,G158),SHEETOFFSET(-1,G119),SHEETOFFSET(-1,G120),SHEETOFFSET(-1,G83),SHEETOFFSET(-1,G90),SHEETOFFSET(-1,G92),SHEETOFFSET(-1,G77)) -> 0 | J43: =SELECCIONPATRON(SHEETOFFSET(-1,I158),SHEETOFFSET(-1,I119),SHEETOFFSET(-1,I120),SHEETOFFSET(-1,I83),SHEETOFFSET(-1,I90),SHEETOFFSET(-1,I92),SHEETOFFSET(-1,I77)) -> 0 | K43: =SELECCIONPATRON(SHEETOFFSET(-1,J158),SHEETOFFSET(-1,J119),SHEETOFFSET(-1,J120),SHEETOFFSET(-1,J83),SHEETOFFSET(-1,J90),SHEETOFFSET(-1,J92),SHEETOFFSET(-1,J77)) -> 0 | L43: --- | M43: =IFERROR(SELECCIONPATRON(L43,L43,L43,L43,H43*I43,H43*I43,H43*I43)*SELECCIONPATRON(SHEETOFFSET(-1,$T$122),SHEETOFFSET(-1,$T$85),SHEETOFFSET(-1,$V$86),SHEETOFFSET(-1,$V$49),SHEETOFFSET(-1,$G$29),SHEETOFFSET(-1,$G$44),SHEETOFFSET(-1,$G$30)),0) -> 0 | N43: 0 | O43: 0 | P43: 0 | Q43: 0 | R43: --- | S43: =IFERROR(IF(F43="Refrigerada",SELECCIONPATRON(R43,R43,R43,R43,I43,I43,I43)*SELECCIONPATRON(SHEETOFFSET(-1,$I$200),SHEETOFFSET(-1,$I$161),SHEETOFFSET(-1,$I$162),SHEETOFFSET(-1,$I$125),SHEETOFFSET(-1,$I$132)/(SHEETOFFSET(-1,$G$11)*IF(SHEETOFFSET(-1,$G$37)<>"",SHEETOFFSET(-1,$G$37),SHEETOFFSET(-1,$G$42))),SHEETOFFSET(-1,$I$134)/(SHEETOFFSET(-1,$G$11)*IF(SHEETOFFSET(-1,$G$26)<>"",SHEETOFFSET(-1,$G$26),SHEETOFFSET(-1,$G$31))),SHEETOFFSET(-1,$I$119)/(SHEETOFFSET(-1,$G$11)*IF(SHEETOFFSET(-1,$G$25)="Mercancías a granel",1,0.45))),0),0) -> 0 | T43: 0 | U43: 0 | V43: 0 | W43: 0 | X43: 0 | Y43: 0 | Z43: 0 | AA43: 0 | AB43: 0 | AC43: 0 | AD43: 0 | AE43: 0 | AF43: 0 | AG43: 0 | AH43: 0 | AI43: 0 | AJ43: 0 | AK43: 0 | AL43: 0 | AS43: 0 | AT43: 0
A44: 28 | B44: =SELECCIONPATRON(SHEETOFFSET(-1,C159),SHEETOFFSET(-1,C120),SHEETOFFSET(-1,C121),SHEETOFFSET(-1,C84),SHEETOFFSET(-1,C91),SHEETOFFSET(-1,C93),SHEETOFFSET(-1,C78)) -> 0 | C44: =SELECCIONPATRON(SHEETOFFSET(-1,D159),SHEETOFFSET(-1,D120),SHEETOFFSET(-1,D121),SHEETOFFSET(-1,D84),SHEETOFFSET(-1,D91),SHEETOFFSET(-1,D93),SHEETOFFSET(-1,D78)) -> 0 | D44: =SELECCIONPATRON(SHEETOFFSET(-1,M159),SHEETOFFSET(-1,M120),SHEETOFFSET(-1,M121),SHEETOFFSET(-1,M84),SHEETOFFSET(-1,$E$51),SHEETOFFSET(-1,$E$52),SHEETOFFSET(-1,$E$38)) -> 0 | E44: =SELECCIONPATRON(SHEETOFFSET(-1,P159),SHEETOFFSET(-1,P120),SHEETOFFSET(-1,P121),SHEETOFFSET(-1,P84),SHEETOFFSET(-1,$E$52),SHEETOFFSET(-1,$E$53),SHEETOFFSET(-1,$E$39)) -> 0 | F44: =SELECCIONPATRON(SHEETOFFSET(-1,H159),SHEETOFFSET(-1,H120),SHEETOFFSET(-1,H121),SHEETOFFSET(-1,H84),SHEETOFFSET(-1,H91),SHEETOFFSET(-1,H93),SHEETOFFSET(-1,H78)) -> 0 | G44: =SELECCIONPATRON(SHEETOFFSET(-1,R159),SHEETOFFSET(-1,R120),SHEETOFFSET(-1,S121),SHEETOFFSET(-1,S84),SHEETOFFSET(-1,$G$55),SHEETOFFSET(-1,$G$56),SHEETOFFSET(-1,$G$42)) -> 0 | H44: =SELECCIONPATRON(SHEETOFFSET(-1,S159),SHEETOFFSET(-1,S120),SHEETOFFSET(-1,T121),SHEETOFFSET(-1,T84),SHEETOFFSET(-1,$G$56),SHEETOFFSET(-1,$G$57),SHEETOFFSET(-1,$G$43)) -> 0 | I44: =SELECCIONPATRON(SHEETOFFSET(-1,G159),SHEETOFFSET(-1,G120),SHEETOFFSET(-1,G121),SHEETOFFSET(-1,G84),SHEETOFFSET(-1,G91),SHEETOFFSET(-1,G93),SHEETOFFSET(-1,G78)) -> 0 | J44: =SELECCIONPATRON(SHEETOFFSET(-1,I159),SHEETOFFSET(-1,I120),SHEETOFFSET(-1,I121),SHEETOFFSET(-1,I84),SHEETOFFSET(-1,I91),SHEETOFFSET(-1,I93),SHEETOFFSET(-1,I78)) -> 0 | K44: =SELECCIONPATRON(SHEETOFFSET(-1,J159),SHEETOFFSET(-1,J120),SHEETOFFSET(-1,J121),SHEETOFFSET(-1,J84),SHEETOFFSET(-1,J91),SHEETOFFSET(-1,J93),SHEETOFFSET(-1,J78)) -> 0 | L44: --- | M44: =IFERROR(SELECCIONPATRON(L44,L44,L44,L44,H44*I44,H44*I44,H44*I44)*SELECCIONPATRON(SHEETOFFSET(-1,$T$122),SHEETOFFSET(-1,$T$85),SHEETOFFSET(-1,$V$86),SHEETOFFSET(-1,$V$49),SHEETOFFSET(-1,$G$29),SHEETOFFSET(-1,$G$44),SHEETOFFSET(-1,$G$30)),0) -> 0 | N44: 0 | O44: 0 | P44: 0 | Q44: 0 | R44: --- | S44: =IFERROR(IF(F44="Refrigerada",SELECCIONPATRON(R44,R44,R44,R44,I44,I44,I44)*SELECCIONPATRON(SHEETOFFSET(-1,$I$200),SHEETOFFSET(-1,$I$161),SHEETOFFSET(-1,$I$162),SHEETOFFSET(-1,$I$125),SHEETOFFSET(-1,$I$132)/(SHEETOFFSET(-1,$G$11)*IF(SHEETOFFSET(-1,$G$37)<>"",SHEETOFFSET(-1,$G$37),SHEETOFFSET(-1,$G$42))),SHEETOFFSET(-1,$I$134)/(SHEETOFFSET(-1,$G$11)*IF(SHEETOFFSET(-1,$G$26)<>"",SHEETOFFSET(-1,$G$26),SHEETOFFSET(-1,$G$31))),SHEETOFFSET(-1,$I$119)/(SHEETOFFSET(-1,$G$11)*IF(SHEETOFFSET(-1,$G$25)="Mercancías a granel",1,0.45))),0),0) -> 0 | T44: 0 | U44: 0 | V44: 0 | W44: 0 | X44: 0 | Y44: 0 | Z44: 0 | AA44: 0 | AB44: 0 | AC44: 0 | AD44: 0 | AE44: 0 | AF44: 0 | AG44: 0 | AH44: 0 | AI44: 0 | AJ44: 0 | AK44: 0 | AL44: 0 | AS44: 0 | AT44: 0
A45: 29 | B45: =SELECCIONPATRON(SHEETOFFSET(-1,C160),SHEETOFFSET(-1,C121),SHEETOFFSET(-1,C122),SHEETOFFSET(-1,C85),SHEETOFFSET(-1,C92),SHEETOFFSET(-1,C94),SHEETOFFSET(-1,C79)) -> 0 | C45: =SELECCIONPATRON(SHEETOFFSET(-1,D160),SHEETOFFSET(-1,D121),SHEETOFFSET(-1,D122),SHEETOFFSET(-1,D85),SHEETOFFSET(-1,D92),SHEETOFFSET(-1,D94),SHEETOFFSET(-1,D79)) -> 0 | D45: =SELECCIONPATRON(SHEETOFFSET(-1,M160),SHEETOFFSET(-1,M121),SHEETOFFSET(-1,M122),SHEETOFFSET(-1,M85),SHEETOFFSET(-1,$E$51),SHEETOFFSET(-1,$E$52),SHEETOFFSET(-1,$E$38)) -> 0 | E45: =SELECCIONPATRON(SHEETOFFSET(-1,P160),SHEETOFFSET(-1,P121),SHEETOFFSET(-1,P122),SHEETOFFSET(-1,P85),SHEETOFFSET(-1,$E$52),SHEETOFFSET(-1,$E$53),SHEETOFFSET(-1,$E$39)) -> 0 | F45: =SELECCIONPATRON(SHEETOFFSET(-1,H160),SHEETOFFSET(-1,H121),SHEETOFFSET(-1,H122),SHEETOFFSET(-1,H85),SHEETOFFSET(-1,H92),SHEETOFFSET(-1,H94),SHEETOFFSET(-1,H79)) -> 0 | G45: =SELECCIONPATRON(SHEETOFFSET(-1,R160),SHEETOFFSET(-1,R121),SHEETOFFSET(-1,S122),SHEETOFFSET(-1,S85),SHEETOFFSET(-1,$G$55),SHEETOFFSET(-1,$G$56),SHEETOFFSET(-1,$G$42)) -> 0 | H45: =SELECCIONPATRON(SHEETOFFSET(-1,S160),SHEETOFFSET(-1,S121),SHEETOFFSET(-1,T122),SHEETOFFSET(-1,T85),SHEETOFFSET(-1,$G$56),SHEETOFFSET(-1,$G$57),SHEETOFFSET(-1,$G$43)) -> 0 | I45: =SELECCIONPATRON(SHEETOFFSET(-1,G160),SHEETOFFSET(-1,G121),SHEETOFFSET(-1,G122),SHEETOFFSET(-1,G85),SHEETOFFSET(-1,G92),SHEETOFFSET(-1,G94),SHEETOFFSET(-1,G79)) -> 0 | J45: =SELECCIONPATRON(SHEETOFFSET(-1,I160),SHEETOFFSET(-1,I121),SHEETOFFSET(-1,I122),SHEETOFFSET(-1,I85),SHEETOFFSET(-1,I92),SHEETOFFSET(-1,I94),SHEETOFFSET(-1,I79)) -> 0 | K45: =SELECCIONPATRON(SHEETOFFSET(-1,J160),SHEETOFFSET(-1,J121),SHEETOFFSET(-1,J122),SHEETOFFSET(-1,J85),SHEETOFFSET(-1,J92),SHEETOFFSET(-1,J94),SHEETOFFSET(-1,J79)) -> 0 | L45: --- | M45: =IFERROR(SELECCIONPATRON(L45,L45,L45,L45,H45*I45,H45*I45,H45*I45)*SELECCIONPATRON(SHEETOFFSET(-1,$T$122),SHEETOFFSET(-1,$T$85),SHEETOFFSET(-1,$V$86),SHEETOFFSET(-1,$V$49),SHEETOFFSET(-1,$G$29),SHEETOFFSET(-1,$G$44),SHEETOFFSET(-1,$G$30)),0) -> 0 | N45: 0 | O45: 0 | P45: 0 | Q45: 0 | R45: --- | S45: =IFERROR(IF(F45="Refrigerada",SELECCIONPATRON(R45,R45,R45,R45,I45,I45,I45)*SELECCIONPATRON(SHEETOFFSET(-1,$I$200),SHEETOFFSET(-1,$I$161),SHEETOFFSET(-1,$I$162),SHEETOFFSET(-1,$I$125),SHEETOFFSET(-1,$I$132)/(SHEETOFFSET(-1,$G$11)*IF(SHEETOFFSET(-1,$G$37)<>"",SHEETOFFSET(-1,$G$37),SHEETOFFSET(-1,$G$42))),SHEETOFFSET(-1,$I$134)/(SHEETOFFSET(-1,$G$11)*IF(SHEETOFFSET(-1,$G$26)<>"",SHEETOFFSET(-1,$G$26),SHEETOFFSET(-1,$G$31))),SHEETOFFSET(-1,$I$119)/(SHEETOFFSET(-1,$G$11)*IF(SHEETOFFSET(-1,$G$25)="Mercancías a granel",1,0.45))),0),0) -> 0 | T45: 0 | U45: 0 | V45: 0 | W45: 0 | X45: 0 | Y45: 0 | Z45: 0 | AA45: 0 | AB45: 0 | AC45: 0 | AD45: 0 | AE45: 0 | AF45: 0 | AG45: 0 | AH45: 0 | AI45: 0 | AJ45: 0 | AK45: 0 | AL45: 0 | AS45: 0 | AT45: 0
A46: 30 | B46: =SELECCIONPATRON(SHEETOFFSET(-1,C161),SHEETOFFSET(-1,C122),SHEETOFFSET(-1,C123),SHEETOFFSET(-1,C86),SHEETOFFSET(-1,C93),SHEETOFFSET(-1,C95),SHEETOFFSET(-1,C80)) -> 0 | C46: =SELECCIONPATRON(SHEETOFFSET(-1,D161),SHEETOFFSET(-1,D122),SHEETOFFSET(-1,D123),SHEETOFFSET(-1,D86),SHEETOFFSET(-1,D93),SHEETOFFSET(-1,D95),SHEETOFFSET(-1,D80)) -> 0 | D46: =SELECCIONPATRON(SHEETOFFSET(-1,M161),SHEETOFFSET(-1,M122),SHEETOFFSET(-1,M123),SHEETOFFSET(-1,M86),SHEETOFFSET(-1,$E$51),SHEETOFFSET(-1,$E$52),SHEETOFFSET(-1,$E$38)) -> 0 | E46: =SELECCIONPATRON(SHEETOFFSET(-1,P161),SHEETOFFSET(-1,P122),SHEETOFFSET(-1,P123),SHEETOFFSET(-1,P86),SHEETOFFSET(-1,$E$52),SHEETOFFSET(-1,$E$53),SHEETOFFSET(-1,$E$39)) -> 0 | F46: =SELECCIONPATRON(SHEETOFFSET(-1,H161),SHEETOFFSET(-1,H122),SHEETOFFSET(-1,H123),SHEETOFFSET(-1,H86),SHEETOFFSET(-1,H93),SHEETOFFSET(-1,H95),SHEETOFFSET(-1,H80)) -> 0 | G46: =SELECCIONPATRON(SHEETOFFSET(-1,R161),SHEETOFFSET(-1,R122),SHEETOFFSET(-1,S123),SHEETOFFSET(-1,S86),SHEETOFFSET(-1,$G$55),SHEETOFFSET(-1,$G$56),SHEETOFFSET(-1,$G$42)) -> 0 | H46: =SELECCIONPATRON(SHEETOFFSET(-1,S161),SHEETOFFSET(-1,S122),SHEETOFFSET(-1,T123),SHEETOFFSET(-1,T86),SHEETOFFSET(-1,$G$56),SHEETOFFSET(-1,$G$57),SHEETOFFSET(-1,$G$43)) -> 0 | I46: =SELECCIONPATRON(SHEETOFFSET(-1,G161),SHEETOFFSET(-1,G122),SHEETOFFSET(-1,G123),SHEETOFFSET(-1,G86),SHEETOFFSET(-1,G93),SHEETOFFSET(-1,G95),SHEETOFFSET(-1,G80)) -> 0 | J46: =SELECCIONPATRON(SHEETOFFSET(-1,I161),SHEETOFFSET(-1,I122),SHEETOFFSET(-1,I123),SHEETOFFSET(-1,I86),SHEETOFFSET(-1,I93),SHEETOFFSET(-1,I95),SHEETOFFSET(-1,I80)) -> 0 | K46: =SELECCIONPATRON(SHEETOFFSET(-1,J161),SHEETOFFSET(-1,J122),SHEETOFFSET(-1,J123),SHEETOFFSET(-1,J86),SHEETOFFSET(-1,J93),SHEETOFFSET(-1,J95),SHEETOFFSET(-1,J80)) -> 0 | L46: --- | M46: =IFERROR(SELECCIONPATRON(L46,L46,L46,L46,H46*I46,H46*I46,H46*I46)*SELECCIONPATRON(SHEETOFFSET(-1,$T$122),SHEETOFFSET(-1,$T$85),SHEETOFFSET(-1,$V$86),SHEETOFFSET(-1,$V$49),SHEETOFFSET(-1,$G$29),SHEETOFFSET(-1,$G$44),SHEETOFFSET(-1,$G$30)),0) -> 0 | N46: 0 | O46: 0 | P46: 0 | Q46: 0 | R46: --- | S46: =IFERROR(IF(F46="Refrigerada",SELECCIONPATRON(R46,R46,R46,R46,I46,I46,I46)*SELECCIONPATRON(SHEETOFFSET(-1,$I$200),SHEETOFFSET(-1,$I$161),SHEETOFFSET(-1,$I$162),SHEETOFFSET(-1,$I$125),SHEETOFFSET(-1,$I$132)/(SHEETOFFSET(-1,$G$11)*IF(SHEETOFFSET(-1,$G$37)<>"",SHEETOFFSET(-1,$G$37),SHEETOFFSET(-1,$G$42))),SHEETOFFSET(-1,$I$134)/(SHEETOFFSET(-1,$G$11)*IF(SHEETOFFSET(-1,$G$26)<>"",SHEETOFFSET(-1,$G$26),SHEETOFFSET(-1,$G$31))),SHEETOFFSET(-1,$I$119)/(SHEETOFFSET(-1,$G$11)*IF(SHEETOFFSET(-1,$G$25)="Mercancías a granel",1,0.45))),0),0) -> 0 | T46: 0 | U46: 0 | V46: 0 | W46: 0 | X46: 0 | Y46: 0 | Z46: 0 | AA46: 0 | AB46: 0 | AC46: 0 | AD46: 0 | AE46: 0 | AF46: 0 | AG46: 0 | AH46: 0 | AI46: 0 | AJ46: 0 | AK46: 0 | AL46: 0 | AS46: 0 | AT46: 0
A47: 31 | B47: =SELECCIONPATRON(SHEETOFFSET(-1,C162),SHEETOFFSET(-1,C123),SHEETOFFSET(-1,C124),SHEETOFFSET(-1,C87),SHEETOFFSET(-1,C94),SHEETOFFSET(-1,C96),SHEETOFFSET(-1,C81)) -> 0 | C47: =SELECCIONPATRON(SHEETOFFSET(-1,D162),SHEETOFFSET(-1,D123),SHEETOFFSET(-1,D124),SHEETOFFSET(-1,D87),SHEETOFFSET(-1,D94),SHEETOFFSET(-1,D96),SHEETOFFSET(-1,D81)) -> 0 | D47: =SELECCIONPATRON(SHEETOFFSET(-1,M162),SHEETOFFSET(-1,M123),SHEETOFFSET(-1,M124),SHEETOFFSET(-1,M87),SHEETOFFSET(-1,$E$51),SHEETOFFSET(-1,$E$52),SHEETOFFSET(-1,$E$38)) -> 0 | E47: =SELECCIONPATRON(SHEETOFFSET(-1,P162),SHEETOFFSET(-1,P123),SHEETOFFSET(-1,P124),SHEETOFFSET(-1,P87),SHEETOFFSET(-1,$E$52),SHEETOFFSET(-1,$E$53),SHEETOFFSET(-1,$E$39)) -> 0 | F47: =SELECCIONPATRON(SHEETOFFSET(-1,H162),SHEETOFFSET(-1,H123),SHEETOFFSET(-1,H124),SHEETOFFSET(-1,H87),SHEETOFFSET(-1,H94),SHEETOFFSET(-1,H96),SHEETOFFSET(-1,H81)) -> 0 | G47: =SELECCIONPATRON(SHEETOFFSET(-1,R162),SHEETOFFSET(-1,R123),SHEETOFFSET(-1,S124),SHEETOFFSET(-1,S87),SHEETOFFSET(-1,$G$55),SHEETOFFSET(-1,$G$56),SHEETOFFSET(-1,$G$42)) -> 0 | H47: =SELECCIONPATRON(SHEETOFFSET(-1,S162),SHEETOFFSET(-1,S123),SHEETOFFSET(-1,T124),SHEETOFFSET(-1,T87),SHEETOFFSET(-1,$G$56),SHEETOFFSET(-1,$G$57),SHEETOFFSET(-1,$G$43)) -> 0 | I47: =SELECCIONPATRON(SHEETOFFSET(-1,G162),SHEETOFFSET(-1,G123),SHEETOFFSET(-1,G124),SHEETOFFSET(-1,G87),SHEETOFFSET(-1,G94),SHEETOFFSET(-1,G96),SHEETOFFSET(-1,G81)) -> 0 | J47: =SELECCIONPATRON(SHEETOFFSET(-1,I162),SHEETOFFSET(-1,I123),SHEETOFFSET(-1,I124),SHEETOFFSET(-1,I87),SHEETOFFSET(-1,I94),SHEETOFFSET(-1,I96),SHEETOFFSET(-1,I81)) -> 0 | K47: =SELECCIONPATRON(SHEETOFFSET(-1,J162),SHEETOFFSET(-1,J123),SHEETOFFSET(-1,J124),SHEETOFFSET(-1,J87),SHEETOFFSET(-1,J94),SHEETOFFSET(-1,J96),SHEETOFFSET(-1,J81)) -> 0 | L47: --- | M47: =IFERROR(SELECCIONPATRON(L47,L47,L47,L47,H47*I47,H47*I47,H47*I47)*SELECCIONPATRON(SHEETOFFSET(-1,$T$122),SHEETOFFSET(-1,$T$85),SHEETOFFSET(-1,$V$86),SHEETOFFSET(-1,$V$49),SHEETOFFSET(-1,$G$29),SHEETOFFSET(-1,$G$44),SHEETOFFSET(-1,$G$30)),0) -> 0 | N47: 0 | O47: 0 | P47: 0 | Q47: 0 | R47: --- | S47: =IFERROR(IF(F47="Refrigerada",SELECCIONPATRON(R47,R47,R47,R47,I47,I47,I47)*SELECCIONPATRON(SHEETOFFSET(-1,$I$200),SHEETOFFSET(-1,$I$161),SHEETOFFSET(-1,$I$162),SHEETOFFSET(-1,$I$125),SHEETOFFSET(-1,$I$132)/(SHEETOFFSET(-1,$G$11)*IF(SHEETOFFSET(-1,$G$37)<>"",SHEETOFFSET(-1,$G$37),SHEETOFFSET(-1,$G$42))),SHEETOFFSET(-1,$I$134)/(SHEETOFFSET(-1,$G$11)*IF(SHEETOFFSET(-1,$G$26)<>"",SHEETOFFSET(-1,$G$26),SHEETOFFSET(-1,$G$31))),SHEETOFFSET(-1,$I$119)/(SHEETOFFSET(-1,$G$11)*IF(SHEETOFFSET(-1,$G$25)="Mercancías a granel",1,0.45))),0),0) -> 0 | T47: 0 | U47: 0 | V47: 0 | W47: 0 | X47: 0 | Y47: 0 | Z47: 0 | AA47: 0 | AB47: 0 | AC47: 0 | AD47: 0 | AE47: 0 | AF47: 0 | AG47: 0 | AH47: 0 | AI47: 0 | AJ47: 0 | AK47: 0 | AL47: 0 | AS47: 0 | AT47: 0
A48: 32 | B48: =SELECCIONPATRON(SHEETOFFSET(-1,C163),SHEETOFFSET(-1,C124),SHEETOFFSET(-1,C125),SHEETOFFSET(-1,C88),SHEETOFFSET(-1,C95),SHEETOFFSET(-1,C97),SHEETOFFSET(-1,C82)) -> 0 | C48: =SELECCIONPATRON(SHEETOFFSET(-1,D163),SHEETOFFSET(-1,D124),SHEETOFFSET(-1,D125),SHEETOFFSET(-1,D88),SHEETOFFSET(-1,D95),SHEETOFFSET(-1,D97),SHEETOFFSET(-1,D82)) -> 0 | D48: =SELECCIONPATRON(SHEETOFFSET(-1,M163),SHEETOFFSET(-1,M124),SHEETOFFSET(-1,M125),SHEETOFFSET(-1,M88),SHEETOFFSET(-1,$E$51),SHEETOFFSET(-1,$E$52),SHEETOFFSET(-1,$E$38)) -> 0 | E48: =SELECCIONPATRON(SHEETOFFSET(-1,P163),SHEETOFFSET(-1,P124),SHEETOFFSET(-1,P125),SHEETOFFSET(-1,P88),SHEETOFFSET(-1,$E$52),SHEETOFFSET(-1,$E$53),SHEETOFFSET(-1,$E$39)) -> 0 | F48: =SELECCIONPATRON(SHEETOFFSET(-1,H163),SHEETOFFSET(-1,H124),SHEETOFFSET(-1,H125),SHEETOFFSET(-1,H88),SHEETOFFSET(-1,H95),SHEETOFFSET(-1,H97),SHEETOFFSET(-1,H82)) -> 0 | G48: =SELECCIONPATRON(SHEETOFFSET(-1,R163),SHEETOFFSET(-1,R124),SHEETOFFSET(-1,S125),SHEETOFFSET(-1,S88),SHEETOFFSET(-1,$G$55),SHEETOFFSET(-1,$G$56),SHEETOFFSET(-1,$G$42)) -> 0 | H48: =SELECCIONPATRON(SHEETOFFSET(-1,S163),SHEETOFFSET(-1,S124),SHEETOFFSET(-1,T125),SHEETOFFSET(-1,T88),SHEETOFFSET(-1,$G$56),SHEETOFFSET(-1,$G$57),SHEETOFFSET(-1,$G$43)) -> 0 | I48: =SELECCIONPATRON(SHEETOFFSET(-1,G163),SHEETOFFSET(-1,G124),SHEETOFFSET(-1,G125),SHEETOFFSET(-1,G88),SHEETOFFSET(-1,G95),SHEETOFFSET(-1,G97),SHEETOFFSET(-1,G82)) -> 0 | J48: =SELECCIONPATRON(SHEETOFFSET(-1,I163),SHEETOFFSET(-1,I124),SHEETOFFSET(-1,I125),SHEETOFFSET(-1,I88),SHEETOFFSET(-1,I95),SHEETOFFSET(-1,I97),SHEETOFFSET(-1,I82)) -> 0 | K48: =SELECCIONPATRON(SHEETOFFSET(-1,J163),SHEETOFFSET(-1,J124),SHEETOFFSET(-1,J125),SHEETOFFSET(-1,J88),SHEETOFFSET(-1,J95),SHEETOFFSET(-1,J97),SHEETOFFSET(-1,J82)) -> 0 | L48: --- | M48: =IFERROR(SELECCIONPATRON(L48,L48,L48,L48,H48*I48,H48*I48,H48*I48)*SELECCIONPATRON(SHEETOFFSET(-1,$T$122),SHEETOFFSET(-1,$T$85),SHEETOFFSET(-1,$V$86),SHEETOFFSET(-1,$V$49),SHEETOFFSET(-1,$G$29),SHEETOFFSET(-1,$G$44),SHEETOFFSET(-1,$G$30)),0) -> 0 | N48: 0 | O48: 0 | P48: 0 | Q48: 0 | R48: --- | S48: =IFERROR(IF(F48="Refrigerada",SELECCIONPATRON(R48,R48,R48,R48,I48,I48,I48)*SELECCIONPATRON(SHEETOFFSET(-1,$I$200),SHEETOFFSET(-1,$I$161),SHEETOFFSET(-1,$I$162),SHEETOFFSET(-1,$I$125),SHEETOFFSET(-1,$I$132)/(SHEETOFFSET(-1,$G$11)*IF(SHEETOFFSET(-1,$G$37)<>"",SHEETOFFSET(-1,$G$37),SHEETOFFSET(-1,$G$42))),SHEETOFFSET(-1,$I$134)/(SHEETOFFSET(-1,$G$11)*IF(SHEETOFFSET(-1,$G$26)<>"",SHEETOFFSET(-1,$G$26),SHEETOFFSET(-1,$G$31))),SHEETOFFSET(-1,$I$119)/(SHEETOFFSET(-1,$G$11)*IF(SHEETOFFSET(-1,$G$25)="Mercancías a granel",1,0.45))),0),0) -> 0 | T48: 0 | U48: 0 | V48: 0 | W48: 0 | X48: 0 | Y48: 0 | Z48: 0 | AA48: 0 | AB48: 0 | AC48: 0 | AD48: 0 | AE48: 0 | AF48: 0 | AG48: 0 | AH48: 0 | AI48: 0 | AJ48: 0 | AK48: 0 | AL48: 0 | AS48: 0 | AT48: 0
A49: 33 | B49: =SELECCIONPATRON(SHEETOFFSET(-1,C164),SHEETOFFSET(-1,C125),SHEETOFFSET(-1,C126),SHEETOFFSET(-1,C89),SHEETOFFSET(-1,C96),SHEETOFFSET(-1,C98),SHEETOFFSET(-1,C83)) -> 0 | C49: =SELECCIONPATRON(SHEETOFFSET(-1,D164),SHEETOFFSET(-1,D125),SHEETOFFSET(-1,D126),SHEETOFFSET(-1,D89),SHEETOFFSET(-1,D96),SHEETOFFSET(-1,D98),SHEETOFFSET(-1,D83)) -> 0 | D49: =SELECCIONPATRON(SHEETOFFSET(-1,M164),SHEETOFFSET(-1,M125),SHEETOFFSET(-1,M126),SHEETOFFSET(-1,M89),SHEETOFFSET(-1,$E$51),SHEETOFFSET(-1,$E$52),SHEETOFFSET(-1,$E$38)) -> 0 | E49: =SELECCIONPATRON(SHEETOFFSET(-1,P164),SHEETOFFSET(-1,P125),SHEETOFFSET(-1,P126),SHEETOFFSET(-1,P89),SHEETOFFSET(-1,$E$52),SHEETOFFSET(-1,$E$53),SHEETOFFSET(-1,$E$39)) -> 0 | F49: =SELECCIONPATRON(SHEETOFFSET(-1,H164),SHEETOFFSET(-1,H125),SHEETOFFSET(-1,H126),SHEETOFFSET(-1,H89),SHEETOFFSET(-1,H96),SHEETOFFSET(-1,H98),SHEETOFFSET(-1,H83)) -> 0 | G49: =SELECCIONPATRON(SHEETOFFSET(-1,R164),SHEETOFFSET(-1,R125),SHEETOFFSET(-1,S126),SHEETOFFSET(-1,S89),SHEETOFFSET(-1,$G$55),SHEETOFFSET(-1,$G$56),SHEETOFFSET(-1,$G$42)) -> 0 | H49: =SELECCIONPATRON(SHEETOFFSET(-1,S164),SHEETOFFSET(-1,S125),SHEETOFFSET(-1,T126),SHEETOFFSET(-1,T89),SHEETOFFSET(-1,$G$56),SHEETOFFSET(-1,$G$57),SHEETOFFSET(-1,$G$43)) -> 0 | I49: =SELECCIONPATRON(SHEETOFFSET(-1,G164),SHEETOFFSET(-1,G125),SHEETOFFSET(-1,G126),SHEETOFFSET(-1,G89),SHEETOFFSET(-1,G96),SHEETOFFSET(-1,G98),SHEETOFFSET(-1,G83)) -> 0 | J49: =SELECCIONPATRON(SHEETOFFSET(-1,I164),SHEETOFFSET(-1,I125),SHEETOFFSET(-1,I126),SHEETOFFSET(-1,I89),SHEETOFFSET(-1,I96),SHEETOFFSET(-1,I98),SHEETOFFSET(-1,I83)) -> 0 | K49: =SELECCIONPATRON(SHEETOFFSET(-1,J164),SHEETOFFSET(-1,J125),SHEETOFFSET(-1,J126),SHEETOFFSET(-1,J89),SHEETOFFSET(-1,J96),SHEETOFFSET(-1,J98),SHEETOFFSET(-1,J83)) -> 0 | L49: --- | M49: =IFERROR(SELECCIONPATRON(L49,L49,L49,L49,H49*I49,H49*I49,H49*I49)*SELECCIONPATRON(SHEETOFFSET(-1,$T$122),SHEETOFFSET(-1,$T$85),SHEETOFFSET(-1,$V$86),SHEETOFFSET(-1,$V$49),SHEETOFFSET(-1,$G$29),SHEETOFFSET(-1,$G$44),SHEETOFFSET(-1,$G$30)),0) -> 0 | N49: 0 | O49: 0 | P49: 0 | Q49: 0 | R49: --- | S49: =IFERROR(IF(F49="Refrigerada",SELECCIONPATRON(R49,R49,R49,R49,I49,I49,I49)*SELECCIONPATRON(SHEETOFFSET(-1,$I$200),SHEETOFFSET(-1,$I$161),SHEETOFFSET(-1,$I$162),SHEETOFFSET(-1,$I$125),SHEETOFFSET(-1,$I$132)/(SHEETOFFSET(-1,$G$11)*IF(SHEETOFFSET(-1,$G$37)<>"",SHEETOFFSET(-1,$G$37),SHEETOFFSET(-1,$G$42))),SHEETOFFSET(-1,$I$134)/(SHEETOFFSET(-1,$G$11)*IF(SHEETOFFSET(-1,$G$26)<>"",SHEETOFFSET(-1,$G$26),SHEETOFFSET(-1,$G$31))),SHEETOFFSET(-1,$I$119)/(SHEETOFFSET(-1,$G$11)*IF(SHEETOFFSET(-1,$G$25)="Mercancías a granel",1,0.45))),0),0) -> 0 | T49: 0 | U49: 0 | V49: 0 | W49: 0 | X49: 0 | Y49: 0 | Z49: 0 | AA49: 0 | AB49: 0 | AC49: 0 | AD49: 0 | AE49: 0 | AF49: 0 | AG49: 0 | AH49: 0 | AI49: 0 | AJ49: 0 | AK49: 0 | AL49: 0 | AS49: 0 | AT49: 0
A50: 34 | B50: =SELECCIONPATRON(SHEETOFFSET(-1,C165),SHEETOFFSET(-1,C126),SHEETOFFSET(-1,C127),SHEETOFFSET(-1,C90),SHEETOFFSET(-1,C97),SHEETOFFSET(-1,C99),SHEETOFFSET(-1,C84)) -> 0 | C50: =SELECCIONPATRON(SHEETOFFSET(-1,D165),SHEETOFFSET(-1,D126),SHEETOFFSET(-1,D127),SHEETOFFSET(-1,D90),SHEETOFFSET(-1,D97),SHEETOFFSET(-1,D99),SHEETOFFSET(-1,D84)) -> 0 | D50: =SELECCIONPATRON(SHEETOFFSET(-1,M165),SHEETOFFSET(-1,M126),SHEETOFFSET(-1,M127),SHEETOFFSET(-1,M90),SHEETOFFSET(-1,$E$51),SHEETOFFSET(-1,$E$52),SHEETOFFSET(-1,$E$38)) -> 0 | E50: =SELECCIONPATRON(SHEETOFFSET(-1,P165),SHEETOFFSET(-1,P126),SHEETOFFSET(-1,P127),SHEETOFFSET(-1,P90),SHEETOFFSET(-1,$E$52),SHEETOFFSET(-1,$E$53),SHEETOFFSET(-1,$E$39)) -> 0 | F50: =SELECCIONPATRON(SHEETOFFSET(-1,H165),SHEETOFFSET(-1,H126),SHEETOFFSET(-1,H127),SHEETOFFSET(-1,H90),SHEETOFFSET(-1,H97),SHEETOFFSET(-1,H99),SHEETOFFSET(-1,H84)) -> 0 | G50: =SELECCIONPATRON(SHEETOFFSET(-1,R165),SHEETOFFSET(-1,R126),SHEETOFFSET(-1,S127),SHEETOFFSET(-1,S90),SHEETOFFSET(-1,$G$55),SHEETOFFSET(-1,$G$56),SHEETOFFSET(-1,$G$42)) -> 0 | H50: =SELECCIONPATRON(SHEETOFFSET(-1,S165),SHEETOFFSET(-1,S126),SHEETOFFSET(-1,T127),SHEETOFFSET(-1,T90),SHEETOFFSET(-1,$G$56),SHEETOFFSET(-1,$G$57),SHEETOFFSET(-1,$G$43)) -> 0 | I50: =SELECCIONPATRON(SHEETOFFSET(-1,G165),SHEETOFFSET(-1,G126),SHEETOFFSET(-1,G127),SHEETOFFSET(-1,G90),SHEETOFFSET(-1,G97),SHEETOFFSET(-1,G99),SHEETOFFSET(-1,G84)) -> 0 | J50: =SELECCIONPATRON(SHEETOFFSET(-1,I165),SHEETOFFSET(-1,I126),SHEETOFFSET(-1,I127),SHEETOFFSET(-1,I90),SHEETOFFSET(-1,I97),SHEETOFFSET(-1,I99),SHEETOFFSET(-1,I84)) -> 0 | K50: =SELECCIONPATRON(SHEETOFFSET(-1,J165),SHEETOFFSET(-1,J126),SHEETOFFSET(-1,J127),SHEETOFFSET(-1,J90),SHEETOFFSET(-1,J97),SHEETOFFSET(-1,J99),SHEETOFFSET(-1,J84)) -> 0 | L50: --- | M50: =IFERROR(SELECCIONPATRON(L50,L50,L50,L50,H50*I50,H50*I50,H50*I50)*SELECCIONPATRON(SHEETOFFSET(-1,$T$122),SHEETOFFSET(-1,$T$85),SHEETOFFSET(-1,$V$86),SHEETOFFSET(-1,$V$49),SHEETOFFSET(-1,$G$29),SHEETOFFSET(-1,$G$44),SHEETOFFSET(-1,$G$30)),0) -> 0 | N50: 0 | O50: 0 | P50: 0 | Q50: 0 | R50: --- | S50: =IFERROR(IF(F50="Refrigerada",SELECCIONPATRON(R50,R50,R50,R50,I50,I50,I50)*SELECCIONPATRON(SHEETOFFSET(-1,$I$200),SHEETOFFSET(-1,$I$161),SHEETOFFSET(-1,$I$162),SHEETOFFSET(-1,$I$125),SHEETOFFSET(-1,$I$132)/(SHEETOFFSET(-1,$G$11)*IF(SHEETOFFSET(-1,$G$37)<>"",SHEETOFFSET(-1,$G$37),SHEETOFFSET(-1,$G$42))),SHEETOFFSET(-1,$I$134)/(SHEETOFFSET(-1,$G$11)*IF(SHEETOFFSET(-1,$G$26)<>"",SHEETOFFSET(-1,$G$26),SHEETOFFSET(-1,$G$31))),SHEETOFFSET(-1,$I$119)/(SHEETOFFSET(-1,$G$11)*IF(SHEETOFFSET(-1,$G$25)="Mercancías a granel",1,0.45))),0),0) -> 0 | T50: 0 | U50: 0 | V50: 0 | W50: 0 | X50: 0 | Y50: 0 | Z50: 0 | AA50: 0 | AB50: 0 | AC50: 0 | AD50: 0 | AE50: 0 | AF50: 0 | AG50: 0 | AH50: 0 | AI50: 0 | AJ50: 0 | AK50: 0 | AL50: 0 | AS50: 0 | AT50: 0
A51: 35 | B51: =SELECCIONPATRON(SHEETOFFSET(-1,C166),SHEETOFFSET(-1,C127),SHEETOFFSET(-1,C128),SHEETOFFSET(-1,C91),SHEETOFFSET(-1,C98),SHEETOFFSET(-1,C100),SHEETOFFSET(-1,C85)) -> 0 | C51: =SELECCIONPATRON(SHEETOFFSET(-1,D166),SHEETOFFSET(-1,D127),SHEETOFFSET(-1,D128),SHEETOFFSET(-1,D91),SHEETOFFSET(-1,D98),SHEETOFFSET(-1,D100),SHEETOFFSET(-1,D85)) -> 0 | D51: =SELECCIONPATRON(SHEETOFFSET(-1,M166),SHEETOFFSET(-1,M127),SHEETOFFSET(-1,M128),SHEETOFFSET(-1,M91),SHEETOFFSET(-1,$E$51),SHEETOFFSET(-1,$E$52),SHEETOFFSET(-1,$E$38)) -> 0 | E51: =SELECCIONPATRON(SHEETOFFSET(-1,P166),SHEETOFFSET(-1,P127),SHEETOFFSET(-1,P128),SHEETOFFSET(-1,P91),SHEETOFFSET(-1,$E$52),SHEETOFFSET(-1,$E$53),SHEETOFFSET(-1,$E$39)) -> 0 | F51: =SELECCIONPATRON(SHEETOFFSET(-1,H166),SHEETOFFSET(-1,H127),SHEETOFFSET(-1,H128),SHEETOFFSET(-1,H91),SHEETOFFSET(-1,H98),SHEETOFFSET(-1,H100),SHEETOFFSET(-1,H85)) -> 0 | G51: =SELECCIONPATRON(SHEETOFFSET(-1,R166),SHEETOFFSET(-1,R127),SHEETOFFSET(-1,S128),SHEETOFFSET(-1,S91),SHEETOFFSET(-1,$G$55),SHEETOFFSET(-1,$G$56),SHEETOFFSET(-1,$G$42)) -> 0 | H51: =SELECCIONPATRON(SHEETOFFSET(-1,S166),SHEETOFFSET(-1,S127),SHEETOFFSET(-1,T128),SHEETOFFSET(-1,T91),SHEETOFFSET(-1,$G$56),SHEETOFFSET(-1,$G$57),SHEETOFFSET(-1,$G$43)) -> 0 | I51: =SELECCIONPATRON(SHEETOFFSET(-1,G166),SHEETOFFSET(-1,G127),SHEETOFFSET(-1,G128),SHEETOFFSET(-1,G91),SHEETOFFSET(-1,G98),SHEETOFFSET(-1,G100),SHEETOFFSET(-1,G85)) -> 0 | J51: =SELECCIONPATRON(SHEETOFFSET(-1,I166),SHEETOFFSET(-1,I127),SHEETOFFSET(-1,I128),SHEETOFFSET(-1,I91),SHEETOFFSET(-1,I98),SHEETOFFSET(-1,I100),SHEETOFFSET(-1,I85)) -> 0 | K51: =SELECCIONPATRON(SHEETOFFSET(-1,J166),SHEETOFFSET(-1,J127),SHEETOFFSET(-1,J128),SHEETOFFSET(-1,J91),SHEETOFFSET(-1,J98),SHEETOFFSET(-1,J100),SHEETOFFSET(-1,J85)) -> 0 | L51: --- | M51: =IFERROR(SELECCIONPATRON(L51,L51,L51,L51,H51*I51,H51*I51,H51*I51)*SELECCIONPATRON(SHEETOFFSET(-1,$T$122),SHEETOFFSET(-1,$T$85),SHEETOFFSET(-1,$V$86),SHEETOFFSET(-1,$V$49),SHEETOFFSET(-1,$G$29),SHEETOFFSET(-1,$G$44),SHEETOFFSET(-1,$G$30)),0) -> 0 | N51: 0 | O51: 0 | P51: 0 | Q51: 0 | R51: --- | S51: =IFERROR(IF(F51="Refrigerada",SELECCIONPATRON(R51,R51,R51,R51,I51,I51,I51)*SELECCIONPATRON(SHEETOFFSET(-1,$I$200),SHEETOFFSET(-1,$I$161),SHEETOFFSET(-1,$I$162),SHEETOFFSET(-1,$I$125),SHEETOFFSET(-1,$I$132)/(SHEETOFFSET(-1,$G$11)*IF(SHEETOFFSET(-1,$G$37)<>"",SHEETOFFSET(-1,$G$37),SHEETOFFSET(-1,$G$42))),SHEETOFFSET(-1,$I$134)/(SHEETOFFSET(-1,$G$11)*IF(SHEETOFFSET(-1,$G$26)<>"",SHEETOFFSET(-1,$G$26),SHEETOFFSET(-1,$G$31))),SHEETOFFSET(-1,$I$119)/(SHEETOFFSET(-1,$G$11)*IF(SHEETOFFSET(-1,$G$25)="Mercancías a granel",1,0.45))),0),0) -> 0 | T51: 0 | U51: 0 | V51: 0 | W51: 0 | X51: 0 | Y51: 0 | Z51: 0 | AA51: 0 | AB51: 0 | AC51: 0 | AD51: 0 | AE51: 0 | AF51: 0 | AG51: 0 | AH51: 0 | AI51: 0 | AJ51: 0 | AK51: 0 | AL51: 0 | AS51: 0 | AT51: 0
A52: 36 | B52: =SELECCIONPATRON(SHEETOFFSET(-1,C167),SHEETOFFSET(-1,C128),SHEETOFFSET(-1,C129),SHEETOFFSET(-1,C92),SHEETOFFSET(-1,C99),SHEETOFFSET(-1,C101),SHEETOFFSET(-1,C86)) -> 0 | C52: =SELECCIONPATRON(SHEETOFFSET(-1,D167),SHEETOFFSET(-1,D128),SHEETOFFSET(-1,D129),SHEETOFFSET(-1,D92),SHEETOFFSET(-1,D99),SHEETOFFSET(-1,D101),SHEETOFFSET(-1,D86)) -> 0 | D52: =SELECCIONPATRON(SHEETOFFSET(-1,M167),SHEETOFFSET(-1,M128),SHEETOFFSET(-1,M129),SHEETOFFSET(-1,M92),SHEETOFFSET(-1,$E$51),SHEETOFFSET(-1,$E$52),SHEETOFFSET(-1,$E$38)) -> 0 | E52: =SELECCIONPATRON(SHEETOFFSET(-1,P167),SHEETOFFSET(-1,P128),SHEETOFFSET(-1,P129),SHEETOFFSET(-1,P92),SHEETOFFSET(-1,$E$52),SHEETOFFSET(-1,$E$53),SHEETOFFSET(-1,$E$39)) -> 0 | F52: =SELECCIONPATRON(SHEETOFFSET(-1,H167),SHEETOFFSET(-1,H128),SHEETOFFSET(-1,H129),SHEETOFFSET(-1,H92),SHEETOFFSET(-1,H99),SHEETOFFSET(-1,H101),SHEETOFFSET(-1,H86)) -> 0 | G52: =SELECCIONPATRON(SHEETOFFSET(-1,R167),SHEETOFFSET(-1,R128),SHEETOFFSET(-1,S129),SHEETOFFSET(-1,S92),SHEETOFFSET(-1,$G$55),SHEETOFFSET(-1,$G$56),SHEETOFFSET(-1,$G$42)) -> 0 | H52: =SELECCIONPATRON(SHEETOFFSET(-1,S167),SHEETOFFSET(-1,S128),SHEETOFFSET(-1,T129),SHEETOFFSET(-1,T92),SHEETOFFSET(-1,$G$56),SHEETOFFSET(-1,$G$57),SHEETOFFSET(-1,$G$43)) -> 0 | I52: =SELECCIONPATRON(SHEETOFFSET(-1,G167),SHEETOFFSET(-1,G128),SHEETOFFSET(-1,G129),SHEETOFFSET(-1,G92),SHEETOFFSET(-1,G99),SHEETOFFSET(-1,G101),SHEETOFFSET(-1,G86)) -> 0 | J52: =SELECCIONPATRON(SHEETOFFSET(-1,I167),SHEETOFFSET(-1,I128),SHEETOFFSET(-1,I129),SHEETOFFSET(-1,I92),SHEETOFFSET(-1,I99),SHEETOFFSET(-1,I101),SHEETOFFSET(-1,I86)) -> 0 | K52: =SELECCIONPATRON(SHEETOFFSET(-1,J167),SHEETOFFSET(-1,J128),SHEETOFFSET(-1,J129),SHEETOFFSET(-1,J92),SHEETOFFSET(-1,J99),SHEETOFFSET(-1,J101),SHEETOFFSET(-1,J86)) -> 0 | L52: --- | M52: =IFERROR(SELECCIONPATRON(L52,L52,L52,L52,H52*I52,H52*I52,H52*I52)*SELECCIONPATRON(SHEETOFFSET(-1,$T$122),SHEETOFFSET(-1,$T$85),SHEETOFFSET(-1,$V$86),SHEETOFFSET(-1,$V$49),SHEETOFFSET(-1,$G$29),SHEETOFFSET(-1,$G$44),SHEETOFFSET(-1,$G$30)),0) -> 0 | N52: 0 | O52: 0 | P52: 0 | Q52: 0 | R52: --- | S52: =IFERROR(IF(F52="Refrigerada",SELECCIONPATRON(R52,R52,R52,R52,I52,I52,I52)*SELECCIONPATRON(SHEETOFFSET(-1,$I$200),SHEETOFFSET(-1,$I$161),SHEETOFFSET(-1,$I$162),SHEETOFFSET(-1,$I$125),SHEETOFFSET(-1,$I$132)/(SHEETOFFSET(-1,$G$11)*IF(SHEETOFFSET(-1,$G$37)<>"",SHEETOFFSET(-1,$G$37),SHEETOFFSET(-1,$G$42))),SHEETOFFSET(-1,$I$134)/(SHEETOFFSET(-1,$G$11)*IF(SHEETOFFSET(-1,$G$26)<>"",SHEETOFFSET(-1,$G$26),SHEETOFFSET(-1,$G$31))),SHEETOFFSET(-1,$I$119)/(SHEETOFFSET(-1,$G$11)*IF(SHEETOFFSET(-1,$G$25)="Mercancías a granel",1,0.45))),0),0) -> 0 | T52: 0 | U52: 0 | V52: 0 | W52: 0 | X52: 0 | Y52: 0 | Z52: 0 | AA52: 0 | AB52: 0 | AC52: 0 | AD52: 0 | AE52: 0 | AF52: 0 | AG52: 0 | AH52: 0 | AI52: 0 | AJ52: 0 | AK52: 0 | AL52: 0 | AS52: 0 | AT52: 0
A53: 37 | B53: =SELECCIONPATRON(SHEETOFFSET(-1,C168),SHEETOFFSET(-1,C129),SHEETOFFSET(-1,C130),SHEETOFFSET(-1,C93),SHEETOFFSET(-1,C100),SHEETOFFSET(-1,C102),SHEETOFFSET(-1,C87)) -> 0 | C53: =SELECCIONPATRON(SHEETOFFSET(-1,D168),SHEETOFFSET(-1,D129),SHEETOFFSET(-1,D130),SHEETOFFSET(-1,D93),SHEETOFFSET(-1,D100),SHEETOFFSET(-1,D102),SHEETOFFSET(-1,D87)) -> 0 | D53: =SELECCIONPATRON(SHEETOFFSET(-1,M168),SHEETOFFSET(-1,M129),SHEETOFFSET(-1,M130),SHEETOFFSET(-1,M93),SHEETOFFSET(-1,$E$51),SHEETOFFSET(-1,$E$52),SHEETOFFSET(-1,$E$38)) -> 0 | E53: =SELECCIONPATRON(SHEETOFFSET(-1,P168),SHEETOFFSET(-1,P129),SHEETOFFSET(-1,P130),SHEETOFFSET(-1,P93),SHEETOFFSET(-1,$E$52),SHEETOFFSET(-1,$E$53),SHEETOFFSET(-1,$E$39)) -> 0 | F53: =SELECCIONPATRON(SHEETOFFSET(-1,H168),SHEETOFFSET(-1,H129),SHEETOFFSET(-1,H130),SHEETOFFSET(-1,H93),SHEETOFFSET(-1,H100),SHEETOFFSET(-1,H102),SHEETOFFSET(-1,H87)) -> 0 | G53: =SELECCIONPATRON(SHEETOFFSET(-1,R168),SHEETOFFSET(-1,R129),SHEETOFFSET(-1,S130),SHEETOFFSET(-1,S93),SHEETOFFSET(-1,$G$55),SHEETOFFSET(-1,$G$56),SHEETOFFSET(-1,$G$42)) -> 0 | H53: =SELECCIONPATRON(SHEETOFFSET(-1,S168),SHEETOFFSET(-1,S129),SHEETOFFSET(-1,T130),SHEETOFFSET(-1,T93),SHEETOFFSET(-1,$G$56),SHEETOFFSET(-1,$G$57),SHEETOFFSET(-1,$G$43)) -> 0 | I53: =SELECCIONPATRON(SHEETOFFSET(-1,G168),SHEETOFFSET(-1,G129),SHEETOFFSET(-1,G130),SHEETOFFSET(-1,G93),SHEETOFFSET(-1,G100),SHEETOFFSET(-1,G102),SHEETOFFSET(-1,G87)) -> 0 | J53: =SELECCIONPATRON(SHEETOFFSET(-1,I168),SHEETOFFSET(-1,I129),SHEETOFFSET(-1,I130),SHEETOFFSET(-1,I93),SHEETOFFSET(-1,I100),SHEETOFFSET(-1,I102),SHEETOFFSET(-1,I87)) -> 0 | K53: =SELECCIONPATRON(SHEETOFFSET(-1,J168),SHEETOFFSET(-1,J129),SHEETOFFSET(-1,J130),SHEETOFFSET(-1,J93),SHEETOFFSET(-1,J100),SHEETOFFSET(-1,J102),SHEETOFFSET(-1,J87)) -> 0 | L53: --- | M53: =IFERROR(SELECCIONPATRON(L53,L53,L53,L53,H53*I53,H53*I53,H53*I53)*SELECCIONPATRON(SHEETOFFSET(-1,$T$122),SHEETOFFSET(-1,$T$85),SHEETOFFSET(-1,$V$86),SHEETOFFSET(-1,$V$49),SHEETOFFSET(-1,$G$29),SHEETOFFSET(-1,$G$44),SHEETOFFSET(-1,$G$30)),0) -> 0 | N53: 0 | O53: 0 | P53: 0 | Q53: 0 | R53: --- | S53: =IFERROR(IF(F53="Refrigerada",SELECCIONPATRON(R53,R53,R53,R53,I53,I53,I53)*SELECCIONPATRON(SHEETOFFSET(-1,$I$200),SHEETOFFSET(-1,$I$161),SHEETOFFSET(-1,$I$162),SHEETOFFSET(-1,$I$125),SHEETOFFSET(-1,$I$132)/(SHEETOFFSET(-1,$G$11)*IF(SHEETOFFSET(-1,$G$37)<>"",SHEETOFFSET(-1,$G$37),SHEETOFFSET(-1,$G$42))),SHEETOFFSET(-1,$I$134)/(SHEETOFFSET(-1,$G$11)*IF(SHEETOFFSET(-1,$G$26)<>"",SHEETOFFSET(-1,$G$26),SHEETOFFSET(-1,$G$31))),SHEETOFFSET(-1,$I$119)/(SHEETOFFSET(-1,$G$11)*IF(SHEETOFFSET(-1,$G$25)="Mercancías a granel",1,0.45))),0),0) -> 0 | T53: 0 | U53: 0 | V53: 0 | W53: 0 | X53: 0 | Y53: 0 | Z53: 0 | AA53: 0 | AB53: 0 | AC53: 0 | AD53: 0 | AE53: 0 | AF53: 0 | AG53: 0 | AH53: 0 | AI53: 0 | AJ53: 0 | AK53: 0 | AL53: 0 | AS53: 0 | AT53: 0
A54: 38 | B54: =SELECCIONPATRON(SHEETOFFSET(-1,C169),SHEETOFFSET(-1,C130),SHEETOFFSET(-1,C131),SHEETOFFSET(-1,C94),SHEETOFFSET(-1,C101),SHEETOFFSET(-1,C103),SHEETOFFSET(-1,C88)) -> 0 | C54: =SELECCIONPATRON(SHEETOFFSET(-1,D169),SHEETOFFSET(-1,D130),SHEETOFFSET(-1,D131),SHEETOFFSET(-1,D94),SHEETOFFSET(-1,D101),SHEETOFFSET(-1,D103),SHEETOFFSET(-1,D88)) -> 0 | D54: =SELECCIONPATRON(SHEETOFFSET(-1,M169),SHEETOFFSET(-1,M130),SHEETOFFSET(-1,M131),SHEETOFFSET(-1,M94),SHEETOFFSET(-1,$E$51),SHEETOFFSET(-1,$E$52),SHEETOFFSET(-1,$E$38)) -> 0 | E54: =SELECCIONPATRON(SHEETOFFSET(-1,P169),SHEETOFFSET(-1,P130),SHEETOFFSET(-1,P131),SHEETOFFSET(-1,P94),SHEETOFFSET(-1,$E$52),SHEETOFFSET(-1,$E$53),SHEETOFFSET(-1,$E$39)) -> 0 | F54: =SELECCIONPATRON(SHEETOFFSET(-1,H169),SHEETOFFSET(-1,H130),SHEETOFFSET(-1,H131),SHEETOFFSET(-1,H94),SHEETOFFSET(-1,H101),SHEETOFFSET(-1,H103),SHEETOFFSET(-1,H88)) -> 0 | G54: =SELECCIONPATRON(SHEETOFFSET(-1,R169),SHEETOFFSET(-1,R130),SHEETOFFSET(-1,S131),SHEETOFFSET(-1,S94),SHEETOFFSET(-1,$G$55),SHEETOFFSET(-1,$G$56),SHEETOFFSET(-1,$G$42)) -> 0 | H54: =SELECCIONPATRON(SHEETOFFSET(-1,S169),SHEETOFFSET(-1,S130),SHEETOFFSET(-1,T131),SHEETOFFSET(-1,T94),SHEETOFFSET(-1,$G$56),SHEETOFFSET(-1,$G$57),SHEETOFFSET(-1,$G$43)) -> 0 | I54: =SELECCIONPATRON(SHEETOFFSET(-1,G169),SHEETOFFSET(-1,G130),SHEETOFFSET(-1,G131),SHEETOFFSET(-1,G94),SHEETOFFSET(-1,G101),SHEETOFFSET(-1,G103),SHEETOFFSET(-1,G88)) -> 0 | J54: =SELECCIONPATRON(SHEETOFFSET(-1,I169),SHEETOFFSET(-1,I130),SHEETOFFSET(-1,I131),SHEETOFFSET(-1,I94),SHEETOFFSET(-1,I101),SHEETOFFSET(-1,I103),SHEETOFFSET(-1,I88)) -> 0 | K54: =SELECCIONPATRON(SHEETOFFSET(-1,J169),SHEETOFFSET(-1,J130),SHEETOFFSET(-1,J131),SHEETOFFSET(-1,J94),SHEETOFFSET(-1,J101),SHEETOFFSET(-1,J103),SHEETOFFSET(-1,J88)) -> 0 | L54: --- | M54: =IFERROR(SELECCIONPATRON(L54,L54,L54,L54,H54*I54,H54*I54,H54*I54)*SELECCIONPATRON(SHEETOFFSET(-1,$T$122),SHEETOFFSET(-1,$T$85),SHEETOFFSET(-1,$V$86),SHEETOFFSET(-1,$V$49),SHEETOFFSET(-1,$G$29),SHEETOFFSET(-1,$G$44),SHEETOFFSET(-1,$G$30)),0) -> 0 | N54: 0 | O54: 0 | P54: 0 | Q54: 0 | R54: --- | S54: =IFERROR(IF(F54="Refrigerada",SELECCIONPATRON(R54,R54,R54,R54,I54,I54,I54)*SELECCIONPATRON(SHEETOFFSET(-1,$I$200),SHEETOFFSET(-1,$I$161),SHEETOFFSET(-1,$I$162),SHEETOFFSET(-1,$I$125),SHEETOFFSET(-1,$I$132)/(SHEETOFFSET(-1,$G$11)*IF(SHEETOFFSET(-1,$G$37)<>"",SHEETOFFSET(-1,$G$37),SHEETOFFSET(-1,$G$42))),SHEETOFFSET(-1,$I$134)/(SHEETOFFSET(-1,$G$11)*IF(SHEETOFFSET(-1,$G$26)<>"",SHEETOFFSET(-1,$G$26),SHEETOFFSET(-1,$G$31))),SHEETOFFSET(-1,$I$119)/(SHEETOFFSET(-1,$G$11)*IF(SHEETOFFSET(-1,$G$25)="Mercancías a granel",1,0.45))),0),0) -> 0 | T54: 0 | U54: 0 | V54: 0 | W54: 0 | X54: 0 | Y54: 0 | Z54: 0 | AA54: 0 | AB54: 0 | AC54: 0 | AD54: 0 | AE54: 0 | AF54: 0 | AG54: 0 | AH54: 0 | AI54: 0 | AJ54: 0 | AK54: 0 | AL54: 0 | AS54: 0 | AT54: 0
A55: 39 | B55: =SELECCIONPATRON(SHEETOFFSET(-1,C170),SHEETOFFSET(-1,C131),SHEETOFFSET(-1,C132),SHEETOFFSET(-1,C95),SHEETOFFSET(-1,C102),SHEETOFFSET(-1,C104),SHEETOFFSET(-1,C89)) -> 0 | C55: =SELECCIONPATRON(SHEETOFFSET(-1,D170),SHEETOFFSET(-1,D131),SHEETOFFSET(-1,D132),SHEETOFFSET(-1,D95),SHEETOFFSET(-1,D102),SHEETOFFSET(-1,D104),SHEETOFFSET(-1,D89)) -> 0 | D55: =SELECCIONPATRON(SHEETOFFSET(-1,M170),SHEETOFFSET(-1,M131),SHEETOFFSET(-1,M132),SHEETOFFSET(-1,M95),SHEETOFFSET(-1,$E$51),SHEETOFFSET(-1,$E$52),SHEETOFFSET(-1,$E$38)) -> 0 | E55: =SELECCIONPATRON(SHEETOFFSET(-1,P170),SHEETOFFSET(-1,P131),SHEETOFFSET(-1,P132),SHEETOFFSET(-1,P95),SHEETOFFSET(-1,$E$52),SHEETOFFSET(-1,$E$53),SHEETOFFSET(-1,$E$39)) -> 0 | F55: =SELECCIONPATRON(SHEETOFFSET(-1,H170),SHEETOFFSET(-1,H131),SHEETOFFSET(-1,H132),SHEETOFFSET(-1,H95),SHEETOFFSET(-1,H102),SHEETOFFSET(-1,H104),SHEETOFFSET(-1,H89)) -> 0 | G55: =SELECCIONPATRON(SHEETOFFSET(-1,R170),SHEETOFFSET(-1,R131),SHEETOFFSET(-1,S132),SHEETOFFSET(-1,S95),SHEETOFFSET(-1,$G$55),SHEETOFFSET(-1,$G$56),SHEETOFFSET(-1,$G$42)) -> 0 | H55: =SELECCIONPATRON(SHEETOFFSET(-1,S170),SHEETOFFSET(-1,S131),SHEETOFFSET(-1,T132),SHEETOFFSET(-1,T95),SHEETOFFSET(-1,$G$56),SHEETOFFSET(-1,$G$57),SHEETOFFSET(-1,$G$43)) -> 0 | I55: =SELECCIONPATRON(SHEETOFFSET(-1,G170),SHEETOFFSET(-1,G131),SHEETOFFSET(-1,G132),SHEETOFFSET(-1,G95),SHEETOFFSET(-1,G102),SHEETOFFSET(-1,G104),SHEETOFFSET(-1,G89)) -> 0 | J55: =SELECCIONPATRON(SHEETOFFSET(-1,I170),SHEETOFFSET(-1,I131),SHEETOFFSET(-1,I132),SHEETOFFSET(-1,I95),SHEETOFFSET(-1,I102),SHEETOFFSET(-1,I104),SHEETOFFSET(-1,I89)) -> 0 | K55: =SELECCIONPATRON(SHEETOFFSET(-1,J170),SHEETOFFSET(-1,J131),SHEETOFFSET(-1,J132),SHEETOFFSET(-1,J95),SHEETOFFSET(-1,J102),SHEETOFFSET(-1,J104),SHEETOFFSET(-1,J89)) -> 0 | L55: --- | M55: =IFERROR(SELECCIONPATRON(L55,L55,L55,L55,H55*I55,H55*I55,H55*I55)*SELECCIONPATRON(SHEETOFFSET(-1,$T$122),SHEETOFFSET(-1,$T$85),SHEETOFFSET(-1,$V$86),SHEETOFFSET(-1,$V$49),SHEETOFFSET(-1,$G$29),SHEETOFFSET(-1,$G$44),SHEETOFFSET(-1,$G$30)),0) -> 0 | N55: 0 | O55: 0 | P55: 0 | Q55: 0 | R55: --- | S55: =IFERROR(IF(F55="Refrigerada",SELECCIONPATRON(R55,R55,R55,R55,I55,I55,I55)*SELECCIONPATRON(SHEETOFFSET(-1,$I$200),SHEETOFFSET(-1,$I$161),SHEETOFFSET(-1,$I$162),SHEETOFFSET(-1,$I$125),SHEETOFFSET(-1,$I$132)/(SHEETOFFSET(-1,$G$11)*IF(SHEETOFFSET(-1,$G$37)<>"",SHEETOFFSET(-1,$G$37),SHEETOFFSET(-1,$G$42))),SHEETOFFSET(-1,$I$134)/(SHEETOFFSET(-1,$G$11)*IF(SHEETOFFSET(-1,$G$26)<>"",SHEETOFFSET(-1,$G$26),SHEETOFFSET(-1,$G$31))),SHEETOFFSET(-1,$I$119)/(SHEETOFFSET(-1,$G$11)*IF(SHEETOFFSET(-1,$G$25)="Mercancías a granel",1,0.45))),0),0) -> 0 | T55: 0 | U55: 0 | V55: 0 | W55: 0 | X55: 0 | Y55: 0 | Z55: 0 | AA55: 0 | AB55: 0 | AC55: 0 | AD55: 0 | AE55: 0 | AF55: 0 | AG55: 0 | AH55: 0 | AI55: 0 | AJ55: 0 | AK55: 0 | AL55: 0 | AS55: 0 | AT55: 0
A56: 40 | B56: =SELECCIONPATRON(SHEETOFFSET(-1,C171),SHEETOFFSET(-1,C132),SHEETOFFSET(-1,C133),SHEETOFFSET(-1,C96),SHEETOFFSET(-1,C103),SHEETOFFSET(-1,C105),SHEETOFFSET(-1,C90)) -> 0 | C56: =SELECCIONPATRON(SHEETOFFSET(-1,D171),SHEETOFFSET(-1,D132),SHEETOFFSET(-1,D133),SHEETOFFSET(-1,D96),SHEETOFFSET(-1,D103),SHEETOFFSET(-1,D105),SHEETOFFSET(-1,D90)) -> 0 | D56: =SELECCIONPATRON(SHEETOFFSET(-1,M171),SHEETOFFSET(-1,M132),SHEETOFFSET(-1,M133),SHEETOFFSET(-1,M96),SHEETOFFSET(-1,$E$51),SHEETOFFSET(-1,$E$52),SHEETOFFSET(-1,$E$38)) -> 0 | E56: =SELECCIONPATRON(SHEETOFFSET(-1,P171),SHEETOFFSET(-1,P132),SHEETOFFSET(-1,P133),SHEETOFFSET(-1,P96),SHEETOFFSET(-1,$E$52),SHEETOFFSET(-1,$E$53),SHEETOFFSET(-1,$E$39)) -> 0 | F56: =SELECCIONPATRON(SHEETOFFSET(-1,H171),SHEETOFFSET(-1,H132),SHEETOFFSET(-1,H133),SHEETOFFSET(-1,H96),SHEETOFFSET(-1,H103),SHEETOFFSET(-1,H105),SHEETOFFSET(-1,H90)) -> 0 | G56: =SELECCIONPATRON(SHEETOFFSET(-1,R171),SHEETOFFSET(-1,R132),SHEETOFFSET(-1,S133),SHEETOFFSET(-1,S96),SHEETOFFSET(-1,$G$55),SHEETOFFSET(-1,$G$56),SHEETOFFSET(-1,$G$42)) -> 0 | H56: =SELECCIONPATRON(SHEETOFFSET(-1,S171),SHEETOFFSET(-1,S132),SHEETOFFSET(-1,T133),SHEETOFFSET(-1,T96),SHEETOFFSET(-1,$G$56),SHEETOFFSET(-1,$G$57),SHEETOFFSET(-1,$G$43)) -> 0 | I56: =SELECCIONPATRON(SHEETOFFSET(-1,G171),SHEETOFFSET(-1,G132),SHEETOFFSET(-1,G133),SHEETOFFSET(-1,G96),SHEETOFFSET(-1,G103),SHEETOFFSET(-1,G105),SHEETOFFSET(-1,G90)) -> 0 | J56: =SELECCIONPATRON(SHEETOFFSET(-1,I171),SHEETOFFSET(-1,I132),SHEETOFFSET(-1,I133),SHEETOFFSET(-1,I96),SHEETOFFSET(-1,I103),SHEETOFFSET(-1,I105),SHEETOFFSET(-1,I90)) -> 0 | K56: =SELECCIONPATRON(SHEETOFFSET(-1,J171),SHEETOFFSET(-1,J132),SHEETOFFSET(-1,J133),SHEETOFFSET(-1,J96),SHEETOFFSET(-1,J103),SHEETOFFSET(-1,J105),SHEETOFFSET(-1,J90)) -> 0 | L56: --- | M56: =IFERROR(SELECCIONPATRON(L56,L56,L56,L56,H56*I56,H56*I56,H56*I56)*SELECCIONPATRON(SHEETOFFSET(-1,$T$122),SHEETOFFSET(-1,$T$85),SHEETOFFSET(-1,$V$86),SHEETOFFSET(-1,$V$49),SHEETOFFSET(-1,$G$29),SHEETOFFSET(-1,$G$44),SHEETOFFSET(-1,$G$30)),0) -> 0 | N56: 0 | O56: 0 | P56: 0 | Q56: 0 | R56: --- | S56: =IFERROR(IF(F56="Refrigerada",SELECCIONPATRON(R56,R56,R56,R56,I56,I56,I56)*SELECCIONPATRON(SHEETOFFSET(-1,$I$200),SHEETOFFSET(-1,$I$161),SHEETOFFSET(-1,$I$162),SHEETOFFSET(-1,$I$125),SHEETOFFSET(-1,$I$132)/(SHEETOFFSET(-1,$G$11)*IF(SHEETOFFSET(-1,$G$37)<>"",SHEETOFFSET(-1,$G$37),SHEETOFFSET(-1,$G$42))),SHEETOFFSET(-1,$I$134)/(SHEETOFFSET(-1,$G$11)*IF(SHEETOFFSET(-1,$G$26)<>"",SHEETOFFSET(-1,$G$26),SHEETOFFSET(-1,$G$31))),SHEETOFFSET(-1,$I$119)/(SHEETOFFSET(-1,$G$11)*IF(SHEETOFFSET(-1,$G$25)="Mercancías a granel",1,0.45))),0),0) -> 0 | T56: 0 | U56: 0 | V56: 0 | W56: 0 | X56: 0 | Y56: 0 | Z56: 0 | AA56: 0 | AB56: 0 | AC56: 0 | AD56: 0 | AE56: 0 | AF56: 0 | AG56: 0 | AH56: 0 | AI56: 0 | AJ56: 0 | AK56: 0 | AL56: 0 | AS56: 0 | AT56: 0
A57: 41 | B57: =SELECCIONPATRON(SHEETOFFSET(-1,C172),SHEETOFFSET(-1,C133),SHEETOFFSET(-1,C134),SHEETOFFSET(-1,C97),SHEETOFFSET(-1,C104),SHEETOFFSET(-1,C106),SHEETOFFSET(-1,C91)) -> 0 | C57: =SELECCIONPATRON(SHEETOFFSET(-1,D172),SHEETOFFSET(-1,D133),SHEETOFFSET(-1,D134),SHEETOFFSET(-1,D97),SHEETOFFSET(-1,D104),SHEETOFFSET(-1,D106),SHEETOFFSET(-1,D91)) -> 0 | D57: =SELECCIONPATRON(SHEETOFFSET(-1,M172),SHEETOFFSET(-1,M133),SHEETOFFSET(-1,M134),SHEETOFFSET(-1,M97),SHEETOFFSET(-1,$E$51),SHEETOFFSET(-1,$E$52),SHEETOFFSET(-1,$E$38)) -> 0 | E57: =SELECCIONPATRON(SHEETOFFSET(-1,P172),SHEETOFFSET(-1,P133),SHEETOFFSET(-1,P134),SHEETOFFSET(-1,P97),SHEETOFFSET(-1,$E$52),SHEETOFFSET(-1,$E$53),SHEETOFFSET(-1,$E$39)) -> 0 | F57: =SELECCIONPATRON(SHEETOFFSET(-1,H172),SHEETOFFSET(-1,H133),SHEETOFFSET(-1,H134),SHEETOFFSET(-1,H97),SHEETOFFSET(-1,H104),SHEETOFFSET(-1,H106),SHEETOFFSET(-1,H91)) -> 0 | G57: =SELECCIONPATRON(SHEETOFFSET(-1,R172),SHEETOFFSET(-1,R133),SHEETOFFSET(-1,S134),SHEETOFFSET(-1,S97),SHEETOFFSET(-1,$G$55),SHEETOFFSET(-1,$G$56),SHEETOFFSET(-1,$G$42)) -> 0 | H57: =SELECCIONPATRON(SHEETOFFSET(-1,S172),SHEETOFFSET(-1,S133),SHEETOFFSET(-1,T134),SHEETOFFSET(-1,T97),SHEETOFFSET(-1,$G$56),SHEETOFFSET(-1,$G$57),SHEETOFFSET(-1,$G$43)) -> 0 | I57: =SELECCIONPATRON(SHEETOFFSET(-1,G172),SHEETOFFSET(-1,G133),SHEETOFFSET(-1,G134),SHEETOFFSET(-1,G97),SHEETOFFSET(-1,G104),SHEETOFFSET(-1,G106),SHEETOFFSET(-1,G91)) -> 0 | J57: =SELECCIONPATRON(SHEETOFFSET(-1,I172),SHEETOFFSET(-1,I133),SHEETOFFSET(-1,I134),SHEETOFFSET(-1,I97),SHEETOFFSET(-1,I104),SHEETOFFSET(-1,I106),SHEETOFFSET(-1,I91)) -> 0 | K57: =SELECCIONPATRON(SHEETOFFSET(-1,J172),SHEETOFFSET(-1,J133),SHEETOFFSET(-1,J134),SHEETOFFSET(-1,J97),SHEETOFFSET(-1,J104),SHEETOFFSET(-1,J106),SHEETOFFSET(-1,J91)) -> 0 | L57: --- | M57: =IFERROR(SELECCIONPATRON(L57,L57,L57,L57,H57*I57,H57*I57,H57*I57)*SELECCIONPATRON(SHEETOFFSET(-1,$T$122),SHEETOFFSET(-1,$T$85),SHEETOFFSET(-1,$V$86),SHEETOFFSET(-1,$V$49),SHEETOFFSET(-1,$G$29),SHEETOFFSET(-1,$G$44),SHEETOFFSET(-1,$G$30)),0) -> 0 | N57: 0 | O57: 0 | P57: 0 | Q57: 0 | R57: --- | S57: =IFERROR(IF(F57="Refrigerada",SELECCIONPATRON(R57,R57,R57,R57,I57,I57,I57)*SELECCIONPATRON(SHEETOFFSET(-1,$I$200),SHEETOFFSET(-1,$I$161),SHEETOFFSET(-1,$I$162),SHEETOFFSET(-1,$I$125),SHEETOFFSET(-1,$I$132)/(SHEETOFFSET(-1,$G$11)*IF(SHEETOFFSET(-1,$G$37)<>"",SHEETOFFSET(-1,$G$37),SHEETOFFSET(-1,$G$42))),SHEETOFFSET(-1,$I$134)/(SHEETOFFSET(-1,$G$11)*IF(SHEETOFFSET(-1,$G$26)<>"",SHEETOFFSET(-1,$G$26),SHEETOFFSET(-1,$G$31))),SHEETOFFSET(-1,$I$119)/(SHEETOFFSET(-1,$G$11)*IF(SHEETOFFSET(-1,$G$25)="Mercancías a granel",1,0.45))),0),0) -> 0 | T57: 0 | U57: 0 | V57: 0 | W57: 0 | X57: 0 | Y57: 0 | Z57: 0 | AA57: 0 | AB57: 0 | AC57: 0 | AD57: 0 | AE57: 0 | AF57: 0 | AG57: 0 | AH57: 0 | AI57: 0 | AJ57: 0 | AK57: 0 | AL57: 0 | AS57: 0 | AT57: 0
A58: 42 | B58: =SELECCIONPATRON(SHEETOFFSET(-1,C173),SHEETOFFSET(-1,C134),SHEETOFFSET(-1,C135),SHEETOFFSET(-1,C98),SHEETOFFSET(-1,C105),SHEETOFFSET(-1,C107),SHEETOFFSET(-1,C92)) -> 0 | C58: =SELECCIONPATRON(SHEETOFFSET(-1,D173),SHEETOFFSET(-1,D134),SHEETOFFSET(-1,D135),SHEETOFFSET(-1,D98),SHEETOFFSET(-1,D105),SHEETOFFSET(-1,D107),SHEETOFFSET(-1,D92)) -> 0 | D58: =SELECCIONPATRON(SHEETOFFSET(-1,M173),SHEETOFFSET(-1,M134),SHEETOFFSET(-1,M135),SHEETOFFSET(-1,M98),SHEETOFFSET(-1,$E$51),SHEETOFFSET(-1,$E$52),SHEETOFFSET(-1,$E$38)) -> 0 | E58: =SELECCIONPATRON(SHEETOFFSET(-1,P173),SHEETOFFSET(-1,P134),SHEETOFFSET(-1,P135),SHEETOFFSET(-1,P98),SHEETOFFSET(-1,$E$52),SHEETOFFSET(-1,$E$53),SHEETOFFSET(-1,$E$39)) -> 0 | F58: =SELECCIONPATRON(SHEETOFFSET(-1,H173),SHEETOFFSET(-1,H134),SHEETOFFSET(-1,H135),SHEETOFFSET(-1,H98),SHEETOFFSET(-1,H105),SHEETOFFSET(-1,H107),SHEETOFFSET(-1,H92)) -> 0 | G58: =SELECCIONPATRON(SHEETOFFSET(-1,R173),SHEETOFFSET(-1,R134),SHEETOFFSET(-1,S135),SHEETOFFSET(-1,S98),SHEETOFFSET(-1,$G$55),SHEETOFFSET(-1,$G$56),SHEETOFFSET(-1,$G$42)) -> 0 | H58: =SELECCIONPATRON(SHEETOFFSET(-1,S173),SHEETOFFSET(-1,S134),SHEETOFFSET(-1,T135),SHEETOFFSET(-1,T98),SHEETOFFSET(-1,$G$56),SHEETOFFSET(-1,$G$57),SHEETOFFSET(-1,$G$43)) -> 0 | I58: =SELECCIONPATRON(SHEETOFFSET(-1,G173),SHEETOFFSET(-1,G134),SHEETOFFSET(-1,G135),SHEETOFFSET(-1,G98),SHEETOFFSET(-1,G105),SHEETOFFSET(-1,G107),SHEETOFFSET(-1,G92)) -> 0 | J58: =SELECCIONPATRON(SHEETOFFSET(-1,I173),SHEETOFFSET(-1,I134),SHEETOFFSET(-1,I135),SHEETOFFSET(-1,I98),SHEETOFFSET(-1,I105),SHEETOFFSET(-1,I107),SHEETOFFSET(-1,I92)) -> 0 | K58: =SELECCIONPATRON(SHEETOFFSET(-1,J173),SHEETOFFSET(-1,J134),SHEETOFFSET(-1,J135),SHEETOFFSET(-1,J98),SHEETOFFSET(-1,J105),SHEETOFFSET(-1,J107),SHEETOFFSET(-1,J92)) -> 0 | L58: --- | M58: =IFERROR(SELECCIONPATRON(L58,L58,L58,L58,H58*I58,H58*I58,H58*I58)*SELECCIONPATRON(SHEETOFFSET(-1,$T$122),SHEETOFFSET(-1,$T$85),SHEETOFFSET(-1,$V$86),SHEETOFFSET(-1,$V$49),SHEETOFFSET(-1,$G$29),SHEETOFFSET(-1,$G$44),SHEETOFFSET(-1,$G$30)),0) -> 0 | N58: 0 | O58: 0 | P58: 0 | Q58: 0 | R58: --- | S58: =IFERROR(IF(F58="Refrigerada",SELECCIONPATRON(R58,R58,R58,R58,I58,I58,I58)*SELECCIONPATRON(SHEETOFFSET(-1,$I$200),SHEETOFFSET(-1,$I$161),SHEETOFFSET(-1,$I$162),SHEETOFFSET(-1,$I$125),SHEETOFFSET(-1,$I$132)/(SHEETOFFSET(-1,$G$11)*IF(SHEETOFFSET(-1,$G$37)<>"",SHEETOFFSET(-1,$G$37),SHEETOFFSET(-1,$G$42))),SHEETOFFSET(-1,$I$134)/(SHEETOFFSET(-1,$G$11)*IF(SHEETOFFSET(-1,$G$26)<>"",SHEETOFFSET(-1,$G$26),SHEETOFFSET(-1,$G$31))),SHEETOFFSET(-1,$I$119)/(SHEETOFFSET(-1,$G$11)*IF(SHEETOFFSET(-1,$G$25)="Mercancías a granel",1,0.45))),0),0) -> 0 | T58: 0 | U58: 0 | V58: 0 | W58: 0 | X58: 0 | Y58: 0 | Z58: 0 | AA58: 0 | AB58: 0 | AC58: 0 | AD58: 0 | AE58: 0 | AF58: 0 | AG58: 0 | AH58: 0 | AI58: 0 | AJ58: 0 | AK58: 0 | AL58: 0 | AS58: 0 | AT58: 0
A59: 43 | B59: =SELECCIONPATRON(SHEETOFFSET(-1,C174),SHEETOFFSET(-1,C135),SHEETOFFSET(-1,C136),SHEETOFFSET(-1,C99),SHEETOFFSET(-1,C106),SHEETOFFSET(-1,C108),SHEETOFFSET(-1,C93)) -> 0 | C59: =SELECCIONPATRON(SHEETOFFSET(-1,D174),SHEETOFFSET(-1,D135),SHEETOFFSET(-1,D136),SHEETOFFSET(-1,D99),SHEETOFFSET(-1,D106),SHEETOFFSET(-1,D108),SHEETOFFSET(-1,D93)) -> 0 | D59: =SELECCIONPATRON(SHEETOFFSET(-1,M174),SHEETOFFSET(-1,M135),SHEETOFFSET(-1,M136),SHEETOFFSET(-1,M99),SHEETOFFSET(-1,$E$51),SHEETOFFSET(-1,$E$52),SHEETOFFSET(-1,$E$38)) -> 0 | E59: =SELECCIONPATRON(SHEETOFFSET(-1,P174),SHEETOFFSET(-1,P135),SHEETOFFSET(-1,P136),SHEETOFFSET(-1,P99),SHEETOFFSET(-1,$E$52),SHEETOFFSET(-1,$E$53),SHEETOFFSET(-1,$E$39)) -> 0 | F59: =SELECCIONPATRON(SHEETOFFSET(-1,H174),SHEETOFFSET(-1,H135),SHEETOFFSET(-1,H136),SHEETOFFSET(-1,H99),SHEETOFFSET(-1,H106),SHEETOFFSET(-1,H108),SHEETOFFSET(-1,H93)) -> 0 | G59: =SELECCIONPATRON(SHEETOFFSET(-1,R174),SHEETOFFSET(-1,R135),SHEETOFFSET(-1,S136),SHEETOFFSET(-1,S99),SHEETOFFSET(-1,$G$55),SHEETOFFSET(-1,$G$56),SHEETOFFSET(-1,$G$42)) -> 0 | H59: =SELECCIONPATRON(SHEETOFFSET(-1,S174),SHEETOFFSET(-1,S135),SHEETOFFSET(-1,T136),SHEETOFFSET(-1,T99),SHEETOFFSET(-1,$G$56),SHEETOFFSET(-1,$G$57),SHEETOFFSET(-1,$G$43)) -> 0 | I59: =SELECCIONPATRON(SHEETOFFSET(-1,G174),SHEETOFFSET(-1,G135),SHEETOFFSET(-1,G136),SHEETOFFSET(-1,G99),SHEETOFFSET(-1,G106),SHEETOFFSET(-1,G108),SHEETOFFSET(-1,G93)) -> 0 | J59: =SELECCIONPATRON(SHEETOFFSET(-1,I174),SHEETOFFSET(-1,I135),SHEETOFFSET(-1,I136),SHEETOFFSET(-1,I99),SHEETOFFSET(-1,I106),SHEETOFFSET(-1,I108),SHEETOFFSET(-1,I93)) -> 0 | K59: =SELECCIONPATRON(SHEETOFFSET(-1,J174),SHEETOFFSET(-1,J135),SHEETOFFSET(-1,J136),SHEETOFFSET(-1,J99),SHEETOFFSET(-1,J106),SHEETOFFSET(-1,J108),SHEETOFFSET(-1,J93)) -> 0 | L59: --- | M59: =IFERROR(SELECCIONPATRON(L59,L59,L59,L59,H59*I59,H59*I59,H59*I59)*SELECCIONPATRON(SHEETOFFSET(-1,$T$122),SHEETOFFSET(-1,$T$85),SHEETOFFSET(-1,$V$86),SHEETOFFSET(-1,$V$49),SHEETOFFSET(-1,$G$29),SHEETOFFSET(-1,$G$44),SHEETOFFSET(-1,$G$30)),0) -> 0 | N59: 0 | O59: 0 | P59: 0 | Q59: 0 | R59: --- | S59: =IFERROR(IF(F59="Refrigerada",SELECCIONPATRON(R59,R59,R59,R59,I59,I59,I59)*SELECCIONPATRON(SHEETOFFSET(-1,$I$200),SHEETOFFSET(-1,$I$161),SHEETOFFSET(-1,$I$162),SHEETOFFSET(-1,$I$125),SHEETOFFSET(-1,$I$132)/(SHEETOFFSET(-1,$G$11)*IF(SHEETOFFSET(-1,$G$37)<>"",SHEETOFFSET(-1,$G$37),SHEETOFFSET(-1,$G$42))),SHEETOFFSET(-1,$I$134)/(SHEETOFFSET(-1,$G$11)*IF(SHEETOFFSET(-1,$G$26)<>"",SHEETOFFSET(-1,$G$26),SHEETOFFSET(-1,$G$31))),SHEETOFFSET(-1,$I$119)/(SHEETOFFSET(-1,$G$11)*IF(SHEETOFFSET(-1,$G$25)="Mercancías a granel",1,0.45))),0),0) -> 0 | T59: 0 | U59: 0 | V59: 0 | W59: 0 | X59: 0 | Y59: 0 | Z59: 0 | AA59: 0 | AB59: 0 | AC59: 0 | AD59: 0 | AE59: 0 | AF59: 0 | AG59: 0 | AH59: 0 | AI59: 0 | AJ59: 0 | AK59: 0 | AL59: 0 | AS59: 0 | AT59: 0
A60: 44 | B60: =SELECCIONPATRON(SHEETOFFSET(-1,C175),SHEETOFFSET(-1,C136),SHEETOFFSET(-1,C137),SHEETOFFSET(-1,C100),SHEETOFFSET(-1,C107),SHEETOFFSET(-1,C109),SHEETOFFSET(-1,C94)) -> 0 | C60: =SELECCIONPATRON(SHEETOFFSET(-1,D175),SHEETOFFSET(-1,D136),SHEETOFFSET(-1,D137),SHEETOFFSET(-1,D100),SHEETOFFSET(-1,D107),SHEETOFFSET(-1,D109),SHEETOFFSET(-1,D94)) -> 0 | D60: =SELECCIONPATRON(SHEETOFFSET(-1,M175),SHEETOFFSET(-1,M136),SHEETOFFSET(-1,M137),SHEETOFFSET(-1,M100),SHEETOFFSET(-1,$E$51),SHEETOFFSET(-1,$E$52),SHEETOFFSET(-1,$E$38)) -> 0 | E60: =SELECCIONPATRON(SHEETOFFSET(-1,P175),SHEETOFFSET(-1,P136),SHEETOFFSET(-1,P137),SHEETOFFSET(-1,P100),SHEETOFFSET(-1,$E$52),SHEETOFFSET(-1,$E$53),SHEETOFFSET(-1,$E$39)) -> 0 | F60: =SELECCIONPATRON(SHEETOFFSET(-1,H175),SHEETOFFSET(-1,H136),SHEETOFFSET(-1,H137),SHEETOFFSET(-1,H100),SHEETOFFSET(-1,H107),SHEETOFFSET(-1,H109),SHEETOFFSET(-1,H94)) -> 0 | G60: =SELECCIONPATRON(SHEETOFFSET(-1,R175),SHEETOFFSET(-1,R136),SHEETOFFSET(-1,S137),SHEETOFFSET(-1,S100),SHEETOFFSET(-1,$G$55),SHEETOFFSET(-1,$G$56),SHEETOFFSET(-1,$G$42)) -> 0 | H60: =SELECCIONPATRON(SHEETOFFSET(-1,S175),SHEETOFFSET(-1,S136),SHEETOFFSET(-1,T137),SHEETOFFSET(-1,T100),SHEETOFFSET(-1,$G$56),SHEETOFFSET(-1,$G$57),SHEETOFFSET(-1,$G$43)) -> 0 | I60: =SELECCIONPATRON(SHEETOFFSET(-1,G175),SHEETOFFSET(-1,G136),SHEETOFFSET(-1,G137),SHEETOFFSET(-1,G100),SHEETOFFSET(-1,G107),SHEETOFFSET(-1,G109),SHEETOFFSET(-1,G94)) -> 0 | J60: =SELECCIONPATRON(SHEETOFFSET(-1,I175),SHEETOFFSET(-1,I136),SHEETOFFSET(-1,I137),SHEETOFFSET(-1,I100),SHEETOFFSET(-1,I107),SHEETOFFSET(-1,I109),SHEETOFFSET(-1,I94)) -> 0 | K60: =SELECCIONPATRON(SHEETOFFSET(-1,J175),SHEETOFFSET(-1,J136),SHEETOFFSET(-1,J137),SHEETOFFSET(-1,J100),SHEETOFFSET(-1,J107),SHEETOFFSET(-1,J109),SHEETOFFSET(-1,J94)) -> 0 | L60: --- | M60: =IFERROR(SELECCIONPATRON(L60,L60,L60,L60,H60*I60,H60*I60,H60*I60)*SELECCIONPATRON(SHEETOFFSET(-1,$T$122),SHEETOFFSET(-1,$T$85),SHEETOFFSET(-1,$V$86),SHEETOFFSET(-1,$V$49),SHEETOFFSET(-1,$G$29),SHEETOFFSET(-1,$G$44),SHEETOFFSET(-1,$G$30)),0) -> 0 | N60: 0 | O60: 0 | P60: 0 | Q60: 0 | R60: --- | S60: =IFERROR(IF(F60="Refrigerada",SELECCIONPATRON(R60,R60,R60,R60,I60,I60,I60)*SELECCIONPATRON(SHEETOFFSET(-1,$I$200),SHEETOFFSET(-1,$I$161),SHEETOFFSET(-1,$I$162),SHEETOFFSET(-1,$I$125),SHEETOFFSET(-1,$I$132)/(SHEETOFFSET(-1,$G$11)*IF(SHEETOFFSET(-1,$G$37)<>"",SHEETOFFSET(-1,$G$37),SHEETOFFSET(-1,$G$42))),SHEETOFFSET(-1,$I$134)/(SHEETOFFSET(-1,$G$11)*IF(SHEETOFFSET(-1,$G$26)<>"",SHEETOFFSET(-1,$G$26),SHEETOFFSET(-1,$G$31))),SHEETOFFSET(-1,$I$119)/(SHEETOFFSET(-1,$G$11)*IF(SHEETOFFSET(-1,$G$25)="Mercancías a granel",1,0.45))),0),0) -> 0 | T60: 0 | U60: 0 | V60: 0 | W60: 0 | X60: 0 | Y60: 0 | Z60: 0 | AA60: 0 | AB60: 0 | AC60: 0 | AD60: 0 | AE60: 0 | AF60: 0 | AG60: 0 | AH60: 0 | AI60: 0 | AJ60: 0 | AK60: 0 | AL60: 0 | AS60: 0 | AT60: 0
A61: 45 | B61: =SELECCIONPATRON(SHEETOFFSET(-1,C176),SHEETOFFSET(-1,C137),SHEETOFFSET(-1,C138),SHEETOFFSET(-1,C101),SHEETOFFSET(-1,C108),SHEETOFFSET(-1,C110),SHEETOFFSET(-1,C95)) -> 0 | C61: =SELECCIONPATRON(SHEETOFFSET(-1,D176),SHEETOFFSET(-1,D137),SHEETOFFSET(-1,D138),SHEETOFFSET(-1,D101),SHEETOFFSET(-1,D108),SHEETOFFSET(-1,D110),SHEETOFFSET(-1,D95)) -> 0 | D61: =SELECCIONPATRON(SHEETOFFSET(-1,M176),SHEETOFFSET(-1,M137),SHEETOFFSET(-1,M138),SHEETOFFSET(-1,M101),SHEETOFFSET(-1,$E$51),SHEETOFFSET(-1,$E$52),SHEETOFFSET(-1,$E$38)) -> 0 | E61: =SELECCIONPATRON(SHEETOFFSET(-1,P176),SHEETOFFSET(-1,P137),SHEETOFFSET(-1,P138),SHEETOFFSET(-1,P101),SHEETOFFSET(-1,$E$52),SHEETOFFSET(-1,$E$53),SHEETOFFSET(-1,$E$39)) -> 0 | F61: =SELECCIONPATRON(SHEETOFFSET(-1,H176),SHEETOFFSET(-1,H137),SHEETOFFSET(-1,H138),SHEETOFFSET(-1,H101),SHEETOFFSET(-1,H108),SHEETOFFSET(-1,H110),SHEETOFFSET(-1,H95)) -> 0 | G61: =SELECCIONPATRON(SHEETOFFSET(-1,R176),SHEETOFFSET(-1,R137),SHEETOFFSET(-1,S138),SHEETOFFSET(-1,S101),SHEETOFFSET(-1,$G$55),SHEETOFFSET(-1,$G$56),SHEETOFFSET(-1,$G$42)) -> 0 | H61: =SELECCIONPATRON(SHEETOFFSET(-1,S176),SHEETOFFSET(-1,S137),SHEETOFFSET(-1,T138),SHEETOFFSET(-1,T101),SHEETOFFSET(-1,$G$56),SHEETOFFSET(-1,$G$57),SHEETOFFSET(-1,$G$43)) -> 0 | I61: =SELECCIONPATRON(SHEETOFFSET(-1,G176),SHEETOFFSET(-1,G137),SHEETOFFSET(-1,G138),SHEETOFFSET(-1,G101),SHEETOFFSET(-1,G108),SHEETOFFSET(-1,G110),SHEETOFFSET(-1,G95)) -> 0 | J61: =SELECCIONPATRON(SHEETOFFSET(-1,I176),SHEETOFFSET(-1,I137),SHEETOFFSET(-1,I138),SHEETOFFSET(-1,I101),SHEETOFFSET(-1,I108),SHEETOFFSET(-1,I110),SHEETOFFSET(-1,I95)) -> 0 | K61: =SELECCIONPATRON(SHEETOFFSET(-1,J176),SHEETOFFSET(-1,J137),SHEETOFFSET(-1,J138),SHEETOFFSET(-1,J101),SHEETOFFSET(-1,J108),SHEETOFFSET(-1,J110),SHEETOFFSET(-1,J95)) -> 0 | L61: --- | M61: =IFERROR(SELECCIONPATRON(L61,L61,L61,L61,H61*I61,H61*I61,H61*I61)*SELECCIONPATRON(SHEETOFFSET(-1,$T$122),SHEETOFFSET(-1,$T$85),SHEETOFFSET(-1,$V$86),SHEETOFFSET(-1,$V$49),SHEETOFFSET(-1,$G$29),SHEETOFFSET(-1,$G$44),SHEETOFFSET(-1,$G$30)),0) -> 0 | N61: 0 | O61: 0 | P61: 0 | Q61: 0 | R61: --- | S61: =IFERROR(IF(F61="Refrigerada",SELECCIONPATRON(R61,R61,R61,R61,I61,I61,I61)*SELECCIONPATRON(SHEETOFFSET(-1,$I$200),SHEETOFFSET(-1,$I$161),SHEETOFFSET(-1,$I$162),SHEETOFFSET(-1,$I$125),SHEETOFFSET(-1,$I$132)/(SHEETOFFSET(-1,$G$11)*IF(SHEETOFFSET(-1,$G$37)<>"",SHEETOFFSET(-1,$G$37),SHEETOFFSET(-1,$G$42))),SHEETOFFSET(-1,$I$134)/(SHEETOFFSET(-1,$G$11)*IF(SHEETOFFSET(-1,$G$26)<>"",SHEETOFFSET(-1,$G$26),SHEETOFFSET(-1,$G$31))),SHEETOFFSET(-1,$I$119)/(SHEETOFFSET(-1,$G$11)*IF(SHEETOFFSET(-1,$G$25)="Mercancías a granel",1,0.45))),0),0) -> 0 | T61: 0 | U61: 0 | V61: 0 | W61: 0 | X61: 0 | Y61: 0 | Z61: 0 | AA61: 0 | AB61: 0 | AC61: 0 | AD61: 0 | AE61: 0 | AF61: 0 | AG61: 0 | AH61: 0 | AI61: 0 | AJ61: 0 | AK61: 0 | AL61: 0 | AS61: 0 | AT61: 0
A62: 46 | B62: =SELECCIONPATRON(SHEETOFFSET(-1,C177),SHEETOFFSET(-1,C138),SHEETOFFSET(-1,C139),SHEETOFFSET(-1,C102),SHEETOFFSET(-1,C109),SHEETOFFSET(-1,C111),SHEETOFFSET(-1,C96)) -> 0 | C62: =SELECCIONPATRON(SHEETOFFSET(-1,D177),SHEETOFFSET(-1,D138),SHEETOFFSET(-1,D139),SHEETOFFSET(-1,D102),SHEETOFFSET(-1,D109),SHEETOFFSET(-1,D111),SHEETOFFSET(-1,D96)) -> 0 | D62: =SELECCIONPATRON(SHEETOFFSET(-1,M177),SHEETOFFSET(-1,M138),SHEETOFFSET(-1,M139),SHEETOFFSET(-1,M102),SHEETOFFSET(-1,$E$51),SHEETOFFSET(-1,$E$52),SHEETOFFSET(-1,$E$38)) -> 0 | E62: =SELECCIONPATRON(SHEETOFFSET(-1,P177),SHEETOFFSET(-1,P138),SHEETOFFSET(-1,P139),SHEETOFFSET(-1,P102),SHEETOFFSET(-1,$E$52),SHEETOFFSET(-1,$E$53),SHEETOFFSET(-1,$E$39)) -> 0 | F62: =SELECCIONPATRON(SHEETOFFSET(-1,H177),SHEETOFFSET(-1,H138),SHEETOFFSET(-1,H139),SHEETOFFSET(-1,H102),SHEETOFFSET(-1,H109),SHEETOFFSET(-1,H111),SHEETOFFSET(-1,H96)) -> 0 | G62: =SELECCIONPATRON(SHEETOFFSET(-1,R177),SHEETOFFSET(-1,R138),SHEETOFFSET(-1,S139),SHEETOFFSET(-1,S102),SHEETOFFSET(-1,$G$55),SHEETOFFSET(-1,$G$56),SHEETOFFSET(-1,$G$42)) -> 0 | H62: =SELECCIONPATRON(SHEETOFFSET(-1,S177),SHEETOFFSET(-1,S138),SHEETOFFSET(-1,T139),SHEETOFFSET(-1,T102),SHEETOFFSET(-1,$G$56),SHEETOFFSET(-1,$G$57),SHEETOFFSET(-1,$G$43)) -> 0 | I62: =SELECCIONPATRON(SHEETOFFSET(-1,G177),SHEETOFFSET(-1,G138),SHEETOFFSET(-1,G139),SHEETOFFSET(-1,G102),SHEETOFFSET(-1,G109),SHEETOFFSET(-1,G111),SHEETOFFSET(-1,G96)) -> 0 | J62: =SELECCIONPATRON(SHEETOFFSET(-1,I177),SHEETOFFSET(-1,I138),SHEETOFFSET(-1,I139),SHEETOFFSET(-1,I102),SHEETOFFSET(-1,I109),SHEETOFFSET(-1,I111),SHEETOFFSET(-1,I96)) -> 0 | K62: =SELECCIONPATRON(SHEETOFFSET(-1,J177),SHEETOFFSET(-1,J138),SHEETOFFSET(-1,J139),SHEETOFFSET(-1,J102),SHEETOFFSET(-1,J109),SHEETOFFSET(-1,J111),SHEETOFFSET(-1,J96)) -> 0 | L62: --- | M62: =IFERROR(SELECCIONPATRON(L62,L62,L62,L62,H62*I62,H62*I62,H62*I62)*SELECCIONPATRON(SHEETOFFSET(-1,$T$122),SHEETOFFSET(-1,$T$85),SHEETOFFSET(-1,$V$86),SHEETOFFSET(-1,$V$49),SHEETOFFSET(-1,$G$29),SHEETOFFSET(-1,$G$44),SHEETOFFSET(-1,$G$30)),0) -> 0 | N62: 0 | O62: 0 | P62: 0 | Q62: 0 | R62: --- | S62: =IFERROR(IF(F62="Refrigerada",SELECCIONPATRON(R62,R62,R62,R62,I62,I62,I62)*SELECCIONPATRON(SHEETOFFSET(-1,$I$200),SHEETOFFSET(-1,$I$161),SHEETOFFSET(-1,$I$162),SHEETOFFSET(-1,$I$125),SHEETOFFSET(-1,$I$132)/(SHEETOFFSET(-1,$G$11)*IF(SHEETOFFSET(-1,$G$37)<>"",SHEETOFFSET(-1,$G$37),SHEETOFFSET(-1,$G$42))),SHEETOFFSET(-1,$I$134)/(SHEETOFFSET(-1,$G$11)*IF(SHEETOFFSET(-1,$G$26)<>"",SHEETOFFSET(-1,$G$26),SHEETOFFSET(-1,$G$31))),SHEETOFFSET(-1,$I$119)/(SHEETOFFSET(-1,$G$11)*IF(SHEETOFFSET(-1,$G$25)="Mercancías a granel",1,0.45))),0),0) -> 0 | T62: 0 | U62: 0 | V62: 0 | W62: 0 | X62: 0 | Y62: 0 | Z62: 0 | AA62: 0 | AB62: 0 | AC62: 0 | AD62: 0 | AE62: 0 | AF62: 0 | AG62: 0 | AH62: 0 | AI62: 0 | AJ62: 0 | AK62: 0 | AL62: 0 | AS62: 0 | AT62: 0
A63: 47 | B63: =SELECCIONPATRON(SHEETOFFSET(-1,C178),SHEETOFFSET(-1,C139),SHEETOFFSET(-1,C140),SHEETOFFSET(-1,C103),SHEETOFFSET(-1,C110),SHEETOFFSET(-1,C112),SHEETOFFSET(-1,C97)) -> 0 | C63: =SELECCIONPATRON(SHEETOFFSET(-1,D178),SHEETOFFSET(-1,D139),SHEETOFFSET(-1,D140),SHEETOFFSET(-1,D103),SHEETOFFSET(-1,D110),SHEETOFFSET(-1,D112),SHEETOFFSET(-1,D97)) -> 0 | D63: =SELECCIONPATRON(SHEETOFFSET(-1,M178),SHEETOFFSET(-1,M139),SHEETOFFSET(-1,M140),SHEETOFFSET(-1,M103),SHEETOFFSET(-1,$E$51),SHEETOFFSET(-1,$E$52),SHEETOFFSET(-1,$E$38)) -> 0 | E63: =SELECCIONPATRON(SHEETOFFSET(-1,P178),SHEETOFFSET(-1,P139),SHEETOFFSET(-1,P140),SHEETOFFSET(-1,P103),SHEETOFFSET(-1,$E$52),SHEETOFFSET(-1,$E$53),SHEETOFFSET(-1,$E$39)) -> 0 | F63: =SELECCIONPATRON(SHEETOFFSET(-1,H178),SHEETOFFSET(-1,H139),SHEETOFFSET(-1,H140),SHEETOFFSET(-1,H103),SHEETOFFSET(-1,H110),SHEETOFFSET(-1,H112),SHEETOFFSET(-1,H97)) -> 0 | G63: =SELECCIONPATRON(SHEETOFFSET(-1,R178),SHEETOFFSET(-1,R139),SHEETOFFSET(-1,S140),SHEETOFFSET(-1,S103),SHEETOFFSET(-1,$G$55),SHEETOFFSET(-1,$G$56),SHEETOFFSET(-1,$G$42)) -> 0 | H63: =SELECCIONPATRON(SHEETOFFSET(-1,S178),SHEETOFFSET(-1,S139),SHEETOFFSET(-1,T140),SHEETOFFSET(-1,T103),SHEETOFFSET(-1,$G$56),SHEETOFFSET(-1,$G$57),SHEETOFFSET(-1,$G$43)) -> 0 | I63: =SELECCIONPATRON(SHEETOFFSET(-1,G178),SHEETOFFSET(-1,G139),SHEETOFFSET(-1,G140),SHEETOFFSET(-1,G103),SHEETOFFSET(-1,G110),SHEETOFFSET(-1,G112),SHEETOFFSET(-1,G97)) -> 0 | J63: =SELECCIONPATRON(SHEETOFFSET(-1,I178),SHEETOFFSET(-1,I139),SHEETOFFSET(-1,I140),SHEETOFFSET(-1,I103),SHEETOFFSET(-1,I110),SHEETOFFSET(-1,I112),SHEETOFFSET(-1,I97)) -> 0 | K63: =SELECCIONPATRON(SHEETOFFSET(-1,J178),SHEETOFFSET(-1,J139),SHEETOFFSET(-1,J140),SHEETOFFSET(-1,J103),SHEETOFFSET(-1,J110),SHEETOFFSET(-1,J112),SHEETOFFSET(-1,J97)) -> 0 | L63: --- | M63: =IFERROR(SELECCIONPATRON(L63,L63,L63,L63,H63*I63,H63*I63,H63*I63)*SELECCIONPATRON(SHEETOFFSET(-1,$T$122),SHEETOFFSET(-1,$T$85),SHEETOFFSET(-1,$V$86),SHEETOFFSET(-1,$V$49),SHEETOFFSET(-1,$G$29),SHEETOFFSET(-1,$G$44),SHEETOFFSET(-1,$G$30)),0) -> 0 | N63: 0 | O63: 0 | P63: 0 | Q63: 0 | R63: --- | S63: =IFERROR(IF(F63="Refrigerada",SELECCIONPATRON(R63,R63,R63,R63,I63,I63,I63)*SELECCIONPATRON(SHEETOFFSET(-1,$I$200),SHEETOFFSET(-1,$I$161),SHEETOFFSET(-1,$I$162),SHEETOFFSET(-1,$I$125),SHEETOFFSET(-1,$I$132)/(SHEETOFFSET(-1,$G$11)*IF(SHEETOFFSET(-1,$G$37)<>"",SHEETOFFSET(-1,$G$37),SHEETOFFSET(-1,$G$42))),SHEETOFFSET(-1,$I$134)/(SHEETOFFSET(-1,$G$11)*IF(SHEETOFFSET(-1,$G$26)<>"",SHEETOFFSET(-1,$G$26),SHEETOFFSET(-1,$G$31))),SHEETOFFSET(-1,$I$119)/(SHEETOFFSET(-1,$G$11)*IF(SHEETOFFSET(-1,$G$25)="Mercancías a granel",1,0.45))),0),0) -> 0 | T63: 0 | U63: 0 | V63: 0 | W63: 0 | X63: 0 | Y63: 0 | Z63: 0 | AA63: 0 | AB63: 0 | AC63: 0 | AD63: 0 | AE63: 0 | AF63: 0 | AG63: 0 | AH63: 0 | AI63: 0 | AJ63: 0 | AK63: 0 | AL63: 0 | AS63: 0 | AT63: 0
A64: 48 | B64: =SELECCIONPATRON(SHEETOFFSET(-1,C179),SHEETOFFSET(-1,C140),SHEETOFFSET(-1,C141),SHEETOFFSET(-1,C104),SHEETOFFSET(-1,C111),SHEETOFFSET(-1,C113),SHEETOFFSET(-1,C98)) -> 0 | C64: =SELECCIONPATRON(SHEETOFFSET(-1,D179),SHEETOFFSET(-1,D140),SHEETOFFSET(-1,D141),SHEETOFFSET(-1,D104),SHEETOFFSET(-1,D111),SHEETOFFSET(-1,D113),SHEETOFFSET(-1,D98)) -> 0 | D64: =SELECCIONPATRON(SHEETOFFSET(-1,M179),SHEETOFFSET(-1,M140),SHEETOFFSET(-1,M141),SHEETOFFSET(-1,M104),SHEETOFFSET(-1,$E$51),SHEETOFFSET(-1,$E$52),SHEETOFFSET(-1,$E$38)) -> 0 | E64: =SELECCIONPATRON(SHEETOFFSET(-1,P179),SHEETOFFSET(-1,P140),SHEETOFFSET(-1,P141),SHEETOFFSET(-1,P104),SHEETOFFSET(-1,$E$52),SHEETOFFSET(-1,$E$53),SHEETOFFSET(-1,$E$39)) -> 0 | F64: =SELECCIONPATRON(SHEETOFFSET(-1,H179),SHEETOFFSET(-1,H140),SHEETOFFSET(-1,H141),SHEETOFFSET(-1,H104),SHEETOFFSET(-1,H111),SHEETOFFSET(-1,H113),SHEETOFFSET(-1,H98)) -> 0 | G64: =SELECCIONPATRON(SHEETOFFSET(-1,R179),SHEETOFFSET(-1,R140),SHEETOFFSET(-1,S141),SHEETOFFSET(-1,S104),SHEETOFFSET(-1,$G$55),SHEETOFFSET(-1,$G$56),SHEETOFFSET(-1,$G$42)) -> 0 | H64: =SELECCIONPATRON(SHEETOFFSET(-1,S179),SHEETOFFSET(-1,S140),SHEETOFFSET(-1,T141),SHEETOFFSET(-1,T104),SHEETOFFSET(-1,$G$56),SHEETOFFSET(-1,$G$57),SHEETOFFSET(-1,$G$43)) -> 0 | I64: =SELECCIONPATRON(SHEETOFFSET(-1,G179),SHEETOFFSET(-1,G140),SHEETOFFSET(-1,G141),SHEETOFFSET(-1,G104),SHEETOFFSET(-1,G111),SHEETOFFSET(-1,G113),SHEETOFFSET(-1,G98)) -> 0 | J64: =SELECCIONPATRON(SHEETOFFSET(-1,I179),SHEETOFFSET(-1,I140),SHEETOFFSET(-1,I141),SHEETOFFSET(-1,I104),SHEETOFFSET(-1,I111),SHEETOFFSET(-1,I113),SHEETOFFSET(-1,I98)) -> 0 | K64: =SELECCIONPATRON(SHEETOFFSET(-1,J179),SHEETOFFSET(-1,J140),SHEETOFFSET(-1,J141),SHEETOFFSET(-1,J104),SHEETOFFSET(-1,J111),SHEETOFFSET(-1,J113),SHEETOFFSET(-1,J98)) -> 0 | L64: --- | M64: =IFERROR(SELECCIONPATRON(L64,L64,L64,L64,H64*I64,H64*I64,H64*I64)*SELECCIONPATRON(SHEETOFFSET(-1,$T$122),SHEETOFFSET(-1,$T$85),SHEETOFFSET(-1,$V$86),SHEETOFFSET(-1,$V$49),SHEETOFFSET(-1,$G$29),SHEETOFFSET(-1,$G$44),SHEETOFFSET(-1,$G$30)),0) -> 0 | N64: 0 | O64: 0 | P64: 0 | Q64: 0 | R64: --- | S64: =IFERROR(IF(F64="Refrigerada",SELECCIONPATRON(R64,R64,R64,R64,I64,I64,I64)*SELECCIONPATRON(SHEETOFFSET(-1,$I$200),SHEETOFFSET(-1,$I$161),SHEETOFFSET(-1,$I$162),SHEETOFFSET(-1,$I$125),SHEETOFFSET(-1,$I$132)/(SHEETOFFSET(-1,$G$11)*IF(SHEETOFFSET(-1,$G$37)<>"",SHEETOFFSET(-1,$G$37),SHEETOFFSET(-1,$G$42))),SHEETOFFSET(-1,$I$134)/(SHEETOFFSET(-1,$G$11)*IF(SHEETOFFSET(-1,$G$26)<>"",SHEETOFFSET(-1,$G$26),SHEETOFFSET(-1,$G$31))),SHEETOFFSET(-1,$I$119)/(SHEETOFFSET(-1,$G$11)*IF(SHEETOFFSET(-1,$G$25)="Mercancías a granel",1,0.45))),0),0) -> 0 | T64: 0 | U64: 0 | V64: 0 | W64: 0 | X64: 0 | Y64: 0 | Z64: 0 | AA64: 0 | AB64: 0 | AC64: 0 | AD64: 0 | AE64: 0 | AF64: 0 | AG64: 0 | AH64: 0 | AI64: 0 | AJ64: 0 | AK64: 0 | AL64: 0 | AS64: 0 | AT64: 0
A65: 49 | B65: =SELECCIONPATRON(SHEETOFFSET(-1,C180),SHEETOFFSET(-1,C141),SHEETOFFSET(-1,C142),SHEETOFFSET(-1,C105),SHEETOFFSET(-1,C112),SHEETOFFSET(-1,C114),SHEETOFFSET(-1,C99)) -> 0 | C65: =SELECCIONPATRON(SHEETOFFSET(-1,D180),SHEETOFFSET(-1,D141),SHEETOFFSET(-1,D142),SHEETOFFSET(-1,D105),SHEETOFFSET(-1,D112),SHEETOFFSET(-1,D114),SHEETOFFSET(-1,D99)) -> 0 | D65: =SELECCIONPATRON(SHEETOFFSET(-1,M180),SHEETOFFSET(-1,M141),SHEETOFFSET(-1,M142),SHEETOFFSET(-1,M105),SHEETOFFSET(-1,$E$51),SHEETOFFSET(-1,$E$52),SHEETOFFSET(-1,$E$38)) -> 0 | E65: =SELECCIONPATRON(SHEETOFFSET(-1,P180),SHEETOFFSET(-1,P141),SHEETOFFSET(-1,P142),SHEETOFFSET(-1,P105),SHEETOFFSET(-1,$E$52),SHEETOFFSET(-1,$E$53),SHEETOFFSET(-1,$E$39)) -> 0 | F65: =SELECCIONPATRON(SHEETOFFSET(-1,H180),SHEETOFFSET(-1,H141),SHEETOFFSET(-1,H142),SHEETOFFSET(-1,H105),SHEETOFFSET(-1,H112),SHEETOFFSET(-1,H114),SHEETOFFSET(-1,H99)) -> 0 | G65: =SELECCIONPATRON(SHEETOFFSET(-1,R180),SHEETOFFSET(-1,R141),SHEETOFFSET(-1,S142),SHEETOFFSET(-1,S105),SHEETOFFSET(-1,$G$55),SHEETOFFSET(-1,$G$56),SHEETOFFSET(-1,$G$42)) -> 0 | H65: =SELECCIONPATRON(SHEETOFFSET(-1,S180),SHEETOFFSET(-1,S141),SHEETOFFSET(-1,T142),SHEETOFFSET(-1,T105),SHEETOFFSET(-1,$G$56),SHEETOFFSET(-1,$G$57),SHEETOFFSET(-1,$G$43)) -> 0 | I65: =SELECCIONPATRON(SHEETOFFSET(-1,G180),SHEETOFFSET(-1,G141),SHEETOFFSET(-1,G142),SHEETOFFSET(-1,G105),SHEETOFFSET(-1,G112),SHEETOFFSET(-1,G114),SHEETOFFSET(-1,G99)) -> 0 | J65: =SELECCIONPATRON(SHEETOFFSET(-1,I180),SHEETOFFSET(-1,I141),SHEETOFFSET(-1,I142),SHEETOFFSET(-1,I105),SHEETOFFSET(-1,I112),SHEETOFFSET(-1,I114),SHEETOFFSET(-1,I99)) -> 0 | K65: =SELECCIONPATRON(SHEETOFFSET(-1,J180),SHEETOFFSET(-1,J141),SHEETOFFSET(-1,J142),SHEETOFFSET(-1,J105),SHEETOFFSET(-1,J112),SHEETOFFSET(-1,J114),SHEETOFFSET(-1,J99)) -> 0 | L65: --- | M65: =IFERROR(SELECCIONPATRON(L65,L65,L65,L65,H65*I65,H65*I65,H65*I65)*SELECCIONPATRON(SHEETOFFSET(-1,$T$122),SHEETOFFSET(-1,$T$85),SHEETOFFSET(-1,$V$86),SHEETOFFSET(-1,$V$49),SHEETOFFSET(-1,$G$29),SHEETOFFSET(-1,$G$44),SHEETOFFSET(-1,$G$30)),0) -> 0 | N65: 0 | O65: 0 | P65: 0 | Q65: 0 | R65: --- | S65: =IFERROR(IF(F65="Refrigerada",SELECCIONPATRON(R65,R65,R65,R65,I65,I65,I65)*SELECCIONPATRON(SHEETOFFSET(-1,$I$200),SHEETOFFSET(-1,$I$161),SHEETOFFSET(-1,$I$162),SHEETOFFSET(-1,$I$125),SHEETOFFSET(-1,$I$132)/(SHEETOFFSET(-1,$G$11)*IF(SHEETOFFSET(-1,$G$37)<>"",SHEETOFFSET(-1,$G$37),SHEETOFFSET(-1,$G$42))),SHEETOFFSET(-1,$I$134)/(SHEETOFFSET(-1,$G$11)*IF(SHEETOFFSET(-1,$G$26)<>"",SHEETOFFSET(-1,$G$26),SHEETOFFSET(-1,$G$31))),SHEETOFFSET(-1,$I$119)/(SHEETOFFSET(-1,$G$11)*IF(SHEETOFFSET(-1,$G$25)="Mercancías a granel",1,0.45))),0),0) -> 0 | T65: 0 | U65: 0 | V65: 0 | W65: 0 | X65: 0 | Y65: 0 | Z65: 0 | AA65: 0 | AB65: 0 | AC65: 0 | AD65: 0 | AE65: 0 | AF65: 0 | AG65: 0 | AH65: 0 | AI65: 0 | AJ65: 0 | AK65: 0 | AL65: 0 | AS65: 0 | AT65: 0
A66: 50 | B66: =SELECCIONPATRON(SHEETOFFSET(-1,C181),SHEETOFFSET(-1,C142),SHEETOFFSET(-1,C143),SHEETOFFSET(-1,C106),SHEETOFFSET(-1,C113),SHEETOFFSET(-1,C115),SHEETOFFSET(-1,C100)) -> 0 | C66: =SELECCIONPATRON(SHEETOFFSET(-1,D181),SHEETOFFSET(-1,D142),SHEETOFFSET(-1,D143),SHEETOFFSET(-1,D106),SHEETOFFSET(-1,D113),SHEETOFFSET(-1,D115),SHEETOFFSET(-1,D100)) -> 0 | D66: =SELECCIONPATRON(SHEETOFFSET(-1,M181),SHEETOFFSET(-1,M142),SHEETOFFSET(-1,M143),SHEETOFFSET(-1,M106),SHEETOFFSET(-1,$E$51),SHEETOFFSET(-1,$E$52),SHEETOFFSET(-1,$E$38)) -> 0 | E66: =SELECCIONPATRON(SHEETOFFSET(-1,P181),SHEETOFFSET(-1,P142),SHEETOFFSET(-1,P143),SHEETOFFSET(-1,P106),SHEETOFFSET(-1,$E$52),SHEETOFFSET(-1,$E$53),SHEETOFFSET(-1,$E$39)) -> 0 | F66: =SELECCIONPATRON(SHEETOFFSET(-1,H181),SHEETOFFSET(-1,H142),SHEETOFFSET(-1,H143),SHEETOFFSET(-1,H106),SHEETOFFSET(-1,H113),SHEETOFFSET(-1,H115),SHEETOFFSET(-1,H100)) -> 0 | G66: =SELECCIONPATRON(SHEETOFFSET(-1,R181),SHEETOFFSET(-1,R142),SHEETOFFSET(-1,S143),SHEETOFFSET(-1,S106),SHEETOFFSET(-1,$G$55),SHEETOFFSET(-1,$G$56),SHEETOFFSET(-1,$G$42)) -> 0 | H66: =SELECCIONPATRON(SHEETOFFSET(-1,S181),SHEETOFFSET(-1,S142),SHEETOFFSET(-1,T143),SHEETOFFSET(-1,T106),SHEETOFFSET(-1,$G$56),SHEETOFFSET(-1,$G$57),SHEETOFFSET(-1,$G$43)) -> 0 | I66: =SELECCIONPATRON(SHEETOFFSET(-1,G181),SHEETOFFSET(-1,G142),SHEETOFFSET(-1,G143),SHEETOFFSET(-1,G106),SHEETOFFSET(-1,G113),SHEETOFFSET(-1,G115),SHEETOFFSET(-1,G100)) -> 0 | J66: =SELECCIONPATRON(SHEETOFFSET(-1,I181),SHEETOFFSET(-1,I142),SHEETOFFSET(-1,I143),SHEETOFFSET(-1,I106),SHEETOFFSET(-1,I113),SHEETOFFSET(-1,I115),SHEETOFFSET(-1,I100)) -> 0 | K66: =SELECCIONPATRON(SHEETOFFSET(-1,J181),SHEETOFFSET(-1,J142),SHEETOFFSET(-1,J143),SHEETOFFSET(-1,J106),SHEETOFFSET(-1,J113),SHEETOFFSET(-1,J115),SHEETOFFSET(-1,J100)) -> 0 | L66: --- | M66: =IFERROR(SELECCIONPATRON(L66,L66,L66,L66,H66*I66,H66*I66,H66*I66)*SELECCIONPATRON(SHEETOFFSET(-1,$T$122),SHEETOFFSET(-1,$T$85),SHEETOFFSET(-1,$V$86),SHEETOFFSET(-1,$V$49),SHEETOFFSET(-1,$G$29),SHEETOFFSET(-1,$G$44),SHEETOFFSET(-1,$G$30)),0) -> 0 | N66: 0 | O66: 0 | P66: 0 | Q66: 0 | R66: --- | S66: =IFERROR(IF(F66="Refrigerada",SELECCIONPATRON(R66,R66,R66,R66,I66,I66,I66)*SELECCIONPATRON(SHEETOFFSET(-1,$I$200),SHEETOFFSET(-1,$I$161),SHEETOFFSET(-1,$I$162),SHEETOFFSET(-1,$I$125),SHEETOFFSET(-1,$I$132)/(SHEETOFFSET(-1,$G$11)*IF(SHEETOFFSET(-1,$G$37)<>"",SHEETOFFSET(-1,$G$37),SHEETOFFSET(-1,$G$42))),SHEETOFFSET(-1,$I$134)/(SHEETOFFSET(-1,$G$11)*IF(SHEETOFFSET(-1,$G$26)<>"",SHEETOFFSET(-1,$G$26),SHEETOFFSET(-1,$G$31))),SHEETOFFSET(-1,$I$119)/(SHEETOFFSET(-1,$G$11)*IF(SHEETOFFSET(-1,$G$25)="Mercancías a granel",1,0.45))),0),0) -> 0 | T66: 0 | U66: 0 | V66: 0 | W66: 0 | X66: 0 | Y66: 0 | Z66: 0 | AA66: 0 | AB66: 0 | AC66: 0 | AD66: 0 | AE66: 0 | AF66: 0 | AG66: 0 | AH66: 0 | AI66: 0 | AJ66: 0 | AK66: 0 | AL66: 0 | AS66: 0 | AT66: 0
H67: TOTAL | I67: =SUM(I17:I66) -> 0 | J67: =SUM(J17:J66) -> 0 | K67: 0 | L67: 0 | M67: 0 | N67: 0 | O67: 0 | P67: 0 | Q67: 0 | R67: 0 | S67: 0 | T67: 0 | U67: 0 | V67: 0 | W67: 0 | X67: =SUM(X17:X66) -> 0 | Y67: 0 | Z67: 0 | AA67: 0 | AB67: 0 | AC67: 0 | AD67: 0 | AE67: 0 | AF67: 0 | AG67: 0 | AH67: 0 | AI67: 0 | AJ67: 0 | AK67: 0 | AL67: 0
O69: Tipo de combustible empleado | P69: =SELECCIONPATRON(IF(SHEETOFFSET(-1,E29)<>"",SHEETOFFSET(-1,E29),SHEETOFFSET(-1,E59)),IF(SHEETOFFSET(-1,E29)<>"",SHEETOFFSET(-1,E29),SHEETOFFSET(-1,E59)),SHEETOFFSET(-1,E18),SHEETOFFSET(-1,E18),SHEETOFFSET(-1,E18),SHEETOFFSET(-1,E18),SHEETOFFSET(-1,E18)) -> 0 | U69: Tipo de combustible empleado | V69: =SELECCIONPATRON(SHEETOFFSET(-1,G192),SHEETOFFSET(-1,G153),SHEETOFFSET(-1,G154),SHEETOFFSET(-1,G117),SHEETOFFSET(-1,G124),SHEETOFFSET(-1,G126),SHEETOFFSET(-1,G111)) -> 0 | AB69: Tipos de fuente de energía empleadas | AC69: =IF(SHEETOFFSET(-1,G208)<>"",SHEETOFFSET(-1,G208),SHEETOFFSET(-1,H224)) -> ---
AB70: "" | AC70: =IF(SHEETOFFSET(-1,G211)<>"",SHEETOFFSET(-1,G211),IF(SHEETOFFSET(-1,H223)<>"","Gas natural: potencia calorífica neta",0)) -> ---
AB71: "" | AC71: =SHEETOFFSET(-1,G214) -> ---
A72: RESULTADOS POR CLIENTE
B74: Cliente del envío | I74: Peso bruto de los envíos del cliente (t) | J74: Volumen del conjunto de envíos del cliente en almacenamiento (m3) - en caso de que la carga sea almacenada | K74: Días de almacenamiento - en caso de que la carga sea almacenada | L74: =L15 -> RESULTADOS: PROPULSIÓN DE LA CARGA | R74: =R15 -> --- | X74: RESULTADOS: ALMACENAMIENTO DE LA CARGA | AE74: RESULTADOS TOTALES DEL SERVICIO DE TRANSPORTE DE LA CARGA | AI74: RESULTADOS TOTALES DEL SERVICIO DE TRANSPORTE Y ALMACENAMIENTO DE LA CARGA
L75: Proporción de cupo para cada cliente (%) | M75: ="Consumo de combustible: "&P128 -> Consumo de combustible: | N75: Consumo energético del tanque a las ruedas | O75: Consumo energético del pozo a las ruedas | P75: Emisiones de GEI del tanque a las ruedas | Q75: Emisiones de GEI del pozo a las ruedas | R75: Proporción de cupo para cada cliente (%) | S75: ="Consumo de combustible: "&V128 -> Consumo de combustible: | T75: Consumo energético del tanque a las ruedas | U75: Consumo energético del pozo a las ruedas | V75: Emisiones de GEI del tanque a las ruedas | W75: Emisiones de GEI del pozo a las ruedas | X75: ="Consumo por fuente de energía: "&AC128 -> Consumo por fuente de energía: | Y75: ="Consumo por fuente de energía: "&AD128 -> Consumo por fuente de energía: | Z75: ="Consumo por fuente de energía: "&AE128 -> Consumo por fuente de energía: | AA75: Consumo energético directo | AB75: Consumo energético directo e indirecto | AC75: Emisiones de GEI directas | AD75: Emisiones de GEI directas e indirectas | AE75: Consumo energético del tanque a las ruedas | AF75: Consumo energético del pozo a las ruedas | AG75: Emisiones de GEI del tanque a las ruedas | AH75: Emisiones de GEI del pozo a las ruedas | AI75: Consumo energético del tanque a las ruedas | AJ75: Consumo energético del pozo a las ruedas | AK75: Emisiones de GEI del tanque a las ruedas | AL75: Emisiones de GEI del pozo a las ruedas
B76: ='MENÚ DE INICIO'!AG10 -> 0 | I76: =IF($B76=0,0,SUMIF($B$17:$B$66,$B76,I$17:I$66)) -> 0 | J76: =IF($B76=0,0,SUMIF($B$17:$B$66,$B76,J$17:J$66)) -> 0 | K76: 0 | L76: 0 | M76: 0 | N76: 0 | O76: 0 | P76: 0 | Q76: 0 | R76: 0 | S76: 0 | T76: 0 | U76: 0 | V76: 0 | W76: 0 | X76: 0 | Y76: 0 | Z76: =IF($B76=0,0,SUMIF($B$17:$B$66,$B76,Z$17:Z$66)) -> 0 | AA76: 0 | AB76: 0 | AC76: 0 | AD76: 0 | AE76: 0 | AF76: 0 | AG76: 0 | AH76: 0 | AI76: 0 | AJ76: 0 | AK76: 0 | AL76: 0
B77: ='MENÚ DE INICIO'!AG11 -> 0 | I77: =IF($B77=0,0,SUMIF($B$17:$B$66,$B77,I$17:I$66)) -> 0 | J77: 0 | K77: 0 | L77: 0 | M77: 0 | N77: 0 | O77: 0 | P77: 0 | Q77: 0 | R77: 0 | S77: 0 | T77: 0 | U77: 0 | V77: 0 | W77: 0 | X77: 0 | Y77: 0 | Z77: 0 | AA77: 0 | AB77: 0 | AC77: 0 | AD77: 0 | AE77: 0 | AF77: 0 | AG77: 0 | AH77: 0 | AI77: 0 | AJ77: 0 | AK77: 0 | AL77: 0
B78: ='MENÚ DE INICIO'!AG12 -> 0 | I78: 0 | J78: 0 | K78: 0 | L78: 0 | M78: 0 | N78: 0 | O78: 0 | P78: 0 | Q78: 0 | R78: 0 | S78: 0 | T78: 0 | U78: 0 | V78: 0 | W78: 0 | X78: 0 | Y78: 0 | Z78: 0 | AA78: 0 | AB78: 0 | AC78: 0 | AD78: 0 | AE78: 0 | AF78: 0 | AG78: 0 | AH78: 0 | AI78: 0 | AJ78: 0 | AK78: 0 | AL78: 0
B79: ='MENÚ DE INICIO'!AG13 -> 0 | I79: 0 | J79: 0 | K79: 0 | L79: 0 | M79: 0 | N79: 0 | O79: 0 | P79: 0 | Q79: 0 | R79: 0 | S79: 0 | T79: 0 | U79: 0 | V79: 0 | W79: 0 | X79: 0 | Y79: 0 | Z79: 0 | AA79: 0 | AB79: 0 | AC79: 0 | AD79: 0 | AE79: 0 | AF79: 0 | AG79: 0 | AH79: 0 | AI79: 0 | AJ79: 0 | AK79: 0 | AL79: 0
B80: ='MENÚ DE INICIO'!AG14 -> 0 | I80: 0 | J80: 0 | K80: 0 | L80: 0 | M80: 0 | N80: 0 | O80: 0 | P80: 0 | Q80: 0 | R80: 0 | S80: 0 | T80: 0 | U80: 0 | V80: 0 | W80: 0 | X80: 0 | Y80: 0 | Z80: 0 | AA80: 0 | AB80: 0 | AC80: 0 | AD80: 0 | AE80: 0 | AF80: 0 | AG80: 0 | AH80: 0 | AI80: 0 | AJ80: 0 | AK80: 0 | AL80: 0
B81: ='MENÚ DE INICIO'!AG15 -> 0 | I81: 0 | J81: 0 | K81: 0 | L81: 0 | M81: 0 | N81: 0 | O81: 0 | P81: 0 | Q81: 0 | R81: 0 | S81: 0 | T81: 0 | U81: 0 | V81: 0 | W81: 0 | X81: 0 | Y81: 0 | Z81: 0 | AA81: 0 | AB81: 0 | AC81: 0 | AD81: 0 | AE81: 0 | AF81: 0 | AG81: 0 | AH81: 0 | AI81: 0 | AJ81: 0 | AK81: 0 | AL81: 0
B82: ='MENÚ DE INICIO'!AG16 -> 0 | I82: 0 | J82: 0 | K82: 0 | L82: 0 | M82: 0 | N82: 0 | O82: 0 | P82: 0 | Q82: 0 | R82: 0 | S82: 0 | T82: 0 | U82: 0 | V82: 0 | W82: 0 | X82: 0 | Y82: 0 | Z82: 0 | AA82: 0 | AB82: 0 | AC82: 0 | AD82: 0 | AE82: 0 | AF82: 0 | AG82: 0 | AH82: 0 | AI82: 0 | AJ82: 0 | AK82: 0 | AL82: 0
B83: ='MENÚ DE INICIO'!AG17 -> 0 | I83: 0 | J83: 0 | K83: 0 | L83: 0 | M83: 0 | N83: 0 | O83: 0 | P83: 0 | Q83: 0 | R83: 0 | S83: 0 | T83: 0 | U83: 0 | V83: 0 | W83: 0 | X83: 0 | Y83: 0 | Z83: 0 | AA83: 0 | AB83: 0 | AC83: 0 | AD83: 0 | AE83: 0 | AF83: 0 | AG83: 0 | AH83: 0 | AI83: 0 | AJ83: 0 | AK83: 0 | AL83: 0
B84: ='MENÚ DE INICIO'!AG18 -> 0 | I84: 0 | J84: 0 | K84: 0 | L84: 0 | M84: 0 | N84: 0 | O84: 0 | P84: 0 | Q84: 0 | R84: 0 | S84: 0 | T84: 0 | U84: 0 | V84: 0 | W84: 0 | X84: 0 | Y84: 0 | Z84: 0 | AA84: 0 | AB84: 0 | AC84: 0 | AD84: 0 | AE84: 0 | AF84: 0 | AG84: 0 | AH84: 0 | AI84: 0 | AJ84: 0 | AK84: 0 | AL84: 0
B85: ='MENÚ DE INICIO'!AG19 -> 0 | I85: 0 | J85: 0 | K85: 0 | L85: 0 | M85: 0 | N85: 0 | O85: 0 | P85: 0 | Q85: 0 | R85: 0 | S85: 0 | T85: 0 | U85: 0 | V85: 0 | W85: 0 | X85: 0 | Y85: 0 | Z85: 0 | AA85: 0 | AB85: 0 | AC85: 0 | AD85: 0 | AE85: 0 | AF85: 0 | AG85: 0 | AH85: 0 | AI85: 0 | AJ85: 0 | AK85: 0 | AL85: 0
B86: ='MENÚ DE INICIO'!AG20 -> 0 | I86: 0 | J86: 0 | K86: 0 | L86: 0 | M86: 0 | N86: 0 | O86: 0 | P86: 0 | Q86: 0 | R86: 0 | S86: 0 | T86: 0 | U86: 0 | V86: 0 | W86: 0 | X86: 0 | Y86: 0 | Z86: 0 | AA86: 0 | AB86: 0 | AC86: 0 | AD86: 0 | AE86: 0 | AF86: 0 | AG86: 0 | AH86: 0 | AI86: 0 | AJ86: 0 | AK86: 0 | AL86: 0
B87: ='MENÚ DE INICIO'!AG21 -> 0 | I87: 0 | J87: 0 | K87: 0 | L87: 0 | M87: 0 | N87: 0 | O87: 0 | P87: 0 | Q87: 0 | R87: 0 | S87: 0 | T87: 0 | U87: 0 | V87: 0 | W87: 0 | X87: 0 | Y87: 0 | Z87: 0 | AA87: 0 | AB87: 0 | AC87: 0 | AD87: 0 | AE87: 0 | AF87: 0 | AG87: 0 | AH87: 0 | AI87: 0 | AJ87: 0 | AK87: 0 | AL87: 0
B88: ='MENÚ DE INICIO'!AG22 -> 0 | I88: 0 | J88: 0 | K88: 0 | L88: 0 | M88: 0 | N88: 0 | O88: 0 | P88: 0 | Q88: 0 | R88: 0 | S88: 0 | T88: 0 | U88: 0 | V88: 0 | W88: 0 | X88: 0 | Y88: 0 | Z88: 0 | AA88: 0 | AB88: 0 | AC88: 0 | AD88: 0 | AE88: 0 | AF88: 0 | AG88: 0 | AH88: 0 | AI88: 0 | AJ88: 0 | AK88: 0 | AL88: 0
B89: ='MENÚ DE INICIO'!AG23 -> 0 | I89: 0 | J89: 0 | K89: 0 | L89: 0 | M89: 0 | N89: 0 | O89: 0 | P89: 0 | Q89: 0 | R89: 0 | S89: 0 | T89: 0 | U89: 0 | V89: 0 | W89: 0 | X89: 0 | Y89: 0 | Z89: 0 | AA89: 0 | AB89: 0 | AC89: 0 | AD89: 0 | AE89: 0 | AF89: 0 | AG89: 0 | AH89: 0 | AI89: 0 | AJ89: 0 | AK89: 0 | AL89: 0
B90: ='MENÚ DE INICIO'!AG24 -> 0 | I90: 0 | J90: 0 | K90: 0 | L90: 0 | M90: 0 | N90: 0 | O90: 0 | P90: 0 | Q90: 0 | R90: 0 | S90: 0 | T90: 0 | U90: 0 | V90: 0 | W90: 0 | X90: 0 | Y90: 0 | Z90: 0 | AA90: 0 | AB90: 0 | AC90: 0 | AD90: 0 | AE90: 0 | AF90: 0 | AG90: 0 | AH90: 0 | AI90: 0 | AJ90: 0 | AK90: 0 | AL90: 0
B91: ='MENÚ DE INICIO'!AG25 -> 0 | I91: 0 | J91: 0 | K91: 0 | L91: 0 | M91: 0 | N91: 0 | O91: 0 | P91: 0 | Q91: 0 | R91: 0 | S91: 0 | T91: 0 | U91: 0 | V91: 0 | W91: 0 | X91: 0 | Y91: =IF($B91=0,0,SUMIF($B$17:$B$66,$B91,Y$17:Y$66)) -> 0 | Z91: 0 | AA91: 0 | AB91: 0 | AC91: 0 | AD91: 0 | AE91: 0 | AF91: 0 | AG91: 0 | AH91: 0 | AI91: 0 | AJ91: 0 | AK91: 0 | AL91: 0
B92: ='MENÚ DE INICIO'!AG26 -> 0 | I92: 0 | J92: 0 | K92: 0 | L92: 0 | M92: 0 | N92: 0 | O92: 0 | P92: 0 | Q92: 0 | R92: 0 | S92: 0 | T92: 0 | U92: 0 | V92: 0 | W92: 0 | X92: 0 | Y92: 0 | Z92: 0 | AA92: 0 | AB92: 0 | AC92: 0 | AD92: 0 | AE92: 0 | AF92: 0 | AG92: 0 | AH92: 0 | AI92: 0 | AJ92: 0 | AK92: 0 | AL92: 0
B93: ='MENÚ DE INICIO'!AG27 -> 0 | I93: =IF($B93=0,0,SUMIF($B$17:$B$66,$B93,I$17:I$66)) -> 0 | J93: 0 | K93: 0 | L93: 0 | M93: 0 | N93: 0 | O93: 0 | P93: 0 | Q93: 0 | R93: 0 | S93: 0 | T93: 0 | U93: 0 | V93: 0 | W93: 0 | X93: 0 | Y93: 0 | Z93: 0 | AA93: 0 | AB93: 0 | AC93: 0 | AD93: 0 | AE93: 0 | AF93: 0 | AG93: 0 | AH93: 0 | AI93: 0 | AJ93: 0 | AK93: 0 | AL93: 0
B94: ='MENÚ DE INICIO'!AG28 -> 0 | I94: 0 | J94: 0 | K94: 0 | L94: 0 | M94: 0 | N94: 0 | O94: 0 | P94: 0 | Q94: 0 | R94: 0 | S94: 0 | T94: 0 | U94: 0 | V94: 0 | W94: 0 | X94: 0 | Y94: 0 | Z94: 0 | AA94: 0 | AB94: 0 | AC94: 0 | AD94: 0 | AE94: 0 | AF94: 0 | AG94: 0 | AH94: 0 | AI94: 0 | AJ94: 0 | AK94: 0 | AL94: 0
B95: ='MENÚ DE INICIO'!AG29 -> 0 | I95: 0 | J95: 0 | K95: 0 | L95: 0 | M95: 0 | N95: 0 | O95: 0 | P95: 0 | Q95: 0 | R95: 0 | S95: 0 | T95: 0 | U95: 0 | V95: 0 | W95: 0 | X95: 0 | Y95: 0 | Z95: 0 | AA95: 0 | AB95: 0 | AC95: 0 | AD95: 0 | AE95: 0 | AF95: 0 | AG95: 0 | AH95: 0 | AI95: 0 | AJ95: 0 | AK95: 0 | AL95: 0
B96: ='MENÚ DE INICIO'!AG30 -> 0 | I96: 0 | J96: 0 | K96: 0 | L96: 0 | M96: 0 | N96: 0 | O96: 0 | P96: 0 | Q96: 0 | R96: 0 | S96: 0 | T96: 0 | U96: 0 | V96: 0 | W96: 0 | X96: 0 | Y96: 0 | Z96: 0 | AA96: 0 | AB96: 0 | AC96: 0 | AD96: 0 | AE96: 0 | AF96: 0 | AG96: 0 | AH96: 0 | AI96: 0 | AJ96: 0 | AK96: 0 | AL96: 0
B97: ='MENÚ DE INICIO'!AG31 -> 0 | I97: 0 | J97: 0 | K97: 0 | L97: 0 | M97: 0 | N97: 0 | O97: 0 | P97: 0 | Q97: 0 | R97: 0 | S97: 0 | T97: 0 | U97: 0 | V97: 0 | W97: 0 | X97: 0 | Y97: 0 | Z97: 0 | AA97: 0 | AB97: 0 | AC97: 0 | AD97: 0 | AE97: 0 | AF97: 0 | AG97: 0 | AH97: 0 | AI97: 0 | AJ97: 0 | AK97: 0 | AL97: 0
B98: ='MENÚ DE INICIO'!AG32 -> 0 | I98: 0 | J98: 0 | K98: 0 | L98: 0 | M98: 0 | N98: 0 | O98: 0 | P98: 0 | Q98: 0 | R98: 0 | S98: 0 | T98: 0 | U98: 0 | V98: 0 | W98: 0 | X98: 0 | Y98: 0 | Z98: 0 | AA98: 0 | AB98: 0 | AC98: 0 | AD98: 0 | AE98: 0 | AF98: 0 | AG98: 0 | AH98: 0 | AI98: 0 | AJ98: 0 | AK98: 0 | AL98: 0
B99: ='MENÚ DE INICIO'!AG33 -> 0 | I99: 0 | J99: 0 | K99: 0 | L99: 0 | M99: 0 | N99: 0 | O99: 0 | P99: 0 | Q99: 0 | R99: 0 | S99: 0 | T99: 0 | U99: 0 | V99: 0 | W99: 0 | X99: 0 | Y99: 0 | Z99: 0 | AA99: 0 | AB99: 0 | AC99: 0 | AD99: 0 | AE99: 0 | AF99: 0 | AG99: 0 | AH99: 0 | AI99: 0 | AJ99: 0 | AK99: 0 | AL99: 0
B100: ='MENÚ DE INICIO'!AG34 -> 0 | I100: 0 | J100: 0 | K100: 0 | L100: 0 | M100: 0 | N100: 0 | O100: 0 | P100: 0 | Q100: 0 | R100: 0 | S100: 0 | T100: 0 | U100: 0 | V100: 0 | W100: 0 | X100: 0 | Y100: 0 | Z100: 0 | AA100: 0 | AB100: 0 | AC100: 0 | AD100: 0 | AE100: 0 | AF100: 0 | AG100: 0 | AH100: 0 | AI100: 0 | AJ100: 0 | AK100: 0 | AL100: 0
B101: ='MENÚ DE INICIO'!AG35 -> 0 | I101: 0 | J101: 0 | K101: 0 | L101: 0 | M101: 0 | N101: 0 | O101: 0 | P101: 0 | Q101: 0 | R101: 0 | S101: 0 | T101: 0 | U101: 0 | V101: 0 | W101: 0 | X101: 0 | Y101: 0 | Z101: 0 | AA101: 0 | AB101: 0 | AC101: 0 | AD101: 0 | AE101: 0 | AF101: 0 | AG101: 0 | AH101: 0 | AI101: 0 | AJ101: 0 | AK101: 0 | AL101: 0
B102: ='MENÚ DE INICIO'!AG36 -> 0 | I102: 0 | J102: 0 | K102: 0 | L102: 0 | M102: 0 | N102: 0 | O102: 0 | P102: 0 | Q102: 0 | R102: 0 | S102: 0 | T102: 0 | U102: 0 | V102: 0 | W102: 0 | X102: 0 | Y102: 0 | Z102: 0 | AA102: 0 | AB102: 0 | AC102: 0 | AD102: 0 | AE102: 0 | AF102: 0 | AG102: 0 | AH102: 0 | AI102: 0 | AJ102: 0 | AK102: 0 | AL102: 0
B103: ='MENÚ DE INICIO'!AG37 -> 0 | I103: 0 | J103: 0 | K103: 0 | L103: 0 | M103: 0 | N103: 0 | O103: 0 | P103: 0 | Q103: 0 | R103: 0 | S103: 0 | T103: 0 | U103: 0 | V103: 0 | W103: 0 | X103: 0 | Y103: 0 | Z103: 0 | AA103: 0 | AB103: 0 | AC103: 0 | AD103: 0 | AE103: 0 | AF103: 0 | AG103: 0 | AH103: 0 | AI103: 0 | AJ103: 0 | AK103: 0 | AL103: 0
B104: ='MENÚ DE INICIO'!AG38 -> 0 | I104: 0 | J104: 0 | K104: 0 | L104: 0 | M104: 0 | N104: 0 | O104: 0 | P104: 0 | Q104: 0 | R104: 0 | S104: 0 | T104: 0 | U104: 0 | V104: 0 | W104: 0 | X104: 0 | Y104: 0 | Z104: 0 | AA104: 0 | AB104: 0 | AC104: 0 | AD104: 0 | AE104: 0 | AF104: 0 | AG104: 0 | AH104: 0 | AI104: 0 | AJ104: 0 | AK104: 0 | AL104: 0
B105: ='MENÚ DE INICIO'!AG39 -> 0 | I105: 0 | J105: 0 | K105: 0 | L105: 0 | M105: 0 | N105: 0 | O105: 0 | P105: 0 | Q105: 0 | R105: 0 | S105: 0 | T105: 0 | U105: 0 | V105: 0 | W105: 0 | X105: 0 | Y105: 0 | Z105: 0 | AA105: 0 | AB105: 0 | AC105: 0 | AD105: 0 | AE105: 0 | AF105: 0 | AG105: 0 | AH105: 0 | AI105: 0 | AJ105: 0 | AK105: 0 | AL105: 0
B106: ='MENÚ DE INICIO'!AG40 -> 0 | I106: 0 | J106: 0 | K106: 0 | L106: 0 | M106: 0 | N106: 0 | O106: 0 | P106: 0 | Q106: 0 | R106: 0 | S106: 0 | T106: 0 | U106: 0 | V106: 0 | W106: 0 | X106: 0 | Y106: 0 | Z106: 0 | AA106: 0 | AB106: 0 | AC106: 0 | AD106: 0 | AE106: 0 | AF106: 0 | AG106: 0 | AH106: 0 | AI106: 0 | AJ106: 0 | AK106: 0 | AL106: 0
B107: ='MENÚ DE INICIO'!AG41 -> 0 | I107: 0 | J107: 0 | K107: 0 | L107: 0 | M107: 0 | N107: 0 | O107: 0 | P107: 0 | Q107: 0 | R107: 0 | S107: 0 | T107: 0 | U107: 0 | V107: 0 | W107: 0 | X107: 0 | Y107: =IF($B107=0,0,SUMIF($B$17:$B$66,$B107,Y$17:Y$66)) -> 0 | Z107: 0 | AA107: 0 | AB107: 0 | AC107: 0 | AD107: 0 | AE107: 0 | AF107: 0 | AG107: 0 | AH107: 0 | AI107: 0 | AJ107: 0 | AK107: 0 | AL107: 0
B108: ='MENÚ DE INICIO'!AG42 -> 0 | I108: 0 | J108: 0 | K108: 0 | L108: 0 | M108: 0 | N108: 0 | O108: 0 | P108: 0 | Q108: 0 | R108: 0 | S108: 0 | T108: 0 | U108: 0 | V108: 0 | W108: 0 | X108: =IF($B108=0,0,SUMIF($B$17:$B$66,$B108,X$17:X$66)) -> 0 | Y108: 0 | Z108: 0 | AA108: 0 | AB108: 0 | AC108: 0 | AD108: 0 | AE108: 0 | AF108: 0 | AG108: 0 | AH108: 0 | AI108: 0 | AJ108: 0 | AK108: 0 | AL108: 0
B109: ='MENÚ DE INICIO'!AG43 -> 0 | I109: =IF($B109=0,0,SUMIF($B$17:$B$66,$B109,I$17:I$66)) -> 0 | J109: 0 | K109: 0 | L109: 0 | M109: 0 | N109: 0 | O109: 0 | P109: 0 | Q109: 0 | R109: 0 | S109: 0 | T109: 0 | U109: 0 | V109: 0 | W109: 0 | X109: 0 | Y109: 0 | Z109: 0 | AA109: 0 | AB109: 0 | AC109: 0 | AD109: 0 | AE109: 0 | AF109: 0 | AG109: 0 | AH109: 0 | AI109: 0 | AJ109: 0 | AK109: 0 | AL109: 0
B110: ='MENÚ DE INICIO'!AG44 -> 0 | I110: 0 | J110: 0 | K110: 0 | L110: 0 | M110: 0 | N110: 0 | O110: 0 | P110: 0 | Q110: 0 | R110: 0 | S110: 0 | T110: 0 | U110: 0 | V110: 0 | W110: 0 | X110: 0 | Y110: 0 | Z110: 0 | AA110: 0 | AB110: 0 | AC110: 0 | AD110: 0 | AE110: 0 | AF110: 0 | AG110: 0 | AH110: 0 | AI110: 0 | AJ110: 0 | AK110: 0 | AL110: 0
B111: ='MENÚ DE INICIO'!AG45 -> 0 | I111: 0 | J111: 0 | K111: 0 | L111: 0 | M111: 0 | N111: 0 | O111: 0 | P111: 0 | Q111: 0 | R111: 0 | S111: 0 | T111: 0 | U111: 0 | V111: 0 | W111: 0 | X111: 0 | Y111: 0 | Z111: 0 | AA111: 0 | AB111: 0 | AC111: 0 | AD111: 0 | AE111: 0 | AF111: 0 | AG111: 0 | AH111: 0 | AI111: 0 | AJ111: 0 | AK111: 0 | AL111: 0
B112: ='MENÚ DE INICIO'!AG46 -> 0 | I112: 0 | J112: 0 | K112: 0 | L112: 0 | M112: 0 | N112: 0 | O112: 0 | P112: 0 | Q112: 0 | R112: 0 | S112: 0 | T112: 0 | U112: 0 | V112: 0 | W112: 0 | X112: 0 | Y112: 0 | Z112: 0 | AA112: 0 | AB112: 0 | AC112: 0 | AD112: 0 | AE112: 0 | AF112: 0 | AG112: 0 | AH112: 0 | AI112: 0 | AJ112: 0 | AK112: 0 | AL112: 0
B113: ='MENÚ DE INICIO'!AG47 -> 0 | I113: 0 | J113: 0 | K113: 0 | L113: 0 | M113: 0 | N113: 0 | O113: 0 | P113: 0 | Q113: 0 | R113: 0 | S113: 0 | T113: 0 | U113: 0 | V113: 0 | W113: 0 | X113: 0 | Y113: 0 | Z113: 0 | AA113: 0 | AB113: 0 | AC113: 0 | AD113: 0 | AE113: 0 | AF113: 0 | AG113: 0 | AH113: 0 | AI113: 0 | AJ113: 0 | AK113: 0 | AL113: 0
B114: ='MENÚ DE INICIO'!AG48 -> 0 | I114: 0 | J114: 0 | K114: 0 | L114: 0 | M114: 0 | N114: 0 | O114: 0 | P114: 0 | Q114: 0 | R114: 0 | S114: 0 | T114: 0 | U114: 0 | V114: 0 | W114: 0 | X114: 0 | Y114: 0 | Z114: 0 | AA114: 0 | AB114: 0 | AC114: 0 | AD114: 0 | AE114: 0 | AF114: 0 | AG114: 0 | AH114: 0 | AI114: 0 | AJ114: 0 | AK114: 0 | AL114: 0
B115: ='MENÚ DE INICIO'!AG49 -> 0 | I115: 0 | J115: 0 | K115: 0 | L115: 0 | M115: 0 | N115: 0 | O115: 0 | P115: 0 | Q115: 0 | R115: 0 | S115: 0 | T115: 0 | U115: 0 | V115: 0 | W115: 0 | X115: 0 | Y115: 0 | Z115: 0 | AA115: 0 | AB115: 0 | AC115: 0 | AD115: 0 | AE115: 0 | AF115: 0 | AG115: 0 | AH115: 0 | AI115: 0 | AJ115: 0 | AK115: 0 | AL115: 0
B116: ='MENÚ DE INICIO'!AG50 -> 0 | I116: 0 | J116: 0 | K116: 0 | L116: 0 | M116: 0 | N116: 0 | O116: 0 | P116: 0 | Q116: 0 | R116: 0 | S116: 0 | T116: 0 | U116: 0 | V116: 0 | W116: 0 | X116: 0 | Y116: 0 | Z116: 0 | AA116: 0 | AB116: 0 | AC116: 0 | AD116: 0 | AE116: 0 | AF116: 0 | AG116: 0 | AH116: 0 | AI116: 0 | AJ116: 0 | AK116: 0 | AL116: 0
